Workbook

Sheet Cover
B16: Victorian Disaster Recovery Funding Arrangements Cost Estimation Tool

Sheet Instructions
A1: Disaster Recovery Funding Arrangements
A2: Cost Estimation Tool
B6: Introduction
B8: The Disaster Recovery Funding Arrangements (DRFA) Cost Estimation Tool has been developed to ensure consistent and efficient cost estimation of direct costs associated with eligible disaster works through the adoption of standard treatments. This estimating tool allows for the applicant to input local construction rates and productivities to inform the Cost Estimation Tool and establish rates for standard treatments adopted in their Reconstruction of Essential Public Asset (REPA) claims. The Cost Estimation Tool should be used to develop a first principles estimate for a single asset and should be used in conjunction with the following documents: · Guideline 3: Cost Estimation for Essential Public Assets · Guideline 3 - Appendix B: Standard Treatment Guidelines - Victorian DRFA Claim Forms A, B, B2 and C
B10: Standard Treatments
B12: Twenty-four (24) standard treatments most commonly used in Victoria’s reconstruction activities have been collated. The use of common terminology and units of measure aims to provide consistency across REPA works to: · assist applicants during scoping · assist the review process · audit of claims. The standard treatments should be adopted where appropriate, however, where non-standard treatments are required a first principles or itemised cost estimate approach can be adopted using the ‘Other’ treatment worksheet in the Cost Estimation Tool. For further information on cost estimation requirements and the development of treatments under the 'Other' category, refer to the Guideline 3: Cost Estimation. The ‘Standard Treatment' guideline is included in Appendix B of Guideline 3: Cost Estimation to further detail the work activities and scope of works included in each of these treatments.
B14: Category | C14: # | D14: Treatment | E14: Unit
B15: Unsealed pavements | C15: ST1 | D15: Light Formation Grading | E15: m
C16: ST2 | D16: Medium Formation Grading | E16: m
C17: ST3 | D17: Heavy Formation Grading | E17: m
C18: ST4 | D18: Gravel Material Supply | E18: m3
C19: ST5 | D19: Gravel Resheeting | E19: m3
B20: Sealed pavement repairs | C20: ST6 | D20: In-Situ Stabilisation – Including Additional Material As Required | E20: m2
C21: ST7 | D21: Granular Overlay – Overlay With Imported Material (≤150Mm) | E21: m2
C22: ST8 | D22: Reconstruct Unbound Granular Pavement | E22: m2
C23: ST9 | D23: Patch Repair – Patch Unbound Pavement Failure | E23: m3
C24: ST10 | D24: Pothole Repair | E24: tonne
C25: ST11 | D25: Heavy Shoulder Grading | E25: m
C26: ST12 | D26: Shoulder Reconstruction | E26: m
C27: ST13 | D27: Asphalt | E27: m3
B28: Clearing and earthworks | C28: ST14 | D28: Bulk Excavate Surplus Material/Debris And Remove From Site | E28: m3
C29: ST15 | D29: Bulk Fill | E29: m3
C30: ST16 | D30: Rock Protection | E30: m3
C31: ST17 | D31: Reshape Table Drain | E31: m
B32: Road furniture and delineation | C32: ST18 | D32: Replace Road Signage | E32: each
C33: ST19 | D33: Replace Roadside Barriers | E33: m
C34: ST20 | D34: Replace Guide Posts Or Markers | E34: each
B35: Concrete | C35: ST21 | D35: Reconstruct Reinforced Concrete | E35: m3
B36: Drainage structures | C36: ST22 | D36: Repair Drainage Structure – Excavate, Repair And Reinstate | E36: m
C37: ST23 | D37: Replace Reinforced Concrete Box Culvert (RCBC) | E37: m
C38: ST24 | D38: Replace Concrete Pipe | E38: m
B39: Other | C39: OT1 | D39: Other – Including Structures, Retaining Items | E39: lump sum
B41: Basis of Cost Estimating Tool
B43: The Cost Estimation Tool is based on a first principles estimation approach. This is a process of assigning plant, labour and material rates to a given work activity or standard treatment. To develop the tool, a number of common inputs have been considered, including: · construction methodologies (type of plant, labour, materials) · basis for rates (resource rates to take into account current market conditions including supply and demand) · size and number of sites · productivity · remote locations or distance of travel · materials availability.
B45: Using the Tool
B47: Only cells that are shaded 'Yellow' require input from the applicant.
B49: Step 1. Populate the Resources
B50: The 'Resources_A' worksheet includes a listing of typical plant, labour and materials that have been used in the build-up of the standard treatments. The applicant is to populate these resources with the local rate in the unit of measure shown against each resource. If additional plant, labour or materials are required, space has been provided in the 'Additional Resources' section to capture these resources. The applicant should ensure that any additional resources outside of those in the 'Resource List' comply with the eligibility provisions in Section 7 of Guideline 1: Claims and Eligibility.
B52: Step 2. Generate the Required Treatments
B53: On the 'Menu' worksheet, the applicant will need to enter the required information into the 'General Information' subsection including the Event Name, Asset Name, Asset ID and contact details of the applicant. Following that, the applicant can then select which treatments will be included in the DRFA claim for the event. The applicant should use the Yes/No selection boxes in Column E to determine which Treatment worksheets to generate. The 'Yellow' input cell in column F corresponds to how many worksheets for each treatment the applicant would like to generate. The applicant must select between one and six treatment worksheets to be generated for their claim.
B55: Step 3. Populate Standard Treatment Inputs (ST1, ST2, ST3…)
B56: Each standard treatment (ST1, ST2, ST3...) requires the applicant's input to establish a relevant direct cost unit rate. Details should be entered in the following order: 1. The applicant should populate the 'Asset Details' sub-section with specific asset details, including the asset location to ensure the cost estimate is able to be related to the essential public asset. The start and finish locations can be specified in Chainage (i.e. C. 150.45) or Co-ordinates (i.e. 159"49'21') 2. Where an applicant has nominated additional resources in the spare resources section of the 'Resources_A' worksheet, and these resources are required to be applied to the standard treatment, the name can be selected from the drop down menu located in the 'Yellow' shaded cells under the 'Calculations' sub-section to be included in the calculation. 3. The applicant should next populate the 'Applicant Inputs' sub-section with appropriate data including the extents of the treatment sites and material properties where required. The 'Applicant Inputs' sub-section provides provision for different sizes and number of sites to be established. The applicant should make sure that all input cells in each of these sections have been considered. 4. The applicant should then complete the 'Calculations' sub-section with details of the extent and size of the individual work sites nominated in the 'Applicant Inputs' sub-section including: · Travel time between sites · The production or productivity rate that is expected for that specific treatment and size of worksite · The time associated with the set-up and removal of the required traffic control devices for each of the work site sections · The applicant can include or exclude the resources that makeup the treatment by using the drop down boxes in Column D. This feature can be used to adjust for economies of scale.
B58: Step 4. Tool Outputs
B59: Following the input of key variables in steps 1, 2 and 3, the direct cost estimate and direct unit rate for that treatment is automatically calculated. This calculation is based on the anticipated or typical resources that would apply to that specific standard treatment. The tool output is displayed in the 'Summary' sub-section of each standard treatment (ST1, ST2, ST3...) worksheet. All results are automatically exported to the Claim Summary worksheet which will contain the total direct cost and the cost per unit.
B61: End of Worksheet

Sheet Menu
A1: Disaster Recovery Funding Arrangements
A2: Cost Estimation Tool
A3: =Version_No -> Version 1.0 - Oct 18
B7: General Information
B9: Claimant/Agency | D9: MSC
B10: Name of Event | D10: December Flood
B11: Event ID/AGRN | D11: 803
B12: Asset ID | D12: RDS003819
B13: Name of Asset | D13: Ballan-Egerton Road
B14: Date of Estimate | D14: 2019-05-14
B16: Contact Person | D16: David Huxtable
B17: Contact Phone Number | D17: 5366 7100
B18: Contact Email | D18: dhuxtable@moorabool.vic.gov.au
B21: Treatment Selection
B23: Name of treatment | D23: Treatment # | E23: Generate treatment | F23: No. of treatments
B24: Light Formation Grading | D24: =Instructions!C15 -> ST1
B25: Medium Formation Grading | D25: =Instructions!C16 -> ST2
B26: Heavy Formation Grading | D26: =Instructions!C17 -> ST3
B27: Gravel Material Supply | D27: =Instructions!C18 -> ST4 | G27: Please note that a maximum of six worksheets per treatment can be generated in the Cost Estimation Tool.
B28: Gravel Resheeting | D28: =Instructions!C19 -> ST5 | G28: If you require more than six of an individual treatment, please save a new version of the tool.
B29: In-Situ Stabilisation – Including Additional Material As Required | D29: =Instructions!C20 -> ST6
B30: Granular Overlay – Overlay With Imported Material (≤150Mm) | D30: =Instructions!C21 -> ST7
B31: Reconstruct Unbound Granular Pavement | D31: =Instructions!C22 -> ST8
B32: Patch Repair – Patch Unbound Pavement Failure | D32: =Instructions!C23 -> ST9
B33: Pothole Repair | D33: =Instructions!C24 -> ST10
B34: Heavy Shoulder Grading | D34: =Instructions!C25 -> ST11
B35: Shoulder Reconstruction | D35: =Instructions!C26 -> ST12 | E35: Yes | F35: 1
B36: Asphalt | D36: =Instructions!C27 -> ST13
B37: Bulk Excavate Surplus Material/Debris And Remove From Site | D37: =Instructions!C28 -> ST14
B38: Bulk Fill | D38: =Instructions!C29 -> ST15
B39: Rock Protection | D39: =Instructions!C30 -> ST16
B40: Reshape Table Drain | D40: =Instructions!C31 -> ST17
B41: Replace Road Signage | D41: =Instructions!C32 -> ST18
B42: Replace Roadside Barriers | D42: =Instructions!C33 -> ST19
B43: Replace Guide Posts Or Markers | D43: ST20
B44: Reconstruct Reinforced Concrete | D44: =Instructions!C35 -> ST21
B45: Repair Drainage Structure – Excavate, Repair And Reinstate | D45: =Instructions!C36 -> ST22
B46: Replace Reinforced Concrete Box Culvert (RCBC) | D46: =Instructions!C37 -> ST23
B47: Replace Concrete Pipe | D47: =Instructions!C38 -> ST24
B48: Other – Including Structures, Retaining Items | D48: =Instructions!C39 -> OT1
B50: End of Worksheet

Sheet Claim Summary
A1: Disaster Recovery Funding Arrangements
A2: Cost Estimation Tool
A3: =Version_No -> Version 1.0 - Oct 18
B6: Asset ID | C6: Asset Name | D6: Start Chainage | E6: Finish Chainage | F6: Start Latitude | G6: Start Longitude | H6: End Latitude | I6: End Longitude | J6: Treatment ID | K6: Treatment Name | L6: Treatment Quantity | M6: Treatment Unit | N6: Treatment Rate | O6: Total Direct Cost
B7: =IF(ISBLANK(ST12_1!$E$10),"",ST12_1!$E$10) -> RDS003819 | C7: =IF(ISBLANK(ST12_1!$E$11),"",ST12_1!$E$11) -> Ballan-Egerton Road | D7: =IF(ISBLANK(ST12_1!$E$12),"",ST12_1!$E$12) -> 4.55 | E7: =IF(ISBLANK(ST12_1!$E$13),"",ST12_1!$E$13) -> 4.55 | F7: =ST12_1!$E$14 -> -37.6297877 | G7: =ST12_1!$E$15 -> 144.1611122 | H7: =ST12_1!$E$16 -> -37.6297877 | I7: =ST12_1!$E$17 -> 144.1611122 | J7: =ST12_1!$E$8 -> ST12_1 | K7: =ST12_1!$B$4 -> Shoulder Reconstruction | L7: =ST12_1!$G$2 -> 200 | M7: =ST12_1!$E$98 -> $/Lm | N7: =ST12_1!$G$3 -> 29.4425 | O7: =ST12_1!$G$4 -> 5888.5
R8: 2. Update Yes/No with formula

Sheet Resources_A
A1: Disaster Recovery Funding Arrangements
A2: Cost Estimation Tool
A3: =Version_No -> Version 1.0 - Oct 18
B6: Resource List
B8: Resource | C8: Calculated Rate (AUD) | D8: Unit
B9: Ablution Block | C9: 5 | D9: hr
B10: Accommodation | C10: 35 | D10: hr
B11: Asphalt - Large area | C11: 200 | D11: tonne
B12: Asphalt - Small area | C12: 220 | D12: tonne
B13: Bitumen Spray Seal - 2-Coat | C13: 35 | D13: m2
B14: Bobcat | C14: 100 | D14: hr
B15: Bobcat and Stabiliser | C15: 120 | D15: hr
B16: Body Truck | C16: 110 | D16: hr
B17: Bridge Rail - Supply and Install | D17: m
B18: Bridge Rail - Mobilisation and Demobilisation | D18: each
B19: Camp - Kitchen | D19: hr
B20: CC-10 Roller | C20: 95 | D20: hr
B21: Concrete | C21: 250 | D21: m3
B22: Emulsion (1L/m2) | C22: 0 | D22: litre
B23: Excavator - 8 Tonne Attachment | C23: 120 | D23: hr
B24: Excavator 30 Tonne (Capacity) | C24: 165 | D24: hr
B25: Excavator 8 Tonne (Capacity) | C25: 125 | D25: hr
B26: Foreman and Vehicle | C26: 120 | D26: hr
B27: Formwork - Materials | C27: 65 | D27: m2
B28: Geotextile - Type E | C28: 15 | D28: m2
B29: Grader and Operator | C29: 180 | D29: hr
B30: Gravel - Borrow | D30: tonne
B31: Gravel - Commercial | C31: 35 | D31: tonne
B32: Guard Rail | D32: m
B33: Guard Rail - Mobilisation and Demobilisation | D33: each
B34: Guard Rail - Supply and Install | D34: m
B35: Guard Rail Post | D35: each
B36: Guide Post | C36: 10 | D36: each
B37: High Strength Tape | D37: m
B38: Holding Tank | D38: day
B39: Imported Fill | C39: 27 | D39: tonne
B40: Jetpacker | D40: hr
B41: Job Truck without Operator | C41: 110 | D41: hr
B42: Labour - Concreter | C42: 75 | D42: hr
B43: Labour - Construction Worker | C43: 75 | D43: hr
B44: Labour - Formworkers | C44: 75 | D44: hr
B45: Labour - Pipe Layer | C45: 75 | D45: hr
B46: Labour - Steelfixer | C46: 75 | D46: hr
B47: Labourer - Traffic Control | C47: 90 | D47: hr
B48: Loader | C48: 140 | D48: hr
B49: Multi-Tyre Roller Without Operator | C49: 70 | D49: hr
B50: Pad Foot Roller and Operator | C50: 110 | D50: hr
B51: Pipe 1050 - 1800 | C51: 1200 | D51: m
B52: Pipe 375-900 | C52: 450 | D52: m
B53: Pipe RCBC Span 450 - 900 | D53: m
B54: Pipe RCBC Span1200 - 1800 | D54: m
B55: Plate Compactor | C55: 50 | D55: hr
B56: Premix | C56: 280 | D56: tonne
B57: Prime Mover/L Bed | C57: 150 | D57: hr
B58: Quick Saw | C58: 20 | D58: hr
B59: Quick Set Cement - 20kg bag | C59: 35 | D59: each
B60: Reinforcement | C60: 35 | D60: tonne
B61: Rock | C61: 33 | D61: tonne
B62: Sand | C62: 38 | D62: tonne
B63: Sign Face - Medium | C63: 100 | D63: each
B64: Sign Face - Small | C64: 100 | D64: each
B65: Sign Post - 110mm Slip Post | C65: 200 | D65: each
B66: Sign Post - 110mm Slipbase | C66: 200 | D66: each
B67: Sign Post - 65 mm | C67: 200 | D67: each
B68: Sign Post - Bracket - 110 mm | C68: 30 | D68: each
B69: Sign Post - Bracket 65 mm | C69: 30 | D69: each
B70: Sign Post Cap - 110 mm | C70: 30 | D70: each
B71: Sign Post Cap - 65 mm | C71: 30 | D71: each
B72: Smooth Drum Roller and Operator | C72: 110 | D72: hr
B73: Stabiliser and Spreader | C73: 2500 | D73: day
B74: Stabilisation Agent - Small Quantity | C74: 80 | D74: tonne
B75: Stabilisation Agent - Standard Quantity | C75: 80 | D75: tonne
B76: Tack Coat - Large Area | C76: 7 | D76: litre
B77: Tack Coat - Small Area | C77: 7 | D77: litre
B78: Truck and Dog | C78: 165 | D78: hr
B79: Water Trailer | C79: 85 | D79: hr
B80: Water Truck | C80: 105 | D80: hr
B81: Wire Rope - Mobilisation and Demobilisation | D81: each
B82: Wire Rope - Supply and Install | D82: m
B83: DBYD | C83: 200 | D83: Each | E83: Please insert additional resources type, rates and units here as required
B84: Traffic Management | C84: 1200 | D84: Day
B85: 50mm AG rock | C85: 30 | D85: tonne
B86: Beaching Rock | C86: 38 | D86: tonne
B87: Cement Treated Crushed Rock | C87: 45 | D87: tonne
B88: ="[Spare "&COUNTBLANK(C$83:C88)&"]" -> [Spare 1]
B89: ="[Spare "&COUNTBLANK(C$83:C89)&"]" -> [Spare 2]
B90: ="[Spare "&COUNTBLANK(C$83:C90)&"]" -> [Spare 3]
B91: ="[Spare "&COUNTBLANK(C$83:C91)&"]" -> [Spare 4]
B92: ="[Spare "&COUNTBLANK(C$83:C92)&"]" -> [Spare 5]
B93: ="[Spare "&COUNTBLANK(C$83:C93)&"]" -> [Spare 6]
B94: ="[Spare "&COUNTBLANK(C$83:C94)&"]" -> [Spare 7]
B95: ="[Spare "&COUNTBLANK(C$83:C95)&"]" -> [Spare 8]
B96: ="[Spare "&COUNTBLANK(C$83:C96)&"]" -> [Spare 9]
B97: ="[Spare "&COUNTBLANK(C$83:C97)&"]" -> [Spare 10]
B98: ="[Spare "&COUNTBLANK(C$83:C98)&"]" -> [Spare 11]
B99: ="[Spare "&COUNTBLANK(C$83:C99)&"]" -> [Spare 12]
B100: ="[Spare "&COUNTBLANK(C$83:C100)&"]" -> [Spare 13]
B101: ="[Spare "&COUNTBLANK(C$83:C101)&"]" -> [Spare 14]
B102: ="[Spare "&COUNTBLANK(C$83:C102)&"]" -> [Spare 15]
B103: ="[Spare "&COUNTBLANK(C$83:C103)&"]" -> [Spare 16]
B104: ="[Spare "&COUNTBLANK(C$83:C104)&"]" -> [Spare 17]
B105: ="[Spare "&COUNTBLANK(C$83:C105)&"]" -> [Spare 18]
B106: ="[Spare "&COUNTBLANK(C$83:C106)&"]" -> [Spare 19]
B107: ="[Spare "&COUNTBLANK(C$83:C107)&"]" -> [Spare 20]
B108: ="[Spare "&COUNTBLANK(C$83:C108)&"]" -> [Spare 21]
B109: ="[Spare "&COUNTBLANK(C$83:C109)&"]" -> [Spare 22]
B110: ="[Spare "&COUNTBLANK(C$83:C110)&"]" -> [Spare 23]
B111: ="[Spare "&COUNTBLANK(C$83:C111)&"]" -> [Spare 24]
B112: ="[Spare "&COUNTBLANK(C$83:C112)&"]" -> [Spare 25]
B113: ="[Spare "&COUNTBLANK(C$83:C113)&"]" -> [Spare 26]
B114: ="[Spare "&COUNTBLANK(C$83:C114)&"]" -> [Spare 27]
B115: ="[Spare "&COUNTBLANK(C$83:C115)&"]" -> [Spare 28]
B116: ="[Spare "&COUNTBLANK(C$83:C116)&"]" -> [Spare 29]
B117: ="[Spare "&COUNTBLANK(C$83:C117)&"]" -> [Spare 30]
B118: ="[Spare "&COUNTBLANK(C$83:C118)&"]" -> [Spare 31]
B119: ="[Spare "&COUNTBLANK(C$83:C119)&"]" -> [Spare 32]
B120: ="[Spare "&COUNTBLANK(C$83:C120)&"]" -> [Spare 33]
B121: ="[Spare "&COUNTBLANK(C$83:C121)&"]" -> [Spare 34]
B122: ="[Spare "&COUNTBLANK(C$83:C122)&"]" -> [Spare 35]
B123: ="[Spare "&COUNTBLANK(C$83:C123)&"]" -> [Spare 36]
B124: ="[Spare "&COUNTBLANK(C$83:C124)&"]" -> [Spare 37]
B125: ="[Spare "&COUNTBLANK(C$83:C125)&"]" -> [Spare 38]
B126: ="[Spare "&COUNTBLANK(C$83:C126)&"]" -> [Spare 39]
B127: ="[Spare "&COUNTBLANK(C$83:C127)&"]" -> [Spare 40]
B128: ="[Spare "&COUNTBLANK(C$83:C128)&"]" -> [Spare 41]
B129: ="[Spare "&COUNTBLANK(C$83:C129)&"]" -> [Spare 42]
B130: ="[Spare "&COUNTBLANK(C$83:C130)&"]" -> [Spare 43]
B131: ="[Spare "&COUNTBLANK(C$83:C131)&"]" -> [Spare 44]
B132: ="[Spare "&COUNTBLANK(C$83:C132)&"]" -> [Spare 45]
B133: ="[Spare "&COUNTBLANK(C$83:C133)&"]" -> [Spare 46]
B134: ="[Spare "&COUNTBLANK(C$83:C134)&"]" -> [Spare 47]
B135: ="[Spare "&COUNTBLANK(C$83:C135)&"]" -> [Spare 48]
B136: ="[Spare "&COUNTBLANK(C$83:C136)&"]" -> [Spare 49]
B137: ="[Spare "&COUNTBLANK(C$83:C137)&"]" -> [Spare 50]
B138: ="[Spare "&COUNTBLANK(C$83:C138)&"]" -> [Spare 51]
B139: ="[Spare "&COUNTBLANK(C$83:C139)&"]" -> [Spare 52]
B140: ="[Spare "&COUNTBLANK(C$83:C140)&"]" -> [Spare 53]
B141: ="[Spare "&COUNTBLANK(C$83:C141)&"]" -> [Spare 54]
B142: ="[Spare "&COUNTBLANK(C$83:C142)&"]" -> [Spare 55]
B143: ="[Spare "&COUNTBLANK(C$83:C143)&"]" -> [Spare 56]
B144: ="[Spare "&COUNTBLANK(C$83:C144)&"]" -> [Spare 57]
B145: ="[Spare "&COUNTBLANK(C$83:C145)&"]" -> [Spare 58]
B146: ="[Spare "&COUNTBLANK(C$83:C146)&"]" -> [Spare 59]
B147: ="[Spare "&COUNTBLANK(C$83:C147)&"]" -> [Spare 60]
B148: ="[Spare "&COUNTBLANK(C$83:C148)&"]" -> [Spare 61]
B149: ="[Spare "&COUNTBLANK(C$83:C149)&"]" -> [Spare 62]
B150: ="[Spare "&COUNTBLANK(C$83:C150)&"]" -> [Spare 63]
B151: ="[Spare "&COUNTBLANK(C$83:C151)&"]" -> [Spare 64]
B152: ="[Spare "&COUNTBLANK(C$83:C152)&"]" -> [Spare 65]
B153: ="[Spare "&COUNTBLANK(C$83:C153)&"]" -> [Spare 66]
B154: ="[Spare "&COUNTBLANK(C$83:C154)&"]" -> [Spare 67]
B155: ="[Spare "&COUNTBLANK(C$83:C155)&"]" -> [Spare 68]
B156: ="[Spare "&COUNTBLANK(C$83:C156)&"]" -> [Spare 69]
B157: ="[Spare "&COUNTBLANK(C$83:C157)&"]" -> [Spare 70]
B158: ="[Spare "&COUNTBLANK(C$83:C158)&"]" -> [Spare 71]
B159: ="[Spare "&COUNTBLANK(C$83:C159)&"]" -> [Spare 72]
B160: ="[Spare "&COUNTBLANK(C$83:C160)&"]" -> [Spare 73]
B161: ="[Spare "&COUNTBLANK(C$83:C161)&"]" -> [Spare 74]
B162: ="[Spare "&COUNTBLANK(C$83:C162)&"]" -> [Spare 75]
B163: ="[Spare "&COUNTBLANK(C$83:C163)&"]" -> [Spare 76]
B164: ="[Spare "&COUNTBLANK(C$83:C164)&"]" -> [Spare 77]
B165: ="[Spare "&COUNTBLANK(C$83:C165)&"]" -> [Spare 78]
B166: ="[Spare "&COUNTBLANK(C$83:C166)&"]" -> [Spare 79]
B167: ="[Spare "&COUNTBLANK(C$83:C167)&"]" -> [Spare 80]
B168: ="[Spare "&COUNTBLANK(C$83:C168)&"]" -> [Spare 81]
B169: ="[Spare "&COUNTBLANK(C$83:C169)&"]" -> [Spare 82]
B170: ="[Spare "&COUNTBLANK(C$83:C170)&"]" -> [Spare 83]
B171: ="[Spare "&COUNTBLANK(C$83:C171)&"]" -> [Spare 84]
B172: ="[Spare "&COUNTBLANK(C$83:C172)&"]" -> [Spare 85]
B173: ="[Spare "&COUNTBLANK(C$83:C173)&"]" -> [Spare 86]
B174: ="[Spare "&COUNTBLANK(C$83:C174)&"]" -> [Spare 87]
B175: ="[Spare "&COUNTBLANK(C$83:C175)&"]" -> [Spare 88]
B176: ="[Spare "&COUNTBLANK(C$83:C176)&"]" -> [Spare 89]
B177: ="[Spare "&COUNTBLANK(C$83:C177)&"]" -> [Spare 90]
B178: ="[Spare "&COUNTBLANK(C$83:C178)&"]" -> [Spare 91]
B179: ="[Spare "&COUNTBLANK(C$83:C179)&"]" -> [Spare 92]
B180: ="[Spare "&COUNTBLANK(C$83:C180)&"]" -> [Spare 93]
B181: ="[Spare "&COUNTBLANK(C$83:C181)&"]" -> [Spare 94]
B182: ="[Spare "&COUNTBLANK(C$83:C182)&"]" -> [Spare 95]
B183: ="[Spare "&COUNTBLANK(C$83:C183)&"]" -> [Spare 96]
B184: ="[Spare "&COUNTBLANK(C$83:C184)&"]" -> [Spare 97]
B185: ="[Spare "&COUNTBLANK(C$83:C185)&"]" -> [Spare 98]
B186: ="[Spare "&COUNTBLANK(C$83:C186)&"]" -> [Spare 99]
B187: ="[Spare "&COUNTBLANK(C$83:C187)&"]" -> [Spare 100]
B188: ="[Spare "&COUNTBLANK(C$83:C188)&"]" -> [Spare 101]
B189: ="[Spare "&COUNTBLANK(C$83:C189)&"]" -> [Spare 102]
B190: ="[Spare "&COUNTBLANK(C$83:C190)&"]" -> [Spare 103]
B191: ="[Spare "&COUNTBLANK(C$83:C191)&"]" -> [Spare 104]
B192: ="[Spare "&COUNTBLANK(C$83:C192)&"]" -> [Spare 105]
B193: ="[Spare "&COUNTBLANK(C$83:C193)&"]" -> [Spare 106]
B194: ="[Spare "&COUNTBLANK(C$83:C194)&"]" -> [Spare 107]
B195: ="[Spare "&COUNTBLANK(C$83:C195)&"]" -> [Spare 108]
B196: ="[Spare "&COUNTBLANK(C$83:C196)&"]" -> [Spare 109]
B197: ="[Spare "&COUNTBLANK(C$83:C197)&"]" -> [Spare 110]
B198: ="[Spare "&COUNTBLANK(C$83:C198)&"]" -> [Spare 111]
B199: ="[Spare "&COUNTBLANK(C$83:C199)&"]" -> [Spare 112]
B200: ="[Spare "&COUNTBLANK(C$83:C200)&"]" -> [Spare 113]
B201: ="[Spare "&COUNTBLANK(C$83:C201)&"]" -> [Spare 114]
B202: ="[Spare "&COUNTBLANK(C$83:C202)&"]" -> [Spare 115]
B203: ="[Spare "&COUNTBLANK(C$83:C203)&"]" -> [Spare 116]
... 796 more rows

Sheet Summary_C (hidden)
A1: Disaster Recovery Funding Arrangements
A2: Cost Estimation Tool
A3: =Version_No -> Version 1.0 - Oct 18
A4: =_xlfn.SHEET() -> 6
B6: Asset ID | C6: Asset Name | D6: Start Chainage | E6: Finish Chainage | F6: Start Latitude | G6: Start Longitude | H6: End Latitude | I6: End Longitude | J6: Treatment ID | K6: Treatment Name | L6: Treatment Quantity | M6: Treatment Unit | N6: Treatment Rate | O6: Total Direct Cost | P6: Worksheet Name | Q6: Flag
B7: =IF(ISBLANK(ST1_1!$E$10),"",ST1_1!$E$10) -> RDS003819 | C7: =IF(ISBLANK(ST1_1!$E$11),"",ST1_1!$E$11) -> Ballan-Egerton Road | D7: =IF(ISBLANK(ST1_1!$E$12),"",ST1_1!$E$12) ->  | E7: =IF(ISBLANK(ST1_1!$E$13),"",ST1_1!$E$13) ->  | F7: =ST1_1!$E$14 -> 0 | G7: =ST1_1!$E$15 -> 0 | H7: =ST1_1!$E$16 -> 0 | I7: =ST1_1!$E$17 -> 0 | J7: =ST1_1!$E$8 -> ST1_1 | K7: =ST1_1!$B$4 -> Light Formation Grading | L7: =ST1_1!$G$2 -> 1995 | M7: =ST1_1!$E$82 -> $/Lm | N7: =ST1_1!$G$3 -> 17.20701754 | O7: =ST1_1!$G$4 -> 34328 | P7: ST1_1 | Q7: =IF(AND(Menu!$E$24=Yes,Menu!$F$24>=ABS(RIGHT(P7,1))),1,0) -> 0 | R7: 1. Update named range for Ws_Name and Ws_Range once all additional worksheets are in place (highlighted in yellow)
B8: =IF(ISBLANK(ST1_2!$E$10),"",ST1_2!$E$10) -> RDS003819 | C8: =IF(ISBLANK(ST1_2!$E$11),"",ST1_2!$E$11) -> Ballan-Egerton Road | D8: =IF(ISBLANK(ST1_2!$E$12),"",ST1_2!$E$12) ->  | E8: =IF(ISBLANK(ST1_2!$E$13),"",ST1_2!$E$13) ->  | F8: =ST1_2!$E$14 -> 0 | G8: =ST1_2!$E$15 -> 0 | H8: =ST1_2!$E$16 -> 0 | I8: =ST1_2!$E$17 -> 0 | J8: =ST1_2!$E$8 -> ST1_2 | K8: =ST1_2!$B$4 -> Light Formation Grading | L8: =ST1_2!$G$2 -> 0 | M8: =ST1_2!$E$82 -> $/Lm | N8: =ST1_2!$G$3 -> 0 | O8: =ST1_2!$G$4 -> 0 | P8: ST1_2 | Q8: =IF(AND(Menu!$E$24=Yes,Menu!$F$24>=ABS(RIGHT(P8,1))),1,0) -> 0 | R8: 2. Update Yes/No with formula
B9: =IF(ISBLANK(ST1_3!$E$10),"",ST1_3!$E$10) -> RDS003819 | C9: =IF(ISBLANK(ST1_3!$E$11),"",ST1_3!$E$11) -> Ballan-Egerton Road | D9: =IF(ISBLANK(ST1_3!$E$12),"",ST1_3!$E$12) ->  | E9: =IF(ISBLANK(ST1_3!$E$13),"",ST1_3!$E$13) ->  | F9: =ST1_3!$E$14 -> 0 | G9: =ST1_3!$E$15 -> 0 | H9: =ST1_3!$E$16 -> 0 | I9: =ST1_3!$E$17 -> 0 | J9: =ST1_3!$E$8 -> ST1_3 | K9: =ST1_3!$B$4 -> Light Formation Grading | L9: =ST1_3!$G$2 -> 0 | M9: =ST1_3!$E$82 -> $/Lm | N9: =ST1_3!$G$3 -> 0 | O9: =ST1_3!$G$4 -> 0 | P9: ST1_3 | Q9: =IF(AND(Menu!$E$24=Yes,Menu!$F$24>=ABS(RIGHT(P9,1))),1,0) -> 0 | R9: 3. Update table on the left with data for all worksheets (ST1 as example in yellow)
B10: =IF(ISBLANK(ST1_4!$E$10),"",ST1_4!$E$10) -> RDS003819 | C10: =IF(ISBLANK(ST1_4!$E$11),"",ST1_4!$E$11) -> Ballan-Egerton Road | D10: =IF(ISBLANK(ST1_4!$E$12),"",ST1_4!$E$12) ->  | E10: =IF(ISBLANK(ST1_4!$E$13),"",ST1_4!$E$13) ->  | F10: =ST1_4!$E$14 -> 0 | G10: =ST1_4!$E$15 -> 0 | H10: =ST1_4!$E$16 -> 0 | I10: =ST1_4!$E$17 -> 0 | J10: =ST1_4!$E$8 -> ST1_4 | K10: =ST1_4!$B$4 -> Light Formation Grading | L10: =ST1_4!$G$2 -> 0 | M10: =ST1_4!$E$82 -> $/Lm | N10: =ST1_4!$G$3 -> 0 | O10: =ST1_4!$G$4 -> 0 | P10: ST1_4 | Q10: =IF(AND(Menu!$E$24=Yes,Menu!$F$24>=ABS(RIGHT(P10,1))),1,0) -> 0
B11: =IF(ISBLANK(ST1_5!$E$10),"",ST1_5!$E$10) -> RDS003819 | C11: =IF(ISBLANK(ST1_5!$E$11),"",ST1_5!$E$11) -> Ballan-Egerton Road | D11: =IF(ISBLANK(ST1_5!$E$12),"",ST1_5!$E$12) ->  | E11: =IF(ISBLANK(ST1_5!$E$13),"",ST1_5!$E$13) ->  | F11: =ST1_5!$E$14 -> 0 | G11: =ST1_5!$E$15 -> 0 | H11: =ST1_5!$E$16 -> 0 | I11: =ST1_5!$E$17 -> 0 | J11: =ST1_5!$E$8 -> ST1_5 | K11: =ST1_5!$B$4 -> Light Formation Grading | L11: =ST1_5!$G$2 -> 0 | M11: =ST1_5!$E$82 -> $/Lm | N11: =ST1_5!$G$3 -> 0 | O11: =ST1_5!$G$4 -> 0 | P11: ST1_5 | Q11: =IF(AND(Menu!$E$24=Yes,Menu!$F$24>=ABS(RIGHT(P11,1))),1,0) -> 0
B12: =IF(ISBLANK(ST1_6!$E$10),"",ST1_6!$E$10) -> RDS003819 | C12: =IF(ISBLANK(ST1_6!$E$11),"",ST1_6!$E$11) -> Ballan-Egerton Road | D12: =IF(ISBLANK(ST1_6!$E$12),"",ST1_6!$E$12) ->  | E12: =IF(ISBLANK(ST1_6!$E$13),"",ST1_6!$E$13) ->  | F12: =ST1_6!$E$14 -> 0 | G12: =ST1_6!$E$15 -> 0 | H12: =ST1_6!$E$16 -> 0 | I12: =ST1_6!$E$17 -> 0 | J12: =ST1_6!$E$8 -> ST1_6 | K12: =ST1_6!$B$4 -> Light Formation Grading | L12: =ST1_6!$G$2 -> 0 | M12: =ST1_6!$E$82 -> $/Lm | N12: =ST1_6!$G$3 -> 0 | O12: =ST1_6!$G$4 -> 0 | P12: ST1_6 | Q12: =IF(AND(Menu!$E$24=Yes,Menu!$F$24>=ABS(RIGHT(P12,1))),1,0) -> 0
B13: =IF(ISBLANK(ST2_1!$E$10),"",ST2_1!$E$10) -> RDS003819 | C13: =IF(ISBLANK(ST2_1!$E$11),"",ST2_1!$E$11) -> Ballan-Egerton Road | D13: =IF(ISBLANK(ST2_1!$E$12),"",ST2_1!$E$12) ->  | E13: =IF(ISBLANK(ST2_1!$E$13),"",ST2_1!$E$13) ->  | F13: =ST2_1!$E$14 -> 0 | G13: =ST2_1!$E$15 -> 0 | H13: =ST2_1!$E$16 -> 0 | I13: =ST2_1!$E$17 -> 0 | J13: =ST2_1!$E$8 -> ST2_1 | K13: =ST2_1!$B$4 -> Medium Formation Grading | L13: =ST2_1!$G$2 -> 0 | M13: =ST2_1!$E$125 -> $/Lm | N13: =ST2_1!$G$3 -> 0 | O13: =ST2_1!$G$4 -> 0 | P13: ST2_1 | Q13: =IF(AND(Menu!$E$25=Yes,Menu!$F$25>=ABS(RIGHT(P13,1))),1,0) -> 0
B14: =IF(ISBLANK(ST2_2!$E$10),"",ST2_2!$E$10) -> RDS003819 | C14: =IF(ISBLANK(ST2_2!$E$11),"",ST2_2!$E$11) -> Ballan-Egerton Road | D14: =IF(ISBLANK(ST2_2!$E$12),"",ST2_2!$E$12) ->  | E14: =IF(ISBLANK(ST2_2!$E$13),"",ST2_2!$E$13) ->  | F14: =ST2_2!$E$14 -> 0 | G14: =ST2_2!$E$15 -> 0 | H14: =ST2_2!$E$16 -> 0 | I14: =ST2_2!$E$17 -> 0 | J14: =ST2_2!$E$8 -> ST2_2 | K14: =ST2_2!$B$4 -> Medium Formation Grading | L14: =ST2_2!$G$2 -> 0 | M14: =ST2_2!$E$125 -> $/Lm | N14: =ST2_2!$G$3 -> 0 | O14: =ST2_2!$G$4 -> 0 | P14: ST2_2 | Q14: =IF(AND(Menu!$E$25=Yes,Menu!$F$25>=ABS(RIGHT(P14,1))),1,0) -> 0
B15: =IF(ISBLANK(ST2_3!$E$10),"",ST2_3!$E$10) -> RDS003819 | C15: =IF(ISBLANK(ST2_3!$E$11),"",ST2_3!$E$11) -> Ballan-Egerton Road | D15: =IF(ISBLANK(ST2_3!$E$12),"",ST2_3!$E$12) ->  | E15: =IF(ISBLANK(ST2_3!$E$13),"",ST2_3!$E$13) ->  | F15: =ST2_3!$E$14 -> 0 | G15: =ST2_3!$E$15 -> 0 | H15: =ST2_3!$E$16 -> 0 | I15: =ST2_3!$E$17 -> 0 | J15: =ST2_3!$E$8 -> ST2_3 | K15: =ST2_3!$B$4 -> Medium Formation Grading | L15: =ST2_3!$G$2 -> 0 | M15: =ST2_3!$E$125 -> $/Lm | N15: =ST2_3!$G$3 -> 0 | O15: =ST2_3!$G$4 -> 0 | P15: ST2_3 | Q15: =IF(AND(Menu!$E$25=Yes,Menu!$F$25>=ABS(RIGHT(P15,1))),1,0) -> 0
B16: =IF(ISBLANK(ST2_4!$E$10),"",ST2_4!$E$10) -> RDS003819 | C16: =IF(ISBLANK(ST2_4!$E$11),"",ST2_4!$E$11) -> Ballan-Egerton Road | D16: =IF(ISBLANK(ST2_4!$E$12),"",ST2_4!$E$12) ->  | E16: =IF(ISBLANK(ST2_4!$E$13),"",ST2_4!$E$13) ->  | F16: =ST2_4!$E$14 -> 0 | G16: =ST2_4!$E$15 -> 0 | H16: =ST2_4!$E$16 -> 0 | I16: =ST2_4!$E$17 -> 0 | J16: =ST2_4!$E$8 -> ST2_4 | K16: =ST2_4!$B$4 -> Medium Formation Grading | L16: =ST2_4!$G$2 -> 0 | M16: =ST2_4!$E$125 -> $/Lm | N16: =ST2_4!$G$3 -> 0 | O16: =ST2_4!$G$4 -> 0 | P16: ST2_4 | Q16: =IF(AND(Menu!$E$25=Yes,Menu!$F$25>=ABS(RIGHT(P16,1))),1,0) -> 0
B17: =IF(ISBLANK(ST2_5!$E$10),"",ST2_5!$E$10) -> RDS003819 | C17: =IF(ISBLANK(ST2_5!$E$11),"",ST2_5!$E$11) -> Ballan-Egerton Road | D17: =IF(ISBLANK(ST2_5!$E$12),"",ST2_5!$E$12) ->  | E17: =IF(ISBLANK(ST2_5!$E$13),"",ST2_5!$E$13) ->  | F17: =ST2_5!$E$14 -> 0 | G17: =ST2_5!$E$15 -> 0 | H17: =ST2_5!$E$16 -> 0 | I17: =ST2_5!$E$17 -> 0 | J17: =ST2_5!$E$8 -> ST2_5 | K17: =ST2_5!$B$4 -> Medium Formation Grading | L17: =ST2_5!$G$2 -> 0 | M17: =ST2_5!$E$125 -> $/Lm | N17: =ST2_5!$G$3 -> 0 | O17: =ST2_5!$G$4 -> 0 | P17: ST2_5 | Q17: =IF(AND(Menu!$E$25=Yes,Menu!$F$25>=ABS(RIGHT(P17,1))),1,0) -> 0
B18: =IF(ISBLANK(ST2_6!$E$10),"",ST2_6!$E$10) -> RDS003819 | C18: =IF(ISBLANK(ST2_6!$E$11),"",ST2_6!$E$11) -> Ballan-Egerton Road | D18: =IF(ISBLANK(ST2_6!$E$12),"",ST2_6!$E$12) ->  | E18: =IF(ISBLANK(ST2_6!$E$13),"",ST2_6!$E$13) ->  | F18: =ST2_6!$E$14 -> 0 | G18: =ST2_6!$E$15 -> 0 | H18: =ST2_6!$E$16 -> 0 | I18: =ST2_6!$E$17 -> 0 | J18: =ST2_6!$E$8 -> ST2_6 | K18: =ST2_6!$B$4 -> Medium Formation Grading | L18: =ST2_6!$G$2 -> 0 | M18: =ST2_6!$E$125 -> $/Lm | N18: =ST2_6!$G$3 -> 0 | O18: =ST2_6!$G$4 -> 0 | P18: ST2_6 | Q18: =IF(AND(Menu!$E$25=Yes,Menu!$F$25>=ABS(RIGHT(P18,1))),1,0) -> 0
B19: =IF(ISBLANK(ST3_1!$E$10),"",ST3_1!$E$10) -> RDS003819 | C19: =IF(ISBLANK(ST3_1!$E$11),"",ST3_1!$E$11) -> Ballan-Egerton Road | D19: =IF(ISBLANK(ST3_1!$E$12),"",ST3_1!$E$12) ->  | E19: =IF(ISBLANK(ST3_1!$E$13),"",ST3_1!$E$13) ->  | F19: =ST3_1!$E$14 -> 0 | G19: =ST3_1!$E$15 -> 0 | H19: =ST3_1!$E$16 -> 0 | I19: =ST3_1!$E$17 -> 0 | J19: =ST3_1!$E$8 -> ST3_1 | K19: =ST3_1!$B$4 -> Heavy Formation Grading | L19: =ST3_1!$G$2 -> 0 | M19: =ST3_1!$E$125 -> $/Lm | N19: =ST3_1!$G$3 -> 0 | O19: =ST3_1!$G$4 -> 0 | P19: ST3_1 | Q19: =IF(AND(Menu!$E$26=Yes,Menu!$F$26>=ABS(RIGHT(P19,1))),1,0) -> 0
B20: =IF(ISBLANK(ST3_2!$E$10),"",ST3_2!$E$10) -> RDS003819 | C20: =IF(ISBLANK(ST3_2!$E$11),"",ST3_2!$E$11) -> Ballan-Egerton Road | D20: =IF(ISBLANK(ST3_2!$E$12),"",ST3_2!$E$12) ->  | E20: =IF(ISBLANK(ST3_2!$E$13),"",ST3_2!$E$13) ->  | F20: =ST3_2!$E$14 -> 0 | G20: =ST3_2!$E$15 -> 0 | H20: =ST3_2!$E$16 -> 0 | I20: =ST3_2!$E$17 -> 0 | J20: =ST3_2!$E$8 -> ST3_2 | K20: =ST3_2!$B$4 -> Heavy Formation Grading | L20: =ST3_2!$G$2 -> 0 | M20: =ST3_2!$E$125 -> $/Lm | N20: =ST3_2!$G$3 -> 0 | O20: =ST3_2!$G$4 -> 0 | P20: ST3_2 | Q20: =IF(AND(Menu!$E$26=Yes,Menu!$F$26>=ABS(RIGHT(P20,1))),1,0) -> 0
B21: =IF(ISBLANK(ST3_3!$E$10),"",ST3_3!$E$10) -> RDS003819 | C21: =IF(ISBLANK(ST3_3!$E$11),"",ST3_3!$E$11) -> Ballan-Egerton Road | D21: =IF(ISBLANK(ST3_3!$E$12),"",ST3_3!$E$12) ->  | E21: =IF(ISBLANK(ST3_3!$E$13),"",ST3_3!$E$13) ->  | F21: =ST3_3!$E$14 -> 0 | G21: =ST3_3!$E$15 -> 0 | H21: =ST3_3!$E$16 -> 0 | I21: =ST3_3!$E$17 -> 0 | J21: =ST3_3!$E$8 -> ST3_3 | K21: =ST3_3!$B$4 -> Heavy Formation Grading | L21: =ST3_3!$G$2 -> 0 | M21: =ST3_3!$E$125 -> $/Lm | N21: =ST3_3!$G$3 -> 0 | O21: =ST3_3!$G$4 -> 0 | P21: ST3_3 | Q21: =IF(AND(Menu!$E$26=Yes,Menu!$F$26>=ABS(RIGHT(P21,1))),1,0) -> 0
B22: =IF(ISBLANK(ST3_4!$E$10),"",ST3_4!$E$10) -> RDS003819 | C22: =IF(ISBLANK(ST3_4!$E$11),"",ST3_4!$E$11) -> Ballan-Egerton Road | D22: =IF(ISBLANK(ST3_4!$E$12),"",ST3_4!$E$12) ->  | E22: =IF(ISBLANK(ST3_4!$E$13),"",ST3_4!$E$13) ->  | F22: =ST3_4!$E$14 -> 0 | G22: =ST3_4!$E$15 -> 0 | H22: =ST3_4!$E$16 -> 0 | I22: =ST3_4!$E$17 -> 0 | J22: =ST3_4!$E$8 -> ST3_4 | K22: =ST3_4!$B$4 -> Heavy Formation Grading | L22: =ST3_4!$G$2 -> 0 | M22: =ST3_4!$E$125 -> $/Lm | N22: =ST3_4!$G$3 -> 0 | O22: =ST3_4!$G$4 -> 0 | P22: ST3_4 | Q22: =IF(AND(Menu!$E$26=Yes,Menu!$F$26>=ABS(RIGHT(P22,1))),1,0) -> 0
B23: =IF(ISBLANK(ST3_5!$E$10),"",ST3_5!$E$10) -> RDS003819 | C23: =IF(ISBLANK(ST3_5!$E$11),"",ST3_5!$E$11) -> Ballan-Egerton Road | D23: =IF(ISBLANK(ST3_5!$E$12),"",ST3_5!$E$12) ->  | E23: =IF(ISBLANK(ST3_5!$E$13),"",ST3_5!$E$13) ->  | F23: =ST3_5!$E$14 -> 0 | G23: =ST3_5!$E$15 -> 0 | H23: =ST3_5!$E$16 -> 0 | I23: =ST3_5!$E$17 -> 0 | J23: =ST3_5!$E$8 -> ST3_5 | K23: =ST3_5!$B$4 -> Heavy Formation Grading | L23: =ST3_5!$G$2 -> 0 | M23: =ST3_5!$E$125 -> $/Lm | N23: =ST3_5!$G$3 -> 0 | O23: =ST3_5!$G$4 -> 0 | P23: ST3_5 | Q23: =IF(AND(Menu!$E$26=Yes,Menu!$F$26>=ABS(RIGHT(P23,1))),1,0) -> 0
B24: =IF(ISBLANK(ST3_6!$E$10),"",ST3_6!$E$10) -> RDS003819 | C24: =IF(ISBLANK(ST3_6!$E$11),"",ST3_6!$E$11) -> Ballan-Egerton Road | D24: =IF(ISBLANK(ST3_6!$E$12),"",ST3_6!$E$12) ->  | E24: =IF(ISBLANK(ST3_6!$E$13),"",ST3_6!$E$13) ->  | F24: =ST3_6!$E$14 -> 0 | G24: =ST3_6!$E$15 -> 0 | H24: =ST3_6!$E$16 -> 0 | I24: =ST3_6!$E$17 -> 0 | J24: =ST3_6!$E$8 -> ST3_6 | K24: =ST3_6!$B$4 -> Heavy Formation Grading | L24: =ST3_6!$G$2 -> 0 | M24: =ST3_6!$E$125 -> $/Lm | N24: =ST3_6!$G$3 -> 0 | O24: =ST3_6!$G$4 -> 0 | P24: ST3_6 | Q24: =IF(AND(Menu!$E$26=Yes,Menu!$F$26>=ABS(RIGHT(P24,1))),1,0) -> 0
B25: =IF(ISBLANK(ST4_1!$E$10),"",ST4_1!$E$10) -> RDS003819 | C25: =IF(ISBLANK(ST4_1!$E$11),"",ST4_1!$E$11) -> Ballan-Egerton Road | D25: =IF(ISBLANK(ST4_1!$E$12),"",ST4_1!$E$12) ->  | E25: =IF(ISBLANK(ST4_1!$E$13),"",ST4_1!$E$13) ->  | F25: =ST4_1!$E$14 -> 0 | G25: =ST4_1!$E$15 -> 0 | H25: =ST4_1!$E$16 -> 0 | I25: =ST4_1!$E$17 -> 0 | J25: =ST4_1!$E$8 -> ST4_1 | K25: =ST4_1!$B$4 -> Gravel Material Supply | L25: =ST4_1!$G$2 -> 0 | M25: =ST4_1!$E$76 -> $/m3 | N25: =ST4_1!$G$3 -> 0 | O25: =ST4_1!$G$4 -> 0 | P25: ST4_1 | Q25: =IF(AND(Menu!$E$27=Yes,Menu!$F$27>=ABS(RIGHT(P25,1))),1,0) -> 0
B26: =IF(ISBLANK(ST4_2!$E$10),"",ST4_2!$E$10) -> RDS003819 | C26: =IF(ISBLANK(ST4_2!$E$11),"",ST4_2!$E$11) -> Ballan-Egerton Road | D26: =IF(ISBLANK(ST4_2!$E$12),"",ST4_2!$E$12) ->  | E26: =IF(ISBLANK(ST4_2!$E$13),"",ST4_2!$E$13) ->  | F26: =ST4_2!$E$14 -> 0 | G26: =ST4_2!$E$15 -> 0 | H26: =ST4_2!$E$16 -> 0 | I26: =ST4_2!$E$17 -> 0 | J26: =ST4_2!$E$8 -> ST4_2 | K26: =ST4_2!$B$4 -> Gravel Material Supply | L26: =ST4_2!$G$2 -> 0 | M26: =ST4_2!$E$76 -> $/m3 | N26: =ST4_2!$G$3 -> 0 | O26: =ST4_2!$G$4 -> 0 | P26: ST4_2 | Q26: =IF(AND(Menu!$E$27=Yes,Menu!$F$27>=ABS(RIGHT(P26,1))),1,0) -> 0
B27: =IF(ISBLANK(ST4_3!$E$10),"",ST4_3!$E$10) -> RDS003819 | C27: =IF(ISBLANK(ST4_3!$E$11),"",ST4_3!$E$11) -> Ballan-Egerton Road | D27: =IF(ISBLANK(ST4_3!$E$12),"",ST4_3!$E$12) ->  | E27: =IF(ISBLANK(ST4_3!$E$13),"",ST4_3!$E$13) ->  | F27: =ST4_3!$E$14 -> 0 | G27: =ST4_3!$E$15 -> 0 | H27: =ST4_3!$E$16 -> 0 | I27: =ST4_3!$E$17 -> 0 | J27: =ST4_3!$E$8 -> ST4_3 | K27: =ST4_3!$B$4 -> Gravel Material Supply | L27: =ST4_3!$G$2 -> 0 | M27: =ST4_3!$E$76 -> $/m3 | N27: =ST4_3!$G$3 -> 0 | O27: =ST4_3!$G$4 -> 0 | P27: ST4_3 | Q27: =IF(AND(Menu!$E$27=Yes,Menu!$F$27>=ABS(RIGHT(P27,1))),1,0) -> 0
B28: =IF(ISBLANK(ST4_4!$E$10),"",ST4_4!$E$10) -> RDS003819 | C28: =IF(ISBLANK(ST4_4!$E$11),"",ST4_4!$E$11) -> Ballan-Egerton Road | D28: =IF(ISBLANK(ST4_4!$E$12),"",ST4_4!$E$12) ->  | E28: =IF(ISBLANK(ST4_4!$E$13),"",ST4_4!$E$13) ->  | F28: =ST4_4!$E$14 -> 0 | G28: =ST4_4!$E$15 -> 0 | H28: =ST4_4!$E$16 -> 0 | I28: =ST4_4!$E$17 -> 0 | J28: =ST4_4!$E$8 -> ST4_4 | K28: =ST4_4!$B$4 -> Gravel Material Supply | L28: =ST4_4!$G$2 -> 0 | M28: =ST4_4!$E$76 -> $/m3 | N28: =ST4_4!$G$3 -> 0 | O28: =ST4_4!$G$4 -> 0 | P28: ST4_4 | Q28: =IF(AND(Menu!$E$27=Yes,Menu!$F$27>=ABS(RIGHT(P28,1))),1,0) -> 0
B29: =IF(ISBLANK(ST4_5!$E$10),"",ST4_5!$E$10) -> RDS003819 | C29: =IF(ISBLANK(ST4_5!$E$11),"",ST4_5!$E$11) -> Ballan-Egerton Road | D29: =IF(ISBLANK(ST4_5!$E$12),"",ST4_5!$E$12) ->  | E29: =IF(ISBLANK(ST4_5!$E$13),"",ST4_5!$E$13) ->  | F29: =ST4_5!$E$14 -> 0 | G29: =ST4_5!$E$15 -> 0 | H29: =ST4_5!$E$16 -> 0 | I29: =ST4_5!$E$17 -> 0 | J29: =ST4_5!$E$8 -> ST4_5 | K29: =ST4_5!$B$4 -> Gravel Material Supply | L29: =ST4_5!$G$2 -> 0 | M29: =ST4_5!$E$76 -> $/m3 | N29: =ST4_5!$G$3 -> 0 | O29: =ST4_5!$G$4 -> 0 | P29: ST4_5 | Q29: =IF(AND(Menu!$E$27=Yes,Menu!$F$27>=ABS(RIGHT(P29,1))),1,0) -> 0
B30: =IF(ISBLANK(ST4_6!$E$10),"",ST4_6!$E$10) -> RDS003819 | C30: =IF(ISBLANK(ST4_6!$E$11),"",ST4_6!$E$11) -> Ballan-Egerton Road | D30: =IF(ISBLANK(ST4_6!$E$12),"",ST4_6!$E$12) ->  | E30: =IF(ISBLANK(ST4_6!$E$13),"",ST4_6!$E$13) ->  | F30: =ST4_6!$E$14 -> 0 | G30: =ST4_6!$E$15 -> 0 | H30: =ST4_6!$E$16 -> 0 | I30: =ST4_6!$E$17 -> 0 | J30: =ST4_6!$E$8 -> ST4_6 | K30: =ST4_6!$B$4 -> Gravel Material Supply | L30: =ST4_6!$G$2 -> 0 | M30: =ST4_6!$E$76 -> $/m3 | N30: =ST4_6!$G$3 -> 0 | O30: =ST4_6!$G$4 -> 0 | P30: ST4_6 | Q30: =IF(AND(Menu!$E$27=Yes,Menu!$F$27>=ABS(RIGHT(P30,1))),1,0) -> 0
B31: =IF(ISBLANK(ST5_1!$E$10),"",ST5_1!$E$10) -> RDS003819 | C31: =IF(ISBLANK(ST5_1!$E$11),"",ST5_1!$E$11) -> Ballan-Egerton Road | D31: =IF(ISBLANK(ST5_1!$E$12),"",ST5_1!$E$12) -> 1 | E31: =IF(ISBLANK(ST5_1!$E$13),"",ST5_1!$E$13) -> 0` | F31: =ST5_1!$E$14 -> 500 | G31: =ST5_1!$E$15 -> 0 | H31: =ST5_1!$E$16 -> 0 | I31: =ST5_1!$E$17 -> 0 | J31: =ST5_1!$E$8 -> ST5_1 | K31: =ST5_1!$B$4 -> Gravel Resheeting | L31: =ST5_1!$G$2 -> 200 | M31: =ST5_1!$E$128 -> $/m3 | N31: =ST5_1!$G$3 -> 85.5255 | O31: =ST5_1!$G$4 -> 17105.1 | P31: ST5_1 | Q31: =IF(AND(Menu!$E$28=Yes,Menu!$F$28>=ABS(RIGHT(P31,1))),1,0) -> 0
B32: =IF(ISBLANK(ST5_2!$E$10),"",ST5_2!$E$10) -> RDS003819 | C32: =IF(ISBLANK(ST5_2!$E$11),"",ST5_2!$E$11) -> Ballan-Egerton Road | D32: =IF(ISBLANK(ST5_2!$E$12),"",ST5_2!$E$12) ->  | E32: =IF(ISBLANK(ST5_2!$E$13),"",ST5_2!$E$13) ->  | F32: =ST5_2!$E$14 -> 0 | G32: =ST5_2!$E$15 -> 0 | H32: =ST5_2!$E$16 -> 0 | I32: =ST5_2!$E$17 -> 0 | J32: =ST5_2!$E$8 -> ST5_2 | K32: =ST5_2!$B$4 -> Gravel Resheeting | L32: =ST5_2!$G$2 -> 0 | M32: =ST5_2!$E$128 -> $/m3 | N32: =ST5_2!$G$3 -> 0 | O32: =ST5_2!$G$4 -> 0 | P32: ST5_2 | Q32: =IF(AND(Menu!$E$28=Yes,Menu!$F$28>=ABS(RIGHT(P32,1))),1,0) -> 0
B33: =IF(ISBLANK(ST5_3!$E$10),"",ST5_3!$E$10) -> RDS003819 | C33: =IF(ISBLANK(ST5_3!$E$11),"",ST5_3!$E$11) -> Ballan-Egerton Road | D33: =IF(ISBLANK(ST5_3!$E$12),"",ST5_3!$E$12) ->  | E33: =IF(ISBLANK(ST5_3!$E$13),"",ST5_3!$E$13) ->  | F33: =ST5_3!$E$14 -> 0 | G33: =ST5_3!$E$15 -> 0 | H33: =ST5_3!$E$16 -> 0 | I33: =ST5_3!$E$17 -> 0 | J33: =ST5_3!$E$8 -> ST5_3 | K33: =ST5_3!$B$4 -> Gravel Resheeting | L33: =ST5_3!$G$2 -> 0 | M33: =ST5_3!$E$128 -> $/m3 | N33: =ST5_3!$G$3 -> 0 | O33: =ST5_3!$G$4 -> 0 | P33: ST5_3 | Q33: =IF(AND(Menu!$E$28=Yes,Menu!$F$28>=ABS(RIGHT(P33,1))),1,0) -> 0
B34: =IF(ISBLANK(ST5_4!$E$10),"",ST5_4!$E$10) -> RDS003819 | C34: =IF(ISBLANK(ST5_4!$E$11),"",ST5_4!$E$11) -> Ballan-Egerton Road | D34: =IF(ISBLANK(ST5_4!$E$12),"",ST5_4!$E$12) ->  | E34: =IF(ISBLANK(ST5_4!$E$13),"",ST5_4!$E$13) ->  | F34: =ST5_4!$E$14 -> 0 | G34: =ST5_4!$E$15 -> 0 | H34: =ST5_4!$E$16 -> 0 | I34: =ST5_4!$E$17 -> 0 | J34: =ST5_4!$E$8 -> ST5_4 | K34: =ST5_4!$B$4 -> Gravel Resheeting | L34: =ST5_4!$G$2 -> 0 | M34: =ST5_4!$E$128 -> $/m3 | N34: =ST5_4!$G$3 -> 0 | O34: =ST5_4!$G$4 -> 0 | P34: ST5_4 | Q34: =IF(AND(Menu!$E$28=Yes,Menu!$F$28>=ABS(RIGHT(P34,1))),1,0) -> 0
B35: =IF(ISBLANK(ST5_5!$E$10),"",ST5_5!$E$10) -> RDS003819 | C35: =IF(ISBLANK(ST5_5!$E$11),"",ST5_5!$E$11) -> Ballan-Egerton Road | D35: =IF(ISBLANK(ST5_5!$E$12),"",ST5_5!$E$12) ->  | E35: =IF(ISBLANK(ST5_5!$E$13),"",ST5_5!$E$13) ->  | F35: =ST5_5!$E$14 -> 0 | G35: =ST5_5!$E$15 -> 0 | H35: =ST5_5!$E$16 -> 0 | I35: =ST5_5!$E$17 -> 0 | J35: =ST5_5!$E$8 -> ST5_5 | K35: =ST5_5!$B$4 -> Gravel Resheeting | L35: =ST5_5!$G$2 -> 0 | M35: =ST5_5!$E$128 -> $/m3 | N35: =ST5_5!$G$3 -> 0 | O35: =ST5_5!$G$4 -> 0 | P35: ST5_5 | Q35: =IF(AND(Menu!$E$28=Yes,Menu!$F$28>=ABS(RIGHT(P35,1))),1,0) -> 0
B36: =IF(ISBLANK(ST5_6!$E$10),"",ST5_6!$E$10) -> RDS003819 | C36: =IF(ISBLANK(ST5_6!$E$11),"",ST5_6!$E$11) -> Ballan-Egerton Road | D36: =IF(ISBLANK(ST5_6!$E$12),"",ST5_6!$E$12) ->  | E36: =IF(ISBLANK(ST5_6!$E$13),"",ST5_6!$E$13) ->  | F36: =ST5_6!$E$14 -> 0 | G36: =ST5_6!$E$15 -> 0 | H36: =ST5_6!$E$16 -> 0 | I36: =ST5_6!$E$17 -> 0 | J36: =ST5_6!$E$8 -> ST5_6 | K36: =ST5_6!$B$4 -> Gravel Resheeting | L36: =ST5_6!$G$2 -> 0 | M36: =ST5_6!$E$128 -> $/m3 | N36: =ST5_6!$G$3 -> 0 | O36: =ST5_6!$G$4 -> 0 | P36: ST5_6 | Q36: =IF(AND(Menu!$E$28=Yes,Menu!$F$28>=ABS(RIGHT(P36,1))),1,0) -> 0
B37: =IF(ISBLANK(ST6_1!$E$10),"",ST6_1!$E$10) -> RDS003819 | C37: =IF(ISBLANK(ST6_1!$E$11),"",ST6_1!$E$11) -> Ballan-Egerton Road | D37: =IF(ISBLANK(ST6_1!$E$12),"",ST6_1!$E$12) ->  | E37: =IF(ISBLANK(ST6_1!$E$13),"",ST6_1!$E$13) ->  | F37: =ST6_1!$E$14 -> 0 | G37: =ST6_1!$E$15 -> 0 | H37: =ST6_1!$E$16 -> 0 | I37: =ST6_1!$E$17 -> 0 | J37: =ST6_1!$E$8 -> ST6_1 | K37: =ST6_1!$B$4 -> In-Situ Stabilisation – Including Additional Material As Required | L37: =ST6_1!$G$2 -> 0 | M37: =ST6_1!$E$141 -> $/m2 | N37: =ST6_1!$G$3 -> 0 | O37: =ST6_1!$G$4 -> 0 | P37: ST6_1 | Q37: =IF(AND(Menu!$E$29=Yes,Menu!$F$29>=ABS(RIGHT(P37,1))),1,0) -> 0
B38: =IF(ISBLANK(ST6_2!$E$10),"",ST6_2!$E$10) -> RDS003819 | C38: =IF(ISBLANK(ST6_2!$E$11),"",ST6_2!$E$11) -> Ballan-Egerton Road | D38: =IF(ISBLANK(ST6_2!$E$12),"",ST6_2!$E$12) ->  | E38: =IF(ISBLANK(ST6_2!$E$13),"",ST6_2!$E$13) ->  | F38: =ST6_2!$E$14 -> 0 | G38: =ST6_2!$E$15 -> 0 | H38: =ST6_2!$E$16 -> 0 | I38: =ST6_2!$E$17 -> 0 | J38: =ST6_2!$E$8 -> ST6_2 | K38: =ST6_2!$B$4 -> In-Situ Stabilisation – Including Additional Material As Required | L38: =ST6_2!$G$2 -> 0 | M38: =ST6_2!$E$141 -> $/m2 | N38: =ST6_2!$G$3 -> 0 | O38: =ST6_2!$G$4 -> 0 | P38: ST6_2 | Q38: =IF(AND(Menu!$E$29=Yes,Menu!$F$29>=ABS(RIGHT(P38,1))),1,0) -> 0
B39: =IF(ISBLANK(ST6_3!$E$10),"",ST6_3!$E$10) -> RDS003819 | C39: =IF(ISBLANK(ST6_3!$E$11),"",ST6_3!$E$11) -> Ballan-Egerton Road | D39: =IF(ISBLANK(ST6_3!$E$12),"",ST6_3!$E$12) ->  | E39: =IF(ISBLANK(ST6_3!$E$13),"",ST6_3!$E$13) ->  | F39: =ST6_3!$E$14 -> 0 | G39: =ST6_3!$E$15 -> 0 | H39: =ST6_3!$E$16 -> 0 | I39: =ST6_3!$E$17 -> 0 | J39: =ST6_3!$E$8 -> ST6_3 | K39: =ST6_3!$B$4 -> In-Situ Stabilisation – Including Additional Material As Required | L39: =ST6_3!$G$2 -> 0 | M39: =ST6_3!$E$141 -> $/m2 | N39: =ST6_3!$G$3 -> 0 | O39: =ST6_3!$G$4 -> 0 | P39: ST6_3 | Q39: =IF(AND(Menu!$E$29=Yes,Menu!$F$29>=ABS(RIGHT(P39,1))),1,0) -> 0
B40: =IF(ISBLANK(ST6_4!$E$10),"",ST6_4!$E$10) -> RDS003819 | C40: =IF(ISBLANK(ST6_4!$E$11),"",ST6_4!$E$11) -> Ballan-Egerton Road | D40: =IF(ISBLANK(ST6_4!$E$12),"",ST6_4!$E$12) ->  | E40: =IF(ISBLANK(ST6_4!$E$13),"",ST6_4!$E$13) ->  | F40: =ST6_4!$E$14 -> 0 | G40: =ST6_4!$E$15 -> 0 | H40: =ST6_4!$E$16 -> 0 | I40: =ST6_4!$E$17 -> 0 | J40: =ST6_4!$E$8 -> ST6_4 | K40: =ST6_4!$B$4 -> In-Situ Stabilisation – Including Additional Material As Required | L40: =ST6_4!$G$2 -> 0 | M40: =ST6_4!$E$141 -> $/m2 | N40: =ST6_4!$G$3 -> 0 | O40: =ST6_4!$G$4 -> 0 | P40: ST6_4 | Q40: =IF(AND(Menu!$E$29=Yes,Menu!$F$29>=ABS(RIGHT(P40,1))),1,0) -> 0
B41: =IF(ISBLANK(ST6_5!$E$10),"",ST6_5!$E$10) -> RDS003819 | C41: =IF(ISBLANK(ST6_5!$E$11),"",ST6_5!$E$11) -> Ballan-Egerton Road | D41: =IF(ISBLANK(ST6_5!$E$12),"",ST6_5!$E$12) ->  | E41: =IF(ISBLANK(ST6_5!$E$13),"",ST6_5!$E$13) ->  | F41: =ST6_5!$E$14 -> 0 | G41: =ST6_5!$E$15 -> 0 | H41: =ST6_5!$E$16 -> 0 | I41: =ST6_5!$E$17 -> 0 | J41: =ST6_5!$E$8 -> ST6_5 | K41: =ST6_5!$B$4 -> In-Situ Stabilisation – Including Additional Material As Required | L41: =ST6_5!$G$2 -> 0 | M41: =ST6_5!$E$141 -> $/m2 | N41: =ST6_5!$G$3 -> 0 | O41: =ST6_5!$G$4 -> 0 | P41: ST6_5 | Q41: =IF(AND(Menu!$E$29=Yes,Menu!$F$29>=ABS(RIGHT(P41,1))),1,0) -> 0
B42: =IF(ISBLANK(ST6_6!$E$10),"",ST6_6!$E$10) -> RDS003819 | C42: =IF(ISBLANK(ST6_6!$E$11),"",ST6_6!$E$11) -> Ballan-Egerton Road | D42: =IF(ISBLANK(ST6_6!$E$12),"",ST6_6!$E$12) ->  | E42: =IF(ISBLANK(ST6_6!$E$13),"",ST6_6!$E$13) ->  | F42: =ST6_6!$E$14 -> 0 | G42: =ST6_6!$E$15 -> 0 | H42: =ST6_6!$E$16 -> 0 | I42: =ST6_6!$E$17 -> 0 | J42: =ST6_6!$E$8 -> ST6_6 | K42: =ST6_6!$B$4 -> In-Situ Stabilisation – Including Additional Material As Required | L42: =ST6_6!$G$2 -> 0 | M42: =ST6_6!$E$141 -> $/m2 | N42: =ST6_6!$G$3 -> 0 | O42: =ST6_6!$G$4 -> 0 | P42: ST6_6 | Q42: =IF(AND(Menu!$E$29=Yes,Menu!$F$29>=ABS(RIGHT(P42,1))),1,0) -> 0
B43: =IF(ISBLANK(ST7_1!$E$10),"",ST7_1!$E$10) -> RDS003819 | C43: =IF(ISBLANK(ST7_1!$E$11),"",ST7_1!$E$11) -> Ballan-Egerton Road | D43: =IF(ISBLANK(ST7_1!$E$12),"",ST7_1!$E$12) ->  | E43: =IF(ISBLANK(ST7_1!$E$13),"",ST7_1!$E$13) ->  | F43: =ST7_1!$E$14 -> 0 | G43: =ST7_1!$E$15 -> 0 | H43: =ST7_1!$E$16 -> 0 | I43: =ST7_1!$E$17 -> 0 | J43: =ST7_1!$E$8 -> ST7_1 | K43: =ST7_1!$B$4 -> Granular Overlay – Overlay With Imported Material (≤150Mm) | L43: =ST7_1!$G$2 -> 0 | M43: =ST7_1!$E$101 -> $/m2 | N43: =ST7_1!$G$3 -> 0 | O43: =ST7_1!$G$4 -> 0 | P43: ST7_1 | Q43: =IF(AND(Menu!$E$30=Yes,Menu!$F$30>=ABS(RIGHT(P43,1))),1,0) -> 0
B44: =IF(ISBLANK(ST7_2!$E$10),"",ST7_2!$E$10) -> RDS003819 | C44: =IF(ISBLANK(ST7_2!$E$11),"",ST7_2!$E$11) -> Ballan-Egerton Road | D44: =IF(ISBLANK(ST7_2!$E$12),"",ST7_2!$E$12) ->  | E44: =IF(ISBLANK(ST7_2!$E$13),"",ST7_2!$E$13) ->  | F44: =ST7_2!$E$14 -> 0 | G44: =ST7_2!$E$15 -> 0 | H44: =ST7_2!$E$16 -> 0 | I44: =ST7_2!$E$17 -> 0 | J44: =ST7_2!$E$8 -> ST7_2 | K44: =ST7_2!$B$4 -> Granular Overlay – Overlay With Imported Material (≤150Mm) | L44: =ST7_2!$G$2 -> 0 | M44: =ST7_2!$E$101 -> $/m2 | N44: =ST7_2!$G$3 -> 0 | O44: =ST7_2!$G$4 -> 0 | P44: ST7_2 | Q44: =IF(AND(Menu!$E$30=Yes,Menu!$F$30>=ABS(RIGHT(P44,1))),1,0) -> 0
B45: =IF(ISBLANK(ST7_3!$E$10),"",ST7_3!$E$10) -> RDS003819 | C45: =IF(ISBLANK(ST7_3!$E$11),"",ST7_3!$E$11) -> Ballan-Egerton Road | D45: =IF(ISBLANK(ST7_3!$E$12),"",ST7_3!$E$12) ->  | E45: =IF(ISBLANK(ST7_3!$E$13),"",ST7_3!$E$13) ->  | F45: =ST7_3!$E$14 -> 0 | G45: =ST7_3!$E$15 -> 0 | H45: =ST7_3!$E$16 -> 0 | I45: =ST7_3!$E$17 -> 0 | J45: =ST7_3!$E$8 -> ST7_3 | K45: =ST7_3!$B$4 -> Granular Overlay – Overlay With Imported Material (≤150Mm) | L45: =ST7_3!$G$2 -> 0 | M45: =ST7_3!$E$101 -> $/m2 | N45: =ST7_3!$G$3 -> 0 | O45: =ST7_3!$G$4 -> 0 | P45: ST7_3 | Q45: =IF(AND(Menu!$E$30=Yes,Menu!$F$30>=ABS(RIGHT(P45,1))),1,0) -> 0
B46: =IF(ISBLANK(ST7_4!$E$10),"",ST7_4!$E$10) -> RDS003819 | C46: =IF(ISBLANK(ST7_4!$E$11),"",ST7_4!$E$11) -> Ballan-Egerton Road | D46: =IF(ISBLANK(ST7_4!$E$12),"",ST7_4!$E$12) ->  | E46: =IF(ISBLANK(ST7_4!$E$13),"",ST7_4!$E$13) ->  | F46: =ST7_4!$E$14 -> 0 | G46: =ST7_4!$E$15 -> 0 | H46: =ST7_4!$E$16 -> 0 | I46: =ST7_4!$E$17 -> 0 | J46: =ST7_4!$E$8 -> ST7_4 | K46: =ST7_4!$B$4 -> Granular Overlay – Overlay With Imported Material (≤150Mm) | L46: =ST7_4!$G$2 -> 0 | M46: =ST7_4!$E$101 -> $/m2 | N46: =ST7_4!$G$3 -> 0 | O46: =ST7_4!$G$4 -> 0 | P46: ST7_4 | Q46: =IF(AND(Menu!$E$30=Yes,Menu!$F$30>=ABS(RIGHT(P46,1))),1,0) -> 0
B47: =IF(ISBLANK(ST7_5!$E$10),"",ST7_5!$E$10) -> RDS003819 | C47: =IF(ISBLANK(ST7_5!$E$11),"",ST7_5!$E$11) -> Ballan-Egerton Road | D47: =IF(ISBLANK(ST7_5!$E$12),"",ST7_5!$E$12) ->  | E47: =IF(ISBLANK(ST7_5!$E$13),"",ST7_5!$E$13) ->  | F47: =ST7_5!$E$14 -> 0 | G47: =ST7_5!$E$15 -> 0 | H47: =ST7_5!$E$16 -> 0 | I47: =ST7_5!$E$17 -> 0 | J47: =ST7_5!$E$8 -> ST7_5 | K47: =ST7_5!$B$4 -> Granular Overlay – Overlay With Imported Material (≤150Mm) | L47: =ST7_5!$G$2 -> 0 | M47: =ST7_5!$E$101 -> $/m2 | N47: =ST7_5!$G$3 -> 0 | O47: =ST7_5!$G$4 -> 0 | P47: ST7_5 | Q47: =IF(AND(Menu!$E$30=Yes,Menu!$F$30>=ABS(RIGHT(P47,1))),1,0) -> 0
B48: =IF(ISBLANK(ST7_6!$E$10),"",ST7_6!$E$10) -> RDS003819 | C48: =IF(ISBLANK(ST7_6!$E$11),"",ST7_6!$E$11) -> Ballan-Egerton Road | D48: =IF(ISBLANK(ST7_6!$E$12),"",ST7_6!$E$12) ->  | E48: =IF(ISBLANK(ST7_6!$E$13),"",ST7_6!$E$13) ->  | F48: =ST7_6!$E$14 -> 0 | G48: =ST7_6!$E$15 -> 0 | H48: =ST7_6!$E$16 -> 0 | I48: =ST7_6!$E$17 -> 0 | J48: =ST7_6!$E$8 -> ST7_6 | K48: =ST7_6!$B$4 -> Granular Overlay – Overlay With Imported Material (≤150Mm) | L48: =ST7_6!$G$2 -> 0 | M48: =ST7_6!$E$101 -> $/m2 | N48: =ST7_6!$G$3 -> 0 | O48: =ST7_6!$G$4 -> 0 | P48: ST7_6 | Q48: =IF(AND(Menu!$E$30=Yes,Menu!$F$30>=ABS(RIGHT(P48,1))),1,0) -> 0
B49: =IF(ISBLANK(ST8_1!$E$10),"",ST8_1!$E$10) -> RDS003819 | C49: =IF(ISBLANK(ST8_1!$E$11),"",ST8_1!$E$11) -> Ballan-Egerton Road | D49: =IF(ISBLANK(ST8_1!$E$12),"",ST8_1!$E$12) ->  | E49: =IF(ISBLANK(ST8_1!$E$13),"",ST8_1!$E$13) ->  | F49: =ST8_1!$E$14 -> 0 | G49: =ST8_1!$E$15 -> 0 | H49: =ST8_1!$E$16 -> 0 | I49: =ST8_1!$E$17 -> 0 | J49: =ST8_1!$E$8 -> ST8_1 | K49: =ST8_1!$B$4 -> Reconstruct Unbound Granular Pavement | L49: =ST8_1!$G$2 -> 0 | M49: =ST8_1!$E$143 -> $/m2 | N49: =ST8_1!$G$3 -> 0 | O49: =ST8_1!$G$4 -> 0 | P49: ST8_1 | Q49: =IF(AND(Menu!$E$31=Yes,Menu!$F$31>=ABS(RIGHT(P49,1))),1,0) -> 0
B50: =IF(ISBLANK(ST8_2!$E$10),"",ST8_2!$E$10) -> RDS003819 | C50: =IF(ISBLANK(ST8_2!$E$11),"",ST8_2!$E$11) -> Ballan-Egerton Road | D50: =IF(ISBLANK(ST8_2!$E$12),"",ST8_2!$E$12) ->  | E50: =IF(ISBLANK(ST8_2!$E$13),"",ST8_2!$E$13) ->  | F50: =ST8_2!$E$14 -> 0 | G50: =ST8_2!$E$15 -> 0 | H50: =ST8_2!$E$16 -> 0 | I50: =ST8_2!$E$17 -> 0 | J50: =ST8_2!$E$8 -> ST8_2 | K50: =ST8_2!$B$4 -> Reconstruct Unbound Granular Pavement | L50: =ST8_2!$G$2 -> 0 | M50: =ST8_2!$E$143 -> $/m2 | N50: =ST8_2!$G$3 -> 0 | O50: =ST8_2!$G$4 -> 0 | P50: ST8_2 | Q50: =IF(AND(Menu!$E$31=Yes,Menu!$F$31>=ABS(RIGHT(P50,1))),1,0) -> 0
B51: =IF(ISBLANK(ST8_3!$E$10),"",ST8_3!$E$10) -> RDS003819 | C51: =IF(ISBLANK(ST8_3!$E$11),"",ST8_3!$E$11) -> Ballan-Egerton Road | D51: =IF(ISBLANK(ST8_3!$E$12),"",ST8_3!$E$12) ->  | E51: =IF(ISBLANK(ST8_3!$E$13),"",ST8_3!$E$13) ->  | F51: =ST8_3!$E$14 -> 0 | G51: =ST8_3!$E$15 -> 0 | H51: =ST8_3!$E$16 -> 0 | I51: =ST8_3!$E$17 -> 0 | J51: =ST8_3!$E$8 -> ST8_3 | K51: =ST8_3!$B$4 -> Reconstruct Unbound Granular Pavement | L51: =ST8_3!$G$2 -> 0 | M51: =ST8_3!$E$143 -> $/m2 | N51: =ST8_3!$G$3 -> 0 | O51: =ST8_3!$G$4 -> 0 | P51: ST8_3 | Q51: =IF(AND(Menu!$E$31=Yes,Menu!$F$31>=ABS(RIGHT(P51,1))),1,0) -> 0
B52: =IF(ISBLANK(ST8_4!$E$10),"",ST8_4!$E$10) -> RDS003819 | C52: =IF(ISBLANK(ST8_4!$E$11),"",ST8_4!$E$11) -> Ballan-Egerton Road | D52: =IF(ISBLANK(ST8_4!$E$12),"",ST8_4!$E$12) ->  | E52: =IF(ISBLANK(ST8_4!$E$13),"",ST8_4!$E$13) ->  | F52: =ST8_4!$E$14 -> 0 | G52: =ST8_4!$E$15 -> 0 | H52: =ST8_4!$E$16 -> 0 | I52: =ST8_4!$E$17 -> 0 | J52: =ST8_4!$E$8 -> ST8_4 | K52: =ST8_4!$B$4 -> Reconstruct Unbound Granular Pavement | L52: =ST8_4!$G$2 -> 0 | M52: =ST8_4!$E$143 -> $/m2 | N52: =ST8_4!$G$3 -> 0 | O52: =ST8_4!$G$4 -> 0 | P52: ST8_4 | Q52: =IF(AND(Menu!$E$31=Yes,Menu!$F$31>=ABS(RIGHT(P52,1))),1,0) -> 0
B53: =IF(ISBLANK(ST8_5!$E$10),"",ST8_5!$E$10) -> RDS003819 | C53: =IF(ISBLANK(ST8_5!$E$11),"",ST8_5!$E$11) -> Ballan-Egerton Road | D53: =IF(ISBLANK(ST8_5!$E$12),"",ST8_5!$E$12) ->  | E53: =IF(ISBLANK(ST8_5!$E$13),"",ST8_5!$E$13) ->  | F53: =ST8_5!$E$14 -> 0 | G53: =ST8_5!$E$15 -> 0 | H53: =ST8_5!$E$16 -> 0 | I53: =ST8_5!$E$17 -> 0 | J53: =ST8_5!$E$8 -> ST8_5 | K53: =ST8_5!$B$4 -> Reconstruct Unbound Granular Pavement | L53: =ST8_5!$G$2 -> 0 | M53: =ST8_5!$E$143 -> $/m2 | N53: =ST8_5!$G$3 -> 0 | O53: =ST8_5!$G$4 -> 0 | P53: ST8_5 | Q53: =IF(AND(Menu!$E$31=Yes,Menu!$F$31>=ABS(RIGHT(P53,1))),1,0) -> 0
B54: =IF(ISBLANK(ST8_6!$E$10),"",ST8_6!$E$10) -> RDS003819 | C54: =IF(ISBLANK(ST8_6!$E$11),"",ST8_6!$E$11) -> Ballan-Egerton Road | D54: =IF(ISBLANK(ST8_6!$E$12),"",ST8_6!$E$12) ->  | E54: =IF(ISBLANK(ST8_6!$E$13),"",ST8_6!$E$13) ->  | F54: =ST8_6!$E$14 -> 0 | G54: =ST8_6!$E$15 -> 0 | H54: =ST8_6!$E$16 -> 0 | I54: =ST8_6!$E$17 -> 0 | J54: =ST8_6!$E$8 -> ST8_6 | K54: =ST8_6!$B$4 -> Reconstruct Unbound Granular Pavement | L54: =ST8_6!$G$2 -> 0 | M54: =ST8_6!$E$143 -> $/m2 | N54: =ST8_6!$G$3 -> 0 | O54: =ST8_6!$G$4 -> 0 | P54: ST8_6 | Q54: =IF(AND(Menu!$E$31=Yes,Menu!$F$31>=ABS(RIGHT(P54,1))),1,0) -> 0
B55: =IF(ISBLANK(ST9_1!$E$10),"",ST9_1!$E$10) -> RDS003819 | C55: =IF(ISBLANK(ST9_1!$E$11),"",ST9_1!$E$11) -> Ballan-Egerton Road | D55: =IF(ISBLANK(ST9_1!$E$12),"",ST9_1!$E$12) ->  | E55: =IF(ISBLANK(ST9_1!$E$13),"",ST9_1!$E$13) ->  | F55: =ST9_1!$E$14 -> 0 | G55: =ST9_1!$E$15 -> 0 | H55: =ST9_1!$E$16 -> 0 | I55: =ST9_1!$E$17 -> 0 | J55: =ST9_1!$E$8 -> ST9_1 | K55: =ST9_1!$B$4 -> Patch Repair – Patch Unbound Pavement Failure | L55: =ST9_1!$G$2 -> 0 | M55: =ST9_1!$E$59 -> $/m2 | N55: =ST9_1!$G$3 -> 0 | O55: =ST9_1!$G$4 -> 0 | P55: ST9_1 | Q55: =IF(AND(Menu!$E$32=Yes,Menu!$F$32>=ABS(RIGHT(P55,1))),1,0) -> 0
B56: =IF(ISBLANK(ST9_2!$E$10),"",ST9_2!$E$10) -> RDS003819 | C56: =IF(ISBLANK(ST9_2!$E$11),"",ST9_2!$E$11) -> Ballan-Egerton Road | D56: =IF(ISBLANK(ST9_2!$E$12),"",ST9_2!$E$12) ->  | E56: =IF(ISBLANK(ST9_2!$E$13),"",ST9_2!$E$13) ->  | F56: =ST9_2!$E$14 -> 0 | G56: =ST9_2!$E$15 -> 0 | H56: =ST9_2!$E$16 -> 0 | I56: =ST9_2!$E$17 -> 0 | J56: =ST9_2!$E$8 -> ST9_2 | K56: =ST9_2!$B$4 -> Patch Repair – Patch Unbound Pavement Failure | L56: =ST9_2!$G$2 -> 0 | M56: =ST9_2!$E$59 -> $/m2 | N56: =ST9_2!$G$3 -> 0 | O56: =ST9_2!$G$4 -> 0 | P56: ST9_2 | Q56: =IF(AND(Menu!$E$32=Yes,Menu!$F$32>=ABS(RIGHT(P56,1))),1,0) -> 0
B57: =IF(ISBLANK(ST9_3!$E$10),"",ST9_3!$E$10) -> RDS003819 | C57: =IF(ISBLANK(ST9_3!$E$11),"",ST9_3!$E$11) -> Ballan-Egerton Road | D57: =IF(ISBLANK(ST9_3!$E$12),"",ST9_3!$E$12) ->  | E57: =IF(ISBLANK(ST9_3!$E$13),"",ST9_3!$E$13) ->  | F57: =ST9_3!$E$14 -> 0 | G57: =ST9_3!$E$15 -> 0 | H57: =ST9_3!$E$16 -> 0 | I57: =ST9_3!$E$17 -> 0 | J57: =ST9_3!$E$8 -> ST9_3 | K57: =ST9_3!$B$4 -> Patch Repair – Patch Unbound Pavement Failure | L57: =ST9_3!$G$2 -> 0 | M57: =ST9_3!$E$59 -> $/m2 | N57: =ST9_3!$G$3 -> 0 | O57: =ST9_3!$G$4 -> 0 | P57: ST9_3 | Q57: =IF(AND(Menu!$E$32=Yes,Menu!$F$32>=ABS(RIGHT(P57,1))),1,0) -> 0
B58: =IF(ISBLANK(ST9_4!$E$10),"",ST9_4!$E$10) -> RDS003819 | C58: =IF(ISBLANK(ST9_4!$E$11),"",ST9_4!$E$11) -> Ballan-Egerton Road | D58: =IF(ISBLANK(ST9_4!$E$12),"",ST9_4!$E$12) ->  | E58: =IF(ISBLANK(ST9_4!$E$13),"",ST9_4!$E$13) ->  | F58: =ST9_4!$E$14 -> 0 | G58: =ST9_4!$E$15 -> 0 | H58: =ST9_4!$E$16 -> 0 | I58: =ST9_4!$E$17 -> 0 | J58: =ST9_4!$E$8 -> ST9_4 | K58: =ST9_4!$B$4 -> Patch Repair – Patch Unbound Pavement Failure | L58: =ST9_4!$G$2 -> 0 | M58: =ST9_4!$E$59 -> $/m2 | N58: =ST9_4!$G$3 -> 0 | O58: =ST9_4!$G$4 -> 0 | P58: ST9_4 | Q58: =IF(AND(Menu!$E$32=Yes,Menu!$F$32>=ABS(RIGHT(P58,1))),1,0) -> 0
B59: =IF(ISBLANK(ST9_5!$E$10),"",ST9_5!$E$10) -> RDS003819 | C59: =IF(ISBLANK(ST9_5!$E$11),"",ST9_5!$E$11) -> Ballan-Egerton Road | D59: =IF(ISBLANK(ST9_5!$E$12),"",ST9_5!$E$12) ->  | E59: =IF(ISBLANK(ST9_5!$E$13),"",ST9_5!$E$13) ->  | F59: =ST9_5!$E$14 -> 0 | G59: =ST9_5!$E$15 -> 0 | H59: =ST9_5!$E$16 -> 0 | I59: =ST9_5!$E$17 -> 0 | J59: =ST9_5!$E$8 -> ST9_5 | K59: =ST9_5!$B$4 -> Patch Repair – Patch Unbound Pavement Failure | L59: =ST9_5!$G$2 -> 0 | M59: =ST9_5!$E$59 -> $/m2 | N59: =ST9_5!$G$3 -> 0 | O59: =ST9_5!$G$4 -> 0 | P59: ST9_5 | Q59: =IF(AND(Menu!$E$32=Yes,Menu!$F$32>=ABS(RIGHT(P59,1))),1,0) -> 0
B60: =IF(ISBLANK(ST9_6!$E$10),"",ST9_6!$E$10) -> RDS003819 | C60: =IF(ISBLANK(ST9_6!$E$11),"",ST9_6!$E$11) -> Ballan-Egerton Road | D60: =IF(ISBLANK(ST9_6!$E$12),"",ST9_6!$E$12) ->  | E60: =IF(ISBLANK(ST9_6!$E$13),"",ST9_6!$E$13) ->  | F60: =ST9_6!$E$14 -> 0 | G60: =ST9_6!$E$15 -> 0 | H60: =ST9_6!$E$16 -> 0 | I60: =ST9_6!$E$17 -> 0 | J60: =ST9_6!$E$8 -> ST9_6 | K60: =ST9_6!$B$4 -> Patch Repair – Patch Unbound Pavement Failure | L60: =ST9_6!$G$2 -> 0 | M60: =ST9_6!$E$59 -> $/m2 | N60: =ST9_6!$G$3 -> 0 | O60: =ST9_6!$G$4 -> 0 | P60: ST9_6 | Q60: =IF(AND(Menu!$E$32=Yes,Menu!$F$32>=ABS(RIGHT(P60,1))),1,0) -> 0
B61: =IF(ISBLANK(ST10_1!$E$10),"",ST10_1!$E$10) -> RDS003819 | C61: =IF(ISBLANK(ST10_1!$E$11),"",ST10_1!$E$11) -> Ballan-Egerton Road | D61: =IF(ISBLANK(ST10_1!$E$12),"",ST10_1!$E$12) ->  | E61: =IF(ISBLANK(ST10_1!$E$13),"",ST10_1!$E$13) ->  | F61: =ST10_1!$E$14 -> 0 | G61: =ST10_1!$E$15 -> 0 | H61: =ST10_1!$E$16 -> 0 | I61: =ST10_1!$E$17 -> 0 | J61: =ST10_1!$E$8 -> ST10_1 | K61: =ST10_1!$B$4 -> Pothole Repair | L61: =ST10_1!$G$2 -> 0 | M61: =ST10_1!$E$58 -> $/tonne | N61: =ST10_1!$G$3 -> 0 | O61: =ST10_1!$G$4 -> 0 | P61: ST10_1 | Q61: =IF(AND(Menu!$E$33=Yes,Menu!$F$33>=ABS(RIGHT(P61,1))),1,0) -> 0
B62: =IF(ISBLANK(ST10_2!$E$10),"",ST10_2!$E$10) -> RDS003819 | C62: =IF(ISBLANK(ST10_2!$E$11),"",ST10_2!$E$11) -> Ballan-Egerton Road | D62: =IF(ISBLANK(ST10_2!$E$12),"",ST10_2!$E$12) ->  | E62: =IF(ISBLANK(ST10_2!$E$13),"",ST10_2!$E$13) ->  | F62: =ST10_2!$E$14 -> 0 | G62: =ST10_2!$E$15 -> 0 | H62: =ST10_2!$E$16 -> 0 | I62: =ST10_2!$E$17 -> 0 | J62: =ST10_2!$E$8 -> ST10_2 | K62: =ST10_2!$B$4 -> Pothole Repair | L62: =ST10_2!$G$2 -> 0 | M62: =ST10_2!$E$58 -> $/tonne | N62: =ST10_2!$G$3 -> 0 | O62: =ST10_2!$G$4 -> 0 | P62: ST10_2 | Q62: =IF(AND(Menu!$E$33=Yes,Menu!$F$33>=ABS(RIGHT(P62,1))),1,0) -> 0
B63: =IF(ISBLANK(ST10_3!$E$10),"",ST10_3!$E$10) -> RDS003819 | C63: =IF(ISBLANK(ST10_3!$E$11),"",ST10_3!$E$11) -> Ballan-Egerton Road | D63: =IF(ISBLANK(ST10_3!$E$12),"",ST10_3!$E$12) ->  | E63: =IF(ISBLANK(ST10_3!$E$13),"",ST10_3!$E$13) ->  | F63: =ST10_3!$E$14 -> 0 | G63: =ST10_3!$E$15 -> 0 | H63: =ST10_3!$E$16 -> 0 | I63: =ST10_3!$E$17 -> 0 | J63: =ST10_3!$E$8 -> ST10_3 | K63: =ST10_3!$B$4 -> Pothole Repair | L63: =ST10_3!$G$2 -> 0 | M63: =ST10_3!$E$58 -> $/tonne | N63: =ST10_3!$G$3 -> 0 | O63: =ST10_3!$G$4 -> 0 | P63: ST10_3 | Q63: =IF(AND(Menu!$E$33=Yes,Menu!$F$33>=ABS(RIGHT(P63,1))),1,0) -> 0
B64: =IF(ISBLANK(ST10_4!$E$10),"",ST10_4!$E$10) -> RDS003819 | C64: =IF(ISBLANK(ST10_4!$E$11),"",ST10_4!$E$11) -> Ballan-Egerton Road | D64: =IF(ISBLANK(ST10_4!$E$12),"",ST10_4!$E$12) ->  | E64: =IF(ISBLANK(ST10_4!$E$13),"",ST10_4!$E$13) ->  | F64: =ST10_4!$E$14 -> 0 | G64: =ST10_4!$E$15 -> 0 | H64: =ST10_4!$E$16 -> 0 | I64: =ST10_4!$E$17 -> 0 | J64: =ST10_4!$E$8 -> ST10_4 | K64: =ST10_4!$B$4 -> Pothole Repair | L64: =ST10_4!$G$2 -> 0 | M64: =ST10_4!$E$58 -> $/tonne | N64: =ST10_4!$G$3 -> 0 | O64: =ST10_4!$G$4 -> 0 | P64: ST10_4 | Q64: =IF(AND(Menu!$E$33=Yes,Menu!$F$33>=ABS(RIGHT(P64,1))),1,0) -> 0
B65: =IF(ISBLANK(ST10_5!$E$10),"",ST10_5!$E$10) -> RDS003819 | C65: =IF(ISBLANK(ST10_5!$E$11),"",ST10_5!$E$11) -> Ballan-Egerton Road | D65: =IF(ISBLANK(ST10_5!$E$12),"",ST10_5!$E$12) ->  | E65: =IF(ISBLANK(ST10_5!$E$13),"",ST10_5!$E$13) ->  | F65: =ST10_5!$E$14 -> 0 | G65: =ST10_5!$E$15 -> 0 | H65: =ST10_5!$E$16 -> 0 | I65: =ST10_5!$E$17 -> 0 | J65: =ST10_5!$E$8 -> ST10_5 | K65: =ST10_5!$B$4 -> Pothole Repair | L65: =ST10_5!$G$2 -> 0 | M65: =ST10_5!$E$58 -> $/tonne | N65: =ST10_5!$G$3 -> 0 | O65: =ST10_5!$G$4 -> 0 | P65: ST10_5 | Q65: =IF(AND(Menu!$E$33=Yes,Menu!$F$33>=ABS(RIGHT(P65,1))),1,0) -> 0
B66: =IF(ISBLANK(ST10_6!$E$10),"",ST10_6!$E$10) -> RDS003819 | C66: =IF(ISBLANK(ST10_6!$E$11),"",ST10_6!$E$11) -> Ballan-Egerton Road | D66: =IF(ISBLANK(ST10_6!$E$12),"",ST10_6!$E$12) ->  | E66: =IF(ISBLANK(ST10_6!$E$13),"",ST10_6!$E$13) ->  | F66: =ST10_6!$E$14 -> 0 | G66: =ST10_6!$E$15 -> 0 | H66: =ST10_6!$E$16 -> 0 | I66: =ST10_6!$E$17 -> 0 | J66: =ST10_6!$E$8 -> ST10_6 | K66: =ST10_6!$B$4 -> Pothole Repair | L66: =ST10_6!$G$2 -> 0 | M66: =ST10_6!$E$58 -> $/tonne | N66: =ST10_6!$G$3 -> 0 | O66: =ST10_6!$G$4 -> 0 | P66: ST10_6 | Q66: =IF(AND(Menu!$E$33=Yes,Menu!$F$33>=ABS(RIGHT(P66,1))),1,0) -> 0
B67: =IF(ISBLANK(ST11_1!$E$10),"",ST11_1!$E$10) -> RDS003819 | C67: =IF(ISBLANK(ST11_1!$E$11),"",ST11_1!$E$11) -> Ballan-Egerton Road | D67: =IF(ISBLANK(ST11_1!$E$12),"",ST11_1!$E$12) ->  | E67: =IF(ISBLANK(ST11_1!$E$13),"",ST11_1!$E$13) ->  | F67: =ST11_1!$E$14 -> 0 | G67: =ST11_1!$E$15 -> 0 | H67: =ST11_1!$E$16 -> 0 | I67: =ST11_1!$E$17 -> 0 | J67: =ST11_1!$E$8 -> ST11_1 | K67: =ST11_1!$B$4 -> Heavy Shoulder Grading | L67: =ST11_1!$G$2 -> 0 | M67: =ST11_1!$E$89 -> $/Lm | N67: =ST11_1!$G$3 -> 0 | O67: =ST11_1!$G$4 -> 0 | P67: ST11_1 | Q67: =IF(AND(Menu!$E$34=Yes,Menu!$F$34>=ABS(RIGHT(P67,1))),1,0) -> 0
B68: =IF(ISBLANK(ST11_2!$E$10),"",ST11_2!$E$10) -> RDS003819 | C68: =IF(ISBLANK(ST11_2!$E$11),"",ST11_2!$E$11) -> Ballan-Egerton Road | D68: =IF(ISBLANK(ST11_2!$E$12),"",ST11_2!$E$12) ->  | E68: =IF(ISBLANK(ST11_2!$E$13),"",ST11_2!$E$13) ->  | F68: =ST11_2!$E$14 -> 0 | G68: =ST11_2!$E$15 -> 0 | H68: =ST11_2!$E$16 -> 0 | I68: =ST11_2!$E$17 -> 0 | J68: =ST11_2!$E$8 -> ST11_2 | K68: =ST11_2!$B$4 -> Heavy Shoulder Grading | L68: =ST11_2!$G$2 -> 0 | M68: =ST11_2!$E$89 -> $/Lm | N68: =ST11_2!$G$3 -> 0 | O68: =ST11_2!$G$4 -> 0 | P68: ST11_2 | Q68: =IF(AND(Menu!$E$34=Yes,Menu!$F$34>=ABS(RIGHT(P68,1))),1,0) -> 0
B69: =IF(ISBLANK(ST11_3!$E$10),"",ST11_3!$E$10) -> RDS003819 | C69: =IF(ISBLANK(ST11_3!$E$11),"",ST11_3!$E$11) -> Ballan-Egerton Road | D69: =IF(ISBLANK(ST11_3!$E$12),"",ST11_3!$E$12) ->  | E69: =IF(ISBLANK(ST11_3!$E$13),"",ST11_3!$E$13) ->  | F69: =ST11_3!$E$14 -> 0 | G69: =ST11_3!$E$15 -> 0 | H69: =ST11_3!$E$16 -> 0 | I69: =ST11_3!$E$17 -> 0 | J69: =ST11_3!$E$8 -> ST11_3 | K69: =ST11_3!$B$4 -> Heavy Shoulder Grading | L69: =ST11_3!$G$2 -> 0 | M69: =ST11_3!$E$89 -> $/Lm | N69: =ST11_3!$G$3 -> 0 | O69: =ST11_3!$G$4 -> 0 | P69: ST11_3 | Q69: =IF(AND(Menu!$E$34=Yes,Menu!$F$34>=ABS(RIGHT(P69,1))),1,0) -> 0
B70: =IF(ISBLANK(ST11_4!$E$10),"",ST11_4!$E$10) -> RDS003819 | C70: =IF(ISBLANK(ST11_4!$E$11),"",ST11_4!$E$11) -> Ballan-Egerton Road | D70: =IF(ISBLANK(ST11_4!$E$12),"",ST11_4!$E$12) ->  | E70: =IF(ISBLANK(ST11_4!$E$13),"",ST11_4!$E$13) ->  | F70: =ST11_4!$E$14 -> 0 | G70: =ST11_4!$E$15 -> 0 | H70: =ST11_4!$E$16 -> 0 | I70: =ST11_4!$E$17 -> 0 | J70: =ST11_4!$E$8 -> ST11_4 | K70: =ST11_4!$B$4 -> Heavy Shoulder Grading | L70: =ST11_4!$G$2 -> 0 | M70: =ST11_4!$E$89 -> $/Lm | N70: =ST11_4!$G$3 -> 0 | O70: =ST11_4!$G$4 -> 0 | P70: ST11_4 | Q70: =IF(AND(Menu!$E$34=Yes,Menu!$F$34>=ABS(RIGHT(P70,1))),1,0) -> 0
B71: =IF(ISBLANK(ST11_5!$E$10),"",ST11_5!$E$10) -> RDS003819 | C71: =IF(ISBLANK(ST11_5!$E$11),"",ST11_5!$E$11) -> Ballan-Egerton Road | D71: =IF(ISBLANK(ST11_5!$E$12),"",ST11_5!$E$12) ->  | E71: =IF(ISBLANK(ST11_5!$E$13),"",ST11_5!$E$13) ->  | F71: =ST11_5!$E$14 -> 0 | G71: =ST11_5!$E$15 -> 0 | H71: =ST11_5!$E$16 -> 0 | I71: =ST11_5!$E$17 -> 0 | J71: =ST11_5!$E$8 -> ST11_5 | K71: =ST11_5!$B$4 -> Heavy Shoulder Grading | L71: =ST11_5!$G$2 -> 0 | M71: =ST11_5!$E$89 -> $/Lm | N71: =ST11_5!$G$3 -> 0 | O71: =ST11_5!$G$4 -> 0 | P71: ST11_5 | Q71: =IF(AND(Menu!$E$34=Yes,Menu!$F$34>=ABS(RIGHT(P71,1))),1,0) -> 0
B72: =IF(ISBLANK(ST11_6!$E$10),"",ST11_6!$E$10) -> RDS003819 | C72: =IF(ISBLANK(ST11_6!$E$11),"",ST11_6!$E$11) -> Ballan-Egerton Road | D72: =IF(ISBLANK(ST11_6!$E$12),"",ST11_6!$E$12) ->  | E72: =IF(ISBLANK(ST11_6!$E$13),"",ST11_6!$E$13) ->  | F72: =ST11_6!$E$14 -> 0 | G72: =ST11_6!$E$15 -> 0 | H72: =ST11_6!$E$16 -> 0 | I72: =ST11_6!$E$17 -> 0 | J72: =ST11_6!$E$8 -> ST11_6 | K72: =ST11_6!$B$4 -> Heavy Shoulder Grading | L72: =ST11_6!$G$2 -> 0 | M72: =ST11_6!$E$89 -> $/Lm | N72: =ST11_6!$G$3 -> 0 | O72: =ST11_6!$G$4 -> 0 | P72: ST11_6 | Q72: =IF(AND(Menu!$E$34=Yes,Menu!$F$34>=ABS(RIGHT(P72,1))),1,0) -> 0
B73: =IF(ISBLANK(ST12_1!$E$10),"",ST12_1!$E$10) -> RDS003819 | C73: =IF(ISBLANK(ST12_1!$E$11),"",ST12_1!$E$11) -> Ballan-Egerton Road | D73: =IF(ISBLANK(ST12_1!$E$12),"",ST12_1!$E$12) -> 4.55 | E73: =IF(ISBLANK(ST12_1!$E$13),"",ST12_1!$E$13) -> 4.55 | F73: =ST12_1!$E$14 -> -37.6297877 | G73: =ST12_1!$E$15 -> 144.1611122 | H73: =ST12_1!$E$16 -> -37.6297877 | I73: =ST12_1!$E$17 -> 144.1611122 | J73: =ST12_1!$E$8 -> ST12_1 | K73: =ST12_1!$B$4 -> Shoulder Reconstruction | L73: =ST12_1!$G$2 -> 200 | M73: =ST12_1!$E$98 -> $/Lm | N73: =ST12_1!$G$3 -> 29.4425 | O73: =ST12_1!$G$4 -> 5888.5 | P73: ST12_1 | Q73: =IF(AND(Menu!$E$35=Yes,Menu!$F$35>=ABS(RIGHT(P73,1))),1,0) -> 1
B74: =IF(ISBLANK(ST12_2!$E$10),"",ST12_2!$E$10) -> RDS003819 | C74: =IF(ISBLANK(ST12_2!$E$11),"",ST12_2!$E$11) -> Ballan-Egerton Road | D74: =IF(ISBLANK(ST12_2!$E$12),"",ST12_2!$E$12) ->  | E74: =IF(ISBLANK(ST12_2!$E$13),"",ST12_2!$E$13) ->  | F74: =ST12_2!$E$14 -> 0 | G74: =ST12_2!$E$15 -> 0 | H74: =ST12_2!$E$16 -> 0 | I74: =ST12_2!$E$17 -> 0 | J74: =ST12_2!$E$8 -> ST12_2 | K74: =ST12_2!$B$4 -> Shoulder Reconstruction | L74: =ST12_2!$G$2 -> 0 | M74: =ST12_2!$E$98 -> $/Lm | N74: =ST12_2!$G$3 -> 0 | O74: =ST12_2!$G$4 -> 0 | P74: ST12_2 | Q74: =IF(AND(Menu!$E$35=Yes,Menu!$F$35>=ABS(RIGHT(P74,1))),1,0) -> 0
B75: =IF(ISBLANK(ST12_3!$E$10),"",ST12_3!$E$10) -> RDS003819 | C75: =IF(ISBLANK(ST12_3!$E$11),"",ST12_3!$E$11) -> Ballan-Egerton Road | D75: =IF(ISBLANK(ST12_3!$E$12),"",ST12_3!$E$12) ->  | E75: =IF(ISBLANK(ST12_3!$E$13),"",ST12_3!$E$13) ->  | F75: =ST12_3!$E$14 -> 0 | G75: =ST12_3!$E$15 -> 0 | H75: =ST12_3!$E$16 -> 0 | I75: =ST12_3!$E$17 -> 0 | J75: =ST12_3!$E$8 -> ST12_3 | K75: =ST12_3!$B$4 -> Shoulder Reconstruction | L75: =ST12_3!$G$2 -> 0 | M75: =ST12_3!$E$98 -> $/Lm | N75: =ST12_3!$G$3 -> 0 | O75: =ST12_3!$G$4 -> 0 | P75: ST12_3 | Q75: =IF(AND(Menu!$E$35=Yes,Menu!$F$35>=ABS(RIGHT(P75,1))),1,0) -> 0
B76: =IF(ISBLANK(ST12_4!$E$10),"",ST12_4!$E$10) -> RDS003819 | C76: =IF(ISBLANK(ST12_4!$E$11),"",ST12_4!$E$11) -> Ballan-Egerton Road | D76: =IF(ISBLANK(ST12_4!$E$12),"",ST12_4!$E$12) ->  | E76: =IF(ISBLANK(ST12_4!$E$13),"",ST12_4!$E$13) ->  | F76: =ST12_4!$E$14 -> 0 | G76: =ST12_4!$E$15 -> 0 | H76: =ST12_4!$E$16 -> 0 | I76: =ST12_4!$E$17 -> 0 | J76: =ST12_4!$E$8 -> ST12_4 | K76: =ST12_4!$B$4 -> Shoulder Reconstruction | L76: =ST12_4!$G$2 -> 0 | M76: =ST12_4!$E$98 -> $/Lm | N76: =ST12_4!$G$3 -> 0 | O76: =ST12_4!$G$4 -> 0 | P76: ST12_4 | Q76: =IF(AND(Menu!$E$35=Yes,Menu!$F$35>=ABS(RIGHT(P76,1))),1,0) -> 0
B77: =IF(ISBLANK(ST12_5!$E$10),"",ST12_5!$E$10) -> RDS003819 | C77: =IF(ISBLANK(ST12_5!$E$11),"",ST12_5!$E$11) -> Ballan-Egerton Road | D77: =IF(ISBLANK(ST12_5!$E$12),"",ST12_5!$E$12) ->  | E77: =IF(ISBLANK(ST12_5!$E$13),"",ST12_5!$E$13) ->  | F77: =ST12_5!$E$14 -> 0 | G77: =ST12_5!$E$15 -> 0 | H77: =ST12_5!$E$16 -> 0 | I77: =ST12_5!$E$17 -> 0 | J77: =ST12_5!$E$8 -> ST12_5 | K77: =ST12_5!$B$4 -> Shoulder Reconstruction | L77: =ST12_5!$G$2 -> 0 | M77: =ST12_5!$E$98 -> $/Lm | N77: =ST12_5!$G$3 -> 0 | O77: =ST12_5!$G$4 -> 0 | P77: ST12_5 | Q77: =IF(AND(Menu!$E$35=Yes,Menu!$F$35>=ABS(RIGHT(P77,1))),1,0) -> 0
B78: =IF(ISBLANK(ST12_6!$E$10),"",ST12_6!$E$10) -> RDS003819 | C78: =IF(ISBLANK(ST12_6!$E$11),"",ST12_6!$E$11) -> Ballan-Egerton Road | D78: =IF(ISBLANK(ST12_6!$E$12),"",ST12_6!$E$12) ->  | E78: =IF(ISBLANK(ST12_6!$E$13),"",ST12_6!$E$13) ->  | F78: =ST12_6!$E$14 -> 0 | G78: =ST12_6!$E$15 -> 0 | H78: =ST12_6!$E$16 -> 0 | I78: =ST12_6!$E$17 -> 0 | J78: =ST12_6!$E$8 -> ST12_6 | K78: =ST12_6!$B$4 -> Shoulder Reconstruction | L78: =ST12_6!$G$2 -> 0 | M78: =ST12_6!$E$98 -> $/Lm | N78: =ST12_6!$G$3 -> 0 | O78: =ST12_6!$G$4 -> 0 | P78: ST12_6 | Q78: =IF(AND(Menu!$E$35=Yes,Menu!$F$35>=ABS(RIGHT(P78,1))),1,0) -> 0
B79: =IF(ISBLANK(ST13_1!$E$10),"",ST13_1!$E$10) -> RDS003819 | C79: =IF(ISBLANK(ST13_1!$E$11),"",ST13_1!$E$11) -> Ballan-Egerton Road | D79: =IF(ISBLANK(ST13_1!$E$12),"",ST13_1!$E$12) ->  | E79: =IF(ISBLANK(ST13_1!$E$13),"",ST13_1!$E$13) ->  | F79: =ST13_1!$E$14 -> 0 | G79: =ST13_1!$E$15 -> 0 | H79: =ST13_1!$E$16 -> 0 | I79: =ST13_1!$E$17 -> 0 | J79: =ST13_1!$E$8 -> ST13_1 | K79: =ST13_1!$B$4 -> Asphalt | L79: =ST13_1!$G$2 -> 0 | M79: =ST13_1!$E$63 -> $/m3 | N79: =ST13_1!$G$3 -> 0 | O79: =ST13_1!$G$4 -> 0 | P79: ST13_1 | Q79: =IF(AND(Menu!$E$36=Yes,Menu!$F$36>=ABS(RIGHT(P79,1))),1,0) -> 0
B80: =IF(ISBLANK(ST13_2!$E$10),"",ST13_2!$E$10) -> RDS003819 | C80: =IF(ISBLANK(ST13_2!$E$11),"",ST13_2!$E$11) -> Ballan-Egerton Road | D80: =IF(ISBLANK(ST13_2!$E$12),"",ST13_2!$E$12) ->  | E80: =IF(ISBLANK(ST13_2!$E$13),"",ST13_2!$E$13) ->  | F80: =ST13_2!$E$14 -> 0 | G80: =ST13_2!$E$15 -> 0 | H80: =ST13_2!$E$16 -> 0 | I80: =ST13_2!$E$17 -> 0 | J80: =ST13_2!$E$8 -> ST13_2 | K80: =ST13_2!$B$4 -> Asphalt | L80: =ST13_2!$G$2 -> 0 | M80: =ST13_2!$E$63 -> $/m3 | N80: =ST13_2!$G$3 -> 0 | O80: =ST13_2!$G$4 -> 0 | P80: ST13_2 | Q80: =IF(AND(Menu!$E$36=Yes,Menu!$F$36>=ABS(RIGHT(P80,1))),1,0) -> 0
B81: =IF(ISBLANK(ST13_3!$E$10),"",ST13_3!$E$10) -> RDS003819 | C81: =IF(ISBLANK(ST13_3!$E$11),"",ST13_3!$E$11) -> Ballan-Egerton Road | D81: =IF(ISBLANK(ST13_3!$E$12),"",ST13_3!$E$12) ->  | E81: =IF(ISBLANK(ST13_3!$E$13),"",ST13_3!$E$13) ->  | F81: =ST13_3!$E$14 -> 0 | G81: =ST13_3!$E$15 -> 0 | H81: =ST13_3!$E$16 -> 0 | I81: =ST13_3!$E$17 -> 0 | J81: =ST13_3!$E$8 -> ST13_3 | K81: =ST13_3!$B$4 -> Asphalt | L81: =ST13_3!$G$2 -> 0 | M81: =ST13_3!$E$63 -> $/m3 | N81: =ST13_3!$G$3 -> 0 | O81: =ST13_3!$G$4 -> 0 | P81: ST13_3 | Q81: =IF(AND(Menu!$E$36=Yes,Menu!$F$36>=ABS(RIGHT(P81,1))),1,0) -> 0
B82: =IF(ISBLANK(ST13_4!$E$10),"",ST13_4!$E$10) -> RDS003819 | C82: =IF(ISBLANK(ST13_4!$E$11),"",ST13_4!$E$11) -> Ballan-Egerton Road | D82: =IF(ISBLANK(ST13_4!$E$12),"",ST13_4!$E$12) ->  | E82: =IF(ISBLANK(ST13_4!$E$13),"",ST13_4!$E$13) ->  | F82: =ST13_4!$E$14 -> 0 | G82: =ST13_4!$E$15 -> 0 | H82: =ST13_4!$E$16 -> 0 | I82: =ST13_4!$E$17 -> 0 | J82: =ST13_4!$E$8 -> ST13_4 | K82: =ST13_4!$B$4 -> Asphalt | L82: =ST13_4!$G$2 -> 0 | M82: =ST13_4!$E$63 -> $/m3 | N82: =ST13_4!$G$3 -> 0 | O82: =ST13_4!$G$4 -> 0 | P82: ST13_4 | Q82: =IF(AND(Menu!$E$36=Yes,Menu!$F$36>=ABS(RIGHT(P82,1))),1,0) -> 0
B83: =IF(ISBLANK(ST13_5!$E$10),"",ST13_5!$E$10) -> RDS003819 | C83: =IF(ISBLANK(ST13_5!$E$11),"",ST13_5!$E$11) -> Ballan-Egerton Road | D83: =IF(ISBLANK(ST13_5!$E$12),"",ST13_5!$E$12) ->  | E83: =IF(ISBLANK(ST13_5!$E$13),"",ST13_5!$E$13) ->  | F83: =ST13_5!$E$14 -> 0 | G83: =ST13_5!$E$15 -> 0 | H83: =ST13_5!$E$16 -> 0 | I83: =ST13_5!$E$17 -> 0 | J83: =ST13_5!$E$8 -> ST13_5 | K83: =ST13_5!$B$4 -> Asphalt | L83: =ST13_5!$G$2 -> 0 | M83: =ST13_5!$E$63 -> $/m3 | N83: =ST13_5!$G$3 -> 0 | O83: =ST13_5!$G$4 -> 0 | P83: ST13_5 | Q83: =IF(AND(Menu!$E$36=Yes,Menu!$F$36>=ABS(RIGHT(P83,1))),1,0) -> 0
B84: =IF(ISBLANK(ST13_6!$E$10),"",ST13_6!$E$10) -> RDS003819 | C84: =IF(ISBLANK(ST13_6!$E$11),"",ST13_6!$E$11) -> Ballan-Egerton Road | D84: =IF(ISBLANK(ST13_6!$E$12),"",ST13_6!$E$12) ->  | E84: =IF(ISBLANK(ST13_6!$E$13),"",ST13_6!$E$13) ->  | F84: =ST13_6!$E$14 -> 0 | G84: =ST13_6!$E$15 -> 0 | H84: =ST13_6!$E$16 -> 0 | I84: =ST13_6!$E$17 -> 0 | J84: =ST13_6!$E$8 -> ST13_6 | K84: =ST13_6!$B$4 -> Asphalt | L84: =ST13_6!$G$2 -> 0 | M84: =ST13_6!$E$63 -> $/m3 | N84: =ST13_6!$G$3 -> 0 | O84: =ST13_6!$G$4 -> 0 | P84: ST13_6 | Q84: =IF(AND(Menu!$E$36=Yes,Menu!$F$36>=ABS(RIGHT(P84,1))),1,0) -> 0
B85: =IF(ISBLANK(ST14_1!$E$10),"",ST14_1!$E$10) -> RDS003819 | C85: =IF(ISBLANK(ST14_1!$E$11),"",ST14_1!$E$11) -> Ballan-Egerton Road | D85: =IF(ISBLANK(ST14_1!$E$12),"",ST14_1!$E$12) ->  | E85: =IF(ISBLANK(ST14_1!$E$13),"",ST14_1!$E$13) ->  | F85: =ST14_1!$E$14 -> 0 | G85: =ST14_1!$E$15 -> 0 | H85: =ST14_1!$E$16 -> 0 | I85: =ST14_1!$E$17 -> 0 | J85: =ST14_1!$E$8 -> ST14_1 | K85: =ST14_1!$B$4 -> Bulk Excavate Surplus Material/Debris And Remove From Site | L85: =ST14_1!$G$2 -> 0 | M85: =ST14_1!$E$87 -> $/Lm | N85: =ST14_1!$G$3 -> 0 | O85: =ST14_1!$G$4 -> 0 | P85: ST14_1 | Q85: =IF(AND(Menu!$E$37=Yes,Menu!$F$37>=ABS(RIGHT(P85,1))),1,0) -> 0
B86: =IF(ISBLANK(ST14_2!$E$10),"",ST14_2!$E$10) -> RDS003819 | C86: =IF(ISBLANK(ST14_2!$E$11),"",ST14_2!$E$11) -> Ballan-Egerton Road | D86: =IF(ISBLANK(ST14_2!$E$12),"",ST14_2!$E$12) ->  | E86: =IF(ISBLANK(ST14_2!$E$13),"",ST14_2!$E$13) ->  | F86: =ST14_2!$E$14 -> 0 | G86: =ST14_2!$E$15 -> 0 | H86: =ST14_2!$E$16 -> 0 | I86: =ST14_2!$E$17 -> 0 | J86: =ST14_2!$E$8 -> ST14_2 | K86: =ST14_2!$B$4 -> Bulk Excavate Surplus Material/Debris And Remove From Site | L86: =ST14_2!$G$2 -> 0 | M86: =ST14_2!$E$87 -> $/Lm | N86: =ST14_2!$G$3 -> 0 | O86: =ST14_2!$G$4 -> 0 | P86: ST14_2 | Q86: =IF(AND(Menu!$E$37=Yes,Menu!$F$37>=ABS(RIGHT(P86,1))),1,0) -> 0
B87: =IF(ISBLANK(ST14_3!$E$10),"",ST14_3!$E$10) -> RDS003819 | C87: =IF(ISBLANK(ST14_3!$E$11),"",ST14_3!$E$11) -> Ballan-Egerton Road | D87: =IF(ISBLANK(ST14_3!$E$12),"",ST14_3!$E$12) ->  | E87: =IF(ISBLANK(ST14_3!$E$13),"",ST14_3!$E$13) ->  | F87: =ST14_3!$E$14 -> 0 | G87: =ST14_3!$E$15 -> 0 | H87: =ST14_3!$E$16 -> 0 | I87: =ST14_3!$E$17 -> 0 | J87: =ST14_3!$E$8 -> ST14_3 | K87: =ST14_3!$B$4 -> Bulk Excavate Surplus Material/Debris And Remove From Site | L87: =ST14_3!$G$2 -> 0 | M87: =ST14_3!$E$87 -> $/Lm | N87: =ST14_3!$G$3 -> 0 | O87: =ST14_3!$G$4 -> 0 | P87: ST14_3 | Q87: =IF(AND(Menu!$E$37=Yes,Menu!$F$37>=ABS(RIGHT(P87,1))),1,0) -> 0
B88: =IF(ISBLANK(ST14_4!$E$10),"",ST14_4!$E$10) -> RDS003819 | C88: =IF(ISBLANK(ST14_4!$E$11),"",ST14_4!$E$11) -> Ballan-Egerton Road | D88: =IF(ISBLANK(ST14_4!$E$12),"",ST14_4!$E$12) ->  | E88: =IF(ISBLANK(ST14_4!$E$13),"",ST14_4!$E$13) ->  | F88: =ST14_4!$E$14 -> 0 | G88: =ST14_4!$E$15 -> 0 | H88: =ST14_4!$E$16 -> 0 | I88: =ST14_4!$E$17 -> 0 | J88: =ST14_4!$E$8 -> ST14_4 | K88: =ST14_4!$B$4 -> Bulk Excavate Surplus Material/Debris And Remove From Site | L88: =ST14_4!$G$2 -> 0 | M88: =ST14_4!$E$87 -> $/Lm | N88: =ST14_4!$G$3 -> 0 | O88: =ST14_4!$G$4 -> 0 | P88: ST14_4 | Q88: =IF(AND(Menu!$E$37=Yes,Menu!$F$37>=ABS(RIGHT(P88,1))),1,0) -> 0
B89: =IF(ISBLANK(ST14_5!$E$10),"",ST14_5!$E$10) -> RDS003819 | C89: =IF(ISBLANK(ST14_5!$E$11),"",ST14_5!$E$11) -> Ballan-Egerton Road | D89: =IF(ISBLANK(ST14_5!$E$12),"",ST14_5!$E$12) ->  | E89: =IF(ISBLANK(ST14_5!$E$13),"",ST14_5!$E$13) ->  | F89: =ST14_5!$E$14 -> 0 | G89: =ST14_5!$E$15 -> 0 | H89: =ST14_5!$E$16 -> 0 | I89: =ST14_5!$E$17 -> 0 | J89: =ST14_5!$E$8 -> ST14_5 | K89: =ST14_5!$B$4 -> Bulk Excavate Surplus Material/Debris And Remove From Site | L89: =ST14_5!$G$2 -> 0 | M89: =ST14_5!$E$87 -> $/Lm | N89: =ST14_5!$G$3 -> 0 | O89: =ST14_5!$G$4 -> 0 | P89: ST14_5 | Q89: =IF(AND(Menu!$E$37=Yes,Menu!$F$37>=ABS(RIGHT(P89,1))),1,0) -> 0
B90: =IF(ISBLANK(ST14_6!$E$10),"",ST14_6!$E$10) -> RDS003819 | C90: =IF(ISBLANK(ST14_6!$E$11),"",ST14_6!$E$11) -> Ballan-Egerton Road | D90: =IF(ISBLANK(ST14_6!$E$12),"",ST14_6!$E$12) ->  | E90: =IF(ISBLANK(ST14_6!$E$13),"",ST14_6!$E$13) ->  | F90: =ST14_6!$E$14 -> 0 | G90: =ST14_6!$E$15 -> 0 | H90: =ST14_6!$E$16 -> 0 | I90: =ST14_6!$E$17 -> 0 | J90: =ST14_6!$E$8 -> ST14_6 | K90: =ST14_6!$B$4 -> Bulk Excavate Surplus Material/Debris And Remove From Site | L90: =ST14_6!$G$2 -> 0 | M90: =ST14_6!$E$87 -> $/Lm | N90: =ST14_6!$G$3 -> 0 | O90: =ST14_6!$G$4 -> 0 | P90: ST14_6 | Q90: =IF(AND(Menu!$E$37=Yes,Menu!$F$37>=ABS(RIGHT(P90,1))),1,0) -> 0
B91: =IF(ISBLANK(ST15_1!$E$10),"",ST15_1!$E$10) -> RDS003819 | C91: =IF(ISBLANK(ST15_1!$E$11),"",ST15_1!$E$11) -> Ballan-Egerton Road | D91: =IF(ISBLANK(ST15_1!$E$12),"",ST15_1!$E$12) ->  | E91: =IF(ISBLANK(ST15_1!$E$13),"",ST15_1!$E$13) ->  | F91: =ST15_1!$E$14 -> 0 | G91: =ST15_1!$E$15 -> 0 | H91: =ST15_1!$E$16 -> 0 | I91: =ST15_1!$E$17 -> 0 | J91: =ST15_1!$E$8 -> ST15_1 | K91: =ST15_1!$B$4 -> Bulk Fill | L91: =ST15_1!$G$2 -> 0 | M91: =ST15_1!$E$91 -> $/Lm | N91: =ST15_1!$G$3 -> 0 | O91: =ST15_1!$G$4 -> 0 | P91: ST15_1 | Q91: =IF(AND(Menu!$E$38=Yes,Menu!$F$38>=ABS(RIGHT(P91,1))),1,0) -> 0
B92: =IF(ISBLANK(ST15_2!$E$10),"",ST15_2!$E$10) -> RDS003819 | C92: =IF(ISBLANK(ST15_2!$E$11),"",ST15_2!$E$11) -> Ballan-Egerton Road | D92: =IF(ISBLANK(ST15_2!$E$12),"",ST15_2!$E$12) ->  | E92: =IF(ISBLANK(ST15_2!$E$13),"",ST15_2!$E$13) ->  | F92: =ST15_2!$E$14 -> 0 | G92: =ST15_2!$E$15 -> 0 | H92: =ST15_2!$E$16 -> 0 | I92: =ST15_2!$E$17 -> 0 | J92: =ST15_2!$E$8 -> ST15_2 | K92: =ST15_2!$B$4 -> Bulk Fill | L92: =ST15_2!$G$2 -> 0 | M92: =ST15_2!$E$91 -> $/Lm | N92: =ST15_2!$G$3 -> 0 | O92: =ST15_2!$G$4 -> 0 | P92: ST15_2 | Q92: =IF(AND(Menu!$E$38=Yes,Menu!$F$38>=ABS(RIGHT(P92,1))),1,0) -> 0
B93: =IF(ISBLANK(ST15_3!$E$10),"",ST15_3!$E$10) -> RDS003819 | C93: =IF(ISBLANK(ST15_3!$E$11),"",ST15_3!$E$11) -> Ballan-Egerton Road | D93: =IF(ISBLANK(ST15_3!$E$12),"",ST15_3!$E$12) ->  | E93: =IF(ISBLANK(ST15_3!$E$13),"",ST15_3!$E$13) ->  | F93: =ST15_3!$E$14 -> 0 | G93: =ST15_3!$E$15 -> 0 | H93: =ST15_3!$E$16 -> 0 | I93: =ST15_3!$E$17 -> 0 | J93: =ST15_3!$E$8 -> ST15_3 | K93: =ST15_3!$B$4 -> Bulk Fill | L93: =ST15_3!$G$2 -> 0 | M93: =ST15_3!$E$91 -> $/Lm | N93: =ST15_3!$G$3 -> 0 | O93: =ST15_3!$G$4 -> 0 | P93: ST15_3 | Q93: =IF(AND(Menu!$E$38=Yes,Menu!$F$38>=ABS(RIGHT(P93,1))),1,0) -> 0
B94: =IF(ISBLANK(ST15_4!$E$10),"",ST15_4!$E$10) -> RDS003819 | C94: =IF(ISBLANK(ST15_4!$E$11),"",ST15_4!$E$11) -> Ballan-Egerton Road | D94: =IF(ISBLANK(ST15_4!$E$12),"",ST15_4!$E$12) ->  | E94: =IF(ISBLANK(ST15_4!$E$13),"",ST15_4!$E$13) ->  | F94: =ST15_4!$E$14 -> 0 | G94: =ST15_4!$E$15 -> 0 | H94: =ST15_4!$E$16 -> 0 | I94: =ST15_4!$E$17 -> 0 | J94: =ST15_4!$E$8 -> ST15_4 | K94: =ST15_4!$B$4 -> Bulk Fill | L94: =ST15_4!$G$2 -> 0 | M94: =ST15_4!$E$91 -> $/Lm | N94: =ST15_4!$G$3 -> 0 | O94: =ST15_4!$G$4 -> 0 | P94: ST15_4 | Q94: =IF(AND(Menu!$E$38=Yes,Menu!$F$38>=ABS(RIGHT(P94,1))),1,0) -> 0
B95: =IF(ISBLANK(ST15_5!$E$10),"",ST15_5!$E$10) -> RDS003819 | C95: =IF(ISBLANK(ST15_5!$E$11),"",ST15_5!$E$11) -> Ballan-Egerton Road | D95: =IF(ISBLANK(ST15_5!$E$12),"",ST15_5!$E$12) ->  | E95: =IF(ISBLANK(ST15_5!$E$13),"",ST15_5!$E$13) ->  | F95: =ST15_5!$E$14 -> 0 | G95: =ST15_5!$E$15 -> 0 | H95: =ST15_5!$E$16 -> 0 | I95: =ST15_5!$E$17 -> 0 | J95: =ST15_5!$E$8 -> ST15_5 | K95: =ST15_5!$B$4 -> Bulk Fill | L95: =ST15_5!$G$2 -> 0 | M95: =ST15_5!$E$91 -> $/Lm | N95: =ST15_5!$G$3 -> 0 | O95: =ST15_5!$G$4 -> 0 | P95: ST15_5 | Q95: =IF(AND(Menu!$E$38=Yes,Menu!$F$38>=ABS(RIGHT(P95,1))),1,0) -> 0
B96: =IF(ISBLANK(ST15_6!$E$10),"",ST15_6!$E$10) -> RDS003819 | C96: =IF(ISBLANK(ST15_6!$E$11),"",ST15_6!$E$11) -> Ballan-Egerton Road | D96: =IF(ISBLANK(ST15_6!$E$12),"",ST15_6!$E$12) ->  | E96: =IF(ISBLANK(ST15_6!$E$13),"",ST15_6!$E$13) ->  | F96: =ST15_6!$E$14 -> 0 | G96: =ST15_6!$E$15 -> 0 | H96: =ST15_6!$E$16 -> 0 | I96: =ST15_6!$E$17 -> 0 | J96: =ST15_6!$E$8 -> ST15_6 | K96: =ST15_6!$B$4 -> Bulk Fill | L96: =ST15_6!$G$2 -> 0 | M96: =ST15_6!$E$91 -> $/Lm | N96: =ST15_6!$G$3 -> 0 | O96: =ST15_6!$G$4 -> 0 | P96: ST15_6 | Q96: =IF(AND(Menu!$E$38=Yes,Menu!$F$38>=ABS(RIGHT(P96,1))),1,0) -> 0
B97: =IF(ISBLANK(ST16_1!$E$10),"",ST16_1!$E$10) -> RDS003819 | C97: =IF(ISBLANK(ST16_1!$E$11),"",ST16_1!$E$11) -> Ballan-Egerton Road | D97: =IF(ISBLANK(ST16_1!$E$12),"",ST16_1!$E$12) ->  | E97: =IF(ISBLANK(ST16_1!$E$13),"",ST16_1!$E$13) ->  | F97: =ST16_1!$E$14 -> 0 | G97: =ST16_1!$E$15 -> 0 | H97: =ST16_1!$E$16 -> 0 | I97: =ST16_1!$E$17 -> 0 | J97: =ST16_1!$E$8 -> ST16_1 | K97: =ST16_1!$B$4 -> Rock Protection | L97: =ST16_1!$G$2 -> 0 | M97: =ST16_1!$E$91 -> $/m3 | N97: =ST16_1!$G$3 -> 0 | O97: =ST16_1!$G$4 -> 0 | P97: ST16_1 | Q97: =IF(AND(Menu!$E$39=Yes,Menu!$F$39>=ABS(RIGHT(P97,1))),1,0) -> 0
B98: =IF(ISBLANK(ST16_2!$E$10),"",ST16_2!$E$10) -> RDS003819 | C98: =IF(ISBLANK(ST16_2!$E$11),"",ST16_2!$E$11) -> Ballan-Egerton Road | D98: =IF(ISBLANK(ST16_2!$E$12),"",ST16_2!$E$12) ->  | E98: =IF(ISBLANK(ST16_2!$E$13),"",ST16_2!$E$13) ->  | F98: =ST16_2!$E$14 -> 0 | G98: =ST16_2!$E$15 -> 0 | H98: =ST16_2!$E$16 -> 0 | I98: =ST16_2!$E$17 -> 0 | J98: =ST16_2!$E$8 -> ST16_2 | K98: =ST16_2!$B$4 -> Rock Protection | L98: =ST16_2!$G$2 -> 0 | M98: =ST16_2!$E$91 -> $/m3 | N98: =ST16_2!$G$3 -> 0 | O98: =ST16_2!$G$4 -> 0 | P98: ST16_2 | Q98: =IF(AND(Menu!$E$39=Yes,Menu!$F$39>=ABS(RIGHT(P98,1))),1,0) -> 0
B99: =IF(ISBLANK(ST16_3!$E$10),"",ST16_3!$E$10) -> RDS003819 | C99: =IF(ISBLANK(ST16_3!$E$11),"",ST16_3!$E$11) -> Ballan-Egerton Road | D99: =IF(ISBLANK(ST16_3!$E$12),"",ST16_3!$E$12) ->  | E99: =IF(ISBLANK(ST16_3!$E$13),"",ST16_3!$E$13) ->  | F99: =ST16_3!$E$14 -> 0 | G99: =ST16_3!$E$15 -> 0 | H99: =ST16_3!$E$16 -> 0 | I99: =ST16_3!$E$17 -> 0 | J99: =ST16_3!$E$8 -> ST16_3 | K99: =ST16_3!$B$4 -> Rock Protection | L99: =ST16_3!$G$2 -> 0 | M99: =ST16_3!$E$91 -> $/m3 | N99: =ST16_3!$G$3 -> 0 | O99: =ST16_3!$G$4 -> 0 | P99: ST16_3 | Q99: =IF(AND(Menu!$E$39=Yes,Menu!$F$39>=ABS(RIGHT(P99,1))),1,0) -> 0
B100: =IF(ISBLANK(ST16_4!$E$10),"",ST16_4!$E$10) -> RDS003819 | C100: =IF(ISBLANK(ST16_4!$E$11),"",ST16_4!$E$11) -> Ballan-Egerton Road | D100: =IF(ISBLANK(ST16_4!$E$12),"",ST16_4!$E$12) ->  | E100: =IF(ISBLANK(ST16_4!$E$13),"",ST16_4!$E$13) ->  | F100: =ST16_4!$E$14 -> 0 | G100: =ST16_4!$E$15 -> 0 | H100: =ST16_4!$E$16 -> 0 | I100: =ST16_4!$E$17 -> 0 | J100: =ST16_4!$E$8 -> ST16_4 | K100: =ST16_4!$B$4 -> Rock Protection | L100: =ST16_4!$G$2 -> 0 | M100: =ST16_4!$E$91 -> $/m3 | N100: =ST16_4!$G$3 -> 0 | O100: =ST16_4!$G$4 -> 0 | P100: ST16_4 | Q100: =IF(AND(Menu!$E$39=Yes,Menu!$F$39>=ABS(RIGHT(P100,1))),1,0) -> 0
B101: =IF(ISBLANK(ST16_5!$E$10),"",ST16_5!$E$10) -> RDS003819 | C101: =IF(ISBLANK(ST16_5!$E$11),"",ST16_5!$E$11) -> Ballan-Egerton Road | D101: =IF(ISBLANK(ST16_5!$E$12),"",ST16_5!$E$12) ->  | E101: =IF(ISBLANK(ST16_5!$E$13),"",ST16_5!$E$13) ->  | F101: =ST16_5!$E$14 -> 0 | G101: =ST16_5!$E$15 -> 0 | H101: =ST16_5!$E$16 -> 0 | I101: =ST16_5!$E$17 -> 0 | J101: =ST16_5!$E$8 -> ST16_5 | K101: =ST16_5!$B$4 -> Rock Protection | L101: =ST16_5!$G$2 -> 0 | M101: =ST16_5!$E$91 -> $/m3 | N101: =ST16_5!$G$3 -> 0 | O101: =ST16_5!$G$4 -> 0 | P101: ST16_5 | Q101: =IF(AND(Menu!$E$39=Yes,Menu!$F$39>=ABS(RIGHT(P101,1))),1,0) -> 0
B102: =IF(ISBLANK(ST16_6!$E$10),"",ST16_6!$E$10) -> RDS003819 | C102: =IF(ISBLANK(ST16_6!$E$11),"",ST16_6!$E$11) -> Ballan-Egerton Road | D102: =IF(ISBLANK(ST16_6!$E$12),"",ST16_6!$E$12) ->  | E102: =IF(ISBLANK(ST16_6!$E$13),"",ST16_6!$E$13) ->  | F102: =ST16_6!$E$14 -> 0 | G102: =ST16_6!$E$15 -> 0 | H102: =ST16_6!$E$16 -> 0 | I102: =ST16_6!$E$17 -> 0 | J102: =ST16_6!$E$8 -> ST16_6 | K102: =ST16_6!$B$4 -> Rock Protection | L102: =ST16_6!$G$2 -> 0 | M102: =ST16_6!$E$91 -> $/m3 | N102: =ST16_6!$G$3 -> 0 | O102: =ST16_6!$G$4 -> 0 | P102: ST16_6 | Q102: =IF(AND(Menu!$E$39=Yes,Menu!$F$39>=ABS(RIGHT(P102,1))),1,0) -> 0
B103: =IF(ISBLANK(ST17_1!$E$10),"",ST17_1!$E$10) -> RDS003819 | C103: =IF(ISBLANK(ST17_1!$E$11),"",ST17_1!$E$11) -> Ballan-Egerton Road | D103: =IF(ISBLANK(ST17_1!$E$12),"",ST17_1!$E$12) ->  | E103: =IF(ISBLANK(ST17_1!$E$13),"",ST17_1!$E$13) ->  | F103: =ST17_1!$E$14 -> 0 | G103: =ST17_1!$E$15 -> 0 | H103: =ST17_1!$E$16 -> 0 | I103: =ST17_1!$E$17 -> 0 | J103: =ST17_1!$E$8 -> ST17_1 | K103: =ST17_1!$B$4 -> Reshape Table Drain | L103: =ST17_1!$G$2 -> 0 | M103: =ST17_1!$E$86 -> $/Lm | N103: =ST17_1!$G$3 -> 0 | O103: =ST17_1!$G$4 -> 0 | P103: ST17_1 | Q103: =IF(AND(Menu!$E$40=Yes,Menu!$F$40>=ABS(RIGHT(P103,1))),1,0) -> 0
B104: =IF(ISBLANK(ST17_2!$E$10),"",ST17_2!$E$10) -> RDS003819 | C104: =IF(ISBLANK(ST17_2!$E$11),"",ST17_2!$E$11) -> Ballan-Egerton Road | D104: =IF(ISBLANK(ST17_2!$E$12),"",ST17_2!$E$12) ->  | E104: =IF(ISBLANK(ST17_2!$E$13),"",ST17_2!$E$13) ->  | F104: =ST17_2!$E$14 -> 0 | G104: =ST17_2!$E$15 -> 0 | H104: =ST17_2!$E$16 -> 0 | I104: =ST17_2!$E$17 -> 0 | J104: =ST17_2!$E$8 -> ST17_2 | K104: =ST17_2!$B$4 -> Reshape Table Drain | L104: =ST17_2!$G$2 -> 0 | M104: =ST17_2!$E$86 -> $/Lm | N104: =ST17_2!$G$3 -> 0 | O104: =ST17_2!$G$4 -> 0 | P104: ST17_2 | Q104: =IF(AND(Menu!$E$40=Yes,Menu!$F$40>=ABS(RIGHT(P104,1))),1,0) -> 0
B105: =IF(ISBLANK(ST17_3!$E$10),"",ST17_3!$E$10) -> RDS003819 | C105: =IF(ISBLANK(ST17_3!$E$11),"",ST17_3!$E$11) -> Ballan-Egerton Road | D105: =IF(ISBLANK(ST17_3!$E$12),"",ST17_3!$E$12) ->  | E105: =IF(ISBLANK(ST17_3!$E$13),"",ST17_3!$E$13) ->  | F105: =ST17_3!$E$14 -> 0 | G105: =ST17_3!$E$15 -> 0 | H105: =ST17_3!$E$16 -> 0 | I105: =ST17_3!$E$17 -> 0 | J105: =ST17_3!$E$8 -> ST17_3 | K105: =ST17_3!$B$4 -> Reshape Table Drain | L105: =ST17_3!$G$2 -> 0 | M105: =ST17_3!$E$86 -> $/Lm | N105: =ST17_3!$G$3 -> 0 | O105: =ST17_3!$G$4 -> 0 | P105: ST17_3 | Q105: =IF(AND(Menu!$E$40=Yes,Menu!$F$40>=ABS(RIGHT(P105,1))),1,0) -> 0
B106: =IF(ISBLANK(ST17_4!$E$10),"",ST17_4!$E$10) -> RDS003819 | C106: =IF(ISBLANK(ST17_4!$E$11),"",ST17_4!$E$11) -> Ballan-Egerton Road | D106: =IF(ISBLANK(ST17_4!$E$12),"",ST17_4!$E$12) ->  | E106: =IF(ISBLANK(ST17_4!$E$13),"",ST17_4!$E$13) ->  | F106: =ST17_4!$E$14 -> 0 | G106: =ST17_4!$E$15 -> 0 | H106: =ST17_4!$E$16 -> 0 | I106: =ST17_4!$E$17 -> 0 | J106: =ST17_4!$E$8 -> ST17_4 | K106: =ST17_4!$B$4 -> Reshape Table Drain | L106: =ST17_4!$G$2 -> 0 | M106: =ST17_4!$E$86 -> $/Lm | N106: =ST17_4!$G$3 -> 0 | O106: =ST17_4!$G$4 -> 0 | P106: ST17_4 | Q106: =IF(AND(Menu!$E$40=Yes,Menu!$F$40>=ABS(RIGHT(P106,1))),1,0) -> 0
B107: =IF(ISBLANK(ST17_5!$E$10),"",ST17_5!$E$10) -> RDS003819 | C107: =IF(ISBLANK(ST17_5!$E$11),"",ST17_5!$E$11) -> Ballan-Egerton Road | D107: =IF(ISBLANK(ST17_5!$E$12),"",ST17_5!$E$12) ->  | E107: =IF(ISBLANK(ST17_5!$E$13),"",ST17_5!$E$13) ->  | F107: =ST17_5!$E$14 -> 0 | G107: =ST17_5!$E$15 -> 0 | H107: =ST17_5!$E$16 -> 0 | I107: =ST17_5!$E$17 -> 0 | J107: =ST17_5!$E$8 -> ST17_5 | K107: =ST17_5!$B$4 -> Reshape Table Drain | L107: =ST17_5!$G$2 -> 0 | M107: =ST17_5!$E$86 -> $/Lm | N107: =ST17_5!$G$3 -> 0 | O107: =ST17_5!$G$4 -> 0 | P107: ST17_5 | Q107: =IF(AND(Menu!$E$40=Yes,Menu!$F$40>=ABS(RIGHT(P107,1))),1,0) -> 0
B108: =IF(ISBLANK(ST17_6!$E$10),"",ST17_6!$E$10) -> RDS003819 | C108: =IF(ISBLANK(ST17_6!$E$11),"",ST17_6!$E$11) -> Ballan-Egerton Road | D108: =IF(ISBLANK(ST17_6!$E$12),"",ST17_6!$E$12) ->  | E108: =IF(ISBLANK(ST17_6!$E$13),"",ST17_6!$E$13) ->  | F108: =ST17_6!$E$14 -> 0 | G108: =ST17_6!$E$15 -> 0 | H108: =ST17_6!$E$16 -> 0 | I108: =ST17_6!$E$17 -> 0 | J108: =ST17_6!$E$8 -> ST17_6 | K108: =ST17_6!$B$4 -> Reshape Table Drain | L108: =ST17_6!$G$2 -> 0 | M108: =ST17_6!$E$86 -> $/Lm | N108: =ST17_6!$G$3 -> 0 | O108: =ST17_6!$G$4 -> 0 | P108: ST17_6 | Q108: =IF(AND(Menu!$E$40=Yes,Menu!$F$40>=ABS(RIGHT(P108,1))),1,0) -> 0
B109: =IF(ISBLANK(ST18_1!$E$10),"",ST18_1!$E$10) -> RDS003819 | C109: =IF(ISBLANK(ST18_1!$E$11),"",ST18_1!$E$11) -> Ballan-Egerton Road | D109: =IF(ISBLANK(ST18_1!$E$12),"",ST18_1!$E$12) ->  | E109: =IF(ISBLANK(ST18_1!$E$13),"",ST18_1!$E$13) ->  | F109: =ST18_1!$E$14 -> 0 | G109: =ST18_1!$E$15 -> 0 | H109: =ST18_1!$E$16 -> 0 | I109: =ST18_1!$E$17 -> 0 | J109: =ST18_1!$E$8 -> ST18_1 | K109: =ST18_1!$B$4 -> Replace Road Signage | L109: =ST18_1!$G$2 -> 0 | M109: =ST18_1!$E$87 -> $/Sign | N109: =ST18_1!$G$3 -> 0 | O109: =ST18_1!$G$4 -> 0 | P109: ST18_1 | Q109: =IF(AND(Menu!$E$41=Yes,Menu!$F$41>=ABS(RIGHT(P109,1))),1,0) -> 0
B110: =IF(ISBLANK(ST18_2!$E$10),"",ST18_2!$E$10) -> RDS003819 | C110: =IF(ISBLANK(ST18_2!$E$11),"",ST18_2!$E$11) -> Ballan-Egerton Road | D110: =IF(ISBLANK(ST18_2!$E$12),"",ST18_2!$E$12) ->  | E110: =IF(ISBLANK(ST18_2!$E$13),"",ST18_2!$E$13) ->  | F110: =ST18_2!$E$14 -> 0 | G110: =ST18_2!$E$15 -> 0 | H110: =ST18_2!$E$16 -> 0 | I110: =ST18_2!$E$17 -> 0 | J110: =ST18_2!$E$8 -> ST18_2 | K110: =ST18_2!$B$4 -> Replace Road Signage | L110: =ST18_2!$G$2 -> 0 | M110: =ST18_2!$E$87 -> $/Sign | N110: =ST18_2!$G$3 -> 0 | O110: =ST18_2!$G$4 -> 0 | P110: ST18_2 | Q110: =IF(AND(Menu!$E$41=Yes,Menu!$F$41>=ABS(RIGHT(P110,1))),1,0) -> 0
B111: =IF(ISBLANK(ST18_3!$E$10),"",ST18_3!$E$10) -> RDS003819 | C111: =IF(ISBLANK(ST18_3!$E$11),"",ST18_3!$E$11) -> Ballan-Egerton Road | D111: =IF(ISBLANK(ST18_3!$E$12),"",ST18_3!$E$12) ->  | E111: =IF(ISBLANK(ST18_3!$E$13),"",ST18_3!$E$13) ->  | F111: =ST18_3!$E$14 -> 0 | G111: =ST18_3!$E$15 -> 0 | H111: =ST18_3!$E$16 -> 0 | I111: =ST18_3!$E$17 -> 0 | J111: =ST18_3!$E$8 -> ST18_3 | K111: =ST18_3!$B$4 -> Replace Road Signage | L111: =ST18_3!$G$2 -> 0 | M111: =ST18_3!$E$87 -> $/Sign | N111: =ST18_3!$G$3 -> 0 | O111: =ST18_3!$G$4 -> 0 | P111: ST18_3 | Q111: =IF(AND(Menu!$E$41=Yes,Menu!$F$41>=ABS(RIGHT(P111,1))),1,0) -> 0
B112: =IF(ISBLANK(ST18_4!$E$10),"",ST18_4!$E$10) -> RDS003819 | C112: =IF(ISBLANK(ST18_4!$E$11),"",ST18_4!$E$11) -> Ballan-Egerton Road | D112: =IF(ISBLANK(ST18_4!$E$12),"",ST18_4!$E$12) ->  | E112: =IF(ISBLANK(ST18_4!$E$13),"",ST18_4!$E$13) ->  | F112: =ST18_4!$E$14 -> 0 | G112: =ST18_4!$E$15 -> 0 | H112: =ST18_4!$E$16 -> 0 | I112: =ST18_4!$E$17 -> 0 | J112: =ST18_4!$E$8 -> ST18_4 | K112: =ST18_4!$B$4 -> Replace Road Signage | L112: =ST18_4!$G$2 -> 0 | M112: =ST18_4!$E$87 -> $/Sign | N112: =ST18_4!$G$3 -> 0 | O112: =ST18_4!$G$4 -> 0 | P112: ST18_4 | Q112: =IF(AND(Menu!$E$41=Yes,Menu!$F$41>=ABS(RIGHT(P112,1))),1,0) -> 0
B113: =IF(ISBLANK(ST18_5!$E$10),"",ST18_5!$E$10) -> RDS003819 | C113: =IF(ISBLANK(ST18_5!$E$11),"",ST18_5!$E$11) -> Ballan-Egerton Road | D113: =IF(ISBLANK(ST18_5!$E$12),"",ST18_5!$E$12) ->  | E113: =IF(ISBLANK(ST18_5!$E$13),"",ST18_5!$E$13) ->  | F113: =ST18_5!$E$14 -> 0 | G113: =ST18_5!$E$15 -> 0 | H113: =ST18_5!$E$16 -> 0 | I113: =ST18_5!$E$17 -> 0 | J113: =ST18_5!$E$8 -> ST18_5 | K113: =ST18_5!$B$4 -> Replace Road Signage | L113: =ST18_5!$G$2 -> 0 | M113: =ST18_5!$E$87 -> $/Sign | N113: =ST18_5!$G$3 -> 0 | O113: =ST18_5!$G$4 -> 0 | P113: ST18_5 | Q113: =IF(AND(Menu!$E$41=Yes,Menu!$F$41>=ABS(RIGHT(P113,1))),1,0) -> 0
B114: =IF(ISBLANK(ST18_6!$E$10),"",ST18_6!$E$10) -> RDS003819 | C114: =IF(ISBLANK(ST18_6!$E$11),"",ST18_6!$E$11) -> Ballan-Egerton Road | D114: =IF(ISBLANK(ST18_6!$E$12),"",ST18_6!$E$12) ->  | E114: =IF(ISBLANK(ST18_6!$E$13),"",ST18_6!$E$13) ->  | F114: =ST18_6!$E$14 -> 0 | G114: =ST18_6!$E$15 -> 0 | H114: =ST18_6!$E$16 -> 0 | I114: =ST18_6!$E$17 -> 0 | J114: =ST18_6!$E$8 -> ST18_6 | K114: =ST18_6!$B$4 -> Replace Road Signage | L114: =ST18_6!$G$2 -> 0 | M114: =ST18_6!$E$87 -> $/Sign | N114: =ST18_6!$G$3 -> 0 | O114: =ST18_6!$G$4 -> 0 | P114: ST18_6 | Q114: =IF(AND(Menu!$E$41=Yes,Menu!$F$41>=ABS(RIGHT(P114,1))),1,0) -> 0
B115: =IF(ISBLANK(ST19_1!$E$10),"",ST19_1!$E$10) -> RDS003819 | C115: =IF(ISBLANK(ST19_1!$E$11),"",ST19_1!$E$11) -> Ballan-Egerton Road | D115: =IF(ISBLANK(ST19_1!$E$12),"",ST19_1!$E$12) ->  | E115: =IF(ISBLANK(ST19_1!$E$13),"",ST19_1!$E$13) ->  | F115: =ST19_1!$E$14 -> 0 | G115: =ST19_1!$E$15 -> 0 | H115: =ST19_1!$E$16 -> 0 | I115: =ST19_1!$E$17 -> 0 | J115: =ST19_1!$E$8 -> ST19_1 | K115: =ST19_1!$B$4 -> Replace Roadside Barriers | L115: =ST19_1!$G$2 -> 0 | M115: =ST19_1!$E$74 -> $/Lm | N115: =ST19_1!$G$3 -> 0 | O115: =ST19_1!$G$4 -> 0 | P115: ST19_1 | Q115: =IF(AND(Menu!$E$42=Yes,Menu!$F$42>=ABS(RIGHT(P115,1))),1,0) -> 0
B116: =IF(ISBLANK(ST19_2!$E$10),"",ST19_2!$E$10) -> RDS003819 | C116: =IF(ISBLANK(ST19_2!$E$11),"",ST19_2!$E$11) -> Ballan-Egerton Road | D116: =IF(ISBLANK(ST19_2!$E$12),"",ST19_2!$E$12) ->  | E116: =IF(ISBLANK(ST19_2!$E$13),"",ST19_2!$E$13) ->  | F116: =ST19_2!$E$14 -> 0 | G116: =ST19_2!$E$15 -> 0 | H116: =ST19_2!$E$16 -> 0 | I116: =ST19_2!$E$17 -> 0 | J116: =ST19_2!$E$8 -> ST19_2 | K116: =ST19_2!$B$4 -> Replace Roadside Barriers | L116: =ST19_2!$G$2 -> 0 | M116: =ST19_2!$E$74 -> $/Lm | N116: =ST19_2!$G$3 -> 0 | O116: =ST19_2!$G$4 -> 0 | P116: ST19_2 | Q116: =IF(AND(Menu!$E$42=Yes,Menu!$F$42>=ABS(RIGHT(P116,1))),1,0) -> 0
B117: =IF(ISBLANK(ST19_3!$E$10),"",ST19_3!$E$10) -> RDS003819 | C117: =IF(ISBLANK(ST19_3!$E$11),"",ST19_3!$E$11) -> Ballan-Egerton Road | D117: =IF(ISBLANK(ST19_3!$E$12),"",ST19_3!$E$12) ->  | E117: =IF(ISBLANK(ST19_3!$E$13),"",ST19_3!$E$13) ->  | F117: =ST19_3!$E$14 -> 0 | G117: =ST19_3!$E$15 -> 0 | H117: =ST19_3!$E$16 -> 0 | I117: =ST19_3!$E$17 -> 0 | J117: =ST19_3!$E$8 -> ST19_3 | K117: =ST19_3!$B$4 -> Replace Roadside Barriers | L117: =ST19_3!$G$2 -> 0 | M117: =ST19_3!$E$74 -> $/Lm | N117: =ST19_3!$G$3 -> 0 | O117: =ST19_3!$G$4 -> 0 | P117: ST19_3 | Q117: =IF(AND(Menu!$E$42=Yes,Menu!$F$42>=ABS(RIGHT(P117,1))),1,0) -> 0
B118: =IF(ISBLANK(ST19_4!$E$10),"",ST19_4!$E$10) -> RDS003819 | C118: =IF(ISBLANK(ST19_4!$E$11),"",ST19_4!$E$11) -> Ballan-Egerton Road | D118: =IF(ISBLANK(ST19_4!$E$12),"",ST19_4!$E$12) ->  | E118: =IF(ISBLANK(ST19_4!$E$13),"",ST19_4!$E$13) ->  | F118: =ST19_4!$E$14 -> 0 | G118: =ST19_4!$E$15 -> 0 | H118: =ST19_4!$E$16 -> 0 | I118: =ST19_4!$E$17 -> 0 | J118: =ST19_4!$E$8 -> ST19_4 | K118: =ST19_4!$B$4 -> Replace Roadside Barriers | L118: =ST19_4!$G$2 -> 0 | M118: =ST19_4!$E$74 -> $/Lm | N118: =ST19_4!$G$3 -> 0 | O118: =ST19_4!$G$4 -> 0 | P118: ST19_4 | Q118: =IF(AND(Menu!$E$42=Yes,Menu!$F$42>=ABS(RIGHT(P118,1))),1,0) -> 0
B119: =IF(ISBLANK(ST19_5!$E$10),"",ST19_5!$E$10) -> RDS003819 | C119: =IF(ISBLANK(ST19_5!$E$11),"",ST19_5!$E$11) -> Ballan-Egerton Road | D119: =IF(ISBLANK(ST19_5!$E$12),"",ST19_5!$E$12) ->  | E119: =IF(ISBLANK(ST19_5!$E$13),"",ST19_5!$E$13) ->  | F119: =ST19_5!$E$14 -> 0 | G119: =ST19_5!$E$15 -> 0 | H119: =ST19_5!$E$16 -> 0 | I119: =ST19_5!$E$17 -> 0 | J119: =ST19_5!$E$8 -> ST19_5 | K119: =ST19_5!$B$4 -> Replace Roadside Barriers | L119: =ST19_5!$G$2 -> 0 | M119: =ST19_5!$E$74 -> $/Lm | N119: =ST19_5!$G$3 -> 0 | O119: =ST19_5!$G$4 -> 0 | P119: ST19_5 | Q119: =IF(AND(Menu!$E$42=Yes,Menu!$F$42>=ABS(RIGHT(P119,1))),1,0) -> 0
B120: =IF(ISBLANK(ST19_6!$E$10),"",ST19_6!$E$10) -> RDS003819 | C120: =IF(ISBLANK(ST19_6!$E$11),"",ST19_6!$E$11) -> Ballan-Egerton Road | D120: =IF(ISBLANK(ST19_6!$E$12),"",ST19_6!$E$12) ->  | E120: =IF(ISBLANK(ST19_6!$E$13),"",ST19_6!$E$13) ->  | F120: =ST19_6!$E$14 -> 0 | G120: =ST19_6!$E$15 -> 0 | H120: =ST19_6!$E$16 -> 0 | I120: =ST19_6!$E$17 -> 0 | J120: =ST19_6!$E$8 -> ST19_6 | K120: =ST19_6!$B$4 -> Replace Roadside Barriers | L120: =ST19_6!$G$2 -> 0 | M120: =ST19_6!$E$74 -> $/Lm | N120: =ST19_6!$G$3 -> 0 | O120: =ST19_6!$G$4 -> 0 | P120: ST19_6 | Q120: =IF(AND(Menu!$E$42=Yes,Menu!$F$42>=ABS(RIGHT(P120,1))),1,0) -> 0
B121: =IF(ISBLANK(ST20_1!$E$10),"",ST20_1!$E$10) -> RDS003819 | C121: =IF(ISBLANK(ST20_1!$E$11),"",ST20_1!$E$11) -> Ballan-Egerton Road | D121: =IF(ISBLANK(ST20_1!$E$12),"",ST20_1!$E$12) ->  | E121: =IF(ISBLANK(ST20_1!$E$13),"",ST20_1!$E$13) ->  | F121: =ST20_1!$E$14 -> 0 | G121: =ST20_1!$E$15 -> 0 | H121: =ST20_1!$E$16 -> 0 | I121: =ST20_1!$E$17 -> 0 | J121: =ST20_1!$E$8 -> ST20_1 | K121: =ST20_1!$B$4 -> Replace Guide Posts Or Markers | L121: =ST20_1!$G$2 -> 0 | M121: =ST20_1!$E$49 -> $/post | N121: =ST20_1!$G$3 -> 0 | O121: =ST20_1!$G$4 -> 0 | P121: ST20_1 | Q121: =IF(AND(Menu!$E$43=Yes,Menu!$F$43>=ABS(RIGHT(P121,1))),1,0) -> 0
B122: =IF(ISBLANK(ST20_2!$E$10),"",ST20_2!$E$10) -> RDS003819 | C122: =IF(ISBLANK(ST20_2!$E$11),"",ST20_2!$E$11) -> Ballan-Egerton Road | D122: =IF(ISBLANK(ST20_2!$E$12),"",ST20_2!$E$12) ->  | E122: =IF(ISBLANK(ST20_2!$E$13),"",ST20_2!$E$13) ->  | F122: =ST20_2!$E$14 -> 0 | G122: =ST20_2!$E$15 -> 0 | H122: =ST20_2!$E$16 -> 0 | I122: =ST20_2!$E$17 -> 0 | J122: =ST20_2!$E$8 -> ST20_2 | K122: =ST20_2!$B$4 -> Replace Guide Posts Or Markers | L122: =ST20_2!$G$2 -> 0 | M122: =ST20_2!$E$49 -> $/post | N122: =ST20_2!$G$3 -> 0 | O122: =ST20_2!$G$4 -> 0 | P122: ST20_2 | Q122: =IF(AND(Menu!$E$43=Yes,Menu!$F$43>=ABS(RIGHT(P122,1))),1,0) -> 0
B123: =IF(ISBLANK(ST20_3!$E$10),"",ST20_3!$E$10) -> RDS003819 | C123: =IF(ISBLANK(ST20_3!$E$11),"",ST20_3!$E$11) -> Ballan-Egerton Road | D123: =IF(ISBLANK(ST20_3!$E$12),"",ST20_3!$E$12) ->  | E123: =IF(ISBLANK(ST20_3!$E$13),"",ST20_3!$E$13) ->  | F123: =ST20_3!$E$14 -> 0 | G123: =ST20_3!$E$15 -> 0 | H123: =ST20_3!$E$16 -> 0 | I123: =ST20_3!$E$17 -> 0 | J123: =ST20_3!$E$8 -> ST20_3 | K123: =ST20_3!$B$4 -> Replace Guide Posts Or Markers | L123: =ST20_3!$G$2 -> 0 | M123: =ST20_3!$E$49 -> $/post | N123: =ST20_3!$G$3 -> 0 | O123: =ST20_3!$G$4 -> 0 | P123: ST20_3 | Q123: =IF(AND(Menu!$E$43=Yes,Menu!$F$43>=ABS(RIGHT(P123,1))),1,0) -> 0
B124: =IF(ISBLANK(ST20_4!$E$10),"",ST20_4!$E$10) -> RDS003819 | C124: =IF(ISBLANK(ST20_4!$E$11),"",ST20_4!$E$11) -> Ballan-Egerton Road | D124: =IF(ISBLANK(ST20_4!$E$12),"",ST20_4!$E$12) ->  | E124: =IF(ISBLANK(ST20_4!$E$13),"",ST20_4!$E$13) ->  | F124: =ST20_4!$E$14 -> 0 | G124: =ST20_4!$E$15 -> 0 | H124: =ST20_4!$E$16 -> 0 | I124: =ST20_4!$E$17 -> 0 | J124: =ST20_4!$E$8 -> ST20_4 | K124: =ST20_4!$B$4 -> Replace Guide Posts Or Markers | L124: =ST20_4!$G$2 -> 0 | M124: =ST20_4!$E$49 -> $/post | N124: =ST20_4!$G$3 -> 0 | O124: =ST20_4!$G$4 -> 0 | P124: ST20_4 | Q124: =IF(AND(Menu!$E$43=Yes,Menu!$F$43>=ABS(RIGHT(P124,1))),1,0) -> 0
B125: =IF(ISBLANK(ST20_5!$E$10),"",ST20_5!$E$10) -> RDS003819 | C125: =IF(ISBLANK(ST20_5!$E$11),"",ST20_5!$E$11) -> Ballan-Egerton Road | D125: =IF(ISBLANK(ST20_5!$E$12),"",ST20_5!$E$12) ->  | E125: =IF(ISBLANK(ST20_5!$E$13),"",ST20_5!$E$13) ->  | F125: =ST20_5!$E$14 -> 0 | G125: =ST20_5!$E$15 -> 0 | H125: =ST20_5!$E$16 -> 0 | I125: =ST20_5!$E$17 -> 0 | J125: =ST20_5!$E$8 -> ST20_5 | K125: =ST20_5!$B$4 -> Replace Guide Posts Or Markers | L125: =ST20_5!$G$2 -> 0 | M125: =ST20_5!$E$49 -> $/post | N125: =ST20_5!$G$3 -> 0 | O125: =ST20_5!$G$4 -> 0 | P125: ST20_5 | Q125: =IF(AND(Menu!$E$43=Yes,Menu!$F$43>=ABS(RIGHT(P125,1))),1,0) -> 0
B126: =IF(ISBLANK(ST20_6!$E$10),"",ST20_6!$E$10) -> RDS003819 | C126: =IF(ISBLANK(ST20_6!$E$11),"",ST20_6!$E$11) -> Ballan-Egerton Road | D126: =IF(ISBLANK(ST20_6!$E$12),"",ST20_6!$E$12) ->  | E126: =IF(ISBLANK(ST20_6!$E$13),"",ST20_6!$E$13) ->  | F126: =ST20_6!$E$14 -> 0 | G126: =ST20_6!$E$15 -> 0 | H126: =ST20_6!$E$16 -> 0 | I126: =ST20_6!$E$17 -> 0 | J126: =ST20_6!$E$8 -> ST20_6 | K126: =ST20_6!$B$4 -> Replace Guide Posts Or Markers | L126: =ST20_6!$G$2 -> 0 | M126: =ST20_6!$E$49 -> $/post | N126: =ST20_6!$G$3 -> 0 | O126: =ST20_6!$G$4 -> 0 | P126: ST20_6 | Q126: =IF(AND(Menu!$E$43=Yes,Menu!$F$43>=ABS(RIGHT(P126,1))),1,0) -> 0
B127: =IF(ISBLANK(ST21_1!$E$10),"",ST21_1!$E$10) -> RDS003819 | C127: =IF(ISBLANK(ST21_1!$E$11),"",ST21_1!$E$11) -> Ballan-Egerton Road | D127: =IF(ISBLANK(ST21_1!$E$12),"",ST21_1!$E$12) ->  | E127: =IF(ISBLANK(ST21_1!$E$13),"",ST21_1!$E$13) ->  | F127: =ST21_1!$E$14 -> 0 | G127: =ST21_1!$E$15 -> 0 | H127: =ST21_1!$E$16 -> 0 | I127: =ST21_1!$E$17 -> 0 | J127: =ST21_1!$E$8 -> ST21_1 | K127: =ST21_1!$B$4 -> Reconstruct Reinforced Concrete | L127: =ST21_1!$G$2 -> 0 | M127: =ST21_1!E$204 -> $/m3 | N127: =ST21_1!$G$3 -> 0 | O127: =ST21_1!$G$4 -> 0 | P127: ST21_1 | Q127: =IF(AND(Menu!$E$44=Yes,Menu!$F$44>=ABS(RIGHT(P127,1))),1,0) -> 0
B128: =IF(ISBLANK(ST21_2!$E$10),"",ST21_2!$E$10) -> RDS003819 | C128: =IF(ISBLANK(ST21_2!$E$11),"",ST21_2!$E$11) -> Ballan-Egerton Road | D128: =IF(ISBLANK(ST21_2!$E$12),"",ST21_2!$E$12) ->  | E128: =IF(ISBLANK(ST21_2!$E$13),"",ST21_2!$E$13) ->  | F128: =ST21_2!$E$14 -> 0 | G128: =ST21_2!$E$15 -> 0 | H128: =ST21_2!$E$16 -> 0 | I128: =ST21_2!$E$17 -> 0 | J128: =ST21_2!$E$8 -> ST21_2 | K128: =ST21_2!$B$4 -> Reconstruct Reinforced Concrete | L128: =ST21_2!$G$2 -> 0 | M128: =ST21_2!E$204 -> $/m3 | N128: =ST21_2!$G$3 -> 0 | O128: =ST21_2!$G$4 -> 0 | P128: ST21_2 | Q128: =IF(AND(Menu!$E$44=Yes,Menu!$F$44>=ABS(RIGHT(P128,1))),1,0) -> 0
B129: =IF(ISBLANK(ST21_3!$E$10),"",ST21_3!$E$10) -> RDS003819 | C129: =IF(ISBLANK(ST21_3!$E$11),"",ST21_3!$E$11) -> Ballan-Egerton Road | D129: =IF(ISBLANK(ST21_3!$E$12),"",ST21_3!$E$12) ->  | E129: =IF(ISBLANK(ST21_3!$E$13),"",ST21_3!$E$13) ->  | F129: =ST21_3!$E$14 -> 0 | G129: =ST21_3!$E$15 -> 0 | H129: =ST21_3!$E$16 -> 0 | I129: =ST21_3!$E$17 -> 0 | J129: =ST21_3!$E$8 -> ST21_3 | K129: =ST21_3!$B$4 -> Reconstruct Reinforced Concrete | L129: =ST21_3!$G$2 -> 0 | M129: =ST21_3!E$204 -> $/m3 | N129: =ST21_3!$G$3 -> 0 | O129: =ST21_3!$G$4 -> 0 | P129: ST21_3 | Q129: =IF(AND(Menu!$E$44=Yes,Menu!$F$44>=ABS(RIGHT(P129,1))),1,0) -> 0
B130: =IF(ISBLANK(ST21_4!$E$10),"",ST21_4!$E$10) -> RDS003819 | C130: =IF(ISBLANK(ST21_4!$E$11),"",ST21_4!$E$11) -> Ballan-Egerton Road | D130: =IF(ISBLANK(ST21_4!$E$12),"",ST21_4!$E$12) ->  | E130: =IF(ISBLANK(ST21_4!$E$13),"",ST21_4!$E$13) ->  | F130: =ST21_4!$E$14 -> 0 | G130: =ST21_4!$E$15 -> 0 | H130: =ST21_4!$E$16 -> 0 | I130: =ST21_4!$E$17 -> 0 | J130: =ST21_4!$E$8 -> ST21_4 | K130: =ST21_4!$B$4 -> Reconstruct Reinforced Concrete | L130: =ST21_4!$G$2 -> 0 | M130: =ST21_4!E$204 -> $/m3 | N130: =ST21_4!$G$3 -> 0 | O130: =ST21_4!$G$4 -> 0 | P130: ST21_4 | Q130: =IF(AND(Menu!$E$44=Yes,Menu!$F$44>=ABS(RIGHT(P130,1))),1,0) -> 0
B131: =IF(ISBLANK(ST21_5!$E$10),"",ST21_5!$E$10) -> RDS003819 | C131: =IF(ISBLANK(ST21_5!$E$11),"",ST21_5!$E$11) -> Ballan-Egerton Road | D131: =IF(ISBLANK(ST21_5!$E$12),"",ST21_5!$E$12) ->  | E131: =IF(ISBLANK(ST21_5!$E$13),"",ST21_5!$E$13) ->  | F131: =ST21_5!$E$14 -> 0 | G131: =ST21_5!$E$15 -> 0 | H131: =ST21_5!$E$16 -> 0 | I131: =ST21_5!$E$17 -> 0 | J131: =ST21_5!$E$8 -> ST21_5 | K131: =ST21_5!$B$4 -> Reconstruct Reinforced Concrete | L131: =ST21_5!$G$2 -> 0 | M131: =ST21_5!E$204 -> $/m3 | N131: =ST21_5!$G$3 -> 0 | O131: =ST21_5!$G$4 -> 0 | P131: ST21_5 | Q131: =IF(AND(Menu!$E$44=Yes,Menu!$F$44>=ABS(RIGHT(P131,1))),1,0) -> 0
B132: =IF(ISBLANK(ST21_6!$E$10),"",ST21_6!$E$10) -> RDS003819 | C132: =IF(ISBLANK(ST21_6!$E$11),"",ST21_6!$E$11) -> Ballan-Egerton Road | D132: =IF(ISBLANK(ST21_6!$E$12),"",ST21_6!$E$12) ->  | E132: =IF(ISBLANK(ST21_6!$E$13),"",ST21_6!$E$13) ->  | F132: =ST21_6!$E$14 -> 0 | G132: =ST21_6!$E$15 -> 0 | H132: =ST21_6!$E$16 -> 0 | I132: =ST21_6!$E$17 -> 0 | J132: =ST21_6!$E$8 -> ST21_6 | K132: =ST21_6!$B$4 -> Reconstruct Reinforced Concrete | L132: =ST21_6!$G$2 -> 0 | M132: =ST21_6!E$204 -> $/m3 | N132: =ST21_6!$G$3 -> 0 | O132: =ST21_6!$G$4 -> 0 | P132: ST21_6 | Q132: =IF(AND(Menu!$E$44=Yes,Menu!$F$44>=ABS(RIGHT(P132,1))),1,0) -> 0
B133: =IF(ISBLANK(ST22_1!$E$10),"",ST22_1!$E$10) -> RDS003819 | C133: =IF(ISBLANK(ST22_1!$E$11),"",ST22_1!$E$11) -> Ballan-Egerton Road | D133: =IF(ISBLANK(ST22_1!$E$12),"",ST22_1!$E$12) ->  | E133: =IF(ISBLANK(ST22_1!$E$13),"",ST22_1!$E$13) ->  | F133: =ST22_1!$E$14 -> 0 | G133: =ST22_1!$E$15 -> 0 | H133: =ST22_1!$E$16 -> 0 | I133: =ST22_1!$E$17 -> 0 | J133: =ST22_1!$E$8 -> ST22_1 | K133: =ST22_1!$B$4 -> Repair Drainage Structure – Excavate, Repair And Reinstate | L133: =ST22_1!$G$2 -> 0 | M133: =ST22_1!$E$93 -> $/Lm | N133: =ST22_1!$G$3 -> 0 | O133: =ST22_1!$G$4 -> 180 | P133: ST22_1 | Q133: =IF(AND(Menu!$E$45=Yes,Menu!$F$45>=ABS(RIGHT(P133,1))),1,0) -> 0
B134: =IF(ISBLANK(ST22_2!$E$10),"",ST22_2!$E$10) -> RDS003819 | C134: =IF(ISBLANK(ST22_2!$E$11),"",ST22_2!$E$11) -> Ballan-Egerton Road | D134: =IF(ISBLANK(ST22_2!$E$12),"",ST22_2!$E$12) ->  | E134: =IF(ISBLANK(ST22_2!$E$13),"",ST22_2!$E$13) ->  | F134: =ST22_2!$E$14 -> 0 | G134: =ST22_2!$E$15 -> 0 | H134: =ST22_2!$E$16 -> 0 | I134: =ST22_2!$E$17 -> 0 | J134: =ST22_2!$E$8 -> ST22_2 | K134: =ST22_2!$B$4 -> Repair Drainage Structure – Excavate, Repair And Reinstate | L134: =ST22_2!$G$2 -> 0 | M134: =ST22_2!$E$93 -> $/Lm | N134: =ST22_2!$G$3 -> 0 | O134: =ST22_2!$G$4 -> 0 | P134: ST22_2 | Q134: =IF(AND(Menu!$E$45=Yes,Menu!$F$45>=ABS(RIGHT(P134,1))),1,0) -> 0
B135: =IF(ISBLANK(ST22_3!$E$10),"",ST22_3!$E$10) -> RDS003819 | C135: =IF(ISBLANK(ST22_3!$E$11),"",ST22_3!$E$11) -> Ballan-Egerton Road | D135: =IF(ISBLANK(ST22_3!$E$12),"",ST22_3!$E$12) ->  | E135: =IF(ISBLANK(ST22_3!$E$13),"",ST22_3!$E$13) ->  | F135: =ST22_3!$E$14 -> 0 | G135: =ST22_3!$E$15 -> 0 | H135: =ST22_3!$E$16 -> 0 | I135: =ST22_3!$E$17 -> 0 | J135: =ST22_3!$E$8 -> ST22_3 | K135: =ST22_3!$B$4 -> Repair Drainage Structure – Excavate, Repair And Reinstate | L135: =ST22_3!$G$2 -> 0 | M135: =ST22_3!$E$93 -> $/Lm | N135: =ST22_3!$G$3 -> 0 | O135: =ST22_3!$G$4 -> 0 | P135: ST22_3 | Q135: =IF(AND(Menu!$E$45=Yes,Menu!$F$45>=ABS(RIGHT(P135,1))),1,0) -> 0
B136: =IF(ISBLANK(ST22_4!$E$10),"",ST22_4!$E$10) -> RDS003819 | C136: =IF(ISBLANK(ST22_4!$E$11),"",ST22_4!$E$11) -> Ballan-Egerton Road | D136: =IF(ISBLANK(ST22_4!$E$12),"",ST22_4!$E$12) ->  | E136: =IF(ISBLANK(ST22_4!$E$13),"",ST22_4!$E$13) ->  | F136: =ST22_4!$E$14 -> 0 | G136: =ST22_4!$E$15 -> 0 | H136: =ST22_4!$E$16 -> 0 | I136: =ST22_4!$E$17 -> 0 | J136: =ST22_4!$E$8 -> ST22_4 | K136: =ST22_4!$B$4 -> Repair Drainage Structure – Excavate, Repair And Reinstate | L136: =ST22_4!$G$2 -> 0 | M136: =ST22_4!$E$93 -> $/Lm | N136: =ST22_4!$G$3 -> 0 | O136: =ST22_4!$G$4 -> 0 | P136: ST22_4 | Q136: =IF(AND(Menu!$E$45=Yes,Menu!$F$45>=ABS(RIGHT(P136,1))),1,0) -> 0
B137: =IF(ISBLANK(ST22_5!$E$10),"",ST22_5!$E$10) -> RDS003819 | C137: =IF(ISBLANK(ST22_5!$E$11),"",ST22_5!$E$11) -> Ballan-Egerton Road | D137: =IF(ISBLANK(ST22_5!$E$12),"",ST22_5!$E$12) ->  | E137: =IF(ISBLANK(ST22_5!$E$13),"",ST22_5!$E$13) ->  | F137: =ST22_5!$E$14 -> 0 | G137: =ST22_5!$E$15 -> 0 | H137: =ST22_5!$E$16 -> 0 | I137: =ST22_5!$E$17 -> 0 | J137: =ST22_5!$E$8 -> ST22_5 | K137: =ST22_5!$B$4 -> Repair Drainage Structure – Excavate, Repair And Reinstate | L137: =ST22_5!$G$2 -> 0 | M137: =ST22_5!$E$93 -> $/Lm | N137: =ST22_5!$G$3 -> 0 | O137: =ST22_5!$G$4 -> 0 | P137: ST22_5 | Q137: =IF(AND(Menu!$E$45=Yes,Menu!$F$45>=ABS(RIGHT(P137,1))),1,0) -> 0
B138: =IF(ISBLANK(ST22_6!$E$10),"",ST22_6!$E$10) -> RDS003819 | C138: =IF(ISBLANK(ST22_6!$E$11),"",ST22_6!$E$11) -> Ballan-Egerton Road | D138: =IF(ISBLANK(ST22_6!$E$12),"",ST22_6!$E$12) ->  | E138: =IF(ISBLANK(ST22_6!$E$13),"",ST22_6!$E$13) ->  | F138: =ST22_6!$E$14 -> 0 | G138: =ST22_6!$E$15 -> 0 | H138: =ST22_6!$E$16 -> 0 | I138: =ST22_6!$E$17 -> 0 | J138: =ST22_6!$E$8 -> ST22_6 | K138: =ST22_6!$B$4 -> Repair Drainage Structure – Excavate, Repair And Reinstate | L138: =ST22_6!$G$2 -> 0 | M138: =ST22_6!$E$93 -> $/Lm | N138: =ST22_6!$G$3 -> 0 | O138: =ST22_6!$G$4 -> 0 | P138: ST22_6 | Q138: =IF(AND(Menu!$E$45=Yes,Menu!$F$45>=ABS(RIGHT(P138,1))),1,0) -> 0
B139: =IF(ISBLANK(ST23_1!$E$10),"",ST23_1!$E$10) -> RDS003819 | C139: =IF(ISBLANK(ST23_1!$E$11),"",ST23_1!$E$11) -> Ballan-Egerton Road | D139: =IF(ISBLANK(ST23_1!$E$12),"",ST23_1!$E$12) ->  | E139: =IF(ISBLANK(ST23_1!$E$13),"",ST23_1!$E$13) ->  | F139: =ST23_1!$E$14 -> 0 | G139: =ST23_1!$E$15 -> 0 | H139: =ST23_1!$E$16 -> 0 | I139: =ST23_1!$E$17 -> 0 | J139: =ST23_1!$E$8 -> ST23_1 | K139: =ST23_1!$B$4 -> Replace Reinforced Concrete Box Culvert (RCBC) | L139: =ST23_1!$G$2 -> 0 | M139: =ST23_1!$E$110 -> $/Lm | N139: =ST23_1!$G$3 -> 0 | O139: =ST23_1!$G$4 -> 0 | P139: ST23_1 | Q139: =IF(AND(Menu!$E$46=Yes,Menu!$F$46>=ABS(RIGHT(P139,1))),1,0) -> 0
B140: =IF(ISBLANK(ST23_2!$E$10),"",ST23_2!$E$10) -> RDS003819 | C140: =IF(ISBLANK(ST23_2!$E$11),"",ST23_2!$E$11) -> Ballan-Egerton Road | D140: =IF(ISBLANK(ST23_2!$E$12),"",ST23_2!$E$12) ->  | E140: =IF(ISBLANK(ST23_2!$E$13),"",ST23_2!$E$13) ->  | F140: =ST23_2!$E$14 -> 0 | G140: =ST23_2!$E$15 -> 0 | H140: =ST23_2!$E$16 -> 0 | I140: =ST23_2!$E$17 -> 0 | J140: =ST23_2!$E$8 -> ST23_2 | K140: =ST23_2!$B$4 -> Replace Reinforced Concrete Box Culvert (RCBC) | L140: =ST23_2!$G$2 -> 0 | M140: =ST23_2!$E$110 -> $/Lm | N140: =ST23_2!$G$3 -> 0 | O140: =ST23_2!$G$4 -> 0 | P140: ST23_2 | Q140: =IF(AND(Menu!$E$46=Yes,Menu!$F$46>=ABS(RIGHT(P140,1))),1,0) -> 0
B141: =IF(ISBLANK(ST23_3!$E$10),"",ST23_3!$E$10) -> RDS003819 | C141: =IF(ISBLANK(ST23_3!$E$11),"",ST23_3!$E$11) -> Ballan-Egerton Road | D141: =IF(ISBLANK(ST23_3!$E$12),"",ST23_3!$E$12) ->  | E141: =IF(ISBLANK(ST23_3!$E$13),"",ST23_3!$E$13) ->  | F141: =ST23_3!$E$14 -> 0 | G141: =ST23_3!$E$15 -> 0 | H141: =ST23_3!$E$16 -> 0 | I141: =ST23_3!$E$17 -> 0 | J141: =ST23_3!$E$8 -> ST23_3 | K141: =ST23_3!$B$4 -> Replace Reinforced Concrete Box Culvert (RCBC) | L141: =ST23_3!$G$2 -> 0 | M141: =ST23_3!$E$110 -> $/Lm | N141: =ST23_3!$G$3 -> 0 | O141: =ST23_3!$G$4 -> 0 | P141: ST23_3 | Q141: =IF(AND(Menu!$E$46=Yes,Menu!$F$46>=ABS(RIGHT(P141,1))),1,0) -> 0
B142: =IF(ISBLANK(ST23_4!$E$10),"",ST23_4!$E$10) -> RDS003819 | C142: =IF(ISBLANK(ST23_4!$E$11),"",ST23_4!$E$11) -> Ballan-Egerton Road | D142: =IF(ISBLANK(ST23_4!$E$12),"",ST23_4!$E$12) ->  | E142: =IF(ISBLANK(ST23_4!$E$13),"",ST23_4!$E$13) ->  | F142: =ST23_4!$E$14 -> 0 | G142: =ST23_4!$E$15 -> 0 | H142: =ST23_4!$E$16 -> 0 | I142: =ST23_4!$E$17 -> 0 | J142: =ST23_4!$E$8 -> ST23_4 | K142: =ST23_4!$B$4 -> Replace Reinforced Concrete Box Culvert (RCBC) | L142: =ST23_4!$G$2 -> 0 | M142: =ST23_4!$E$110 -> $/Lm | N142: =ST23_4!$G$3 -> 0 | O142: =ST23_4!$G$4 -> 0 | P142: ST23_4 | Q142: =IF(AND(Menu!$E$46=Yes,Menu!$F$46>=ABS(RIGHT(P142,1))),1,0) -> 0
B143: =IF(ISBLANK(ST23_5!$E$10),"",ST23_5!$E$10) -> RDS003819 | C143: =IF(ISBLANK(ST23_5!$E$11),"",ST23_5!$E$11) -> Ballan-Egerton Road | D143: =IF(ISBLANK(ST23_5!$E$12),"",ST23_5!$E$12) ->  | E143: =IF(ISBLANK(ST23_5!$E$13),"",ST23_5!$E$13) ->  | F143: =ST23_5!$E$14 -> 0 | G143: =ST23_5!$E$15 -> 0 | H143: =ST23_5!$E$16 -> 0 | I143: =ST23_5!$E$17 -> 0 | J143: =ST23_5!$E$8 -> ST23_5 | K143: =ST23_5!$B$4 -> Replace Reinforced Concrete Box Culvert (RCBC) | L143: =ST23_5!$G$2 -> 0 | M143: =ST23_5!$E$110 -> $/Lm | N143: =ST23_5!$G$3 -> 0 | O143: =ST23_5!$G$4 -> 0 | P143: ST23_5 | Q143: =IF(AND(Menu!$E$46=Yes,Menu!$F$46>=ABS(RIGHT(P143,1))),1,0) -> 0
B144: =IF(ISBLANK(ST23_6!$E$10),"",ST23_6!$E$10) -> RDS003819 | C144: =IF(ISBLANK(ST23_6!$E$11),"",ST23_6!$E$11) -> Ballan-Egerton Road | D144: =IF(ISBLANK(ST23_6!$E$12),"",ST23_6!$E$12) ->  | E144: =IF(ISBLANK(ST23_6!$E$13),"",ST23_6!$E$13) ->  | F144: =ST23_6!$E$14 -> 0 | G144: =ST23_6!$E$15 -> 0 | H144: =ST23_6!$E$16 -> 0 | I144: =ST23_6!$E$17 -> 0 | J144: =ST23_6!$E$8 -> ST23_6 | K144: =ST23_6!$B$4 -> Replace Reinforced Concrete Box Culvert (RCBC) | L144: =ST23_6!$G$2 -> 0 | M144: =ST23_6!$E$110 -> $/Lm | N144: =ST23_6!$G$3 -> 0 | O144: =ST23_6!$G$4 -> 0 | P144: ST23_6 | Q144: =IF(AND(Menu!$E$46=Yes,Menu!$F$46>=ABS(RIGHT(P144,1))),1,0) -> 0
B145: =IF(ISBLANK(ST24_1!$E$10),"",ST24_1!$E$10) -> RDS003819 | C145: =IF(ISBLANK(ST24_1!$E$11),"",ST24_1!$E$11) -> Ballan-Egerton Road | D145: =IF(ISBLANK(ST24_1!$E$12),"",ST24_1!$E$12) ->  | E145: =IF(ISBLANK(ST24_1!$E$13),"",ST24_1!$E$13) ->  | F145: =ST24_1!$E$14 -> 0 | G145: =ST24_1!$E$15 -> 0 | H145: =ST24_1!$E$16 -> 0 | I145: =ST24_1!$E$17 -> 0 | J145: =ST24_1!$E$8 -> ST24_1 | K145: =ST24_1!$B$4 -> Replace Concrete Pipe | L145: =ST24_1!$G$2 -> 0 | M145: =ST24_1!$E$95 -> $/Lm | N145: =ST24_1!$G$3 -> 0 | O145: =ST24_1!$G$4 -> 0 | P145: ST24_1 | Q145: =IF(AND(Menu!$E$47=Yes,Menu!$F$47>=ABS(RIGHT(P145,1))),1,0) -> 0
B146: =IF(ISBLANK(ST24_2!$E$10),"",ST24_2!$E$10) -> RDS003819 | C146: =IF(ISBLANK(ST24_2!$E$11),"",ST24_2!$E$11) -> Ballan-Egerton Road | D146: =IF(ISBLANK(ST24_2!$E$12),"",ST24_2!$E$12) ->  | E146: =IF(ISBLANK(ST24_2!$E$13),"",ST24_2!$E$13) ->  | F146: =ST24_2!$E$14 -> 0 | G146: =ST24_2!$E$15 -> 0 | H146: =ST24_2!$E$16 -> 0 | I146: =ST24_2!$E$17 -> 0 | J146: =ST24_2!$E$8 -> ST24_2 | K146: =ST24_2!$B$4 -> Replace Concrete Pipe | L146: =ST24_2!$G$2 -> 0 | M146: =ST24_2!$E$95 -> $/Lm | N146: =ST24_2!$G$3 -> 0 | O146: =ST24_2!$G$4 -> 0 | P146: ST24_2 | Q146: =IF(AND(Menu!$E$47=Yes,Menu!$F$47>=ABS(RIGHT(P146,1))),1,0) -> 0
B147: =IF(ISBLANK(ST24_3!$E$10),"",ST24_3!$E$10) -> RDS003819 | C147: =IF(ISBLANK(ST24_3!$E$11),"",ST24_3!$E$11) -> Ballan-Egerton Road | D147: =IF(ISBLANK(ST24_3!$E$12),"",ST24_3!$E$12) ->  | E147: =IF(ISBLANK(ST24_3!$E$13),"",ST24_3!$E$13) ->  | F147: =ST24_3!$E$14 -> 0 | G147: =ST24_3!$E$15 -> 0 | H147: =ST24_3!$E$16 -> 0 | I147: =ST24_3!$E$17 -> 0 | J147: =ST24_3!$E$8 -> ST24_3 | K147: =ST24_3!$B$4 -> Replace Concrete Pipe | L147: =ST24_3!$G$2 -> 0 | M147: =ST24_3!$E$95 -> $/Lm | N147: =ST24_3!$G$3 -> 0 | O147: =ST24_3!$G$4 -> 0 | P147: ST24_3 | Q147: =IF(AND(Menu!$E$47=Yes,Menu!$F$47>=ABS(RIGHT(P147,1))),1,0) -> 0
B148: =IF(ISBLANK(ST24_4!$E$10),"",ST24_4!$E$10) -> RDS003819 | C148: =IF(ISBLANK(ST24_4!$E$11),"",ST24_4!$E$11) -> Ballan-Egerton Road | D148: =IF(ISBLANK(ST24_4!$E$12),"",ST24_4!$E$12) ->  | E148: =IF(ISBLANK(ST24_4!$E$13),"",ST24_4!$E$13) ->  | F148: =ST24_4!$E$14 -> 0 | G148: =ST24_4!$E$15 -> 0 | H148: =ST24_4!$E$16 -> 0 | I148: =ST24_4!$E$17 -> 0 | J148: =ST24_4!$E$8 -> ST24_4 | K148: =ST24_4!$B$4 -> Replace Concrete Pipe | L148: =ST24_4!$G$2 -> 0 | M148: =ST24_4!$E$95 -> $/Lm | N148: =ST24_4!$G$3 -> 0 | O148: =ST24_4!$G$4 -> 0 | P148: ST24_4 | Q148: =IF(AND(Menu!$E$47=Yes,Menu!$F$47>=ABS(RIGHT(P148,1))),1,0) -> 0
B149: =IF(ISBLANK(ST24_5!$E$10),"",ST24_5!$E$10) -> RDS003819 | C149: =IF(ISBLANK(ST24_5!$E$11),"",ST24_5!$E$11) -> Ballan-Egerton Road | D149: =IF(ISBLANK(ST24_5!$E$12),"",ST24_5!$E$12) ->  | E149: =IF(ISBLANK(ST24_5!$E$13),"",ST24_5!$E$13) ->  | F149: =ST24_5!$E$14 -> 0 | G149: =ST24_5!$E$15 -> 0 | H149: =ST24_5!$E$16 -> 0 | I149: =ST24_5!$E$17 -> 0 | J149: =ST24_5!$E$8 -> ST24_5 | K149: =ST24_5!$B$4 -> Replace Concrete Pipe | L149: =ST24_5!$G$2 -> 0 | M149: =ST24_5!$E$95 -> $/Lm | N149: =ST24_5!$G$3 -> 0 | O149: =ST24_5!$G$4 -> 0 | P149: ST24_5 | Q149: =IF(AND(Menu!$E$47=Yes,Menu!$F$47>=ABS(RIGHT(P149,1))),1,0) -> 0
B150: =IF(ISBLANK(ST24_6!$E$10),"",ST24_6!$E$10) -> RDS003819 | C150: =IF(ISBLANK(ST24_6!$E$11),"",ST24_6!$E$11) -> Ballan-Egerton Road | D150: =IF(ISBLANK(ST24_6!$E$12),"",ST24_6!$E$12) ->  | E150: =IF(ISBLANK(ST24_6!$E$13),"",ST24_6!$E$13) ->  | F150: =ST24_6!$E$14 -> 0 | G150: =ST24_6!$E$15 -> 0 | H150: =ST24_6!$E$16 -> 0 | I150: =ST24_6!$E$17 -> 0 | J150: =ST24_6!$E$8 -> ST24_6 | K150: =ST24_6!$B$4 -> Replace Concrete Pipe | L150: =ST24_6!$G$2 -> 0 | M150: =ST24_6!$E$95 -> $/Lm | N150: =ST24_6!$G$3 -> 0 | O150: =ST24_6!$G$4 -> 0 | P150: ST24_6 | Q150: =IF(AND(Menu!$E$47=Yes,Menu!$F$47>=ABS(RIGHT(P150,1))),1,0) -> 0
B151: =IF(ISBLANK(OT1_1!$F$11),"",OT1_1!$F$11) ->  | C151: =IF(ISBLANK(OT1_1!$F$12),"",OT1_1!$F$12) ->  | D151: =IF(ISBLANK(OT1_1!$F$13),"",OT1_1!$F$13) ->  | E151: =IF(ISBLANK(OT1_1!$F$14),"",OT1_1!$F$14) ->  | F151: =OT1_1!$F$15 -> 0 | G151: =OT1_1!$F$16 -> 0 | H151: =OT1_1!$F$17 -> 0 | I151: =OT1_1!$F$18 -> 0 | J151: =OT1_1!$E$8 -> OT1_1 | K151: =OT1_1!$B$4 -> Other – Including Structures, Retaining Items | L151: =OT1_1!$H$2 -> 0 | M151: =OT1_1!$E$68 -> $ | N151: =OT1_1!$H$3 -> 0 | O151: =OT1_1!$H$4 -> 0 | P151: OT1_1 | Q151: =IF(AND(Menu!$E$48=Yes,Menu!$F$48>=ABS(RIGHT(P151,1))),1,0) -> 0
B152: =IF(ISBLANK(OT1_2!$E$10),"",OT1_2!$E$10) -> December Flood | C152: =IF(ISBLANK(OT1_2!$E$11),"",OT1_2!$E$11) -> RDS003819 | D152: =IF(ISBLANK(OT1_2!$E$12),"",OT1_2!$E$12) -> Ballan-Egerton Road | E152: =IF(ISBLANK(OT1_2!$E$13),"",OT1_2!$E$13) ->  | F152: =OT1_2!$E$14 -> 0 | G152: =OT1_2!$E$15 -> 0 | H152: =OT1_2!$E$16 -> 0 | I152: =OT1_2!$E$17 -> 0 | J152: =OT1_2!$E$8 -> OT1_2 | K152: =OT1_2!$B$4 -> Other – Including Structures, Retaining Items | L152: =OT1_2!$H$2 -> 0 | M152: =OT1_2!$E$91 -> 0 | N152: =OT1_2!$H$3 -> 0 | O152: =OT1_2!$H$4 -> 0 | P152: OT1_2 | Q152: =IF(AND(Menu!$E$48=Yes,Menu!$F$48>=ABS(RIGHT(P152,1))),1,0) -> 0
B153: =IF(ISBLANK(OT1_3!$E$10),"",OT1_3!$E$10) -> December Flood | C153: =IF(ISBLANK(OT1_3!$E$11),"",OT1_3!$E$11) -> RDS003819 | D153: =IF(ISBLANK(OT1_3!$E$12),"",OT1_3!$E$12) -> Ballan-Egerton Road | E153: =IF(ISBLANK(OT1_3!$E$13),"",OT1_3!$E$13) ->  | F153: =OT1_3!$E$14 -> 0 | G153: =OT1_3!$E$15 -> 0 | H153: =OT1_3!$E$16 -> 0 | I153: =OT1_3!$E$17 -> 0 | J153: =OT1_3!$E$8 -> OT1_3 | K153: =OT1_3!$B$4 -> Other – Including Structures, Retaining Items | L153: =OT1_3!$H$2 -> 0 | M153: =OT1_3!$E$91 -> 0 | N153: =OT1_3!$H$3 -> 0 | O153: =OT1_3!$H$4 -> 0 | P153: OT1_3 | Q153: =IF(AND(Menu!$E$48=Yes,Menu!$F$48>=ABS(RIGHT(P153,1))),1,0) -> 0
B154: =IF(ISBLANK(OT1_4!$E$10),"",OT1_4!$E$10) -> December Flood | C154: =IF(ISBLANK(OT1_4!$E$11),"",OT1_4!$E$11) -> RDS003819 | D154: =IF(ISBLANK(OT1_4!$E$12),"",OT1_4!$E$12) -> Ballan-Egerton Road | E154: =IF(ISBLANK(OT1_4!$E$13),"",OT1_4!$E$13) ->  | F154: =OT1_4!$E$14 -> 0 | G154: =OT1_4!$E$15 -> 0 | H154: =OT1_4!$E$16 -> 0 | I154: =OT1_4!$E$17 -> 0 | J154: =OT1_4!$E$8 -> OT1_4 | K154: =OT1_4!$B$4 -> Other – Including Structures, Retaining Items | L154: =OT1_4!$H$2 -> 0 | M154: =OT1_4!$E$91 -> 0 | N154: =OT1_4!$H$3 -> 0 | O154: =OT1_4!$H$4 -> 0 | P154: OT1_4 | Q154: =IF(AND(Menu!$E$48=Yes,Menu!$F$48>=ABS(RIGHT(P154,1))),1,0) -> 0
B155: =IF(ISBLANK(OT1_5!$E$10),"",OT1_5!$E$10) -> December Flood | C155: =IF(ISBLANK(OT1_5!$E$11),"",OT1_5!$E$11) -> RDS003819 | D155: =IF(ISBLANK(OT1_5!$E$12),"",OT1_5!$E$12) -> Ballan-Egerton Road | E155: =IF(ISBLANK(OT1_5!$E$13),"",OT1_5!$E$13) ->  | F155: =OT1_5!$E$14 -> 0 | G155: =OT1_5!$E$15 -> 0 | H155: =OT1_5!$E$16 -> 0 | I155: =OT1_5!$E$17 -> 0 | J155: =OT1_5!$E$8 -> OT1_5 | K155: =OT1_5!$B$4 -> Other – Including Structures, Retaining Items | L155: =OT1_5!$H$2 -> 0 | M155: =OT1_5!$E$91 -> 0 | N155: =OT1_5!$H$3 -> 0 | O155: =OT1_5!$H$4 -> 0 | P155: OT1_5 | Q155: =IF(AND(Menu!$E$48=Yes,Menu!$F$48>=ABS(RIGHT(P155,1))),1,0) -> 0
B156: =IF(ISBLANK(OT1_6!$E$10),"",OT1_6!$E$10) -> December Flood | C156: =IF(ISBLANK(OT1_6!$E$11),"",OT1_6!$E$11) -> RDS003819 | D156: =IF(ISBLANK(OT1_6!$E$12),"",OT1_6!$E$12) -> Ballan-Egerton Road | E156: =IF(ISBLANK(OT1_6!$E$13),"",OT1_6!$E$13) ->  | F156: =OT1_6!$E$14 -> 0 | G156: =OT1_6!$E$15 -> 0 | H156: =OT1_6!$E$16 -> 0 | I156: =OT1_6!$E$17 -> 0 | J156: =OT1_6!$E$8 -> OT1_6 | K156: =OT1_6!$B$4 -> Other – Including Structures, Retaining Items | L156: =OT1_6!$H$2 -> 0 | M156: =OT1_6!$E$91 -> 0 | N156: =OT1_6!$H$3 -> 0 | O156: =OT1_6!$H$4 -> 0 | P156: OT1_6 | Q156: =IF(AND(Menu!$E$48=Yes,Menu!$F$48>=ABS(RIGHT(P156,1))),1,0) -> 0

Sheet Treatments >> (hidden)
A2: The following worksheets are used for the assumptions and calculations of each individual treatment >>
D41: In-situ establishment – including additional material as required

Sheet ST1_1 (hidden)
A1: Disaster Recovery Funding Arrangements
A2: Cost Estimation Tool | F2: ="Total quantity ("&E25&"):" -> Total quantity (Lm): | G2: =SUM(D25,D30) -> 1995
A3: =Version_No -> Version 1.0 - Oct 18 | F3: ="Cost per unit ("&E82&"):" -> Cost per unit ($/Lm): | G3: =F82 -> 17.20701754
A4: =E8 -> ST1_1 | B4: =INDEX(Gen_A!$D$37:$D$61,MATCH(REPLACE(E8,FIND("_",E8),Three,""),Gen_A!$C$37:$C$61,0)) -> Light Formation Grading | F4: Total cost of treatment ($): | G4: =H82 -> 34328
A5: Link to Claim Summary
B6: Asset Details
B8: Treatment ID | E8: =REPLACE(CELL("filename",A1),1,FIND("]",CELL("filename",A1)),"") -> ST1_1
B9: Event Name | E9: =IF(ISBLANK(EventName),"",EventName) -> December Flood
B10: Asset ID | E10: =IF(ISBLANK(AssetID),"",AssetID) -> RDS003819
B11: Asset Name | E11: =IF(ISBLANK(AssetName),"",AssetName) -> Ballan-Egerton Road
B12: Start Chainage
B13: Finish Chainage
B14: Start Latitude
B15: Start Longitude
B16: End Latitude
B17: End Longitude
B19: Applicant Inputs
B21: Variable
B22: Percentage of Duration Requiring Supervision | D22: 1 | E22: %
B24: Individual Site - Less than 500m
B25: Quantity | D25: 495 | E25: Lm | I25: Total Length of Light Formation Grading for this site size
B26: Road Width | D26: 4 | E26: Lm
B27: No. of Sites | D27: 1 | E27: #
B29: Individual Site - Greater than 500m
B30: Quantity | D30: 1500 | E30: Lm | I30: Total Length of Light Formation Grading for this site size
B31: Road Width | D31: 4 | E31: Lm
B32: No. of Sites | D32: 1 | E32: #
B34: Calculations - Individual Site Less than 500m
B36: Average Travel Time from One Site to Other | D36: 0.5 | E36: hrs
B37: Production | D37: 100 | E37: m2/hr
B38: Time to Set Up and Remove Traffic Control Devices for Each Section | D38: 1 | E38: hrs
B40: Resource | D40: Required? | E40: Unit | F40: Rate | G40: Quantity | H40: Total
B41: Foreman and Vehicle | D41: Yes | E41: =IFERROR(INDEX(ResourceUnit,MATCH($B41,ResourceList,0)),"") -> hr | F41: =IF(D41=Yes,IFERROR(INDEX(ResourceRate,MATCH($B41,ResourceList,0)),""),"") -> 120 | G41: =IFERROR(((D25*D26*D22)/D37+D27*(D36+D38))*(D41=Yes),"") -> 21.3 | H41: =IFERROR(F41*G41,"") -> 2556
B42: Job Truck without Operator | D42: Yes | E42: hr | F42: 110 | G42: =IFERROR(((D25*D26)/D37+D27*(D36+D38))*(D42=Yes),"") -> 21.3 | H42: 2343
B43: Labourer - Traffic Control | D43: Yes | E43: hr | F43: 90 | G43: =IFERROR((Two*(D27*(D38+D36)))*(D43=Yes),"") -> 3 | H43: 270 | I43: This is for two persons for travel time and set up and removal of traffic control
B44: Grader and Operator | D44: Yes | E44: hr | F44: 180 | G44: =IFERROR((((D25*D26/D37+D27*D36)))*(D44=Yes),"") -> 20.3 | H44: 3654
B45: Labourer - Traffic Control | D45: No | E45: hr | G45: =IFERROR(((D25*D26/D37)*Two)*(D45=Yes),"") -> 0 | I45: This is for two persons whilst works are being carried out
B46: Ablution Block | D46: No | E46: hr | G46: =IFERROR(((D25*D26/D37+D27*(D36+D38)))*(D46=Yes),"") -> 0
B47: Camp - Kitchen | D47: No | E47: hr | G47: =IFERROR(((D25*D26/D37+D27*(D36+D38)))*(D47=Yes),"") -> 0
B48: Accommodation | D48: No | E48: hr | G48: =IFERROR((((D25*D26/D37+D27*(D36+D38)))*One)*(D48=Yes),"") -> 0 | I48: This is accommodation provision for one person
B49: DBYD | E49: Each | F49: =IFERROR(INDEX(ResourceRate,MATCH($B49,ResourceList,0)),"") -> 200 | G49: 1 | H49: 200 | I49: Select from dropdown for additional resources/equipment as appropriate
F50: =IFERROR(INDEX(ResourceRate,MATCH($B50,ResourceList,0)),"") -> 
F51: =IFERROR(INDEX(ResourceRate,MATCH($B51,ResourceList,0)),"") -> 
F52: =IFERROR(INDEX(ResourceRate,MATCH($B52,ResourceList,0)),"") -> 
F53: =IFERROR(INDEX(ResourceRate,MATCH($B53,ResourceList,0)),"") -> 
B55: Unit Rate | E55: $/Lm | F55: =IFERROR(H55/$D$25,0) -> 18.22828283 | H55: =SUM($H$41:$H$53) -> 9023
B57: Calculations - Individual Site Greater than 500m
B59: Average Travel Time from One Site to Other | D59: 0.5 | E59: hrs
B60: Production | D60: 100 | E60: m2/hr
B61: Time to Set Up and Remove Traffic Control Devices for Each Section | D61: 1 | E61: hrs
B63: Resource | D63: Required? | E63: Unit | F63: Rate | G63: Quantity | H63: Total
B64: Foreman and Vehicle | D64: Yes | E64: =IFERROR(INDEX(ResourceUnit,MATCH($B64,ResourceList,0)),"") -> hr | F64: =IF(D64=Yes,IFERROR(INDEX(ResourceRate,MATCH($B64,ResourceList,0)),""),"") -> 120 | G64: =IFERROR(((D30*D31*D22)/D60+D32*(D59+D61))*(D64=Yes),"") -> 61.5 | H64: =IFERROR(F64*G64,"") -> 7380
B65: Job Truck without Operator | D65: Yes | E65: hr | F65: 110 | G65: =IFERROR(((D30*D31)/D60+D32*(D59+D61))*(D65=Yes),"") -> 61.5 | H65: 6765
B66: Labourer - Traffic Control | D66: Yes | E66: hr | F66: 90 | G66: =(Two*(D32*(D61+D59)))*(D66=Yes) -> 3 | H66: 270 | I66: This is for two persons for travel time and set up and removal of traffic control
B67: Grader and Operator | D67: Yes | E67: hr | F67: 180 | G67: =IFERROR((((D30*D31)/D60)+D32*D59)*(D67=Yes),"") -> 60.5 | H67: 10890
B68: Labourer - Traffic Control | D68: No | E68: hr | G68: =IFERROR(((D30*D31)/D60)*Two*(D68=Yes),"") -> 0 | I68: This is for two persons whilst works are being carried out
B69: Ablution Block | D69: No | E69: hr | G69: =IFERROR(((D30*D31)/D60+D32*(D59+D61))*(D69=Yes),"") -> 0
B70: Camp - Kitchen | D70: No | E70: hr | G70: =IFERROR(((D30*D31)/D60+D32*(D59+D61))*(D70=Yes),"") -> 0
B71: Accommodation | D71: No | E71: hr | G71: =IFERROR((((D30*D31)/D60+D32*(D59+D61))*One)*(D71=Yes),"") -> 0 | I71: This is accommodation provision for one person
F72: =IFERROR(INDEX(ResourceRate,MATCH($B72,ResourceList,0)),"") ->  | I72: Select from dropdown for additional resources/equipment as appropriate
F73: =IFERROR(INDEX(ResourceRate,MATCH($B73,ResourceList,0)),"") -> 
F74: =IFERROR(INDEX(ResourceRate,MATCH($B74,ResourceList,0)),"") -> 
F75: =IFERROR(INDEX(ResourceRate,MATCH($B75,ResourceList,0)),"") -> 
F76: =IFERROR(INDEX(ResourceRate,MATCH($B76,ResourceList,0)),"") -> 
B78: Unit Rate | E78: $/Lm | F78: =IFERROR(H78/$D$30,0) -> 16.87 | H78: =SUM($H$64:$H$76) -> 25305
B80: Summary
B82: Overall Unit Rate | E82: $/Lm | F82: =IFERROR(H82/SUM($D$25,$D$30),0) -> 17.20701754 | H82: =H55+H78 -> 34328
B84: End of Worksheet

Sheet ST1_2 (hidden)
A1: Disaster Recovery Funding Arrangements
A2: Cost Estimation Tool | F2: ="Total quantity ("&E25&"):" -> Total quantity (Lm): | G2: =SUM(D25,D30) -> 0
A3: =Version_No -> Version 1.0 - Oct 18 | F3: ="Cost per unit ("&E82&"):" -> Cost per unit ($/Lm): | G3: =F82 -> 0
A4: =E8 -> ST1_2 | B4: =INDEX(Gen_A!$D$37:$D$61,MATCH(REPLACE(E8,FIND("_",E8),Three,""),Gen_A!$C$37:$C$61,0)) -> Light Formation Grading | F4: Total cost of treatment ($): | G4: =H82 -> 0
A5: Link to Claim Summary
B6: Asset Details
B8: Treatment ID | E8: =REPLACE(CELL("filename",A1),1,FIND("]",CELL("filename",A1)),"") -> ST1_2
B9: Event Name | E9: =IF(ISBLANK(EventName),"",EventName) -> December Flood
B10: Asset ID | E10: =IF(ISBLANK(AssetID),"",AssetID) -> RDS003819
B11: Asset Name | E11: =IF(ISBLANK(AssetName),"",AssetName) -> Ballan-Egerton Road
B12: Start Chainage
B13: Finish Chainage
B14: Start Latitude
B15: Start Longitude
B16: End Latitude
B17: End Longitude
B19: Applicant Inputs
B21: Variable
B22: Percentage of Duration Requiring Supervision | E22: %
B24: Individual Site - Less than 500m
B25: Quantity | E25: Lm | I25: Total Length of Light Formation Grading for this site size
B26: Road Width | E26: Lm
B27: No. of Sites | E27: #
B29: Individual Site - Greater than 500m
B30: Quantity | E30: Lm | I30: Total Length of Light Formation Grading for this site size
B31: Road Width | E31: Lm
B32: No. of Sites | E32: #
B34: Calculations - Individual Site Less than 500m
B36: Average Travel Time from One Site to Other | E36: hrs
B37: Production | E37: m2/hr
B38: Time to Set Up and Remove Traffic Control Devices for Each Section | E38: hrs
B40: Resource | D40: Required? | E40: Unit | F40: Rate | G40: Quantity | H40: Total
B41: Foreman and Vehicle | E41: =IFERROR(INDEX(ResourceUnit,MATCH($B41,ResourceList,0)),"") -> hr | F41: =IF(D41=Yes,IFERROR(INDEX(ResourceRate,MATCH($B41,ResourceList,0)),""),"") ->  | G41: =IFERROR(((D25*D26*D22)/D37+D27*(D36+D38))*(D41=Yes),"") ->  | H41: =IFERROR(F41*G41,"") -> 
B42: Job Truck without Operator | E42: hr | G42: =IFERROR(((D25*D26)/D37+D27*(D36+D38))*(D42=Yes),"") -> 
B43: Labourer - Traffic Control | E43: hr | G43: =IFERROR((Two*(D27*(D38+D36)))*(D43=Yes),"") -> 0 | I43: This is for two persons for travel time and set up and removal of traffic control
B44: Grader and Operator | E44: hr | G44: =IFERROR((((D25*D26/D37+D27*D36)))*(D44=Yes),"") -> 
B45: Labourer - Traffic Control | E45: hr | G45: =IFERROR(((D25*D26/D37)*Two)*(D45=Yes),"") ->  | I45: This is for two persons whilst works are being carried out
B46: Ablution Block | E46: hr | G46: =IFERROR(((D25*D26/D37+D27*(D36+D38)))*(D46=Yes),"") -> 
B47: Camp - Kitchen | E47: hr | G47: =IFERROR(((D25*D26/D37+D27*(D36+D38)))*(D47=Yes),"") -> 
B48: Accommodation | E48: hr | G48: =IFERROR((((D25*D26/D37+D27*(D36+D38)))*One)*(D48=Yes),"") ->  | I48: This is accommodation provision for one person
F49: =IFERROR(INDEX(ResourceRate,MATCH($B49,ResourceList,0)),"") ->  | I49: Select from dropdown for additional resources/equipment as appropriate
F50: =IFERROR(INDEX(ResourceRate,MATCH($B50,ResourceList,0)),"") -> 
F51: =IFERROR(INDEX(ResourceRate,MATCH($B51,ResourceList,0)),"") -> 
F52: =IFERROR(INDEX(ResourceRate,MATCH($B52,ResourceList,0)),"") -> 
F53: =IFERROR(INDEX(ResourceRate,MATCH($B53,ResourceList,0)),"") -> 
B55: Unit Rate | E55: $/Lm | F55: =IFERROR(H55/$D$25,0) -> 0 | H55: =SUM($H$41:$H$53) -> 0
B57: Calculations - Individual Site Greater than 500m
B59: Average Travel Time from One Site to Other | E59: hrs
B60: Production | E60: m2/hr
B61: Time to Set Up and Remove Traffic Control Devices for Each Section | E61: hrs
B63: Resource | D63: Required? | E63: Unit | F63: Rate | G63: Quantity | H63: Total
B64: Foreman and Vehicle | E64: =IFERROR(INDEX(ResourceUnit,MATCH($B64,ResourceList,0)),"") -> hr | F64: =IF(D64=Yes,IFERROR(INDEX(ResourceRate,MATCH($B64,ResourceList,0)),""),"") ->  | G64: =IFERROR(((D30*D31*D22)/D60+D32*(D59+D61))*(D64=Yes),"") ->  | H64: =IFERROR(F64*G64,"") -> 
B65: Job Truck without Operator | E65: hr | G65: =IFERROR(((D30*D31)/D60+D32*(D59+D61))*(D65=Yes),"") -> 
B66: Labourer - Traffic Control | E66: hr | G66: =(Two*(D32*(D61+D59)))*(D66=Yes) -> 0 | I66: This is for two persons for travel time and set up and removal of traffic control
B67: Grader and Operator | E67: hr | G67: =IFERROR((((D30*D31)/D60)+D32*D59)*(D67=Yes),"") -> 
B68: Labourer - Traffic Control | E68: hr | G68: =IFERROR(((D30*D31)/D60)*Two*(D68=Yes),"") ->  | I68: This is for two persons whilst works are being carried out
B69: Ablution Block | E69: hr | G69: =IFERROR(((D30*D31)/D60+D32*(D59+D61))*(D69=Yes),"") -> 
B70: Camp - Kitchen | E70: hr | G70: =IFERROR(((D30*D31)/D60+D32*(D59+D61))*(D70=Yes),"") -> 
B71: Accommodation | E71: hr | G71: =IFERROR((((D30*D31)/D60+D32*(D59+D61))*One)*(D71=Yes),"") ->  | I71: This is accommodation provision for one person
F72: =IFERROR(INDEX(ResourceRate,MATCH($B72,ResourceList,0)),"") ->  | I72: Select from dropdown for additional resources/equipment as appropriate
F73: =IFERROR(INDEX(ResourceRate,MATCH($B73,ResourceList,0)),"") -> 
F74: =IFERROR(INDEX(ResourceRate,MATCH($B74,ResourceList,0)),"") -> 
F75: =IFERROR(INDEX(ResourceRate,MATCH($B75,ResourceList,0)),"") -> 
F76: =IFERROR(INDEX(ResourceRate,MATCH($B76,ResourceList,0)),"") -> 
B78: Unit Rate | E78: $/Lm | F78: =IFERROR(H78/$D$30,0) -> 0 | H78: =SUM($H$64:$H$76) -> 0
B80: Summary
B82: Overall Unit Rate | E82: $/Lm | F82: =IFERROR(H82/SUM($D$25,$D$30),0) -> 0 | H82: =H55+H78 -> 0
B84: End of Worksheet

Sheet ST1_3 (hidden)
A1: Disaster Recovery Funding Arrangements
A2: Cost Estimation Tool | F2: ="Total quantity ("&E25&"):" -> Total quantity (Lm): | G2: =SUM(D25,D30) -> 0
A3: =Version_No -> Version 1.0 - Oct 18 | F3: ="Cost per unit ("&E82&"):" -> Cost per unit ($/Lm): | G3: =F82 -> 0
A4: =E8 -> ST1_3 | B4: =INDEX(Gen_A!$D$37:$D$61,MATCH(REPLACE(E8,FIND("_",E8),Three,""),Gen_A!$C$37:$C$61,0)) -> Light Formation Grading | F4: Total cost of treatment ($): | G4: =H82 -> 0
A5: Link to Claim Summary
B6: Asset Details
B8: Treatment ID | E8: =REPLACE(CELL("filename",A1),1,FIND("]",CELL("filename",A1)),"") -> ST1_3
B9: Event Name | E9: =IF(ISBLANK(EventName),"",EventName) -> December Flood
B10: Asset ID | E10: =IF(ISBLANK(AssetID),"",AssetID) -> RDS003819
B11: Asset Name | E11: =IF(ISBLANK(AssetName),"",AssetName) -> Ballan-Egerton Road
B12: Start Chainage
B13: Finish Chainage
B14: Start Latitude
B15: Start Longitude
B16: End Latitude
B17: End Longitude
B19: Applicant Inputs
B21: Variable
B22: Percentage of Duration Requiring Supervision | E22: %
B24: Individual Site - Less than 500m
B25: Quantity | E25: Lm | I25: Total Length of Light Formation Grading for this site size
B26: Road Width | E26: Lm
B27: No. of Sites | E27: #
B29: Individual Site - Greater than 500m
B30: Quantity | E30: Lm | I30: Total Length of Light Formation Grading for this site size
B31: Road Width | E31: Lm
B32: No. of Sites | E32: #
B34: Calculations - Individual Site Less than 500m
B36: Average Travel Time from One Site to Other | E36: hrs
B37: Production | E37: m2/hr
B38: Time to Set Up and Remove Traffic Control Devices for Each Section | E38: hrs
B40: Resource | D40: Required? | E40: Unit | F40: Rate | G40: Quantity | H40: Total
B41: Foreman and Vehicle | E41: =IFERROR(INDEX(ResourceUnit,MATCH($B41,ResourceList,0)),"") -> hr | F41: =IF(D41=Yes,IFERROR(INDEX(ResourceRate,MATCH($B41,ResourceList,0)),""),"") ->  | G41: =IFERROR(((D25*D26*D22)/D37+D27*(D36+D38))*(D41=Yes),"") ->  | H41: =IFERROR(F41*G41,"") -> 
B42: Job Truck without Operator | E42: hr | G42: =IFERROR(((D25*D26)/D37+D27*(D36+D38))*(D42=Yes),"") -> 
B43: Labourer - Traffic Control | E43: hr | G43: =IFERROR((Two*(D27*(D38+D36)))*(D43=Yes),"") -> 0 | I43: This is for two persons for travel time and set up and removal of traffic control
B44: Grader and Operator | E44: hr | G44: =IFERROR((((D25*D26/D37+D27*D36)))*(D44=Yes),"") -> 
B45: Labourer - Traffic Control | E45: hr | G45: =IFERROR(((D25*D26/D37)*Two)*(D45=Yes),"") ->  | I45: This is for two persons whilst works are being carried out
B46: Ablution Block | E46: hr | G46: =IFERROR(((D25*D26/D37+D27*(D36+D38)))*(D46=Yes),"") -> 
B47: Camp - Kitchen | E47: hr | G47: =IFERROR(((D25*D26/D37+D27*(D36+D38)))*(D47=Yes),"") -> 
B48: Accommodation | E48: hr | G48: =IFERROR((((D25*D26/D37+D27*(D36+D38)))*One)*(D48=Yes),"") ->  | I48: This is accommodation provision for one person
F49: =IFERROR(INDEX(ResourceRate,MATCH($B49,ResourceList,0)),"") ->  | I49: Select from dropdown for additional resources/equipment as appropriate
F50: =IFERROR(INDEX(ResourceRate,MATCH($B50,ResourceList,0)),"") -> 
F51: =IFERROR(INDEX(ResourceRate,MATCH($B51,ResourceList,0)),"") -> 
F52: =IFERROR(INDEX(ResourceRate,MATCH($B52,ResourceList,0)),"") -> 
F53: =IFERROR(INDEX(ResourceRate,MATCH($B53,ResourceList,0)),"") -> 
B55: Unit Rate | E55: $/Lm | F55: =IFERROR(H55/$D$25,0) -> 0 | H55: =SUM($H$41:$H$53) -> 0
B57: Calculations - Individual Site Greater than 500m
B59: Average Travel Time from One Site to Other | E59: hrs
B60: Production | E60: m2/hr
B61: Time to Set Up and Remove Traffic Control Devices for Each Section | E61: hrs
B63: Resource | D63: Required? | E63: Unit | F63: Rate | G63: Quantity | H63: Total
B64: Foreman and Vehicle | E64: =IFERROR(INDEX(ResourceUnit,MATCH($B64,ResourceList,0)),"") -> hr | F64: =IF(D64=Yes,IFERROR(INDEX(ResourceRate,MATCH($B64,ResourceList,0)),""),"") ->  | G64: =IFERROR(((D30*D31*D22)/D60+D32*(D59+D61))*(D64=Yes),"") ->  | H64: =IFERROR(F64*G64,"") -> 
B65: Job Truck without Operator | E65: hr | G65: =IFERROR(((D30*D31)/D60+D32*(D59+D61))*(D65=Yes),"") -> 
B66: Labourer - Traffic Control | E66: hr | G66: =(Two*(D32*(D61+D59)))*(D66=Yes) -> 0 | I66: This is for two persons for travel time and set up and removal of traffic control
B67: Grader and Operator | E67: hr | G67: =IFERROR((((D30*D31)/D60)+D32*D59)*(D67=Yes),"") -> 
B68: Labourer - Traffic Control | E68: hr | G68: =IFERROR(((D30*D31)/D60)*Two*(D68=Yes),"") ->  | I68: This is for two persons whilst works are being carried out
B69: Ablution Block | E69: hr | G69: =IFERROR(((D30*D31)/D60+D32*(D59+D61))*(D69=Yes),"") -> 
B70: Camp - Kitchen | E70: hr | G70: =IFERROR(((D30*D31)/D60+D32*(D59+D61))*(D70=Yes),"") -> 
B71: Accommodation | E71: hr | G71: =IFERROR((((D30*D31)/D60+D32*(D59+D61))*One)*(D71=Yes),"") ->  | I71: This is accommodation provision for one person
F72: =IFERROR(INDEX(ResourceRate,MATCH($B72,ResourceList,0)),"") ->  | I72: Select from dropdown for additional resources/equipment as appropriate
F73: =IFERROR(INDEX(ResourceRate,MATCH($B73,ResourceList,0)),"") -> 
F74: =IFERROR(INDEX(ResourceRate,MATCH($B74,ResourceList,0)),"") -> 
F75: =IFERROR(INDEX(ResourceRate,MATCH($B75,ResourceList,0)),"") -> 
F76: =IFERROR(INDEX(ResourceRate,MATCH($B76,ResourceList,0)),"") -> 
B78: Unit Rate | E78: $/Lm | F78: =IFERROR(H78/$D$30,0) -> 0 | H78: =SUM($H$64:$H$76) -> 0
B80: Summary
B82: Overall Unit Rate | E82: $/Lm | F82: =IFERROR(H82/SUM($D$25,$D$30),0) -> 0 | H82: =H55+H78 -> 0
B84: End of Worksheet

Sheet ST1_4 (hidden)
A1: Disaster Recovery Funding Arrangements
A2: Cost Estimation Tool | F2: ="Total quantity ("&E25&"):" -> Total quantity (Lm): | G2: =SUM(D25,D30) -> 0
A3: =Version_No -> Version 1.0 - Oct 18 | F3: ="Cost per unit ("&E82&"):" -> Cost per unit ($/Lm): | G3: =F82 -> 0
A4: =E8 -> ST1_4 | B4: =INDEX(Gen_A!$D$37:$D$61,MATCH(REPLACE(E8,FIND("_",E8),Three,""),Gen_A!$C$37:$C$61,0)) -> Light Formation Grading | F4: Total cost of treatment ($): | G4: =H82 -> 0
A5: Link to Claim Summary
B6: Asset Details
B8: Treatment ID | E8: =REPLACE(CELL("filename",A1),1,FIND("]",CELL("filename",A1)),"") -> ST1_4
B9: Event Name | E9: =IF(ISBLANK(EventName),"",EventName) -> December Flood
B10: Asset ID | E10: =IF(ISBLANK(AssetID),"",AssetID) -> RDS003819
B11: Asset Name | E11: =IF(ISBLANK(AssetName),"",AssetName) -> Ballan-Egerton Road
B12: Start Chainage
B13: Finish Chainage
B14: Start Latitude
B15: Start Longitude
B16: End Latitude
B17: End Longitude
B19: Applicant Inputs
B21: Variable
B22: Percentage of Duration Requiring Supervision | E22: %
B24: Individual Site - Less than 500m
B25: Quantity | E25: Lm | I25: Total Length of Light Formation Grading for this site size
B26: Road Width | E26: Lm
B27: No. of Sites | E27: #
B29: Individual Site - Greater than 500m
B30: Quantity | E30: Lm | I30: Total Length of Light Formation Grading for this site size
B31: Road Width | E31: Lm
B32: No. of Sites | E32: #
B34: Calculations - Individual Site Less than 500m
B36: Average Travel Time from One Site to Other | E36: hrs
B37: Production | E37: m2/hr
B38: Time to Set Up and Remove Traffic Control Devices for Each Section | E38: hrs
B40: Resource | D40: Required? | E40: Unit | F40: Rate | G40: Quantity | H40: Total
B41: Foreman and Vehicle | E41: =IFERROR(INDEX(ResourceUnit,MATCH($B41,ResourceList,0)),"") -> hr | F41: =IF(D41=Yes,IFERROR(INDEX(ResourceRate,MATCH($B41,ResourceList,0)),""),"") ->  | G41: =IFERROR(((D25*D26*D22)/D37+D27*(D36+D38))*(D41=Yes),"") ->  | H41: =IFERROR(F41*G41,"") -> 
B42: Job Truck without Operator | E42: hr | G42: =IFERROR(((D25*D26)/D37+D27*(D36+D38))*(D42=Yes),"") -> 
B43: Labourer - Traffic Control | E43: hr | G43: =IFERROR((Two*(D27*(D38+D36)))*(D43=Yes),"") -> 0 | I43: This is for two persons for travel time and set up and removal of traffic control
B44: Grader and Operator | E44: hr | G44: =IFERROR((((D25*D26/D37+D27*D36)))*(D44=Yes),"") -> 
B45: Labourer - Traffic Control | E45: hr | G45: =IFERROR(((D25*D26/D37)*Two)*(D45=Yes),"") ->  | I45: This is for two persons whilst works are being carried out
B46: Ablution Block | E46: hr | G46: =IFERROR(((D25*D26/D37+D27*(D36+D38)))*(D46=Yes),"") -> 
B47: Camp - Kitchen | E47: hr | G47: =IFERROR(((D25*D26/D37+D27*(D36+D38)))*(D47=Yes),"") -> 
B48: Accommodation | E48: hr | G48: =IFERROR((((D25*D26/D37+D27*(D36+D38)))*One)*(D48=Yes),"") ->  | I48: This is accommodation provision for one person
F49: =IFERROR(INDEX(ResourceRate,MATCH($B49,ResourceList,0)),"") ->  | I49: Select from dropdown for additional resources/equipment as appropriate
F50: =IFERROR(INDEX(ResourceRate,MATCH($B50,ResourceList,0)),"") -> 
F51: =IFERROR(INDEX(ResourceRate,MATCH($B51,ResourceList,0)),"") -> 
F52: =IFERROR(INDEX(ResourceRate,MATCH($B52,ResourceList,0)),"") -> 
F53: =IFERROR(INDEX(ResourceRate,MATCH($B53,ResourceList,0)),"") -> 
B55: Unit Rate | E55: $/Lm | F55: =IFERROR(H55/$D$25,0) -> 0 | H55: =SUM($H$41:$H$53) -> 0
B57: Calculations - Individual Site Greater than 500m
B59: Average Travel Time from One Site to Other | E59: hrs
B60: Production | E60: m2/hr
B61: Time to Set Up and Remove Traffic Control Devices for Each Section | E61: hrs
B63: Resource | D63: Required? | E63: Unit | F63: Rate | G63: Quantity | H63: Total
B64: Foreman and Vehicle | E64: =IFERROR(INDEX(ResourceUnit,MATCH($B64,ResourceList,0)),"") -> hr | F64: =IF(D64=Yes,IFERROR(INDEX(ResourceRate,MATCH($B64,ResourceList,0)),""),"") ->  | G64: =IFERROR(((D30*D31*D22)/D60+D32*(D59+D61))*(D64=Yes),"") ->  | H64: =IFERROR(F64*G64,"") -> 
B65: Job Truck without Operator | E65: hr | G65: =IFERROR(((D30*D31)/D60+D32*(D59+D61))*(D65=Yes),"") -> 
B66: Labourer - Traffic Control | E66: hr | G66: =(Two*(D32*(D61+D59)))*(D66=Yes) -> 0 | I66: This is for two persons for travel time and set up and removal of traffic control
B67: Grader and Operator | E67: hr | G67: =IFERROR((((D30*D31)/D60)+D32*D59)*(D67=Yes),"") -> 
B68: Labourer - Traffic Control | E68: hr | G68: =IFERROR(((D30*D31)/D60)*Two*(D68=Yes),"") ->  | I68: This is for two persons whilst works are being carried out
B69: Ablution Block | E69: hr | G69: =IFERROR(((D30*D31)/D60+D32*(D59+D61))*(D69=Yes),"") -> 
B70: Camp - Kitchen | E70: hr | G70: =IFERROR(((D30*D31)/D60+D32*(D59+D61))*(D70=Yes),"") -> 
B71: Accommodation | E71: hr | G71: =IFERROR((((D30*D31)/D60+D32*(D59+D61))*One)*(D71=Yes),"") ->  | I71: This is accommodation provision for one person
F72: =IFERROR(INDEX(ResourceRate,MATCH($B72,ResourceList,0)),"") ->  | I72: Select from dropdown for additional resources/equipment as appropriate
F73: =IFERROR(INDEX(ResourceRate,MATCH($B73,ResourceList,0)),"") -> 
F74: =IFERROR(INDEX(ResourceRate,MATCH($B74,ResourceList,0)),"") -> 
F75: =IFERROR(INDEX(ResourceRate,MATCH($B75,ResourceList,0)),"") -> 
F76: =IFERROR(INDEX(ResourceRate,MATCH($B76,ResourceList,0)),"") -> 
B78: Unit Rate | E78: $/Lm | F78: =IFERROR(H78/$D$30,0) -> 0 | H78: =SUM($H$64:$H$76) -> 0
B80: Summary
B82: Overall Unit Rate | E82: $/Lm | F82: =IFERROR(H82/SUM($D$25,$D$30),0) -> 0 | H82: =H55+H78 -> 0
B84: End of Worksheet

Sheet ST1_5 (hidden)
A1: Disaster Recovery Funding Arrangements
A2: Cost Estimation Tool | F2: ="Total quantity ("&E25&"):" -> Total quantity (Lm): | G2: =SUM(D25,D30) -> 0
A3: =Version_No -> Version 1.0 - Oct 18 | F3: ="Cost per unit ("&E82&"):" -> Cost per unit ($/Lm): | G3: =F82 -> 0
A4: =E8 -> ST1_5 | B4: =INDEX(Gen_A!$D$37:$D$61,MATCH(REPLACE(E8,FIND("_",E8),Three,""),Gen_A!$C$37:$C$61,0)) -> Light Formation Grading | F4: Total cost of treatment ($): | G4: =H82 -> 0
A5: Link to Claim Summary
B6: Asset Details
B8: Treatment ID | E8: =REPLACE(CELL("filename",A1),1,FIND("]",CELL("filename",A1)),"") -> ST1_5
B9: Event Name | E9: =IF(ISBLANK(EventName),"",EventName) -> December Flood
B10: Asset ID | E10: =IF(ISBLANK(AssetID),"",AssetID) -> RDS003819
B11: Asset Name | E11: =IF(ISBLANK(AssetName),"",AssetName) -> Ballan-Egerton Road
B12: Start Chainage
B13: Finish Chainage
B14: Start Latitude
B15: Start Longitude
B16: End Latitude
B17: End Longitude
B19: Applicant Inputs
B21: Variable
B22: Percentage of Duration Requiring Supervision | E22: %
B24: Individual Site - Less than 500m
B25: Quantity | E25: Lm | I25: Total Length of Light Formation Grading for this site size
B26: Road Width | E26: Lm
B27: No. of Sites | E27: #
B29: Individual Site - Greater than 500m
B30: Quantity | E30: Lm | I30: Total Length of Light Formation Grading for this site size
B31: Road Width | E31: Lm
B32: No. of Sites | E32: #
B34: Calculations - Individual Site Less than 500m
B36: Average Travel Time from One Site to Other | E36: hrs
B37: Production | E37: m2/hr
B38: Time to Set Up and Remove Traffic Control Devices for Each Section | E38: hrs
B40: Resource | D40: Required? | E40: Unit | F40: Rate | G40: Quantity | H40: Total
B41: Foreman and Vehicle | E41: =IFERROR(INDEX(ResourceUnit,MATCH($B41,ResourceList,0)),"") -> hr | F41: =IF(D41=Yes,IFERROR(INDEX(ResourceRate,MATCH($B41,ResourceList,0)),""),"") ->  | G41: =IFERROR(((D25*D26*D22)/D37+D27*(D36+D38))*(D41=Yes),"") ->  | H41: =IFERROR(F41*G41,"") -> 
B42: Job Truck without Operator | E42: hr | G42: =IFERROR(((D25*D26)/D37+D27*(D36+D38))*(D42=Yes),"") -> 
B43: Labourer - Traffic Control | E43: hr | G43: =IFERROR((Two*(D27*(D38+D36)))*(D43=Yes),"") -> 0 | I43: This is for two persons for travel time and set up and removal of traffic control
B44: Grader and Operator | E44: hr | G44: =IFERROR((((D25*D26/D37+D27*D36)))*(D44=Yes),"") -> 
B45: Labourer - Traffic Control | E45: hr | G45: =IFERROR(((D25*D26/D37)*Two)*(D45=Yes),"") ->  | I45: This is for two persons whilst works are being carried out
B46: Ablution Block | E46: hr | G46: =IFERROR(((D25*D26/D37+D27*(D36+D38)))*(D46=Yes),"") -> 
B47: Camp - Kitchen | E47: hr | G47: =IFERROR(((D25*D26/D37+D27*(D36+D38)))*(D47=Yes),"") -> 
B48: Accommodation | E48: hr | G48: =IFERROR((((D25*D26/D37+D27*(D36+D38)))*One)*(D48=Yes),"") ->  | I48: This is accommodation provision for one person
F49: =IFERROR(INDEX(ResourceRate,MATCH($B49,ResourceList,0)),"") ->  | I49: Select from dropdown for additional resources/equipment as appropriate
F50: =IFERROR(INDEX(ResourceRate,MATCH($B50,ResourceList,0)),"") -> 
F51: =IFERROR(INDEX(ResourceRate,MATCH($B51,ResourceList,0)),"") -> 
F52: =IFERROR(INDEX(ResourceRate,MATCH($B52,ResourceList,0)),"") -> 
F53: =IFERROR(INDEX(ResourceRate,MATCH($B53,ResourceList,0)),"") -> 
B55: Unit Rate | E55: $/Lm | F55: =IFERROR(H55/$D$25,0) -> 0 | H55: =SUM($H$41:$H$53) -> 0
B57: Calculations - Individual Site Greater than 500m
B59: Average Travel Time from One Site to Other | E59: hrs
B60: Production | E60: m2/hr
B61: Time to Set Up and Remove Traffic Control Devices for Each Section | E61: hrs
B63: Resource | D63: Required? | E63: Unit | F63: Rate | G63: Quantity | H63: Total
B64: Foreman and Vehicle | E64: =IFERROR(INDEX(ResourceUnit,MATCH($B64,ResourceList,0)),"") -> hr | F64: =IF(D64=Yes,IFERROR(INDEX(ResourceRate,MATCH($B64,ResourceList,0)),""),"") ->  | G64: =IFERROR(((D30*D31*D22)/D60+D32*(D59+D61))*(D64=Yes),"") ->  | H64: =IFERROR(F64*G64,"") -> 
B65: Job Truck without Operator | E65: hr | G65: =IFERROR(((D30*D31)/D60+D32*(D59+D61))*(D65=Yes),"") -> 
B66: Labourer - Traffic Control | E66: hr | G66: =(Two*(D32*(D61+D59)))*(D66=Yes) -> 0 | I66: This is for two persons for travel time and set up and removal of traffic control
B67: Grader and Operator | E67: hr | G67: =IFERROR((((D30*D31)/D60)+D32*D59)*(D67=Yes),"") -> 
B68: Labourer - Traffic Control | E68: hr | G68: =IFERROR(((D30*D31)/D60)*Two*(D68=Yes),"") ->  | I68: This is for two persons whilst works are being carried out
B69: Ablution Block | E69: hr | G69: =IFERROR(((D30*D31)/D60+D32*(D59+D61))*(D69=Yes),"") -> 
B70: Camp - Kitchen | E70: hr | G70: =IFERROR(((D30*D31)/D60+D32*(D59+D61))*(D70=Yes),"") -> 
B71: Accommodation | E71: hr | G71: =IFERROR((((D30*D31)/D60+D32*(D59+D61))*One)*(D71=Yes),"") ->  | I71: This is accommodation provision for one person
F72: =IFERROR(INDEX(ResourceRate,MATCH($B72,ResourceList,0)),"") ->  | I72: Select from dropdown for additional resources/equipment as appropriate
F73: =IFERROR(INDEX(ResourceRate,MATCH($B73,ResourceList,0)),"") -> 
F74: =IFERROR(INDEX(ResourceRate,MATCH($B74,ResourceList,0)),"") -> 
F75: =IFERROR(INDEX(ResourceRate,MATCH($B75,ResourceList,0)),"") -> 
F76: =IFERROR(INDEX(ResourceRate,MATCH($B76,ResourceList,0)),"") -> 
B78: Unit Rate | E78: $/Lm | F78: =IFERROR(H78/$D$30,0) -> 0 | H78: =SUM($H$64:$H$76) -> 0
B80: Summary
B82: Overall Unit Rate | E82: $/Lm | F82: =IFERROR(H82/SUM($D$25,$D$30),0) -> 0 | H82: =H55+H78 -> 0
B84: End of Worksheet

Sheet ST1_6 (hidden)
A1: Disaster Recovery Funding Arrangements
A2: Cost Estimation Tool | F2: ="Total quantity ("&E25&"):" -> Total quantity (Lm): | G2: =SUM(D25,D30) -> 0
A3: =Version_No -> Version 1.0 - Oct 18 | F3: ="Cost per unit ("&E82&"):" -> Cost per unit ($/Lm): | G3: =F82 -> 0
A4: =E8 -> ST1_6 | B4: =INDEX(Gen_A!$D$37:$D$61,MATCH(REPLACE(E8,FIND("_",E8),Three,""),Gen_A!$C$37:$C$61,0)) -> Light Formation Grading | F4: Total cost of treatment ($): | G4: =H82 -> 0
A5: Link to Claim Summary
B6: Asset Details
B8: Treatment ID | E8: =REPLACE(CELL("filename",A1),1,FIND("]",CELL("filename",A1)),"") -> ST1_6
B9: Event Name | E9: =IF(ISBLANK(EventName),"",EventName) -> December Flood
B10: Asset ID | E10: =IF(ISBLANK(AssetID),"",AssetID) -> RDS003819
B11: Asset Name | E11: =IF(ISBLANK(AssetName),"",AssetName) -> Ballan-Egerton Road
B12: Start Chainage
B13: Finish Chainage
B14: Start Latitude
B15: Start Longitude
B16: End Latitude
B17: End Longitude
B19: Applicant Inputs
B21: Variable
B22: Percentage of Duration Requiring Supervision | E22: %
B24: Individual Site - Less than 500m
B25: Quantity | E25: Lm | I25: Total Length of Light Formation Grading for this site size
B26: Road Width | E26: Lm
B27: No. of Sites | E27: #
B29: Individual Site - Greater than 500m
B30: Quantity | E30: Lm | I30: Total Length of Light Formation Grading for this site size
B31: Road Width | E31: Lm
B32: No. of Sites | E32: #
B34: Calculations - Individual Site Less than 500m
B36: Average Travel Time from One Site to Other | E36: hrs
B37: Production | E37: m2/hr
B38: Time to Set Up and Remove Traffic Control Devices for Each Section | E38: hrs
B40: Resource | D40: Required? | E40: Unit | F40: Rate | G40: Quantity | H40: Total
B41: Foreman and Vehicle | E41: =IFERROR(INDEX(ResourceUnit,MATCH($B41,ResourceList,0)),"") -> hr | F41: =IF(D41=Yes,IFERROR(INDEX(ResourceRate,MATCH($B41,ResourceList,0)),""),"") ->  | G41: =IFERROR(((D25*D26*D22)/D37+D27*(D36+D38))*(D41=Yes),"") ->  | H41: =IFERROR(F41*G41,"") -> 
B42: Job Truck without Operator | E42: hr | G42: =IFERROR(((D25*D26)/D37+D27*(D36+D38))*(D42=Yes),"") -> 
B43: Labourer - Traffic Control | E43: hr | G43: =IFERROR((Two*(D27*(D38+D36)))*(D43=Yes),"") -> 0 | I43: This is for two persons for travel time and set up and removal of traffic control
B44: Grader and Operator | E44: hr | G44: =IFERROR((((D25*D26/D37+D27*D36)))*(D44=Yes),"") -> 
B45: Labourer - Traffic Control | E45: hr | G45: =IFERROR(((D25*D26/D37)*Two)*(D45=Yes),"") ->  | I45: This is for two persons whilst works are being carried out
B46: Ablution Block | E46: hr | G46: =IFERROR(((D25*D26/D37+D27*(D36+D38)))*(D46=Yes),"") -> 
B47: Camp - Kitchen | E47: hr | G47: =IFERROR(((D25*D26/D37+D27*(D36+D38)))*(D47=Yes),"") -> 
B48: Accommodation | E48: hr | G48: =IFERROR((((D25*D26/D37+D27*(D36+D38)))*One)*(D48=Yes),"") ->  | I48: This is accommodation provision for one person
F49: =IFERROR(INDEX(ResourceRate,MATCH($B49,ResourceList,0)),"") ->  | I49: Select from dropdown for additional resources/equipment as appropriate
F50: =IFERROR(INDEX(ResourceRate,MATCH($B50,ResourceList,0)),"") -> 
F51: =IFERROR(INDEX(ResourceRate,MATCH($B51,ResourceList,0)),"") -> 
F52: =IFERROR(INDEX(ResourceRate,MATCH($B52,ResourceList,0)),"") -> 
F53: =IFERROR(INDEX(ResourceRate,MATCH($B53,ResourceList,0)),"") -> 
B55: Unit Rate | E55: $/Lm | F55: =IFERROR(H55/$D$25,0) -> 0 | H55: =SUM($H$41:$H$53) -> 0
B57: Calculations - Individual Site Greater than 500m
B59: Average Travel Time from One Site to Other | E59: hrs
B60: Production | E60: m2/hr
B61: Time to Set Up and Remove Traffic Control Devices for Each Section | E61: hrs
B63: Resource | D63: Required? | E63: Unit | F63: Rate | G63: Quantity | H63: Total
B64: Foreman and Vehicle | E64: =IFERROR(INDEX(ResourceUnit,MATCH($B64,ResourceList,0)),"") -> hr | F64: =IF(D64=Yes,IFERROR(INDEX(ResourceRate,MATCH($B64,ResourceList,0)),""),"") ->  | G64: =IFERROR(((D30*D31*D22)/D60+D32*(D59+D61))*(D64=Yes),"") ->  | H64: =IFERROR(F64*G64,"") -> 
B65: Job Truck without Operator | E65: hr | G65: =IFERROR(((D30*D31)/D60+D32*(D59+D61))*(D65=Yes),"") -> 
B66: Labourer - Traffic Control | E66: hr | G66: =(Two*(D32*(D61+D59)))*(D66=Yes) -> 0 | I66: This is for two persons for travel time and set up and removal of traffic control
B67: Grader and Operator | E67: hr | G67: =IFERROR((((D30*D31)/D60)+D32*D59)*(D67=Yes),"") -> 
B68: Labourer - Traffic Control | E68: hr | G68: =IFERROR(((D30*D31)/D60)*Two*(D68=Yes),"") ->  | I68: This is for two persons whilst works are being carried out
B69: Ablution Block | E69: hr | G69: =IFERROR(((D30*D31)/D60+D32*(D59+D61))*(D69=Yes),"") -> 
B70: Camp - Kitchen | E70: hr | G70: =IFERROR(((D30*D31)/D60+D32*(D59+D61))*(D70=Yes),"") -> 
B71: Accommodation | E71: hr | G71: =IFERROR((((D30*D31)/D60+D32*(D59+D61))*One)*(D71=Yes),"") ->  | I71: This is accommodation provision for one person
F72: =IFERROR(INDEX(ResourceRate,MATCH($B72,ResourceList,0)),"") ->  | I72: Select from dropdown for additional resources/equipment as appropriate
F73: =IFERROR(INDEX(ResourceRate,MATCH($B73,ResourceList,0)),"") -> 
F74: =IFERROR(INDEX(ResourceRate,MATCH($B74,ResourceList,0)),"") -> 
F75: =IFERROR(INDEX(ResourceRate,MATCH($B75,ResourceList,0)),"") -> 
F76: =IFERROR(INDEX(ResourceRate,MATCH($B76,ResourceList,0)),"") -> 
B78: Unit Rate | E78: $/Lm | F78: =IFERROR(H78/$D$30,0) -> 0 | H78: =SUM($H$64:$H$76) -> 0
B80: Summary
B82: Overall Unit Rate | E82: $/Lm | F82: =IFERROR(H82/SUM($D$25,$D$30),0) -> 0 | H82: =H55+H78 -> 0
B84: End of Worksheet

Sheet ST2_1 (hidden)
A1: Disaster Recovery Funding Arrangements
A2: Cost Estimation Tool | F2: ="Total quantity ("&E25&"):" -> Total quantity (Lm): | G2: =SUM(D25,D30,D35) -> 0
A3: =Version_No -> Version 1.0 - Oct 18 | F3: ="Cost per unit ("&E125&"):" -> Cost per unit ($/Lm): | G3: =F125 -> 0
A4: =E8 -> ST2_1 | B4: =INDEX(Gen_A!$D$37:$D$61,MATCH(REPLACE(E8,FIND("_",E8),Three,""),Gen_A!$C$37:$C$61,0)) -> Medium Formation Grading | F4: Total cost of treatment ($): | G4: =G125 -> 0
A5: Link to Claim Summary
B6: Asset Details
B8: Treatment ID | E8: =REPLACE(CELL("filename",A1),1,FIND("]",CELL("filename",A1)),"") -> ST2_1
B9: Event Name | E9: =IF(ISBLANK(EventName),"",EventName) -> December Flood
B10: Asset ID | E10: =IF(ISBLANK(AssetID),"",AssetID) -> RDS003819
B11: Asset Name | E11: =IF(ISBLANK(AssetName),"",AssetName) -> Ballan-Egerton Road
B12: Start Chainage
B13: Finish Chainage
B14: Start Latitude
B15: Start Longitude
B16: End Latitude
B17: End Longitude
B19: Applicant Inputs
B21: Variable
B22: Percentage of Duration Requiring Supervision | E22: %
B24: Individual Site - Less than 300m
B25: Quantity | E25: Lm | I25: Total Length of Medium Formation Grading for this site size
B26: Road Width | E26: m
B27: No of Sites | E27: #
B29: Individual Site - Greater than 300m and less than 750m
B30: Quantity | E30: Lm | I30: Total Length of Medium Formation Grading for this site size
B31: Road Width | E31: m
B32: No of Sites | E32: #
B34: Individual Site - Greater than 750m
B35: Quantity | E35: Lm | I35: Total Length of Medium Formation Grading for this site size
B36: Road Width | E36: m
B37: No of Sites | E37: #
B39: Calculations - Individual Site Less than 300m
B41: Average Travel Time from One Site to Other | E41: hrs
B42: Production | E42: m2/hr
B43: Time to Set Up and Remove Traffic Control Devices for Each Section | E43: hrs
B45: Resource | D45: Required? | E45: Unit | F45: Rate | G45: Quantity | H45: Total
B46: Foreman and Vehicle | E46: =IFERROR(INDEX(ResourceUnit,MATCH($B46,ResourceList,0)),"") -> hr | F46: =IF(D46=Yes,IFERROR(INDEX(ResourceRate,MATCH($B46,ResourceList,0)),""),"") ->  | G46: =IFERROR(($D$25/($D$42/$D$26)*$D$22+($D$27*($D$41+$D$43)))*(D46=Yes),"") ->  | H46: =IFERROR(F46*G46,"") -> 
B47: Job Truck without Operator | E47: hr | G47: =IFERROR((D25/(D42/D26)+(D27*(D41+D43)))*(D47=Yes),"") ->  | H47: =IFERROR(F47*G47,"") -> 
B48: Labourer - Traffic Control | E48: hr | G48: =IFERROR((Two*(D27*(D41+D43)))*(D48=Yes),"") -> 0 | I48: This is for two person for travel time and set up and removal of traffic control
B49: Grader and Operator | E49: hr | G49: =IFERROR(((D25/(D42/D26)+D27*D41))*(D49=Yes),"") -> 
B50: Water Truck | E50: hr | G50: =IFERROR(((D25/(D42/D26)+D27*D41))*(D50=Yes),"") -> 
B51: Pad Foot Roller and Operator | E51: hr | G51: =IFERROR((D25/(D42/D26))*(D51=Yes),"") -> 
B52: Smooth Drum Roller and Operator | E52: hr | G52: =IFERROR((D25/(D42/D26))*(D52=Yes),"") -> 
B53: Multi-Tyre Roller Without Operator | E53: hr | G53: =IFERROR((D25/(D42/D26))*(D53=Yes),"") -> 
B54: Prime Mover/L Bed | E54: hr | G54: =IFERROR((Three*(D41*Two+Half)*D27)*(D54=Yes),"") -> 0 | I54: This is for the movement between sites of three plant items
B55: Labourer - Traffic Control | E55: hr | G55: =IFERROR((Two*(D25/(D42/D26)))*(D55=Yes),"") ->  | I55: This is for two persons whilst works are being carried out
B56: Ablution Block | E56: hr | G56: =IFERROR(((D25/(D42/D26))+(D27*(D41+D43)))*(D56=Yes),"") -> 
B57: Camp - Kitchen | E57: hr | G57: =IFERROR(((D25/(D42/D26))+(D27*(D41+D43)))*(D57=Yes),"") -> 
B58: Accommodation | E58: hr | G58: =IFERROR((((D25/(D42/D26))+(D27*(D41+D43)))*Three)*(D58=Yes),"") ->  | I58: This is accommodation provision for three persons
F59: =IFERROR(INDEX(ResourceRate,MATCH($B59,ResourceList,0)),"") ->  | I59: Select from dropdown for additional resources/equipment as appropriate
F60: =IFERROR(INDEX(ResourceRate,MATCH($B60,ResourceList,0)),"") -> 
F61: =IFERROR(INDEX(ResourceRate,MATCH($B61,ResourceList,0)),"") -> 
F62: =IFERROR(INDEX(ResourceRate,MATCH($B62,ResourceList,0)),"") -> 
F63: =IFERROR(INDEX(ResourceRate,MATCH($B63,ResourceList,0)),"") -> 
B65: Unit Rate | E65: $/Lm | F65: =IFERROR(H65/$D$25,0) -> 0 | H65: =SUM($H$46:$H$63) -> 0
B67: Calculations - Individual Site Greater than 300m and less than 750m
B69: Average Travel Time from One Site to Other | E69: hrs
B70: Production | E70: m2/hr
B71: Time to Set Up and Remove Traffic Control Devices for Each Section | E71: hrs
B73: Resource | D73: Required? | E73: Unit | F73: Rate | G73: Quantity | H73: Total
B74: Foreman and Vehicle | E74: =IFERROR(INDEX(ResourceUnit,MATCH($B74,ResourceList,0)),"") -> hr | F74: =IF(D74=Yes,IFERROR(INDEX(ResourceRate,MATCH($B74,ResourceList,0)),""),"") ->  | G74: =IFERROR(((D30/(D70/D31))*D22+(D32*(D69+D71)))*(D74=Yes),"") ->  | H74: =IFERROR(F74*G74,"") -> 
B75: Job Truck without Operator | E75: hr | G75: =IFERROR(((D30/(D70/D31))+(D32*(D69+D71)))*(D75=Yes),"") ->  | H75: =IFERROR(F75*G75,"") -> 
B76: Labourer - Traffic Control | E76: hr | G76: =IFERROR((Two*(D32*(D69+D71)))*(D76=Yes),"") -> 0 | I76: This is for two person for travel time and set up and removal of traffic control
B77: Grader and Operator | E77: hr | G77: =IFERROR((D30/(D70/D31)+(D32*D69))*(D77=Yes),"") -> 
B78: Water Truck | E78: hr | G78: =IFERROR((D30/(D70/D31)+(D32*D69))*(D78=Yes),"") -> 
B79: Pad Foot Roller and Operator | E79: hr | G79: =IFERROR((D30/(D70/D31))*(D79=Yes),"") -> 
B80: Smooth Drum Roller and Operator | E80: hr | G80: =IFERROR((D30/(D70/D31))*(D80=Yes),"") -> 
B81: Multi-Tyre Roller Without Operator | E81: hr | G81: =IFERROR((D30/(D70/D31))*(D81=Yes),"") -> 
B82: Prime Mover/L Bed | E82: hr | G82: =IFERROR((Three*(D69*Two+Half)*D32)*(D82=Yes),"") -> 0 | I82: This is for the movement between sites of three plant items
B83: Labourer - Traffic Control | E83: hr | G83: =IFERROR((Two*(D30/(D70/D31)))*(D83=Yes),"") ->  | I83: This is for two persons whilst works are being carried out
B84: Ablution Block | E84: hr | G84: =IFERROR((D30/(D70/D31)+(D32*(D69+D71)))*(D84=Yes),"") -> 
B85: Camp - Kitchen | E85: hr | G85: =IFERROR((D30/(D70/D31)+(D32*(D69+D71)))*(D85=Yes),"") -> 
B86: Accommodation | E86: hr | G86: =IFERROR(((D30/(D70/D31)+(D32*(D69+D71)))*Three)*(D86=Yes),"") ->  | I86: This is accommodation provision for three persons
F87: =IFERROR(INDEX(ResourceRate,MATCH($B87,ResourceList,0)),"") ->  | I87: Select from dropdown for additional resources/equipment as appropriate
F88: =IFERROR(INDEX(ResourceRate,MATCH($B88,ResourceList,0)),"") -> 
F89: =IFERROR(INDEX(ResourceRate,MATCH($B89,ResourceList,0)),"") -> 
F90: =IFERROR(INDEX(ResourceRate,MATCH($B90,ResourceList,0)),"") -> 
F91: =IFERROR(INDEX(ResourceRate,MATCH($B91,ResourceList,0)),"") -> 
B93: Unit Rate | E93: $/Lm | F93: =IFERROR(H93/$D$30,0) -> 0 | H93: =SUM($H$74:$H$91) -> 0
B95: Calculations - Individual Site Greater than 750m
B97: Average Travel Time from One Site to Other | E97: hrs
B98: Production | E98: m2/hr
B99: Time to Set Up and Remove Traffic Control Devices for Each Section | E99: hrs
B101: Resource | D101: Required? | E101: Unit | F101: Rate | G101: Quantity | H101: Total
B102: Foreman and Vehicle | E102: =IFERROR(INDEX(ResourceUnit,MATCH($B102,ResourceList,0)),"") -> hr | F102: =IF(D102=Yes,IFERROR(INDEX(ResourceRate,MATCH($B102,ResourceList,0)),""),"") ->  | G102: =IFERROR((D35/(D98/D36)*D22+(D37*(D97+D99)))*(D102=Yes),"") ->  | H102: =IFERROR(F102*G102,"") -> 
B103: Job Truck without Operator | E103: hr | G103: =IFERROR((D35/(D98/D36)+(D37*(D97+D99)))*(D103=Yes),"") ->  | H103: =IFERROR(F103*G103,"") -> 
B104: Labourer - Traffic Control | E104: hr | G104: =IFERROR((Two*(D37*(D97+D99)))*(D104=Yes),"") -> 0 | I104: This is for two persons for travel time and set up and removal of traffic control
B105: Grader and Operator | E105: hr | G105: =IFERROR((D35/(D98/D36)+(D37*D97))*(D105=Yes),"") -> 
B106: Water Truck | E106: hr | G106: =IFERROR((D35/(D98/D36)+(D37*D97))*(D106=Yes),"") -> 
B107: Pad Foot Roller and Operator | E107: hr | G107: =IFERROR((D35/(D98/D36))*(D107=Yes),"") -> 
B108: Smooth Drum Roller and Operator | E108: hr | G108: =IFERROR((D35/(D98/D36))*(D108=Yes),"") -> 
B109: Multi-Tyre Roller Without Operator | E109: hr | G109: =IFERROR((D35/(D98/D36))*(D109=Yes),"") -> 
B110: Prime Mover/L Bed | E110: hr | G110: =IFERROR((Three*(D97*Two+Half)*D37)*(D110=Yes),"") -> 0 | I110: This is for the movement between sites of three plant items
B111: Labourer - Traffic Control | E111: hr | G111: =IFERROR((Two*(D35/(D98/D36)))*(D111=Yes),"") ->  | I111: This is for two persons whilst works are being carried out
B112: Ablution Block | E112: hr | G112: =IFERROR((D35/(D98/D36)+(D37*(D97+D99)))*(D112=Yes),"") -> 
B113: Camp - Kitchen | E113: hr | G113: =IFERROR((D35/(D98/D36)+(D37*(D97+D99)))*(D113=Yes),"") -> 
B114: Accommodation | E114: hr | G114: =IFERROR((D35/(D98/D36)+(D37*(D97+D99)))*Three*(D114=Yes),"") ->  | I114: This is accommodation provision for three persons
F115: =IFERROR(INDEX(ResourceRate,MATCH($B115,ResourceList,0)),"") ->  | I115: Select from dropdown for additional resources/equipment as appropriate
F116: =IFERROR(INDEX(ResourceRate,MATCH($B116,ResourceList,0)),"") -> 
F117: =IFERROR(INDEX(ResourceRate,MATCH($B117,ResourceList,0)),"") -> 
F118: =IFERROR(INDEX(ResourceRate,MATCH($B118,ResourceList,0)),"") -> 
F119: =IFERROR(INDEX(ResourceRate,MATCH($B119,ResourceList,0)),"") -> 
B121: Unit Rate | E121: $/Lm | F121: =IFERROR(H121/$D$35,0) -> 0 | H121: =SUM($H$102:$H$119) -> 0
B123: Summary
B125: Overall Unit Rate | E125: $/Lm | F125: =IFERROR(H125/SUM($D$25,$D$30,$D$35),0) -> 0 | H125: =H65+H93+H121 -> 0
A127: End of Worksheet

Sheet ST2_2 (hidden)
A1: Disaster Recovery Funding Arrangements
A2: Cost Estimation Tool | F2: ="Total quantity ("&E25&"):" -> Total quantity (Lm): | G2: =SUM(D25,D30,D35) -> 0
A3: =Version_No -> Version 1.0 - Oct 18 | F3: ="Cost per unit ("&E125&"):" -> Cost per unit ($/Lm): | G3: =F125 -> 0
A4: =E8 -> ST2_2 | B4: =INDEX(Gen_A!$D$37:$D$61,MATCH(REPLACE(E8,FIND("_",E8),Three,""),Gen_A!$C$37:$C$61,0)) -> Medium Formation Grading | F4: Total cost of treatment ($): | G4: =G125 -> 0
A5: Link to Claim Summary
B6: Asset Details
B8: Treatment ID | E8: =REPLACE(CELL("filename",A1),1,FIND("]",CELL("filename",A1)),"") -> ST2_2
B9: Event Name | E9: =IF(ISBLANK(EventName),"",EventName) -> December Flood
B10: Asset ID | E10: =IF(ISBLANK(AssetID),"",AssetID) -> RDS003819
B11: Asset Name | E11: =IF(ISBLANK(AssetName),"",AssetName) -> Ballan-Egerton Road
B12: Start Chainage
B13: Finish Chainage
B14: Start Latitude
B15: Start Longitude
B16: End Latitude
B17: End Longitude
B19: Applicant Inputs
B21: Variable
B22: Percentage of Duration Requiring Supervision | E22: %
B24: Individual Site - Less than 300m
B25: Quantity | E25: Lm | I25: Total Length of Medium Formation Grading for this site size
B26: Road Width | E26: m
B27: No of Sites | E27: #
B29: Individual Site - Greater than 300m and less than 750m
B30: Quantity | E30: Lm | I30: Total Length of Medium Formation Grading for this site size
B31: Road Width | E31: m
B32: No of Sites | E32: #
B34: Individual Site - Greater than 750m
B35: Quantity | E35: Lm | I35: Total Length of Medium Formation Grading for this site size
B36: Road Width | E36: m
B37: No of Sites | E37: #
B39: Calculations - Individual Site Less than 300m
B41: Average Travel Time from One Site to Other | E41: hrs
B42: Production | E42: m2/hr
B43: Time to Set Up and Remove Traffic Control Devices for Each Section | E43: hrs
B45: Resource | D45: Required? | E45: Unit | F45: Rate | G45: Quantity | H45: Total
B46: Foreman and Vehicle | E46: =IFERROR(INDEX(ResourceUnit,MATCH($B46,ResourceList,0)),"") -> hr | F46: =IF(D46=Yes,IFERROR(INDEX(ResourceRate,MATCH($B46,ResourceList,0)),""),"") ->  | G46: =IFERROR(($D$25/($D$42/$D$26)*$D$22+($D$27*($D$41+$D$43)))*(D46=Yes),"") ->  | H46: =IFERROR(F46*G46,"") -> 
B47: Job Truck without Operator | E47: hr | G47: =IFERROR((D25/(D42/D26)+(D27*(D41+D43)))*(D47=Yes),"") ->  | H47: =IFERROR(F47*G47,"") -> 
B48: Labourer - Traffic Control | E48: hr | G48: =IFERROR((Two*(D27*(D41+D43)))*(D48=Yes),"") -> 0 | I48: This is for two person for travel time and set up and removal of traffic control
B49: Grader and Operator | E49: hr | G49: =IFERROR(((D25/(D42/D26)+D27*D41))*(D49=Yes),"") -> 
B50: Water Truck | E50: hr | G50: =IFERROR(((D25/(D42/D26)+D27*D41))*(D50=Yes),"") -> 
B51: Pad Foot Roller and Operator | E51: hr | G51: =IFERROR((D25/(D42/D26))*(D51=Yes),"") -> 
B52: Smooth Drum Roller and Operator | E52: hr | G52: =IFERROR((D25/(D42/D26))*(D52=Yes),"") -> 
B53: Multi-Tyre Roller Without Operator | E53: hr | G53: =IFERROR((D25/(D42/D26))*(D53=Yes),"") -> 
B54: Prime Mover/L Bed | E54: hr | G54: =IFERROR((Three*(D41*Two+Half)*D27)*(D54=Yes),"") -> 0 | I54: This is for the movement between sites of three plant items
B55: Labourer - Traffic Control | E55: hr | G55: =IFERROR((Two*(D25/(D42/D26)))*(D55=Yes),"") ->  | I55: This is for two persons whilst works are being carried out
B56: Ablution Block | E56: hr | G56: =IFERROR(((D25/(D42/D26))+(D27*(D41+D43)))*(D56=Yes),"") -> 
B57: Camp - Kitchen | E57: hr | G57: =IFERROR(((D25/(D42/D26))+(D27*(D41+D43)))*(D57=Yes),"") -> 
B58: Accommodation | E58: hr | G58: =IFERROR((((D25/(D42/D26))+(D27*(D41+D43)))*Three)*(D58=Yes),"") ->  | I58: This is accommodation provision for three persons
F59: =IFERROR(INDEX(ResourceRate,MATCH($B59,ResourceList,0)),"") ->  | I59: Select from dropdown for additional resources/equipment as appropriate
F60: =IFERROR(INDEX(ResourceRate,MATCH($B60,ResourceList,0)),"") -> 
F61: =IFERROR(INDEX(ResourceRate,MATCH($B61,ResourceList,0)),"") -> 
F62: =IFERROR(INDEX(ResourceRate,MATCH($B62,ResourceList,0)),"") -> 
F63: =IFERROR(INDEX(ResourceRate,MATCH($B63,ResourceList,0)),"") -> 
B65: Unit Rate | E65: $/Lm | F65: =IFERROR(H65/$D$25,0) -> 0 | H65: =SUM($H$46:$H$63) -> 0
B67: Calculations - Individual Site Greater than 300m and less than 750m
B69: Average Travel Time from One Site to Other | E69: hrs
B70: Production | E70: m2/hr
B71: Time to Set Up and Remove Traffic Control Devices for Each Section | E71: hrs
B73: Resource | D73: Required? | E73: Unit | F73: Rate | G73: Quantity | H73: Total
B74: Foreman and Vehicle | E74: =IFERROR(INDEX(ResourceUnit,MATCH($B74,ResourceList,0)),"") -> hr | F74: =IF(D74=Yes,IFERROR(INDEX(ResourceRate,MATCH($B74,ResourceList,0)),""),"") ->  | G74: =IFERROR(((D30/(D70/D31))*D22+(D32*(D69+D71)))*(D74=Yes),"") ->  | H74: =IFERROR(F74*G74,"") -> 
B75: Job Truck without Operator | E75: hr | G75: =IFERROR(((D30/(D70/D31))+(D32*(D69+D71)))*(D75=Yes),"") ->  | H75: =IFERROR(F75*G75,"") -> 
B76: Labourer - Traffic Control | E76: hr | G76: =IFERROR((Two*(D32*(D69+D71)))*(D76=Yes),"") -> 0 | I76: This is for two person for travel time and set up and removal of traffic control
B77: Grader and Operator | E77: hr | G77: =IFERROR((D30/(D70/D31)+(D32*D69))*(D77=Yes),"") -> 
B78: Water Truck | E78: hr | G78: =IFERROR((D30/(D70/D31)+(D32*D69))*(D78=Yes),"") -> 
B79: Pad Foot Roller and Operator | E79: hr | G79: =IFERROR((D30/(D70/D31))*(D79=Yes),"") -> 
B80: Smooth Drum Roller and Operator | E80: hr | G80: =IFERROR((D30/(D70/D31))*(D80=Yes),"") -> 
B81: Multi-Tyre Roller Without Operator | E81: hr | G81: =IFERROR((D30/(D70/D31))*(D81=Yes),"") -> 
B82: Prime Mover/L Bed | E82: hr | G82: =IFERROR((Three*(D69*Two+Half)*D32)*(D82=Yes),"") -> 0 | I82: This is for the movement between sites of three plant items
B83: Labourer - Traffic Control | E83: hr | G83: =IFERROR((Two*(D30/(D70/D31)))*(D83=Yes),"") ->  | I83: This is for two persons whilst works are being carried out
B84: Ablution Block | E84: hr | G84: =IFERROR((D30/(D70/D31)+(D32*(D69+D71)))*(D84=Yes),"") -> 
B85: Camp - Kitchen | E85: hr | G85: =IFERROR((D30/(D70/D31)+(D32*(D69+D71)))*(D85=Yes),"") -> 
B86: Accommodation | E86: hr | G86: =IFERROR(((D30/(D70/D31)+(D32*(D69+D71)))*Three)*(D86=Yes),"") ->  | I86: This is accommodation provision for three persons
F87: =IFERROR(INDEX(ResourceRate,MATCH($B87,ResourceList,0)),"") ->  | I87: Select from dropdown for additional resources/equipment as appropriate
F88: =IFERROR(INDEX(ResourceRate,MATCH($B88,ResourceList,0)),"") -> 
F89: =IFERROR(INDEX(ResourceRate,MATCH($B89,ResourceList,0)),"") -> 
F90: =IFERROR(INDEX(ResourceRate,MATCH($B90,ResourceList,0)),"") -> 
F91: =IFERROR(INDEX(ResourceRate,MATCH($B91,ResourceList,0)),"") -> 
B93: Unit Rate | E93: $/Lm | F93: =IFERROR(H93/$D$30,0) -> 0 | H93: =SUM($H$74:$H$91) -> 0
B95: Calculations - Individual Site Greater than 750m
B97: Average Travel Time from One Site to Other | E97: hrs
B98: Production | E98: m2/hr
B99: Time to Set Up and Remove Traffic Control Devices for Each Section | E99: hrs
B101: Resource | D101: Required? | E101: Unit | F101: Rate | G101: Quantity | H101: Total
B102: Foreman and Vehicle | E102: =IFERROR(INDEX(ResourceUnit,MATCH($B102,ResourceList,0)),"") -> hr | F102: =IF(D102=Yes,IFERROR(INDEX(ResourceRate,MATCH($B102,ResourceList,0)),""),"") ->  | G102: =IFERROR((D35/(D98/D36)*D22+(D37*(D97+D99)))*(D102=Yes),"") ->  | H102: =IFERROR(F102*G102,"") -> 
B103: Job Truck without Operator | E103: hr | G103: =IFERROR((D35/(D98/D36)+(D37*(D97+D99)))*(D103=Yes),"") ->  | H103: =IFERROR(F103*G103,"") -> 
B104: Labourer - Traffic Control | E104: hr | G104: =IFERROR((Two*(D37*(D97+D99)))*(D104=Yes),"") -> 0 | I104: This is for two persons for travel time and set up and removal of traffic control
B105: Grader and Operator | E105: hr | G105: =IFERROR((D35/(D98/D36)+(D37*D97))*(D105=Yes),"") -> 
B106: Water Truck | E106: hr | G106: =IFERROR((D35/(D98/D36)+(D37*D97))*(D106=Yes),"") -> 
B107: Pad Foot Roller and Operator | E107: hr | G107: =IFERROR((D35/(D98/D36))*(D107=Yes),"") -> 
B108: Smooth Drum Roller and Operator | E108: hr | G108: =IFERROR((D35/(D98/D36))*(D108=Yes),"") -> 
B109: Multi-Tyre Roller Without Operator | E109: hr | G109: =IFERROR((D35/(D98/D36))*(D109=Yes),"") -> 
B110: Prime Mover/L Bed | E110: hr | G110: =IFERROR((Three*(D97*Two+Half)*D37)*(D110=Yes),"") -> 0 | I110: This is for the movement between sites of three plant items
B111: Labourer - Traffic Control | E111: hr | G111: =IFERROR((Two*(D35/(D98/D36)))*(D111=Yes),"") ->  | I111: This is for two persons whilst works are being carried out
B112: Ablution Block | E112: hr | G112: =IFERROR((D35/(D98/D36)+(D37*(D97+D99)))*(D112=Yes),"") -> 
B113: Camp - Kitchen | E113: hr | G113: =IFERROR((D35/(D98/D36)+(D37*(D97+D99)))*(D113=Yes),"") -> 
B114: Accommodation | E114: hr | G114: =IFERROR((D35/(D98/D36)+(D37*(D97+D99)))*Three*(D114=Yes),"") ->  | I114: This is accommodation provision for three persons
F115: =IFERROR(INDEX(ResourceRate,MATCH($B115,ResourceList,0)),"") ->  | I115: Select from dropdown for additional resources/equipment as appropriate
F116: =IFERROR(INDEX(ResourceRate,MATCH($B116,ResourceList,0)),"") -> 
F117: =IFERROR(INDEX(ResourceRate,MATCH($B117,ResourceList,0)),"") -> 
F118: =IFERROR(INDEX(ResourceRate,MATCH($B118,ResourceList,0)),"") -> 
F119: =IFERROR(INDEX(ResourceRate,MATCH($B119,ResourceList,0)),"") -> 
B121: Unit Rate | E121: $/Lm | F121: =IFERROR(H121/$D$35,0) -> 0 | H121: =SUM($H$102:$H$119) -> 0
B123: Summary
B125: Overall Unit Rate | E125: $/Lm | F125: =IFERROR(H125/SUM($D$25,$D$30,$D$35),0) -> 0 | H125: =H65+H93+H121 -> 0
A127: End of Worksheet

Sheet ST2_3 (hidden)
A1: Disaster Recovery Funding Arrangements
A2: Cost Estimation Tool | F2: ="Total quantity ("&E25&"):" -> Total quantity (Lm): | G2: =SUM(D25,D30,D35) -> 0
A3: =Version_No -> Version 1.0 - Oct 18 | F3: ="Cost per unit ("&E125&"):" -> Cost per unit ($/Lm): | G3: =F125 -> 0
A4: =E8 -> ST2_3 | B4: =INDEX(Gen_A!$D$37:$D$61,MATCH(REPLACE(E8,FIND("_",E8),Three,""),Gen_A!$C$37:$C$61,0)) -> Medium Formation Grading | F4: Total cost of treatment ($): | G4: =G125 -> 0
A5: Link to Claim Summary
B6: Asset Details
B8: Treatment ID | E8: =REPLACE(CELL("filename",A1),1,FIND("]",CELL("filename",A1)),"") -> ST2_3
B9: Event Name | E9: =IF(ISBLANK(EventName),"",EventName) -> December Flood
B10: Asset ID | E10: =IF(ISBLANK(AssetID),"",AssetID) -> RDS003819
B11: Asset Name | E11: =IF(ISBLANK(AssetName),"",AssetName) -> Ballan-Egerton Road
B12: Start Chainage
B13: Finish Chainage
B14: Start Latitude
B15: Start Longitude
B16: End Latitude
B17: End Longitude
B19: Applicant Inputs
B21: Variable
B22: Percentage of Duration Requiring Supervision | E22: %
B24: Individual Site - Less than 300m
B25: Quantity | E25: Lm | I25: Total Length of Medium Formation Grading for this site size
B26: Road Width | E26: m
B27: No of Sites | E27: #
B29: Individual Site - Greater than 300m and less than 750m
B30: Quantity | E30: Lm | I30: Total Length of Medium Formation Grading for this site size
B31: Road Width | E31: m
B32: No of Sites | E32: #
B34: Individual Site - Greater than 750m
B35: Quantity | E35: Lm | I35: Total Length of Medium Formation Grading for this site size
B36: Road Width | E36: m
B37: No of Sites | E37: #
B39: Calculations - Individual Site Less than 300m
B41: Average Travel Time from One Site to Other | E41: hrs
B42: Production | E42: m2/hr
B43: Time to Set Up and Remove Traffic Control Devices for Each Section | E43: hrs
B45: Resource | D45: Required? | E45: Unit | F45: Rate | G45: Quantity | H45: Total
B46: Foreman and Vehicle | E46: =IFERROR(INDEX(ResourceUnit,MATCH($B46,ResourceList,0)),"") -> hr | F46: =IF(D46=Yes,IFERROR(INDEX(ResourceRate,MATCH($B46,ResourceList,0)),""),"") ->  | G46: =IFERROR(($D$25/($D$42/$D$26)*$D$22+($D$27*($D$41+$D$43)))*(D46=Yes),"") ->  | H46: =IFERROR(F46*G46,"") -> 
B47: Job Truck without Operator | E47: hr | G47: =IFERROR((D25/(D42/D26)+(D27*(D41+D43)))*(D47=Yes),"") ->  | H47: =IFERROR(F47*G47,"") -> 
B48: Labourer - Traffic Control | E48: hr | G48: =IFERROR((Two*(D27*(D41+D43)))*(D48=Yes),"") -> 0 | I48: This is for two person for travel time and set up and removal of traffic control
B49: Grader and Operator | E49: hr | G49: =IFERROR(((D25/(D42/D26)+D27*D41))*(D49=Yes),"") -> 
B50: Water Truck | E50: hr | G50: =IFERROR(((D25/(D42/D26)+D27*D41))*(D50=Yes),"") -> 
B51: Pad Foot Roller and Operator | E51: hr | G51: =IFERROR((D25/(D42/D26))*(D51=Yes),"") -> 
B52: Smooth Drum Roller and Operator | E52: hr | G52: =IFERROR((D25/(D42/D26))*(D52=Yes),"") -> 
B53: Multi-Tyre Roller Without Operator | E53: hr | G53: =IFERROR((D25/(D42/D26))*(D53=Yes),"") -> 
B54: Prime Mover/L Bed | E54: hr | G54: =IFERROR((Three*(D41*Two+Half)*D27)*(D54=Yes),"") -> 0 | I54: This is for the movement between sites of three plant items
B55: Labourer - Traffic Control | E55: hr | G55: =IFERROR((Two*(D25/(D42/D26)))*(D55=Yes),"") ->  | I55: This is for two persons whilst works are being carried out
B56: Ablution Block | E56: hr | G56: =IFERROR(((D25/(D42/D26))+(D27*(D41+D43)))*(D56=Yes),"") -> 
B57: Camp - Kitchen | E57: hr | G57: =IFERROR(((D25/(D42/D26))+(D27*(D41+D43)))*(D57=Yes),"") -> 
B58: Accommodation | E58: hr | G58: =IFERROR((((D25/(D42/D26))+(D27*(D41+D43)))*Three)*(D58=Yes),"") ->  | I58: This is accommodation provision for three persons
F59: =IFERROR(INDEX(ResourceRate,MATCH($B59,ResourceList,0)),"") ->  | I59: Select from dropdown for additional resources/equipment as appropriate
F60: =IFERROR(INDEX(ResourceRate,MATCH($B60,ResourceList,0)),"") -> 
F61: =IFERROR(INDEX(ResourceRate,MATCH($B61,ResourceList,0)),"") -> 
F62: =IFERROR(INDEX(ResourceRate,MATCH($B62,ResourceList,0)),"") -> 
F63: =IFERROR(INDEX(ResourceRate,MATCH($B63,ResourceList,0)),"") -> 
B65: Unit Rate | E65: $/Lm | F65: =IFERROR(H65/$D$25,0) -> 0 | H65: =SUM($H$46:$H$63) -> 0
B67: Calculations - Individual Site Greater than 300m and less than 750m
B69: Average Travel Time from One Site to Other | E69: hrs
B70: Production | E70: m2/hr
B71: Time to Set Up and Remove Traffic Control Devices for Each Section | E71: hrs
B73: Resource | D73: Required? | E73: Unit | F73: Rate | G73: Quantity | H73: Total
B74: Foreman and Vehicle | E74: =IFERROR(INDEX(ResourceUnit,MATCH($B74,ResourceList,0)),"") -> hr | F74: =IF(D74=Yes,IFERROR(INDEX(ResourceRate,MATCH($B74,ResourceList,0)),""),"") ->  | G74: =IFERROR(((D30/(D70/D31))*D22+(D32*(D69+D71)))*(D74=Yes),"") ->  | H74: =IFERROR(F74*G74,"") -> 
B75: Job Truck without Operator | E75: hr | G75: =IFERROR(((D30/(D70/D31))+(D32*(D69+D71)))*(D75=Yes),"") ->  | H75: =IFERROR(F75*G75,"") -> 
B76: Labourer - Traffic Control | E76: hr | G76: =IFERROR((Two*(D32*(D69+D71)))*(D76=Yes),"") -> 0 | I76: This is for two person for travel time and set up and removal of traffic control
B77: Grader and Operator | E77: hr | G77: =IFERROR((D30/(D70/D31)+(D32*D69))*(D77=Yes),"") -> 
B78: Water Truck | E78: hr | G78: =IFERROR((D30/(D70/D31)+(D32*D69))*(D78=Yes),"") -> 
B79: Pad Foot Roller and Operator | E79: hr | G79: =IFERROR((D30/(D70/D31))*(D79=Yes),"") -> 
B80: Smooth Drum Roller and Operator | E80: hr | G80: =IFERROR((D30/(D70/D31))*(D80=Yes),"") -> 
B81: Multi-Tyre Roller Without Operator | E81: hr | G81: =IFERROR((D30/(D70/D31))*(D81=Yes),"") -> 
B82: Prime Mover/L Bed | E82: hr | G82: =IFERROR((Three*(D69*Two+Half)*D32)*(D82=Yes),"") -> 0 | I82: This is for the movement between sites of three plant items
B83: Labourer - Traffic Control | E83: hr | G83: =IFERROR((Two*(D30/(D70/D31)))*(D83=Yes),"") ->  | I83: This is for two persons whilst works are being carried out
B84: Ablution Block | E84: hr | G84: =IFERROR((D30/(D70/D31)+(D32*(D69+D71)))*(D84=Yes),"") -> 
B85: Camp - Kitchen | E85: hr | G85: =IFERROR((D30/(D70/D31)+(D32*(D69+D71)))*(D85=Yes),"") -> 
B86: Accommodation | E86: hr | G86: =IFERROR(((D30/(D70/D31)+(D32*(D69+D71)))*Three)*(D86=Yes),"") ->  | I86: This is accommodation provision for three persons
F87: =IFERROR(INDEX(ResourceRate,MATCH($B87,ResourceList,0)),"") ->  | I87: Select from dropdown for additional resources/equipment as appropriate
F88: =IFERROR(INDEX(ResourceRate,MATCH($B88,ResourceList,0)),"") -> 
F89: =IFERROR(INDEX(ResourceRate,MATCH($B89,ResourceList,0)),"") -> 
F90: =IFERROR(INDEX(ResourceRate,MATCH($B90,ResourceList,0)),"") -> 
F91: =IFERROR(INDEX(ResourceRate,MATCH($B91,ResourceList,0)),"") -> 
B93: Unit Rate | E93: $/Lm | F93: =IFERROR(H93/$D$30,0) -> 0 | H93: =SUM($H$74:$H$91) -> 0
B95: Calculations - Individual Site Greater than 750m
B97: Average Travel Time from One Site to Other | E97: hrs
B98: Production | E98: m2/hr
B99: Time to Set Up and Remove Traffic Control Devices for Each Section | E99: hrs
B101: Resource | D101: Required? | E101: Unit | F101: Rate | G101: Quantity | H101: Total
B102: Foreman and Vehicle | E102: =IFERROR(INDEX(ResourceUnit,MATCH($B102,ResourceList,0)),"") -> hr | F102: =IF(D102=Yes,IFERROR(INDEX(ResourceRate,MATCH($B102,ResourceList,0)),""),"") ->  | G102: =IFERROR((D35/(D98/D36)*D22+(D37*(D97+D99)))*(D102=Yes),"") ->  | H102: =IFERROR(F102*G102,"") -> 
B103: Job Truck without Operator | E103: hr | G103: =IFERROR((D35/(D98/D36)+(D37*(D97+D99)))*(D103=Yes),"") ->  | H103: =IFERROR(F103*G103,"") -> 
B104: Labourer - Traffic Control | E104: hr | G104: =IFERROR((Two*(D37*(D97+D99)))*(D104=Yes),"") -> 0 | I104: This is for two persons for travel time and set up and removal of traffic control
B105: Grader and Operator | E105: hr | G105: =IFERROR((D35/(D98/D36)+(D37*D97))*(D105=Yes),"") -> 
B106: Water Truck | E106: hr | G106: =IFERROR((D35/(D98/D36)+(D37*D97))*(D106=Yes),"") -> 
B107: Pad Foot Roller and Operator | E107: hr | G107: =IFERROR((D35/(D98/D36))*(D107=Yes),"") -> 
B108: Smooth Drum Roller and Operator | E108: hr | G108: =IFERROR((D35/(D98/D36))*(D108=Yes),"") -> 
B109: Multi-Tyre Roller Without Operator | E109: hr | G109: =IFERROR((D35/(D98/D36))*(D109=Yes),"") -> 
B110: Prime Mover/L Bed | E110: hr | G110: =IFERROR((Three*(D97*Two+Half)*D37)*(D110=Yes),"") -> 0 | I110: This is for the movement between sites of three plant items
B111: Labourer - Traffic Control | E111: hr | G111: =IFERROR((Two*(D35/(D98/D36)))*(D111=Yes),"") ->  | I111: This is for two persons whilst works are being carried out
B112: Ablution Block | E112: hr | G112: =IFERROR((D35/(D98/D36)+(D37*(D97+D99)))*(D112=Yes),"") -> 
B113: Camp - Kitchen | E113: hr | G113: =IFERROR((D35/(D98/D36)+(D37*(D97+D99)))*(D113=Yes),"") -> 
B114: Accommodation | E114: hr | G114: =IFERROR((D35/(D98/D36)+(D37*(D97+D99)))*Three*(D114=Yes),"") ->  | I114: This is accommodation provision for three persons
F115: =IFERROR(INDEX(ResourceRate,MATCH($B115,ResourceList,0)),"") ->  | I115: Select from dropdown for additional resources/equipment as appropriate
F116: =IFERROR(INDEX(ResourceRate,MATCH($B116,ResourceList,0)),"") -> 
F117: =IFERROR(INDEX(ResourceRate,MATCH($B117,ResourceList,0)),"") -> 
F118: =IFERROR(INDEX(ResourceRate,MATCH($B118,ResourceList,0)),"") -> 
F119: =IFERROR(INDEX(ResourceRate,MATCH($B119,ResourceList,0)),"") -> 
B121: Unit Rate | E121: $/Lm | F121: =IFERROR(H121/$D$35,0) -> 0 | H121: =SUM($H$102:$H$119) -> 0
B123: Summary
B125: Overall Unit Rate | E125: $/Lm | F125: =IFERROR(H125/SUM($D$25,$D$30,$D$35),0) -> 0 | H125: =H65+H93+H121 -> 0
A127: End of Worksheet

Sheet ST2_4 (hidden)
A1: Disaster Recovery Funding Arrangements
A2: Cost Estimation Tool | F2: ="Total quantity ("&E25&"):" -> Total quantity (Lm): | G2: =SUM(D25,D30,D35) -> 0
A3: =Version_No -> Version 1.0 - Oct 18 | F3: ="Cost per unit ("&E125&"):" -> Cost per unit ($/Lm): | G3: =F125 -> 0
A4: =E8 -> ST2_4 | B4: =INDEX(Gen_A!$D$37:$D$61,MATCH(REPLACE(E8,FIND("_",E8),Three,""),Gen_A!$C$37:$C$61,0)) -> Medium Formation Grading | F4: Total cost of treatment ($): | G4: =G125 -> 0
A5: Link to Claim Summary
B6: Asset Details
B8: Treatment ID | E8: =REPLACE(CELL("filename",A1),1,FIND("]",CELL("filename",A1)),"") -> ST2_4
B9: Event Name | E9: =IF(ISBLANK(EventName),"",EventName) -> December Flood
B10: Asset ID | E10: =IF(ISBLANK(AssetID),"",AssetID) -> RDS003819
B11: Asset Name | E11: =IF(ISBLANK(AssetName),"",AssetName) -> Ballan-Egerton Road
B12: Start Chainage
B13: Finish Chainage
B14: Start Latitude
B15: Start Longitude
B16: End Latitude
B17: End Longitude
B19: Applicant Inputs
B21: Variable
B22: Percentage of Duration Requiring Supervision | E22: %
B24: Individual Site - Less than 300m
B25: Quantity | E25: Lm | I25: Total Length of Medium Formation Grading for this site size
B26: Road Width | E26: m
B27: No of Sites | E27: #
B29: Individual Site - Greater than 300m and less than 750m
B30: Quantity | E30: Lm | I30: Total Length of Medium Formation Grading for this site size
B31: Road Width | E31: m
B32: No of Sites | E32: #
B34: Individual Site - Greater than 750m
B35: Quantity | E35: Lm | I35: Total Length of Medium Formation Grading for this site size
B36: Road Width | E36: m
B37: No of Sites | E37: #
B39: Calculations - Individual Site Less than 300m
B41: Average Travel Time from One Site to Other | E41: hrs
B42: Production | E42: m2/hr
B43: Time to Set Up and Remove Traffic Control Devices for Each Section | E43: hrs
B45: Resource | D45: Required? | E45: Unit | F45: Rate | G45: Quantity | H45: Total
B46: Foreman and Vehicle | E46: =IFERROR(INDEX(ResourceUnit,MATCH($B46,ResourceList,0)),"") -> hr | F46: =IF(D46=Yes,IFERROR(INDEX(ResourceRate,MATCH($B46,ResourceList,0)),""),"") ->  | G46: =IFERROR(($D$25/($D$42/$D$26)*$D$22+($D$27*($D$41+$D$43)))*(D46=Yes),"") ->  | H46: =IFERROR(F46*G46,"") -> 
B47: Job Truck without Operator | E47: hr | G47: =IFERROR((D25/(D42/D26)+(D27*(D41+D43)))*(D47=Yes),"") ->  | H47: =IFERROR(F47*G47,"") -> 
B48: Labourer - Traffic Control | E48: hr | G48: =IFERROR((Two*(D27*(D41+D43)))*(D48=Yes),"") -> 0 | I48: This is for two person for travel time and set up and removal of traffic control
B49: Grader and Operator | E49: hr | G49: =IFERROR(((D25/(D42/D26)+D27*D41))*(D49=Yes),"") -> 
B50: Water Truck | E50: hr | G50: =IFERROR(((D25/(D42/D26)+D27*D41))*(D50=Yes),"") -> 
B51: Pad Foot Roller and Operator | E51: hr | G51: =IFERROR((D25/(D42/D26))*(D51=Yes),"") -> 
B52: Smooth Drum Roller and Operator | E52: hr | G52: =IFERROR((D25/(D42/D26))*(D52=Yes),"") -> 
B53: Multi-Tyre Roller Without Operator | E53: hr | G53: =IFERROR((D25/(D42/D26))*(D53=Yes),"") -> 
B54: Prime Mover/L Bed | E54: hr | G54: =IFERROR((Three*(D41*Two+Half)*D27)*(D54=Yes),"") -> 0 | I54: This is for the movement between sites of three plant items
B55: Labourer - Traffic Control | E55: hr | G55: =IFERROR((Two*(D25/(D42/D26)))*(D55=Yes),"") ->  | I55: This is for two persons whilst works are being carried out
B56: Ablution Block | E56: hr | G56: =IFERROR(((D25/(D42/D26))+(D27*(D41+D43)))*(D56=Yes),"") -> 
B57: Camp - Kitchen | E57: hr | G57: =IFERROR(((D25/(D42/D26))+(D27*(D41+D43)))*(D57=Yes),"") -> 
B58: Accommodation | E58: hr | G58: =IFERROR((((D25/(D42/D26))+(D27*(D41+D43)))*Three)*(D58=Yes),"") ->  | I58: This is accommodation provision for three persons
F59: =IFERROR(INDEX(ResourceRate,MATCH($B59,ResourceList,0)),"") ->  | I59: Select from dropdown for additional resources/equipment as appropriate
F60: =IFERROR(INDEX(ResourceRate,MATCH($B60,ResourceList,0)),"") -> 
F61: =IFERROR(INDEX(ResourceRate,MATCH($B61,ResourceList,0)),"") -> 
F62: =IFERROR(INDEX(ResourceRate,MATCH($B62,ResourceList,0)),"") -> 
F63: =IFERROR(INDEX(ResourceRate,MATCH($B63,ResourceList,0)),"") -> 
B65: Unit Rate | E65: $/Lm | F65: =IFERROR(H65/$D$25,0) -> 0 | H65: =SUM($H$46:$H$63) -> 0
B67: Calculations - Individual Site Greater than 300m and less than 750m
B69: Average Travel Time from One Site to Other | E69: hrs
B70: Production | E70: m2/hr
B71: Time to Set Up and Remove Traffic Control Devices for Each Section | E71: hrs
B73: Resource | D73: Required? | E73: Unit | F73: Rate | G73: Quantity | H73: Total
B74: Foreman and Vehicle | E74: =IFERROR(INDEX(ResourceUnit,MATCH($B74,ResourceList,0)),"") -> hr | F74: =IF(D74=Yes,IFERROR(INDEX(ResourceRate,MATCH($B74,ResourceList,0)),""),"") ->  | G74: =IFERROR(((D30/(D70/D31))*D22+(D32*(D69+D71)))*(D74=Yes),"") ->  | H74: =IFERROR(F74*G74,"") -> 
B75: Job Truck without Operator | E75: hr | G75: =IFERROR(((D30/(D70/D31))+(D32*(D69+D71)))*(D75=Yes),"") ->  | H75: =IFERROR(F75*G75,"") -> 
B76: Labourer - Traffic Control | E76: hr | G76: =IFERROR((Two*(D32*(D69+D71)))*(D76=Yes),"") -> 0 | I76: This is for two person for travel time and set up and removal of traffic control
B77: Grader and Operator | E77: hr | G77: =IFERROR((D30/(D70/D31)+(D32*D69))*(D77=Yes),"") -> 
B78: Water Truck | E78: hr | G78: =IFERROR((D30/(D70/D31)+(D32*D69))*(D78=Yes),"") -> 
B79: Pad Foot Roller and Operator | E79: hr | G79: =IFERROR((D30/(D70/D31))*(D79=Yes),"") -> 
B80: Smooth Drum Roller and Operator | E80: hr | G80: =IFERROR((D30/(D70/D31))*(D80=Yes),"") -> 
B81: Multi-Tyre Roller Without Operator | E81: hr | G81: =IFERROR((D30/(D70/D31))*(D81=Yes),"") -> 
B82: Prime Mover/L Bed | E82: hr | G82: =IFERROR((Three*(D69*Two+Half)*D32)*(D82=Yes),"") -> 0 | I82: This is for the movement between sites of three plant items
B83: Labourer - Traffic Control | E83: hr | G83: =IFERROR((Two*(D30/(D70/D31)))*(D83=Yes),"") ->  | I83: This is for two persons whilst works are being carried out
B84: Ablution Block | E84: hr | G84: =IFERROR((D30/(D70/D31)+(D32*(D69+D71)))*(D84=Yes),"") -> 
B85: Camp - Kitchen | E85: hr | G85: =IFERROR((D30/(D70/D31)+(D32*(D69+D71)))*(D85=Yes),"") -> 
B86: Accommodation | E86: hr | G86: =IFERROR(((D30/(D70/D31)+(D32*(D69+D71)))*Three)*(D86=Yes),"") ->  | I86: This is accommodation provision for three persons
F87: =IFERROR(INDEX(ResourceRate,MATCH($B87,ResourceList,0)),"") ->  | I87: Select from dropdown for additional resources/equipment as appropriate
F88: =IFERROR(INDEX(ResourceRate,MATCH($B88,ResourceList,0)),"") -> 
F89: =IFERROR(INDEX(ResourceRate,MATCH($B89,ResourceList,0)),"") -> 
F90: =IFERROR(INDEX(ResourceRate,MATCH($B90,ResourceList,0)),"") -> 
F91: =IFERROR(INDEX(ResourceRate,MATCH($B91,ResourceList,0)),"") -> 
B93: Unit Rate | E93: $/Lm | F93: =IFERROR(H93/$D$30,0) -> 0 | H93: =SUM($H$74:$H$91) -> 0
B95: Calculations - Individual Site Greater than 750m
B97: Average Travel Time from One Site to Other | E97: hrs
B98: Production | E98: m2/hr
B99: Time to Set Up and Remove Traffic Control Devices for Each Section | E99: hrs
B101: Resource | D101: Required? | E101: Unit | F101: Rate | G101: Quantity | H101: Total
B102: Foreman and Vehicle | E102: =IFERROR(INDEX(ResourceUnit,MATCH($B102,ResourceList,0)),"") -> hr | F102: =IF(D102=Yes,IFERROR(INDEX(ResourceRate,MATCH($B102,ResourceList,0)),""),"") ->  | G102: =IFERROR((D35/(D98/D36)*D22+(D37*(D97+D99)))*(D102=Yes),"") ->  | H102: =IFERROR(F102*G102,"") -> 
B103: Job Truck without Operator | E103: hr | G103: =IFERROR((D35/(D98/D36)+(D37*(D97+D99)))*(D103=Yes),"") ->  | H103: =IFERROR(F103*G103,"") -> 
B104: Labourer - Traffic Control | E104: hr | G104: =IFERROR((Two*(D37*(D97+D99)))*(D104=Yes),"") -> 0 | I104: This is for two persons for travel time and set up and removal of traffic control
B105: Grader and Operator | E105: hr | G105: =IFERROR((D35/(D98/D36)+(D37*D97))*(D105=Yes),"") -> 
B106: Water Truck | E106: hr | G106: =IFERROR((D35/(D98/D36)+(D37*D97))*(D106=Yes),"") -> 
B107: Pad Foot Roller and Operator | E107: hr | G107: =IFERROR((D35/(D98/D36))*(D107=Yes),"") -> 
B108: Smooth Drum Roller and Operator | E108: hr | G108: =IFERROR((D35/(D98/D36))*(D108=Yes),"") -> 
B109: Multi-Tyre Roller Without Operator | E109: hr | G109: =IFERROR((D35/(D98/D36))*(D109=Yes),"") -> 
B110: Prime Mover/L Bed | E110: hr | G110: =IFERROR((Three*(D97*Two+Half)*D37)*(D110=Yes),"") -> 0 | I110: This is for the movement between sites of three plant items
B111: Labourer - Traffic Control | E111: hr | G111: =IFERROR((Two*(D35/(D98/D36)))*(D111=Yes),"") ->  | I111: This is for two persons whilst works are being carried out
B112: Ablution Block | E112: hr | G112: =IFERROR((D35/(D98/D36)+(D37*(D97+D99)))*(D112=Yes),"") -> 
B113: Camp - Kitchen | E113: hr | G113: =IFERROR((D35/(D98/D36)+(D37*(D97+D99)))*(D113=Yes),"") -> 
B114: Accommodation | E114: hr | G114: =IFERROR((D35/(D98/D36)+(D37*(D97+D99)))*Three*(D114=Yes),"") ->  | I114: This is accommodation provision for three persons
F115: =IFERROR(INDEX(ResourceRate,MATCH($B115,ResourceList,0)),"") ->  | I115: Select from dropdown for additional resources/equipment as appropriate
F116: =IFERROR(INDEX(ResourceRate,MATCH($B116,ResourceList,0)),"") -> 
F117: =IFERROR(INDEX(ResourceRate,MATCH($B117,ResourceList,0)),"") -> 
F118: =IFERROR(INDEX(ResourceRate,MATCH($B118,ResourceList,0)),"") -> 
F119: =IFERROR(INDEX(ResourceRate,MATCH($B119,ResourceList,0)),"") -> 
B121: Unit Rate | E121: $/Lm | F121: =IFERROR(H121/$D$35,0) -> 0 | H121: =SUM($H$102:$H$119) -> 0
B123: Summary
B125: Overall Unit Rate | E125: $/Lm | F125: =IFERROR(H125/SUM($D$25,$D$30,$D$35),0) -> 0 | H125: =H65+H93+H121 -> 0
A127: End of Worksheet

Sheet ST2_5 (hidden)
A1: Disaster Recovery Funding Arrangements
A2: Cost Estimation Tool | F2: ="Total quantity ("&E25&"):" -> Total quantity (Lm): | G2: =SUM(D25,D30,D35) -> 0
A3: =Version_No -> Version 1.0 - Oct 18 | F3: ="Cost per unit ("&E125&"):" -> Cost per unit ($/Lm): | G3: =F125 -> 0
A4: =E8 -> ST2_5 | B4: =INDEX(Gen_A!$D$37:$D$61,MATCH(REPLACE(E8,FIND("_",E8),Three,""),Gen_A!$C$37:$C$61,0)) -> Medium Formation Grading | F4: Total cost of treatment ($): | G4: =G125 -> 0
A5: Link to Claim Summary
B6: Asset Details
B8: Treatment ID | E8: =REPLACE(CELL("filename",A1),1,FIND("]",CELL("filename",A1)),"") -> ST2_5
B9: Event Name | E9: =IF(ISBLANK(EventName),"",EventName) -> December Flood
B10: Asset ID | E10: =IF(ISBLANK(AssetID),"",AssetID) -> RDS003819
B11: Asset Name | E11: =IF(ISBLANK(AssetName),"",AssetName) -> Ballan-Egerton Road
B12: Start Chainage
B13: Finish Chainage
B14: Start Latitude
B15: Start Longitude
B16: End Latitude
B17: End Longitude
B19: Applicant Inputs
B21: Variable
B22: Percentage of Duration Requiring Supervision | E22: %
B24: Individual Site - Less than 300m
B25: Quantity | E25: Lm | I25: Total Length of Medium Formation Grading for this site size
B26: Road Width | E26: m
B27: No of Sites | E27: #
B29: Individual Site - Greater than 300m and less than 750m
B30: Quantity | E30: Lm | I30: Total Length of Medium Formation Grading for this site size
B31: Road Width | E31: m
B32: No of Sites | E32: #
B34: Individual Site - Greater than 750m
B35: Quantity | E35: Lm | I35: Total Length of Medium Formation Grading for this site size
B36: Road Width | E36: m
B37: No of Sites | E37: #
B39: Calculations - Individual Site Less than 300m
B41: Average Travel Time from One Site to Other | E41: hrs
B42: Production | E42: m2/hr
B43: Time to Set Up and Remove Traffic Control Devices for Each Section | E43: hrs
B45: Resource | D45: Required? | E45: Unit | F45: Rate | G45: Quantity | H45: Total
B46: Foreman and Vehicle | E46: =IFERROR(INDEX(ResourceUnit,MATCH($B46,ResourceList,0)),"") -> hr | F46: =IF(D46=Yes,IFERROR(INDEX(ResourceRate,MATCH($B46,ResourceList,0)),""),"") ->  | G46: =IFERROR(($D$25/($D$42/$D$26)*$D$22+($D$27*($D$41+$D$43)))*(D46=Yes),"") ->  | H46: =IFERROR(F46*G46,"") -> 
B47: Job Truck without Operator | E47: hr | G47: =IFERROR((D25/(D42/D26)+(D27*(D41+D43)))*(D47=Yes),"") ->  | H47: =IFERROR(F47*G47,"") -> 
B48: Labourer - Traffic Control | E48: hr | G48: =IFERROR((Two*(D27*(D41+D43)))*(D48=Yes),"") -> 0 | I48: This is for two person for travel time and set up and removal of traffic control
B49: Grader and Operator | E49: hr | G49: =IFERROR(((D25/(D42/D26)+D27*D41))*(D49=Yes),"") -> 
B50: Water Truck | E50: hr | G50: =IFERROR(((D25/(D42/D26)+D27*D41))*(D50=Yes),"") -> 
B51: Pad Foot Roller and Operator | E51: hr | G51: =IFERROR((D25/(D42/D26))*(D51=Yes),"") -> 
B52: Smooth Drum Roller and Operator | E52: hr | G52: =IFERROR((D25/(D42/D26))*(D52=Yes),"") -> 
B53: Multi-Tyre Roller Without Operator | E53: hr | G53: =IFERROR((D25/(D42/D26))*(D53=Yes),"") -> 
B54: Prime Mover/L Bed | E54: hr | G54: =IFERROR((Three*(D41*Two+Half)*D27)*(D54=Yes),"") -> 0 | I54: This is for the movement between sites of three plant items
B55: Labourer - Traffic Control | E55: hr | G55: =IFERROR((Two*(D25/(D42/D26)))*(D55=Yes),"") ->  | I55: This is for two persons whilst works are being carried out
B56: Ablution Block | E56: hr | G56: =IFERROR(((D25/(D42/D26))+(D27*(D41+D43)))*(D56=Yes),"") -> 
B57: Camp - Kitchen | E57: hr | G57: =IFERROR(((D25/(D42/D26))+(D27*(D41+D43)))*(D57=Yes),"") -> 
B58: Accommodation | E58: hr | G58: =IFERROR((((D25/(D42/D26))+(D27*(D41+D43)))*Three)*(D58=Yes),"") ->  | I58: This is accommodation provision for three persons
F59: =IFERROR(INDEX(ResourceRate,MATCH($B59,ResourceList,0)),"") ->  | I59: Select from dropdown for additional resources/equipment as appropriate
F60: =IFERROR(INDEX(ResourceRate,MATCH($B60,ResourceList,0)),"") -> 
F61: =IFERROR(INDEX(ResourceRate,MATCH($B61,ResourceList,0)),"") -> 
F62: =IFERROR(INDEX(ResourceRate,MATCH($B62,ResourceList,0)),"") -> 
F63: =IFERROR(INDEX(ResourceRate,MATCH($B63,ResourceList,0)),"") -> 
B65: Unit Rate | E65: $/Lm | F65: =IFERROR(H65/$D$25,0) -> 0 | H65: =SUM($H$46:$H$63) -> 0
B67: Calculations - Individual Site Greater than 300m and less than 750m
B69: Average Travel Time from One Site to Other | E69: hrs
B70: Production | E70: m2/hr
B71: Time to Set Up and Remove Traffic Control Devices for Each Section | E71: hrs
B73: Resource | D73: Required? | E73: Unit | F73: Rate | G73: Quantity | H73: Total
B74: Foreman and Vehicle | E74: =IFERROR(INDEX(ResourceUnit,MATCH($B74,ResourceList,0)),"") -> hr | F74: =IF(D74=Yes,IFERROR(INDEX(ResourceRate,MATCH($B74,ResourceList,0)),""),"") ->  | G74: =IFERROR(((D30/(D70/D31))*D22+(D32*(D69+D71)))*(D74=Yes),"") ->  | H74: =IFERROR(F74*G74,"") -> 
B75: Job Truck without Operator | E75: hr | G75: =IFERROR(((D30/(D70/D31))+(D32*(D69+D71)))*(D75=Yes),"") ->  | H75: =IFERROR(F75*G75,"") -> 
B76: Labourer - Traffic Control | E76: hr | G76: =IFERROR((Two*(D32*(D69+D71)))*(D76=Yes),"") -> 0 | I76: This is for two person for travel time and set up and removal of traffic control
B77: Grader and Operator | E77: hr | G77: =IFERROR((D30/(D70/D31)+(D32*D69))*(D77=Yes),"") -> 
B78: Water Truck | E78: hr | G78: =IFERROR((D30/(D70/D31)+(D32*D69))*(D78=Yes),"") -> 
B79: Pad Foot Roller and Operator | E79: hr | G79: =IFERROR((D30/(D70/D31))*(D79=Yes),"") -> 
B80: Smooth Drum Roller and Operator | E80: hr | G80: =IFERROR((D30/(D70/D31))*(D80=Yes),"") -> 
B81: Multi-Tyre Roller Without Operator | E81: hr | G81: =IFERROR((D30/(D70/D31))*(D81=Yes),"") -> 
B82: Prime Mover/L Bed | E82: hr | G82: =IFERROR((Three*(D69*Two+Half)*D32)*(D82=Yes),"") -> 0 | I82: This is for the movement between sites of three plant items
B83: Labourer - Traffic Control | E83: hr | G83: =IFERROR((Two*(D30/(D70/D31)))*(D83=Yes),"") ->  | I83: This is for two persons whilst works are being carried out
B84: Ablution Block | E84: hr | G84: =IFERROR((D30/(D70/D31)+(D32*(D69+D71)))*(D84=Yes),"") -> 
B85: Camp - Kitchen | E85: hr | G85: =IFERROR((D30/(D70/D31)+(D32*(D69+D71)))*(D85=Yes),"") -> 
B86: Accommodation | E86: hr | G86: =IFERROR(((D30/(D70/D31)+(D32*(D69+D71)))*Three)*(D86=Yes),"") ->  | I86: This is accommodation provision for three persons
F87: =IFERROR(INDEX(ResourceRate,MATCH($B87,ResourceList,0)),"") ->  | I87: Select from dropdown for additional resources/equipment as appropriate
F88: =IFERROR(INDEX(ResourceRate,MATCH($B88,ResourceList,0)),"") -> 
F89: =IFERROR(INDEX(ResourceRate,MATCH($B89,ResourceList,0)),"") -> 
F90: =IFERROR(INDEX(ResourceRate,MATCH($B90,ResourceList,0)),"") -> 
F91: =IFERROR(INDEX(ResourceRate,MATCH($B91,ResourceList,0)),"") -> 
B93: Unit Rate | E93: $/Lm | F93: =IFERROR(H93/$D$30,0) -> 0 | H93: =SUM($H$74:$H$91) -> 0
B95: Calculations - Individual Site Greater than 750m
B97: Average Travel Time from One Site to Other | E97: hrs
B98: Production | E98: m2/hr
B99: Time to Set Up and Remove Traffic Control Devices for Each Section | E99: hrs
B101: Resource | D101: Required? | E101: Unit | F101: Rate | G101: Quantity | H101: Total
B102: Foreman and Vehicle | E102: =IFERROR(INDEX(ResourceUnit,MATCH($B102,ResourceList,0)),"") -> hr | F102: =IF(D102=Yes,IFERROR(INDEX(ResourceRate,MATCH($B102,ResourceList,0)),""),"") ->  | G102: =IFERROR((D35/(D98/D36)*D22+(D37*(D97+D99)))*(D102=Yes),"") ->  | H102: =IFERROR(F102*G102,"") -> 
B103: Job Truck without Operator | E103: hr | G103: =IFERROR((D35/(D98/D36)+(D37*(D97+D99)))*(D103=Yes),"") ->  | H103: =IFERROR(F103*G103,"") -> 
B104: Labourer - Traffic Control | E104: hr | G104: =IFERROR((Two*(D37*(D97+D99)))*(D104=Yes),"") -> 0 | I104: This is for two persons for travel time and set up and removal of traffic control
B105: Grader and Operator | E105: hr | G105: =IFERROR((D35/(D98/D36)+(D37*D97))*(D105=Yes),"") -> 
B106: Water Truck | E106: hr | G106: =IFERROR((D35/(D98/D36)+(D37*D97))*(D106=Yes),"") -> 
B107: Pad Foot Roller and Operator | E107: hr | G107: =IFERROR((D35/(D98/D36))*(D107=Yes),"") -> 
B108: Smooth Drum Roller and Operator | E108: hr | G108: =IFERROR((D35/(D98/D36))*(D108=Yes),"") -> 
B109: Multi-Tyre Roller Without Operator | E109: hr | G109: =IFERROR((D35/(D98/D36))*(D109=Yes),"") -> 
B110: Prime Mover/L Bed | E110: hr | G110: =IFERROR((Three*(D97*Two+Half)*D37)*(D110=Yes),"") -> 0 | I110: This is for the movement between sites of three plant items
B111: Labourer - Traffic Control | E111: hr | G111: =IFERROR((Two*(D35/(D98/D36)))*(D111=Yes),"") ->  | I111: This is for two persons whilst works are being carried out
B112: Ablution Block | E112: hr | G112: =IFERROR((D35/(D98/D36)+(D37*(D97+D99)))*(D112=Yes),"") -> 
B113: Camp - Kitchen | E113: hr | G113: =IFERROR((D35/(D98/D36)+(D37*(D97+D99)))*(D113=Yes),"") -> 
B114: Accommodation | E114: hr | G114: =IFERROR((D35/(D98/D36)+(D37*(D97+D99)))*Three*(D114=Yes),"") ->  | I114: This is accommodation provision for three persons
F115: =IFERROR(INDEX(ResourceRate,MATCH($B115,ResourceList,0)),"") ->  | I115: Select from dropdown for additional resources/equipment as appropriate
F116: =IFERROR(INDEX(ResourceRate,MATCH($B116,ResourceList,0)),"") -> 
F117: =IFERROR(INDEX(ResourceRate,MATCH($B117,ResourceList,0)),"") -> 
F118: =IFERROR(INDEX(ResourceRate,MATCH($B118,ResourceList,0)),"") -> 
F119: =IFERROR(INDEX(ResourceRate,MATCH($B119,ResourceList,0)),"") -> 
B121: Unit Rate | E121: $/Lm | F121: =IFERROR(H121/$D$35,0) -> 0 | H121: =SUM($H$102:$H$119) -> 0
B123: Summary
B125: Overall Unit Rate | E125: $/Lm | F125: =IFERROR(H125/SUM($D$25,$D$30,$D$35),0) -> 0 | H125: =H65+H93+H121 -> 0
A127: End of Worksheet

Sheet ST2_6 (hidden)
A1: Disaster Recovery Funding Arrangements
A2: Cost Estimation Tool | F2: ="Total quantity ("&E25&"):" -> Total quantity (Lm): | G2: =SUM(D25,D30,D35) -> 0
A3: =Version_No -> Version 1.0 - Oct 18 | F3: ="Cost per unit ("&E125&"):" -> Cost per unit ($/Lm): | G3: =F125 -> 0
A4: =E8 -> ST2_6 | B4: =INDEX(Gen_A!$D$37:$D$61,MATCH(REPLACE(E8,FIND("_",E8),Three,""),Gen_A!$C$37:$C$61,0)) -> Medium Formation Grading | F4: Total cost of treatment ($): | G4: =G125 -> 0
A5: Link to Claim Summary
B6: Asset Details
B8: Treatment ID | E8: =REPLACE(CELL("filename",A1),1,FIND("]",CELL("filename",A1)),"") -> ST2_6
B9: Event Name | E9: =IF(ISBLANK(EventName),"",EventName) -> December Flood
B10: Asset ID | E10: =IF(ISBLANK(AssetID),"",AssetID) -> RDS003819
B11: Asset Name | E11: =IF(ISBLANK(AssetName),"",AssetName) -> Ballan-Egerton Road
B12: Start Chainage
B13: Finish Chainage
B14: Start Latitude
B15: Start Longitude
B16: End Latitude
B17: End Longitude
B19: Applicant Inputs
B21: Variable
B22: Percentage of Duration Requiring Supervision | E22: %
B24: Individual Site - Less than 300m
B25: Quantity | E25: Lm | I25: Total Length of Medium Formation Grading for this site size
B26: Road Width | E26: m
B27: No of Sites | E27: #
B29: Individual Site - Greater than 300m and less than 750m
B30: Quantity | E30: Lm | I30: Total Length of Medium Formation Grading for this site size
B31: Road Width | E31: m
B32: No of Sites | E32: #
B34: Individual Site - Greater than 750m
B35: Quantity | E35: Lm | I35: Total Length of Medium Formation Grading for this site size
B36: Road Width | E36: m
B37: No of Sites | E37: #
B39: Calculations - Individual Site Less than 300m
B41: Average Travel Time from One Site to Other | E41: hrs
B42: Production | E42: m2/hr
B43: Time to Set Up and Remove Traffic Control Devices for Each Section | E43: hrs
B45: Resource | D45: Required? | E45: Unit | F45: Rate | G45: Quantity | H45: Total
B46: Foreman and Vehicle | E46: =IFERROR(INDEX(ResourceUnit,MATCH($B46,ResourceList,0)),"") -> hr | F46: =IF(D46=Yes,IFERROR(INDEX(ResourceRate,MATCH($B46,ResourceList,0)),""),"") ->  | G46: =IFERROR(($D$25/($D$42/$D$26)*$D$22+($D$27*($D$41+$D$43)))*(D46=Yes),"") ->  | H46: =IFERROR(F46*G46,"") -> 
B47: Job Truck without Operator | E47: hr | G47: =IFERROR((D25/(D42/D26)+(D27*(D41+D43)))*(D47=Yes),"") ->  | H47: =IFERROR(F47*G47,"") -> 
B48: Labourer - Traffic Control | E48: hr | G48: =IFERROR((Two*(D27*(D41+D43)))*(D48=Yes),"") -> 0 | I48: This is for two person for travel time and set up and removal of traffic control
B49: Grader and Operator | E49: hr | G49: =IFERROR(((D25/(D42/D26)+D27*D41))*(D49=Yes),"") -> 
B50: Water Truck | E50: hr | G50: =IFERROR(((D25/(D42/D26)+D27*D41))*(D50=Yes),"") -> 
B51: Pad Foot Roller and Operator | E51: hr | G51: =IFERROR((D25/(D42/D26))*(D51=Yes),"") -> 
B52: Smooth Drum Roller and Operator | E52: hr | G52: =IFERROR((D25/(D42/D26))*(D52=Yes),"") -> 
B53: Multi-Tyre Roller Without Operator | E53: hr | G53: =IFERROR((D25/(D42/D26))*(D53=Yes),"") -> 
B54: Prime Mover/L Bed | E54: hr | G54: =IFERROR((Three*(D41*Two+Half)*D27)*(D54=Yes),"") -> 0 | I54: This is for the movement between sites of three plant items
B55: Labourer - Traffic Control | E55: hr | G55: =IFERROR((Two*(D25/(D42/D26)))*(D55=Yes),"") ->  | I55: This is for two persons whilst works are being carried out
B56: Ablution Block | E56: hr | G56: =IFERROR(((D25/(D42/D26))+(D27*(D41+D43)))*(D56=Yes),"") -> 
B57: Camp - Kitchen | E57: hr | G57: =IFERROR(((D25/(D42/D26))+(D27*(D41+D43)))*(D57=Yes),"") -> 
B58: Accommodation | E58: hr | G58: =IFERROR((((D25/(D42/D26))+(D27*(D41+D43)))*Three)*(D58=Yes),"") ->  | I58: This is accommodation provision for three persons
F59: =IFERROR(INDEX(ResourceRate,MATCH($B59,ResourceList,0)),"") ->  | I59: Select from dropdown for additional resources/equipment as appropriate
F60: =IFERROR(INDEX(ResourceRate,MATCH($B60,ResourceList,0)),"") -> 
F61: =IFERROR(INDEX(ResourceRate,MATCH($B61,ResourceList,0)),"") -> 
F62: =IFERROR(INDEX(ResourceRate,MATCH($B62,ResourceList,0)),"") -> 
F63: =IFERROR(INDEX(ResourceRate,MATCH($B63,ResourceList,0)),"") -> 
B65: Unit Rate | E65: $/Lm | F65: =IFERROR(H65/$D$25,0) -> 0 | H65: =SUM($H$46:$H$63) -> 0
B67: Calculations - Individual Site Greater than 300m and less than 750m
B69: Average Travel Time from One Site to Other | E69: hrs
B70: Production | E70: m2/hr
B71: Time to Set Up and Remove Traffic Control Devices for Each Section | E71: hrs
B73: Resource | D73: Required? | E73: Unit | F73: Rate | G73: Quantity | H73: Total
B74: Foreman and Vehicle | E74: =IFERROR(INDEX(ResourceUnit,MATCH($B74,ResourceList,0)),"") -> hr | F74: =IF(D74=Yes,IFERROR(INDEX(ResourceRate,MATCH($B74,ResourceList,0)),""),"") ->  | G74: =IFERROR(((D30/(D70/D31))*D22+(D32*(D69+D71)))*(D74=Yes),"") ->  | H74: =IFERROR(F74*G74,"") -> 
B75: Job Truck without Operator | E75: hr | G75: =IFERROR(((D30/(D70/D31))+(D32*(D69+D71)))*(D75=Yes),"") ->  | H75: =IFERROR(F75*G75,"") -> 
B76: Labourer - Traffic Control | E76: hr | G76: =IFERROR((Two*(D32*(D69+D71)))*(D76=Yes),"") -> 0 | I76: This is for two person for travel time and set up and removal of traffic control
B77: Grader and Operator | E77: hr | G77: =IFERROR((D30/(D70/D31)+(D32*D69))*(D77=Yes),"") -> 
B78: Water Truck | E78: hr | G78: =IFERROR((D30/(D70/D31)+(D32*D69))*(D78=Yes),"") -> 
B79: Pad Foot Roller and Operator | E79: hr | G79: =IFERROR((D30/(D70/D31))*(D79=Yes),"") -> 
B80: Smooth Drum Roller and Operator | E80: hr | G80: =IFERROR((D30/(D70/D31))*(D80=Yes),"") -> 
B81: Multi-Tyre Roller Without Operator | E81: hr | G81: =IFERROR((D30/(D70/D31))*(D81=Yes),"") -> 
B82: Prime Mover/L Bed | E82: hr | G82: =IFERROR((Three*(D69*Two+Half)*D32)*(D82=Yes),"") -> 0 | I82: This is for the movement between sites of three plant items
B83: Labourer - Traffic Control | E83: hr | G83: =IFERROR((Two*(D30/(D70/D31)))*(D83=Yes),"") ->  | I83: This is for two persons whilst works are being carried out
B84: Ablution Block | E84: hr | G84: =IFERROR((D30/(D70/D31)+(D32*(D69+D71)))*(D84=Yes),"") -> 
B85: Camp - Kitchen | E85: hr | G85: =IFERROR((D30/(D70/D31)+(D32*(D69+D71)))*(D85=Yes),"") -> 
B86: Accommodation | E86: hr | G86: =IFERROR(((D30/(D70/D31)+(D32*(D69+D71)))*Three)*(D86=Yes),"") ->  | I86: This is accommodation provision for three persons
F87: =IFERROR(INDEX(ResourceRate,MATCH($B87,ResourceList,0)),"") ->  | I87: Select from dropdown for additional resources/equipment as appropriate
F88: =IFERROR(INDEX(ResourceRate,MATCH($B88,ResourceList,0)),"") -> 
F89: =IFERROR(INDEX(ResourceRate,MATCH($B89,ResourceList,0)),"") -> 
F90: =IFERROR(INDEX(ResourceRate,MATCH($B90,ResourceList,0)),"") -> 
F91: =IFERROR(INDEX(ResourceRate,MATCH($B91,ResourceList,0)),"") -> 
B93: Unit Rate | E93: $/Lm | F93: =IFERROR(H93/$D$30,0) -> 0 | H93: =SUM($H$74:$H$91) -> 0
B95: Calculations - Individual Site Greater than 750m
B97: Average Travel Time from One Site to Other | E97: hrs
B98: Production | E98: m2/hr
B99: Time to Set Up and Remove Traffic Control Devices for Each Section | E99: hrs
B101: Resource | D101: Required? | E101: Unit | F101: Rate | G101: Quantity | H101: Total
B102: Foreman and Vehicle | E102: =IFERROR(INDEX(ResourceUnit,MATCH($B102,ResourceList,0)),"") -> hr | F102: =IF(D102=Yes,IFERROR(INDEX(ResourceRate,MATCH($B102,ResourceList,0)),""),"") ->  | G102: =IFERROR((D35/(D98/D36)*D22+(D37*(D97+D99)))*(D102=Yes),"") ->  | H102: =IFERROR(F102*G102,"") -> 
B103: Job Truck without Operator | E103: hr | G103: =IFERROR((D35/(D98/D36)+(D37*(D97+D99)))*(D103=Yes),"") ->  | H103: =IFERROR(F103*G103,"") -> 
B104: Labourer - Traffic Control | E104: hr | G104: =IFERROR((Two*(D37*(D97+D99)))*(D104=Yes),"") -> 0 | I104: This is for two persons for travel time and set up and removal of traffic control
B105: Grader and Operator | E105: hr | G105: =IFERROR((D35/(D98/D36)+(D37*D97))*(D105=Yes),"") -> 
B106: Water Truck | E106: hr | G106: =IFERROR((D35/(D98/D36)+(D37*D97))*(D106=Yes),"") -> 
B107: Pad Foot Roller and Operator | E107: hr | G107: =IFERROR((D35/(D98/D36))*(D107=Yes),"") -> 
B108: Smooth Drum Roller and Operator | E108: hr | G108: =IFERROR((D35/(D98/D36))*(D108=Yes),"") -> 
B109: Multi-Tyre Roller Without Operator | E109: hr | G109: =IFERROR((D35/(D98/D36))*(D109=Yes),"") -> 
B110: Prime Mover/L Bed | E110: hr | G110: =IFERROR((Three*(D97*Two+Half)*D37)*(D110=Yes),"") -> 0 | I110: This is for the movement between sites of three plant items
B111: Labourer - Traffic Control | E111: hr | G111: =IFERROR((Two*(D35/(D98/D36)))*(D111=Yes),"") ->  | I111: This is for two persons whilst works are being carried out
B112: Ablution Block | E112: hr | G112: =IFERROR((D35/(D98/D36)+(D37*(D97+D99)))*(D112=Yes),"") -> 
B113: Camp - Kitchen | E113: hr | G113: =IFERROR((D35/(D98/D36)+(D37*(D97+D99)))*(D113=Yes),"") -> 
B114: Accommodation | E114: hr | G114: =IFERROR((D35/(D98/D36)+(D37*(D97+D99)))*Three*(D114=Yes),"") ->  | I114: This is accommodation provision for three persons
F115: =IFERROR(INDEX(ResourceRate,MATCH($B115,ResourceList,0)),"") ->  | I115: Select from dropdown for additional resources/equipment as appropriate
F116: =IFERROR(INDEX(ResourceRate,MATCH($B116,ResourceList,0)),"") -> 
F117: =IFERROR(INDEX(ResourceRate,MATCH($B117,ResourceList,0)),"") -> 
F118: =IFERROR(INDEX(ResourceRate,MATCH($B118,ResourceList,0)),"") -> 
F119: =IFERROR(INDEX(ResourceRate,MATCH($B119,ResourceList,0)),"") -> 
B121: Unit Rate | E121: $/Lm | F121: =IFERROR(H121/$D$35,0) -> 0 | H121: =SUM($H$102:$H$119) -> 0
B123: Summary
B125: Overall Unit Rate | E125: $/Lm | F125: =IFERROR(H125/SUM($D$25,$D$30,$D$35),0) -> 0 | H125: =H65+H93+H121 -> 0
A127: End of Worksheet

Sheet ST3_1 (hidden)
A1: Disaster Recovery Funding Arrangements
A2: Cost Estimation Tool | F2: ="Total quantity ("&E25&"):" -> Total quantity (Lm): | G2: =SUM(D25,D30,D35) -> 0
A3: =Version_No -> Version 1.0 - Oct 18 | F3: ="Cost per unit ("&E125&"):" -> Cost per unit ($/Lm): | G3: =F125 -> 0
A4: =E8 -> ST3_1 | B4: =INDEX(Gen_A!$D$37:$D$61,MATCH(REPLACE(E8,FIND("_",E8),Three,""),Gen_A!$C$37:$C$61,0)) -> Heavy Formation Grading | F4: Total cost of treatment ($): | G4: =H125 -> 0
A5: Link to Claim Summary
B6: Asset Details
B8: Treatment ID | E8: =REPLACE(CELL("filename",A1),1,FIND("]",CELL("filename",A1)),"") -> ST3_1
B9: Event Name | E9: =IF(ISBLANK(EventName),"",EventName) -> December Flood
B10: Asset ID | E10: =IF(ISBLANK(AssetID),"",AssetID) -> RDS003819
B11: Asset Name | E11: =IF(ISBLANK(AssetName),"",AssetName) -> Ballan-Egerton Road
B12: Start Chainage
B13: Finish Chainage
B14: Start Latitude
B15: Start Longitude
B16: End Latitude
B17: End Longitude
B19: Applicant Inputs
B21: Variable
B22: Percentage of Duration Requiring Supervision | E22: %
B24: Individual Site - Less than 300m
B25: Quantity | E25: Lm
B26: Road Width | E26: Lm
B27: No of Sites | E27: #
B29: Individual Site - Greater than 300m and less than 750m
B30: Quantity | E30: Lm
B31: Road Width | E31: Lm
B32: No of Sites | E32: #
B34: Individual Site - Greater than 750m
B35: Quantity | E35: Lm
B36: Road Width | E36: Lm
B37: No of Sites | E37: #
B39: Calculations - Individual Site Less than 300m
B41: Average Travel Time from One Site to Other | E41: hrs
B42: Production | E42: m2/hr
B43: Time to Set Up and Remove Traffic Control Devices for Each Section | E43: hrs
B45: Resource | D45: Required? | E45: Unit | F45: Rate | G45: Quantity | H45: Total
B46: Foreman and Vehicle | E46: =IFERROR(INDEX(ResourceUnit,MATCH($B46,ResourceList,0)),"") -> hr | F46: =IF(D46=Yes,IFERROR(INDEX(ResourceRate,MATCH($B46,ResourceList,0)),""),"") ->  | G46: =IFERROR((D25/(D42/D26)*$D$22+(D27*(D41+D43)))*(D46=Yes),"") ->  | H46: =IFERROR(F46*G46,"") -> 
B47: Job Truck without Operator | E47: hr | G47: =IFERROR((D25/(D42/D26)+(D27*(D41+D43)))*(D47=Yes),"") ->  | H47: =IFERROR(F47*G47,"") -> 
B48: Labourer - Traffic Control | E48: hr | G48: =IFERROR((Two*(D27*(D41+D43)))*(D48=Yes),"") -> 0 | I48: This is for two person for travel time and set up and removal of traffic control
B49: Grader and Operator | E49: hr | G49: =IFERROR(((D25/(D42/D26)+D27*D41))*(D49=Yes),"") -> 
B50: Water Truck | E50: hr | G50: =IFERROR(((D25/(D42/D26)+D27*D41))*(D50=Yes),"") -> 
B51: Pad Foot Roller and Operator | E51: hr | G51: =IFERROR((D25/(D42/D26))*(D51=Yes),"") -> 
B52: Smooth Drum Roller and Operator | E52: hr | G52: =IFERROR((D25/(D42/D26))*(D52=Yes),"") -> 
B53: Multi-Tyre Roller Without Operator | E53: hr | G53: =IFERROR((D25/(D42/D26))*(D53=Yes),"") -> 
B54: Prime Mover/L Bed | E54: hr | G54: =IFERROR((Three*(D41*Two+Half)*D27)*(D54=Yes),"") -> 0 | I54: This is for the movement between sites of three plant items
B55: Labourer - Traffic Control | E55: hr | G55: =IFERROR((Two*(D25/(D42/D26)))*(D55=Yes),"") ->  | I55: This is for two persons whilst works are being carried out
B56: Ablution Block | E56: hr | G56: =IFERROR(((D25/(D42/D26))+(D27*(D41+D43)))*(D56=Yes),"") -> 
B57: Camp - Kitchen | E57: hr | G57: =IFERROR(((D25/(D42/D26))+(D27*(D41+D43)))*(D57=Yes),"") -> 
B58: Accommodation | E58: hr | G58: =IFERROR((((D25/(D42/D26))+(D27*(D41+D43)))*Three)*(D58=Yes),"") ->  | I58: This is accommodation provision for three persons
F59: =IFERROR(INDEX(ResourceRate,MATCH($B59,ResourceList,0)),"") ->  | I59: Select from dropdown for additional resources/equipment as appropriate
F60: =IFERROR(INDEX(ResourceRate,MATCH($B60,ResourceList,0)),"") -> 
F61: =IFERROR(INDEX(ResourceRate,MATCH($B61,ResourceList,0)),"") -> 
F62: =IFERROR(INDEX(ResourceRate,MATCH($B62,ResourceList,0)),"") -> 
F63: =IFERROR(INDEX(ResourceRate,MATCH($B63,ResourceList,0)),"") -> 
B65: Unit Rate | E65: $/Lm | F65: =IFERROR(H65/$D$25,0) -> 0 | H65: =SUM($H$46:$H$63) -> 0
B67: Calculations - Individual Site Greater than 300m and less than 750m
B69: Average Travel Time from One Site to Other | E69: hrs
B70: Production | E70: m2/hr
B71: Time to Set Up and Remove Traffic Control Devices for Each Section | E71: hrs
B73: Resource | D73: Required? | E73: Unit | F73: Rate | G73: Quantity | H73: Total
B74: Foreman and Vehicle | E74: =IFERROR(INDEX(ResourceUnit,MATCH($B74,ResourceList,0)),"") -> hr | F74: =IF(D74=Yes,IFERROR(INDEX(ResourceRate,MATCH($B74,ResourceList,0)),""),"") ->  | G74: =IFERROR(((D30/(D70/D31))*D22+(D32*(D69+D71)))*(D74=Yes),"") ->  | H74: =IFERROR(F74*G74,"") -> 
B75: Job Truck without Operator | E75: hr | G75: =IFERROR(((D30/(D70/D31))+(D32*(D69+D71)))*(D75=Yes),"") ->  | H75: =IFERROR(F75*G75,"") -> 
B76: Labourer - Traffic Control | E76: hr | G76: =(Two*(D32*(D69+D71)))*(D76=Yes) -> 0 | I76: This is for two person for travel time and set up and removal of traffic control
B77: Grader and Operator | E77: hr | G77: =IFERROR((D30/(D70/D31)+(D32*D69))*(D77=Yes),"") -> 
B78: Water Truck | E78: hr | G78: =IFERROR((D30/(D70/D31)+(D32*D69))*(D78=Yes),"") -> 
B79: Pad Foot Roller and Operator | E79: hr | G79: =IFERROR((D30/(D70/D31))*(D79=Yes),"") -> 
B80: Smooth Drum Roller and Operator | E80: hr | G80: =IFERROR((D30/(D70/D31))*(D80=Yes),"") -> 
B81: Multi-Tyre Roller Without Operator | E81: hr | G81: =IFERROR((D30/(D70/D31))*(D81=Yes),"") -> 
B82: Prime Mover/L Bed | E82: hr | G82: =IFERROR((Three*(D69*Two+Half)*D32)*(D82=Yes),"") -> 0 | I82: This is for the movement between sites of three plant items
B83: Labourer - Traffic Control | E83: hr | G83: =IFERROR((Two*(D30/(D70/D31)))*(D83=Yes),"") ->  | I83: This is for two persons whilst works are being carried out
B84: Ablution Block | E84: hr | G84: =IFERROR((D30/(D70/D31)+(D32*(D69+D71)))*(D84=Yes),"") -> 
B85: Camp - Kitchen | E85: hr | G85: =IFERROR((D30/(D70/D31)+(D32*(D69+D71)))*(D85=Yes),"") -> 
B86: Accommodation | E86: hr | G86: =IFERROR(((D30/(D70/D31)+(D32*(D69+D71)))*Three)*(D86=Yes),"") ->  | I86: This is accommodation provision for three persons
F87: =IFERROR(INDEX(ResourceRate,MATCH($B87,ResourceList,0)),"") ->  | I87: Select from dropdown for additional resources/equipment as appropriate
F88: =IFERROR(INDEX(ResourceRate,MATCH($B88,ResourceList,0)),"") -> 
F89: =IFERROR(INDEX(ResourceRate,MATCH($B89,ResourceList,0)),"") -> 
F90: =IFERROR(INDEX(ResourceRate,MATCH($B90,ResourceList,0)),"") -> 
F91: =IFERROR(INDEX(ResourceRate,MATCH($B91,ResourceList,0)),"") -> 
B93: Unit Rate | E93: $/Lm | F93: =IFERROR(H93/$D$30,0) -> 0 | H93: =SUM($H$74:$H$91) -> 0
B95: Calculations - Individual Site Greater than 750m
B97: Average Travel Time from One Site to Other | E97: hrs
B98: Production | E98: m2/hr
B99: Time to Set Up and Remove Traffic Control Devices for Each Section | E99: hrs
B101: Resource | D101: Required? | E101: Unit | F101: Rate | G101: Quantity | H101: Total
B102: Foreman and Vehicle | D102: Yes | E102: =IFERROR(INDEX(ResourceUnit,MATCH($B102,ResourceList,0)),"") -> hr | F102: =IF(D102=Yes,IFERROR(INDEX(ResourceRate,MATCH($B102,ResourceList,0)),""),"") -> 120 | G102: =IFERROR((D35/(D98/D36)*D22+(D37*(D97+D99)))*(D102=Yes),"") ->  | H102: =IFERROR(F102*G102,"") -> 
B103: Job Truck without Operator | D103: Yes | E103: hr | F103: 110 | G103: =IFERROR((D35/(D98/D36)+(D37*(D97+D99)))*(D103=Yes),"") ->  | H103: =IFERROR(F103*G103,"") -> 
B104: Labourer - Traffic Control | D104: Yes | E104: hr | F104: 90 | G104: =IFERROR((Two*(D37*(D97+D99)))*(D104=Yes),"") -> 0 | H104: 0 | I104: This is for two person for travel time and set up and removal of traffic control
B105: Grader and Operator | D105: Yes | E105: hr | F105: 180 | G105: =IFERROR((D35/(D98/D36)+(D37*D97))*(D105=Yes),"") -> 
B106: Water Truck | D106: Yes | E106: hr | F106: 105 | G106: =IFERROR((D35/(D98/D36)+(D37*D97))*(D106=Yes),"") -> 
B107: Pad Foot Roller and Operator | D107: Yes | E107: hr | F107: 110 | G107: =IFERROR((D35/(D98/D36))*(D107=Yes),"") -> 
B108: Smooth Drum Roller and Operator | D108: Yes | E108: hr | F108: 110 | G108: =IFERROR((D35/(D98/D36))*(D108=Yes),"") -> 
B109: Multi-Tyre Roller Without Operator | D109: Yes | E109: hr | F109: 70 | G109: =IFERROR((D35/(D98/D36))*(D109=Yes),"") -> 
B110: Prime Mover/L Bed | D110: Yes | E110: hr | F110: 150 | G110: =(Three*(D97*Two+Half)*D37)*(D110=Yes) -> 0 | H110: 0 | I110: This is for the movement between sites of three plant items
B111: Labourer - Traffic Control | D111: Yes | E111: hr | F111: 90 | G111: =IFERROR((Two*(D35/(D98/D36)))*(D111=Yes),"") ->  | I111: This is for two persons whilst works are being carried out
B112: Ablution Block | D112: Yes | E112: hr | F112: 5 | G112: =IFERROR((D35/(D98/D36)+(D37*(D97+D99)))*(D112=Yes),"") -> 
B113: Camp - Kitchen | D113: Yes | E113: hr | F113: 0 | G113: =IFERROR((D35/(D98/D36)+(D37*(D97+D99)))*(D113=Yes),"") -> 
B114: Accommodation | D114: Yes | E114: hr | F114: 35 | G114: =IFERROR((D35/(D98/D36)+(D37*(D97+D99)))*Three*(D114=Yes),"") ->  | I114: This is accommodation provision for three persons
F115: =IFERROR(INDEX(ResourceRate,MATCH($B115,ResourceList,0)),"") ->  | I115: Select from dropdown for additional resources/equipment as appropriate
F116: =IFERROR(INDEX(ResourceRate,MATCH($B116,ResourceList,0)),"") -> 
F117: =IFERROR(INDEX(ResourceRate,MATCH($B117,ResourceList,0)),"") -> 
F118: =IFERROR(INDEX(ResourceRate,MATCH($B118,ResourceList,0)),"") -> 
F119: =IFERROR(INDEX(ResourceRate,MATCH($B119,ResourceList,0)),"") -> 
B121: Unit Rate | E121: $/Lm | F121: =IFERROR(H121/$D$35,0) -> 0 | H121: =SUM($H$102:$H$119) -> 0
B123: Summary
B125: Overall Unit Rate | E125: $/Lm | F125: =IFERROR(H125/SUM(D25,D30,D35),0) -> 0 | H125: =H65+H93+H121 -> 0
B127: End of Worksheet

Sheet ST3_2 (hidden)
A1: Disaster Recovery Funding Arrangements
A2: Cost Estimation Tool | F2: ="Total quantity ("&E25&"):" -> Total quantity (Lm): | G2: =SUM(D25,D30,D35) -> 0
A3: =Version_No -> Version 1.0 - Oct 18 | F3: ="Cost per unit ("&E125&"):" -> Cost per unit ($/Lm): | G3: =F125 -> 0
A4: =E8 -> ST3_2 | B4: =INDEX(Gen_A!$D$37:$D$61,MATCH(REPLACE(E8,FIND("_",E8),Three,""),Gen_A!$C$37:$C$61,0)) -> Heavy Formation Grading | F4: Total cost of treatment ($): | G4: =H125 -> 0
A5: Link to Claim Summary
B6: Asset Details
B8: Treatment ID | E8: =REPLACE(CELL("filename",A1),1,FIND("]",CELL("filename",A1)),"") -> ST3_2
B9: Event Name | E9: =IF(ISBLANK(EventName),"",EventName) -> December Flood
B10: Asset ID | E10: =IF(ISBLANK(AssetID),"",AssetID) -> RDS003819
B11: Asset Name | E11: =IF(ISBLANK(AssetName),"",AssetName) -> Ballan-Egerton Road
B12: Start Chainage
B13: Finish Chainage
B14: Start Latitude
B15: Start Longitude
B16: End Latitude
B17: End Longitude
B19: Applicant Inputs
B21: Variable
B22: Percentage of Duration Requiring Supervision | E22: %
B24: Individual Site - Less than 300m
B25: Quantity | E25: Lm
B26: Road Width | E26: Lm
B27: No of Sites | E27: #
B29: Individual Site - Greater than 300m and less than 750m
B30: Quantity | E30: Lm
B31: Road Width | E31: Lm
B32: No of Sites | E32: #
B34: Individual Site - Greater than 750m
B35: Quantity | E35: Lm
B36: Road Width | E36: Lm
B37: No of Sites | E37: #
B39: Calculations - Individual Site Less than 300m
B41: Average Travel Time from One Site to Other | E41: hrs
B42: Production | E42: m2/hr
B43: Time to Set Up and Remove Traffic Control Devices for Each Section | E43: hrs
B45: Resource | D45: Required? | E45: Unit | F45: Rate | G45: Quantity | H45: Total
B46: Foreman and Vehicle | E46: =IFERROR(INDEX(ResourceUnit,MATCH($B46,ResourceList,0)),"") -> hr | F46: =IF(D46=Yes,IFERROR(INDEX(ResourceRate,MATCH($B46,ResourceList,0)),""),"") ->  | G46: =IFERROR((D25/(D42/D26)*$D$22+(D27*(D41+D43)))*(D46=Yes),"") ->  | H46: =IFERROR(F46*G46,"") -> 
B47: Job Truck without Operator | E47: hr | G47: =IFERROR((D25/(D42/D26)+(D27*(D41+D43)))*(D47=Yes),"") ->  | H47: =IFERROR(F47*G47,"") -> 
B48: Labourer - Traffic Control | E48: hr | G48: =IFERROR((Two*(D27*(D41+D43)))*(D48=Yes),"") -> 0 | I48: This is for two person for travel time and set up and removal of traffic control
B49: Grader and Operator | E49: hr | G49: =IFERROR(((D25/(D42/D26)+D27*D41))*(D49=Yes),"") -> 
B50: Water Truck | E50: hr | G50: =IFERROR(((D25/(D42/D26)+D27*D41))*(D50=Yes),"") -> 
B51: Pad Foot Roller and Operator | E51: hr | G51: =IFERROR((D25/(D42/D26))*(D51=Yes),"") -> 
B52: Smooth Drum Roller and Operator | E52: hr | G52: =IFERROR((D25/(D42/D26))*(D52=Yes),"") -> 
B53: Multi-Tyre Roller Without Operator | E53: hr | G53: =IFERROR((D25/(D42/D26))*(D53=Yes),"") -> 
B54: Prime Mover/L Bed | E54: hr | G54: =IFERROR((Three*(D41*Two+Half)*D27)*(D54=Yes),"") -> 0 | I54: This is for the movement between sites of three plant items
B55: Labourer - Traffic Control | E55: hr | G55: =IFERROR((Two*(D25/(D42/D26)))*(D55=Yes),"") ->  | I55: This is for two persons whilst works are being carried out
B56: Ablution Block | E56: hr | G56: =IFERROR(((D25/(D42/D26))+(D27*(D41+D43)))*(D56=Yes),"") -> 
B57: Camp - Kitchen | E57: hr | G57: =IFERROR(((D25/(D42/D26))+(D27*(D41+D43)))*(D57=Yes),"") -> 
B58: Accommodation | E58: hr | G58: =IFERROR((((D25/(D42/D26))+(D27*(D41+D43)))*Three)*(D58=Yes),"") ->  | I58: This is accommodation provision for three persons
F59: =IFERROR(INDEX(ResourceRate,MATCH($B59,ResourceList,0)),"") ->  | I59: Select from dropdown for additional resources/equipment as appropriate
F60: =IFERROR(INDEX(ResourceRate,MATCH($B60,ResourceList,0)),"") -> 
F61: =IFERROR(INDEX(ResourceRate,MATCH($B61,ResourceList,0)),"") -> 
F62: =IFERROR(INDEX(ResourceRate,MATCH($B62,ResourceList,0)),"") -> 
F63: =IFERROR(INDEX(ResourceRate,MATCH($B63,ResourceList,0)),"") -> 
B65: Unit Rate | E65: $/Lm | F65: =IFERROR(H65/$D$25,0) -> 0 | H65: =SUM($H$46:$H$63) -> 0
B67: Calculations - Individual Site Greater than 300m and less than 750m
B69: Average Travel Time from One Site to Other | E69: hrs
B70: Production | E70: m2/hr
B71: Time to Set Up and Remove Traffic Control Devices for Each Section | E71: hrs
B73: Resource | D73: Required? | E73: Unit | F73: Rate | G73: Quantity | H73: Total
B74: Foreman and Vehicle | E74: =IFERROR(INDEX(ResourceUnit,MATCH($B74,ResourceList,0)),"") -> hr | F74: =IF(D74=Yes,IFERROR(INDEX(ResourceRate,MATCH($B74,ResourceList,0)),""),"") ->  | G74: =IFERROR(((D30/(D70/D31))*D22+(D32*(D69+D71)))*(D74=Yes),"") ->  | H74: =IFERROR(F74*G74,"") -> 
B75: Job Truck without Operator | E75: hr | G75: =IFERROR(((D30/(D70/D31))+(D32*(D69+D71)))*(D75=Yes),"") ->  | H75: =IFERROR(F75*G75,"") -> 
B76: Labourer - Traffic Control | E76: hr | G76: =(Two*(D32*(D69+D71)))*(D76=Yes) -> 0 | I76: This is for two person for travel time and set up and removal of traffic control
B77: Grader and Operator | E77: hr | G77: =IFERROR((D30/(D70/D31)+(D32*D69))*(D77=Yes),"") -> 
B78: Water Truck | E78: hr | G78: =IFERROR((D30/(D70/D31)+(D32*D69))*(D78=Yes),"") -> 
B79: Pad Foot Roller and Operator | E79: hr | G79: =IFERROR((D30/(D70/D31))*(D79=Yes),"") -> 
B80: Smooth Drum Roller and Operator | E80: hr | G80: =IFERROR((D30/(D70/D31))*(D80=Yes),"") -> 
B81: Multi-Tyre Roller Without Operator | E81: hr | G81: =IFERROR((D30/(D70/D31))*(D81=Yes),"") -> 
B82: Prime Mover/L Bed | E82: hr | G82: =IFERROR((Three*(D69*Two+Half)*D32)*(D82=Yes),"") -> 0 | I82: This is for the movement between sites of three plant items
B83: Labourer - Traffic Control | E83: hr | G83: =IFERROR((Two*(D30/(D70/D31)))*(D83=Yes),"") ->  | I83: This is for two persons whilst works are being carried out
B84: Ablution Block | E84: hr | G84: =IFERROR((D30/(D70/D31)+(D32*(D69+D71)))*(D84=Yes),"") -> 
B85: Camp - Kitchen | E85: hr | G85: =IFERROR((D30/(D70/D31)+(D32*(D69+D71)))*(D85=Yes),"") -> 
B86: Accommodation | E86: hr | G86: =IFERROR(((D30/(D70/D31)+(D32*(D69+D71)))*Three)*(D86=Yes),"") ->  | I86: This is accommodation provision for three persons
F87: =IFERROR(INDEX(ResourceRate,MATCH($B87,ResourceList,0)),"") ->  | I87: Select from dropdown for additional resources/equipment as appropriate
F88: =IFERROR(INDEX(ResourceRate,MATCH($B88,ResourceList,0)),"") -> 
F89: =IFERROR(INDEX(ResourceRate,MATCH($B89,ResourceList,0)),"") -> 
F90: =IFERROR(INDEX(ResourceRate,MATCH($B90,ResourceList,0)),"") -> 
F91: =IFERROR(INDEX(ResourceRate,MATCH($B91,ResourceList,0)),"") -> 
B93: Unit Rate | E93: $/Lm | F93: =IFERROR(H93/$D$30,0) -> 0 | H93: =SUM($H$74:$H$91) -> 0
B95: Calculations - Individual Site Greater than 750m
B97: Average Travel Time from One Site to Other | E97: hrs
B98: Production | E98: m2/hr
B99: Time to Set Up and Remove Traffic Control Devices for Each Section | E99: hrs
B101: Resource | D101: Required? | E101: Unit | F101: Rate | G101: Quantity | H101: Total
B102: Foreman and Vehicle | D102: Yes | E102: =IFERROR(INDEX(ResourceUnit,MATCH($B102,ResourceList,0)),"") -> hr | F102: =IF(D102=Yes,IFERROR(INDEX(ResourceRate,MATCH($B102,ResourceList,0)),""),"") -> 120 | G102: =IFERROR((D35/(D98/D36)*D22+(D37*(D97+D99)))*(D102=Yes),"") ->  | H102: =IFERROR(F102*G102,"") -> 
B103: Job Truck without Operator | D103: Yes | E103: hr | F103: 110 | G103: =IFERROR((D35/(D98/D36)+(D37*(D97+D99)))*(D103=Yes),"") ->  | H103: =IFERROR(F103*G103,"") -> 
B104: Labourer - Traffic Control | D104: Yes | E104: hr | F104: 90 | G104: =IFERROR((Two*(D37*(D97+D99)))*(D104=Yes),"") -> 0 | H104: 0 | I104: This is for two person for travel time and set up and removal of traffic control
B105: Grader and Operator | D105: Yes | E105: hr | F105: 180 | G105: =IFERROR((D35/(D98/D36)+(D37*D97))*(D105=Yes),"") -> 
B106: Water Truck | D106: Yes | E106: hr | F106: 105 | G106: =IFERROR((D35/(D98/D36)+(D37*D97))*(D106=Yes),"") -> 
B107: Pad Foot Roller and Operator | D107: Yes | E107: hr | F107: 110 | G107: =IFERROR((D35/(D98/D36))*(D107=Yes),"") -> 
B108: Smooth Drum Roller and Operator | D108: Yes | E108: hr | F108: 110 | G108: =IFERROR((D35/(D98/D36))*(D108=Yes),"") -> 
B109: Multi-Tyre Roller Without Operator | D109: Yes | E109: hr | F109: 70 | G109: =IFERROR((D35/(D98/D36))*(D109=Yes),"") -> 
B110: Prime Mover/L Bed | D110: Yes | E110: hr | F110: 150 | G110: =(Three*(D97*Two+Half)*D37)*(D110=Yes) -> 0 | H110: 0 | I110: This is for the movement between sites of three plant items
B111: Labourer - Traffic Control | D111: Yes | E111: hr | F111: 90 | G111: =IFERROR((Two*(D35/(D98/D36)))*(D111=Yes),"") ->  | I111: This is for two persons whilst works are being carried out
B112: Ablution Block | D112: Yes | E112: hr | F112: 5 | G112: =IFERROR((D35/(D98/D36)+(D37*(D97+D99)))*(D112=Yes),"") -> 
B113: Camp - Kitchen | D113: Yes | E113: hr | F113: 0 | G113: =IFERROR((D35/(D98/D36)+(D37*(D97+D99)))*(D113=Yes),"") -> 
B114: Accommodation | D114: Yes | E114: hr | F114: 35 | G114: =IFERROR((D35/(D98/D36)+(D37*(D97+D99)))*Three*(D114=Yes),"") ->  | I114: This is accommodation provision for three persons
F115: =IFERROR(INDEX(ResourceRate,MATCH($B115,ResourceList,0)),"") ->  | I115: Select from dropdown for additional resources/equipment as appropriate
F116: =IFERROR(INDEX(ResourceRate,MATCH($B116,ResourceList,0)),"") -> 
F117: =IFERROR(INDEX(ResourceRate,MATCH($B117,ResourceList,0)),"") -> 
F118: =IFERROR(INDEX(ResourceRate,MATCH($B118,ResourceList,0)),"") -> 
F119: =IFERROR(INDEX(ResourceRate,MATCH($B119,ResourceList,0)),"") -> 
B121: Unit Rate | E121: $/Lm | F121: =IFERROR(H121/$D$35,0) -> 0 | H121: =SUM($H$102:$H$119) -> 0
B123: Summary
B125: Overall Unit Rate | E125: $/Lm | F125: =IFERROR(H125/SUM(D25,D30,D35),0) -> 0 | H125: =H65+H93+H121 -> 0
B127: End of Worksheet

Sheet ST3_3 (hidden)
A1: Disaster Recovery Funding Arrangements
A2: Cost Estimation Tool | F2: ="Total quantity ("&E25&"):" -> Total quantity (Lm): | G2: =SUM(D25,D30,D35) -> 0
A3: =Version_No -> Version 1.0 - Oct 18 | F3: ="Cost per unit ("&E125&"):" -> Cost per unit ($/Lm): | G3: =F125 -> 0
A4: =E8 -> ST3_3 | B4: =INDEX(Gen_A!$D$37:$D$61,MATCH(REPLACE(E8,FIND("_",E8),Three,""),Gen_A!$C$37:$C$61,0)) -> Heavy Formation Grading | F4: Total cost of treatment ($): | G4: =H125 -> 0
A5: Link to Claim Summary
B6: Asset Details
B8: Treatment ID | E8: =REPLACE(CELL("filename",A1),1,FIND("]",CELL("filename",A1)),"") -> ST3_3
B9: Event Name | E9: =IF(ISBLANK(EventName),"",EventName) -> December Flood
B10: Asset ID | E10: =IF(ISBLANK(AssetID),"",AssetID) -> RDS003819
B11: Asset Name | E11: =IF(ISBLANK(AssetName),"",AssetName) -> Ballan-Egerton Road
B12: Start Chainage
B13: Finish Chainage
B14: Start Latitude
B15: Start Longitude
B16: End Latitude
B17: End Longitude
B19: Applicant Inputs
B21: Variable
B22: Percentage of Duration Requiring Supervision | E22: %
B24: Individual Site - Less than 300m
B25: Quantity | E25: Lm
B26: Road Width | E26: Lm
B27: No of Sites | E27: #
B29: Individual Site - Greater than 300m and less than 750m
B30: Quantity | E30: Lm
B31: Road Width | E31: Lm
B32: No of Sites | E32: #
B34: Individual Site - Greater than 750m
B35: Quantity | E35: Lm
B36: Road Width | E36: Lm
B37: No of Sites | E37: #
B39: Calculations - Individual Site Less than 300m
B41: Average Travel Time from One Site to Other | E41: hrs
B42: Production | E42: m2/hr
B43: Time to Set Up and Remove Traffic Control Devices for Each Section | E43: hrs
B45: Resource | D45: Required? | E45: Unit | F45: Rate | G45: Quantity | H45: Total
B46: Foreman and Vehicle | E46: =IFERROR(INDEX(ResourceUnit,MATCH($B46,ResourceList,0)),"") -> hr | F46: =IF(D46=Yes,IFERROR(INDEX(ResourceRate,MATCH($B46,ResourceList,0)),""),"") ->  | G46: =IFERROR((D25/(D42/D26)*$D$22+(D27*(D41+D43)))*(D46=Yes),"") ->  | H46: =IFERROR(F46*G46,"") -> 
B47: Job Truck without Operator | E47: hr | G47: =IFERROR((D25/(D42/D26)+(D27*(D41+D43)))*(D47=Yes),"") ->  | H47: =IFERROR(F47*G47,"") -> 
B48: Labourer - Traffic Control | E48: hr | G48: =IFERROR((Two*(D27*(D41+D43)))*(D48=Yes),"") -> 0 | I48: This is for two person for travel time and set up and removal of traffic control
B49: Grader and Operator | E49: hr | G49: =IFERROR(((D25/(D42/D26)+D27*D41))*(D49=Yes),"") -> 
B50: Water Truck | E50: hr | G50: =IFERROR(((D25/(D42/D26)+D27*D41))*(D50=Yes),"") -> 
B51: Pad Foot Roller and Operator | E51: hr | G51: =IFERROR((D25/(D42/D26))*(D51=Yes),"") -> 
B52: Smooth Drum Roller and Operator | E52: hr | G52: =IFERROR((D25/(D42/D26))*(D52=Yes),"") -> 
B53: Multi-Tyre Roller Without Operator | E53: hr | G53: =IFERROR((D25/(D42/D26))*(D53=Yes),"") -> 
B54: Prime Mover/L Bed | E54: hr | G54: =IFERROR((Three*(D41*Two+Half)*D27)*(D54=Yes),"") -> 0 | I54: This is for the movement between sites of three plant items
B55: Labourer - Traffic Control | E55: hr | G55: =IFERROR((Two*(D25/(D42/D26)))*(D55=Yes),"") ->  | I55: This is for two persons whilst works are being carried out
B56: Ablution Block | E56: hr | G56: =IFERROR(((D25/(D42/D26))+(D27*(D41+D43)))*(D56=Yes),"") -> 
B57: Camp - Kitchen | E57: hr | G57: =IFERROR(((D25/(D42/D26))+(D27*(D41+D43)))*(D57=Yes),"") -> 
B58: Accommodation | E58: hr | G58: =IFERROR((((D25/(D42/D26))+(D27*(D41+D43)))*Three)*(D58=Yes),"") ->  | I58: This is accommodation provision for three persons
F59: =IFERROR(INDEX(ResourceRate,MATCH($B59,ResourceList,0)),"") ->  | I59: Select from dropdown for additional resources/equipment as appropriate
F60: =IFERROR(INDEX(ResourceRate,MATCH($B60,ResourceList,0)),"") -> 
F61: =IFERROR(INDEX(ResourceRate,MATCH($B61,ResourceList,0)),"") -> 
F62: =IFERROR(INDEX(ResourceRate,MATCH($B62,ResourceList,0)),"") -> 
F63: =IFERROR(INDEX(ResourceRate,MATCH($B63,ResourceList,0)),"") -> 
B65: Unit Rate | E65: $/Lm | F65: =IFERROR(H65/$D$25,0) -> 0 | H65: =SUM($H$46:$H$63) -> 0
B67: Calculations - Individual Site Greater than 300m and less than 750m
B69: Average Travel Time from One Site to Other | E69: hrs
B70: Production | E70: m2/hr
B71: Time to Set Up and Remove Traffic Control Devices for Each Section | E71: hrs
B73: Resource | D73: Required? | E73: Unit | F73: Rate | G73: Quantity | H73: Total
B74: Foreman and Vehicle | E74: =IFERROR(INDEX(ResourceUnit,MATCH($B74,ResourceList,0)),"") -> hr | F74: =IF(D74=Yes,IFERROR(INDEX(ResourceRate,MATCH($B74,ResourceList,0)),""),"") ->  | G74: =IFERROR(((D30/(D70/D31))*D22+(D32*(D69+D71)))*(D74=Yes),"") ->  | H74: =IFERROR(F74*G74,"") -> 
B75: Job Truck without Operator | E75: hr | G75: =IFERROR(((D30/(D70/D31))+(D32*(D69+D71)))*(D75=Yes),"") ->  | H75: =IFERROR(F75*G75,"") -> 
B76: Labourer - Traffic Control | E76: hr | G76: =(Two*(D32*(D69+D71)))*(D76=Yes) -> 0 | I76: This is for two person for travel time and set up and removal of traffic control
B77: Grader and Operator | E77: hr | G77: =IFERROR((D30/(D70/D31)+(D32*D69))*(D77=Yes),"") -> 
B78: Water Truck | E78: hr | G78: =IFERROR((D30/(D70/D31)+(D32*D69))*(D78=Yes),"") -> 
B79: Pad Foot Roller and Operator | E79: hr | G79: =IFERROR((D30/(D70/D31))*(D79=Yes),"") -> 
B80: Smooth Drum Roller and Operator | E80: hr | G80: =IFERROR((D30/(D70/D31))*(D80=Yes),"") -> 
B81: Multi-Tyre Roller Without Operator | E81: hr | G81: =IFERROR((D30/(D70/D31))*(D81=Yes),"") -> 
B82: Prime Mover/L Bed | E82: hr | G82: =IFERROR((Three*(D69*Two+Half)*D32)*(D82=Yes),"") -> 0 | I82: This is for the movement between sites of three plant items
B83: Labourer - Traffic Control | E83: hr | G83: =IFERROR((Two*(D30/(D70/D31)))*(D83=Yes),"") ->  | I83: This is for two persons whilst works are being carried out
B84: Ablution Block | E84: hr | G84: =IFERROR((D30/(D70/D31)+(D32*(D69+D71)))*(D84=Yes),"") -> 
B85: Camp - Kitchen | E85: hr | G85: =IFERROR((D30/(D70/D31)+(D32*(D69+D71)))*(D85=Yes),"") -> 
B86: Accommodation | E86: hr | G86: =IFERROR(((D30/(D70/D31)+(D32*(D69+D71)))*Three)*(D86=Yes),"") ->  | I86: This is accommodation provision for three persons
F87: =IFERROR(INDEX(ResourceRate,MATCH($B87,ResourceList,0)),"") ->  | I87: Select from dropdown for additional resources/equipment as appropriate
F88: =IFERROR(INDEX(ResourceRate,MATCH($B88,ResourceList,0)),"") -> 
F89: =IFERROR(INDEX(ResourceRate,MATCH($B89,ResourceList,0)),"") -> 
F90: =IFERROR(INDEX(ResourceRate,MATCH($B90,ResourceList,0)),"") -> 
F91: =IFERROR(INDEX(ResourceRate,MATCH($B91,ResourceList,0)),"") -> 
B93: Unit Rate | E93: $/Lm | F93: =IFERROR(H93/$D$30,0) -> 0 | H93: =SUM($H$74:$H$91) -> 0
B95: Calculations - Individual Site Greater than 750m
B97: Average Travel Time from One Site to Other | E97: hrs
B98: Production | E98: m2/hr
B99: Time to Set Up and Remove Traffic Control Devices for Each Section | E99: hrs
B101: Resource | D101: Required? | E101: Unit | F101: Rate | G101: Quantity | H101: Total
B102: Foreman and Vehicle | D102: Yes | E102: =IFERROR(INDEX(ResourceUnit,MATCH($B102,ResourceList,0)),"") -> hr | F102: =IF(D102=Yes,IFERROR(INDEX(ResourceRate,MATCH($B102,ResourceList,0)),""),"") -> 120 | G102: =IFERROR((D35/(D98/D36)*D22+(D37*(D97+D99)))*(D102=Yes),"") ->  | H102: =IFERROR(F102*G102,"") -> 
B103: Job Truck without Operator | D103: Yes | E103: hr | F103: 110 | G103: =IFERROR((D35/(D98/D36)+(D37*(D97+D99)))*(D103=Yes),"") ->  | H103: =IFERROR(F103*G103,"") -> 
B104: Labourer - Traffic Control | D104: Yes | E104: hr | F104: 90 | G104: =IFERROR((Two*(D37*(D97+D99)))*(D104=Yes),"") -> 0 | H104: 0 | I104: This is for two person for travel time and set up and removal of traffic control
B105: Grader and Operator | D105: Yes | E105: hr | F105: 180 | G105: =IFERROR((D35/(D98/D36)+(D37*D97))*(D105=Yes),"") -> 
B106: Water Truck | D106: Yes | E106: hr | F106: 105 | G106: =IFERROR((D35/(D98/D36)+(D37*D97))*(D106=Yes),"") -> 
B107: Pad Foot Roller and Operator | D107: Yes | E107: hr | F107: 110 | G107: =IFERROR((D35/(D98/D36))*(D107=Yes),"") -> 
B108: Smooth Drum Roller and Operator | D108: Yes | E108: hr | F108: 110 | G108: =IFERROR((D35/(D98/D36))*(D108=Yes),"") -> 
B109: Multi-Tyre Roller Without Operator | D109: Yes | E109: hr | F109: 70 | G109: =IFERROR((D35/(D98/D36))*(D109=Yes),"") -> 
B110: Prime Mover/L Bed | D110: Yes | E110: hr | F110: 150 | G110: =(Three*(D97*Two+Half)*D37)*(D110=Yes) -> 0 | H110: 0 | I110: This is for the movement between sites of three plant items
B111: Labourer - Traffic Control | D111: Yes | E111: hr | F111: 90 | G111: =IFERROR((Two*(D35/(D98/D36)))*(D111=Yes),"") ->  | I111: This is for two persons whilst works are being carried out
B112: Ablution Block | D112: Yes | E112: hr | F112: 5 | G112: =IFERROR((D35/(D98/D36)+(D37*(D97+D99)))*(D112=Yes),"") -> 
B113: Camp - Kitchen | D113: Yes | E113: hr | F113: 0 | G113: =IFERROR((D35/(D98/D36)+(D37*(D97+D99)))*(D113=Yes),"") -> 
B114: Accommodation | D114: Yes | E114: hr | F114: 35 | G114: =IFERROR((D35/(D98/D36)+(D37*(D97+D99)))*Three*(D114=Yes),"") ->  | I114: This is accommodation provision for three persons
F115: =IFERROR(INDEX(ResourceRate,MATCH($B115,ResourceList,0)),"") ->  | I115: Select from dropdown for additional resources/equipment as appropriate
F116: =IFERROR(INDEX(ResourceRate,MATCH($B116,ResourceList,0)),"") -> 
F117: =IFERROR(INDEX(ResourceRate,MATCH($B117,ResourceList,0)),"") -> 
F118: =IFERROR(INDEX(ResourceRate,MATCH($B118,ResourceList,0)),"") -> 
F119: =IFERROR(INDEX(ResourceRate,MATCH($B119,ResourceList,0)),"") -> 
B121: Unit Rate | E121: $/Lm | F121: =IFERROR(H121/$D$35,0) -> 0 | H121: =SUM($H$102:$H$119) -> 0
B123: Summary
B125: Overall Unit Rate | E125: $/Lm | F125: =IFERROR(H125/SUM(D25,D30,D35),0) -> 0 | H125: =H65+H93+H121 -> 0
B127: End of Worksheet

Sheet ST3_4 (hidden)
A1: Disaster Recovery Funding Arrangements
A2: Cost Estimation Tool | F2: ="Total quantity ("&E25&"):" -> Total quantity (Lm): | G2: =SUM(D25,D30,D35) -> 0
A3: =Version_No -> Version 1.0 - Oct 18 | F3: ="Cost per unit ("&E125&"):" -> Cost per unit ($/Lm): | G3: =F125 -> 0
A4: =E8 -> ST3_4 | B4: =INDEX(Gen_A!$D$37:$D$61,MATCH(REPLACE(E8,FIND("_",E8),Three,""),Gen_A!$C$37:$C$61,0)) -> Heavy Formation Grading | F4: Total cost of treatment ($): | G4: =H125 -> 0
A5: Link to Claim Summary
B6: Asset Details
B8: Treatment ID | E8: =REPLACE(CELL("filename",A1),1,FIND("]",CELL("filename",A1)),"") -> ST3_4
B9: Event Name | E9: =IF(ISBLANK(EventName),"",EventName) -> December Flood
B10: Asset ID | E10: =IF(ISBLANK(AssetID),"",AssetID) -> RDS003819
B11: Asset Name | E11: =IF(ISBLANK(AssetName),"",AssetName) -> Ballan-Egerton Road
B12: Start Chainage
B13: Finish Chainage
B14: Start Latitude
B15: Start Longitude
B16: End Latitude
B17: End Longitude
B19: Applicant Inputs
B21: Variable
B22: Percentage of Duration Requiring Supervision | E22: %
B24: Individual Site - Less than 300m
B25: Quantity | E25: Lm
B26: Road Width | E26: Lm
B27: No of Sites | E27: #
B29: Individual Site - Greater than 300m and less than 750m
B30: Quantity | E30: Lm
B31: Road Width | E31: Lm
B32: No of Sites | E32: #
B34: Individual Site - Greater than 750m
B35: Quantity | E35: Lm
B36: Road Width | E36: Lm
B37: No of Sites | E37: #
B39: Calculations - Individual Site Less than 300m
B41: Average Travel Time from One Site to Other | E41: hrs
B42: Production | E42: m2/hr
B43: Time to Set Up and Remove Traffic Control Devices for Each Section | E43: hrs
B45: Resource | D45: Required? | E45: Unit | F45: Rate | G45: Quantity | H45: Total
B46: Foreman and Vehicle | E46: =IFERROR(INDEX(ResourceUnit,MATCH($B46,ResourceList,0)),"") -> hr | F46: =IF(D46=Yes,IFERROR(INDEX(ResourceRate,MATCH($B46,ResourceList,0)),""),"") ->  | G46: =IFERROR((D25/(D42/D26)*$D$22+(D27*(D41+D43)))*(D46=Yes),"") ->  | H46: =IFERROR(F46*G46,"") -> 
B47: Job Truck without Operator | E47: hr | G47: =IFERROR((D25/(D42/D26)+(D27*(D41+D43)))*(D47=Yes),"") ->  | H47: =IFERROR(F47*G47,"") -> 
B48: Labourer - Traffic Control | E48: hr | G48: =IFERROR((Two*(D27*(D41+D43)))*(D48=Yes),"") -> 0 | I48: This is for two person for travel time and set up and removal of traffic control
B49: Grader and Operator | E49: hr | G49: =IFERROR(((D25/(D42/D26)+D27*D41))*(D49=Yes),"") -> 
B50: Water Truck | E50: hr | G50: =IFERROR(((D25/(D42/D26)+D27*D41))*(D50=Yes),"") -> 
B51: Pad Foot Roller and Operator | E51: hr | G51: =IFERROR((D25/(D42/D26))*(D51=Yes),"") -> 
B52: Smooth Drum Roller and Operator | E52: hr | G52: =IFERROR((D25/(D42/D26))*(D52=Yes),"") -> 
B53: Multi-Tyre Roller Without Operator | E53: hr | G53: =IFERROR((D25/(D42/D26))*(D53=Yes),"") -> 
B54: Prime Mover/L Bed | E54: hr | G54: =IFERROR((Three*(D41*Two+Half)*D27)*(D54=Yes),"") -> 0 | I54: This is for the movement between sites of three plant items
B55: Labourer - Traffic Control | E55: hr | G55: =IFERROR((Two*(D25/(D42/D26)))*(D55=Yes),"") ->  | I55: This is for two persons whilst works are being carried out
B56: Ablution Block | E56: hr | G56: =IFERROR(((D25/(D42/D26))+(D27*(D41+D43)))*(D56=Yes),"") -> 
B57: Camp - Kitchen | E57: hr | G57: =IFERROR(((D25/(D42/D26))+(D27*(D41+D43)))*(D57=Yes),"") -> 
B58: Accommodation | E58: hr | G58: =IFERROR((((D25/(D42/D26))+(D27*(D41+D43)))*Three)*(D58=Yes),"") ->  | I58: This is accommodation provision for three persons
F59: =IFERROR(INDEX(ResourceRate,MATCH($B59,ResourceList,0)),"") ->  | I59: Select from dropdown for additional resources/equipment as appropriate
F60: =IFERROR(INDEX(ResourceRate,MATCH($B60,ResourceList,0)),"") -> 
F61: =IFERROR(INDEX(ResourceRate,MATCH($B61,ResourceList,0)),"") -> 
F62: =IFERROR(INDEX(ResourceRate,MATCH($B62,ResourceList,0)),"") -> 
F63: =IFERROR(INDEX(ResourceRate,MATCH($B63,ResourceList,0)),"") -> 
B65: Unit Rate | E65: $/Lm | F65: =IFERROR(H65/$D$25,0) -> 0 | H65: =SUM($H$46:$H$63) -> 0
B67: Calculations - Individual Site Greater than 300m and less than 750m
B69: Average Travel Time from One Site to Other | E69: hrs
B70: Production | E70: m2/hr
B71: Time to Set Up and Remove Traffic Control Devices for Each Section | E71: hrs
B73: Resource | D73: Required? | E73: Unit | F73: Rate | G73: Quantity | H73: Total
B74: Foreman and Vehicle | E74: =IFERROR(INDEX(ResourceUnit,MATCH($B74,ResourceList,0)),"") -> hr | F74: =IF(D74=Yes,IFERROR(INDEX(ResourceRate,MATCH($B74,ResourceList,0)),""),"") ->  | G74: =IFERROR(((D30/(D70/D31))*D22+(D32*(D69+D71)))*(D74=Yes),"") ->  | H74: =IFERROR(F74*G74,"") -> 
B75: Job Truck without Operator | E75: hr | G75: =IFERROR(((D30/(D70/D31))+(D32*(D69+D71)))*(D75=Yes),"") ->  | H75: =IFERROR(F75*G75,"") -> 
B76: Labourer - Traffic Control | E76: hr | G76: =(Two*(D32*(D69+D71)))*(D76=Yes) -> 0 | I76: This is for two person for travel time and set up and removal of traffic control
B77: Grader and Operator | E77: hr | G77: =IFERROR((D30/(D70/D31)+(D32*D69))*(D77=Yes),"") -> 
B78: Water Truck | E78: hr | G78: =IFERROR((D30/(D70/D31)+(D32*D69))*(D78=Yes),"") -> 
B79: Pad Foot Roller and Operator | E79: hr | G79: =IFERROR((D30/(D70/D31))*(D79=Yes),"") -> 
B80: Smooth Drum Roller and Operator | E80: hr | G80: =IFERROR((D30/(D70/D31))*(D80=Yes),"") -> 
B81: Multi-Tyre Roller Without Operator | E81: hr | G81: =IFERROR((D30/(D70/D31))*(D81=Yes),"") -> 
B82: Prime Mover/L Bed | E82: hr | G82: =IFERROR((Three*(D69*Two+Half)*D32)*(D82=Yes),"") -> 0 | I82: This is for the movement between sites of three plant items
B83: Labourer - Traffic Control | E83: hr | G83: =IFERROR((Two*(D30/(D70/D31)))*(D83=Yes),"") ->  | I83: This is for two persons whilst works are being carried out
B84: Ablution Block | E84: hr | G84: =IFERROR((D30/(D70/D31)+(D32*(D69+D71)))*(D84=Yes),"") -> 
B85: Camp - Kitchen | E85: hr | G85: =IFERROR((D30/(D70/D31)+(D32*(D69+D71)))*(D85=Yes),"") -> 
B86: Accommodation | E86: hr | G86: =IFERROR(((D30/(D70/D31)+(D32*(D69+D71)))*Three)*(D86=Yes),"") ->  | I86: This is accommodation provision for three persons
F87: =IFERROR(INDEX(ResourceRate,MATCH($B87,ResourceList,0)),"") ->  | I87: Select from dropdown for additional resources/equipment as appropriate
F88: =IFERROR(INDEX(ResourceRate,MATCH($B88,ResourceList,0)),"") -> 
F89: =IFERROR(INDEX(ResourceRate,MATCH($B89,ResourceList,0)),"") -> 
F90: =IFERROR(INDEX(ResourceRate,MATCH($B90,ResourceList,0)),"") -> 
F91: =IFERROR(INDEX(ResourceRate,MATCH($B91,ResourceList,0)),"") -> 
B93: Unit Rate | E93: $/Lm | F93: =IFERROR(H93/$D$30,0) -> 0 | H93: =SUM($H$74:$H$91) -> 0
B95: Calculations - Individual Site Greater than 750m
B97: Average Travel Time from One Site to Other | E97: hrs
B98: Production | E98: m2/hr
B99: Time to Set Up and Remove Traffic Control Devices for Each Section | E99: hrs
B101: Resource | D101: Required? | E101: Unit | F101: Rate | G101: Quantity | H101: Total
B102: Foreman and Vehicle | D102: Yes | E102: =IFERROR(INDEX(ResourceUnit,MATCH($B102,ResourceList,0)),"") -> hr | F102: =IF(D102=Yes,IFERROR(INDEX(ResourceRate,MATCH($B102,ResourceList,0)),""),"") -> 120 | G102: =IFERROR((D35/(D98/D36)*D22+(D37*(D97+D99)))*(D102=Yes),"") ->  | H102: =IFERROR(F102*G102,"") -> 
B103: Job Truck without Operator | D103: Yes | E103: hr | F103: 110 | G103: =IFERROR((D35/(D98/D36)+(D37*(D97+D99)))*(D103=Yes),"") ->  | H103: =IFERROR(F103*G103,"") -> 
B104: Labourer - Traffic Control | D104: Yes | E104: hr | F104: 90 | G104: =IFERROR((Two*(D37*(D97+D99)))*(D104=Yes),"") -> 0 | H104: 0 | I104: This is for two person for travel time and set up and removal of traffic control
B105: Grader and Operator | D105: Yes | E105: hr | F105: 180 | G105: =IFERROR((D35/(D98/D36)+(D37*D97))*(D105=Yes),"") -> 
B106: Water Truck | D106: Yes | E106: hr | F106: 105 | G106: =IFERROR((D35/(D98/D36)+(D37*D97))*(D106=Yes),"") -> 
B107: Pad Foot Roller and Operator | D107: Yes | E107: hr | F107: 110 | G107: =IFERROR((D35/(D98/D36))*(D107=Yes),"") -> 
B108: Smooth Drum Roller and Operator | D108: Yes | E108: hr | F108: 110 | G108: =IFERROR((D35/(D98/D36))*(D108=Yes),"") -> 
B109: Multi-Tyre Roller Without Operator | D109: Yes | E109: hr | F109: 70 | G109: =IFERROR((D35/(D98/D36))*(D109=Yes),"") -> 
B110: Prime Mover/L Bed | D110: Yes | E110: hr | F110: 150 | G110: =(Three*(D97*Two+Half)*D37)*(D110=Yes) -> 0 | H110: 0 | I110: This is for the movement between sites of three plant items
B111: Labourer - Traffic Control | D111: Yes | E111: hr | F111: 90 | G111: =IFERROR((Two*(D35/(D98/D36)))*(D111=Yes),"") ->  | I111: This is for two persons whilst works are being carried out
B112: Ablution Block | D112: Yes | E112: hr | F112: 5 | G112: =IFERROR((D35/(D98/D36)+(D37*(D97+D99)))*(D112=Yes),"") -> 
B113: Camp - Kitchen | D113: Yes | E113: hr | F113: 0 | G113: =IFERROR((D35/(D98/D36)+(D37*(D97+D99)))*(D113=Yes),"") -> 
B114: Accommodation | D114: Yes | E114: hr | F114: 35 | G114: =IFERROR((D35/(D98/D36)+(D37*(D97+D99)))*Three*(D114=Yes),"") ->  | I114: This is accommodation provision for three persons
F115: =IFERROR(INDEX(ResourceRate,MATCH($B115,ResourceList,0)),"") ->  | I115: Select from dropdown for additional resources/equipment as appropriate
F116: =IFERROR(INDEX(ResourceRate,MATCH($B116,ResourceList,0)),"") -> 
F117: =IFERROR(INDEX(ResourceRate,MATCH($B117,ResourceList,0)),"") -> 
F118: =IFERROR(INDEX(ResourceRate,MATCH($B118,ResourceList,0)),"") -> 
F119: =IFERROR(INDEX(ResourceRate,MATCH($B119,ResourceList,0)),"") -> 
B121: Unit Rate | E121: $/Lm | F121: =IFERROR(H121/$D$35,0) -> 0 | H121: =SUM($H$102:$H$119) -> 0
B123: Summary
B125: Overall Unit Rate | E125: $/Lm | F125: =IFERROR(H125/SUM(D25,D30,D35),0) -> 0 | H125: =H65+H93+H121 -> 0
B127: End of Worksheet

Sheet ST3_5 (hidden)
A1: Disaster Recovery Funding Arrangements
A2: Cost Estimation Tool | F2: ="Total quantity ("&E25&"):" -> Total quantity (Lm): | G2: =SUM(D25,D30,D35) -> 0
A3: =Version_No -> Version 1.0 - Oct 18 | F3: ="Cost per unit ("&E125&"):" -> Cost per unit ($/Lm): | G3: =F125 -> 0
A4: =E8 -> ST3_5 | B4: =INDEX(Gen_A!$D$37:$D$61,MATCH(REPLACE(E8,FIND("_",E8),Three,""),Gen_A!$C$37:$C$61,0)) -> Heavy Formation Grading | F4: Total cost of treatment ($): | G4: =H125 -> 0
A5: Link to Claim Summary
B6: Asset Details
B8: Treatment ID | E8: =REPLACE(CELL("filename",A1),1,FIND("]",CELL("filename",A1)),"") -> ST3_5
B9: Event Name | E9: =IF(ISBLANK(EventName),"",EventName) -> December Flood
B10: Asset ID | E10: =IF(ISBLANK(AssetID),"",AssetID) -> RDS003819
B11: Asset Name | E11: =IF(ISBLANK(AssetName),"",AssetName) -> Ballan-Egerton Road
B12: Start Chainage
B13: Finish Chainage
B14: Start Latitude
B15: Start Longitude
B16: End Latitude
B17: End Longitude
B19: Applicant Inputs
B21: Variable
B22: Percentage of Duration Requiring Supervision | E22: %
B24: Individual Site - Less than 300m
B25: Quantity | E25: Lm
B26: Road Width | E26: Lm
B27: No of Sites | E27: #
B29: Individual Site - Greater than 300m and less than 750m
B30: Quantity | E30: Lm
B31: Road Width | E31: Lm
B32: No of Sites | E32: #
B34: Individual Site - Greater than 750m
B35: Quantity | E35: Lm
B36: Road Width | E36: Lm
B37: No of Sites | E37: #
B39: Calculations - Individual Site Less than 300m
B41: Average Travel Time from One Site to Other | E41: hrs
B42: Production | E42: m2/hr
B43: Time to Set Up and Remove Traffic Control Devices for Each Section | E43: hrs
B45: Resource | D45: Required? | E45: Unit | F45: Rate | G45: Quantity | H45: Total
B46: Foreman and Vehicle | E46: =IFERROR(INDEX(ResourceUnit,MATCH($B46,ResourceList,0)),"") -> hr | F46: =IF(D46=Yes,IFERROR(INDEX(ResourceRate,MATCH($B46,ResourceList,0)),""),"") ->  | G46: =IFERROR((D25/(D42/D26)*$D$22+(D27*(D41+D43)))*(D46=Yes),"") ->  | H46: =IFERROR(F46*G46,"") -> 
B47: Job Truck without Operator | E47: hr | G47: =IFERROR((D25/(D42/D26)+(D27*(D41+D43)))*(D47=Yes),"") ->  | H47: =IFERROR(F47*G47,"") -> 
B48: Labourer - Traffic Control | E48: hr | G48: =IFERROR((Two*(D27*(D41+D43)))*(D48=Yes),"") -> 0 | I48: This is for two person for travel time and set up and removal of traffic control
B49: Grader and Operator | E49: hr | G49: =IFERROR(((D25/(D42/D26)+D27*D41))*(D49=Yes),"") -> 
B50: Water Truck | E50: hr | G50: =IFERROR(((D25/(D42/D26)+D27*D41))*(D50=Yes),"") -> 
B51: Pad Foot Roller and Operator | E51: hr | G51: =IFERROR((D25/(D42/D26))*(D51=Yes),"") -> 
B52: Smooth Drum Roller and Operator | E52: hr | G52: =IFERROR((D25/(D42/D26))*(D52=Yes),"") -> 
B53: Multi-Tyre Roller Without Operator | E53: hr | G53: =IFERROR((D25/(D42/D26))*(D53=Yes),"") -> 
B54: Prime Mover/L Bed | E54: hr | G54: =IFERROR((Three*(D41*Two+Half)*D27)*(D54=Yes),"") -> 0 | I54: This is for the movement between sites of three plant items
B55: Labourer - Traffic Control | E55: hr | G55: =IFERROR((Two*(D25/(D42/D26)))*(D55=Yes),"") ->  | I55: This is for two persons whilst works are being carried out
B56: Ablution Block | E56: hr | G56: =IFERROR(((D25/(D42/D26))+(D27*(D41+D43)))*(D56=Yes),"") -> 
B57: Camp - Kitchen | E57: hr | G57: =IFERROR(((D25/(D42/D26))+(D27*(D41+D43)))*(D57=Yes),"") -> 
B58: Accommodation | E58: hr | G58: =IFERROR((((D25/(D42/D26))+(D27*(D41+D43)))*Three)*(D58=Yes),"") ->  | I58: This is accommodation provision for three persons
F59: =IFERROR(INDEX(ResourceRate,MATCH($B59,ResourceList,0)),"") ->  | I59: Select from dropdown for additional resources/equipment as appropriate
F60: =IFERROR(INDEX(ResourceRate,MATCH($B60,ResourceList,0)),"") -> 
F61: =IFERROR(INDEX(ResourceRate,MATCH($B61,ResourceList,0)),"") -> 
F62: =IFERROR(INDEX(ResourceRate,MATCH($B62,ResourceList,0)),"") -> 
F63: =IFERROR(INDEX(ResourceRate,MATCH($B63,ResourceList,0)),"") -> 
B65: Unit Rate | E65: $/Lm | F65: =IFERROR(H65/$D$25,0) -> 0 | H65: =SUM($H$46:$H$63) -> 0
B67: Calculations - Individual Site Greater than 300m and less than 750m
B69: Average Travel Time from One Site to Other | E69: hrs
B70: Production | E70: m2/hr
B71: Time to Set Up and Remove Traffic Control Devices for Each Section | E71: hrs
B73: Resource | D73: Required? | E73: Unit | F73: Rate | G73: Quantity | H73: Total
B74: Foreman and Vehicle | E74: =IFERROR(INDEX(ResourceUnit,MATCH($B74,ResourceList,0)),"") -> hr | F74: =IF(D74=Yes,IFERROR(INDEX(ResourceRate,MATCH($B74,ResourceList,0)),""),"") ->  | G74: =IFERROR(((D30/(D70/D31))*D22+(D32*(D69+D71)))*(D74=Yes),"") ->  | H74: =IFERROR(F74*G74,"") -> 
B75: Job Truck without Operator | E75: hr | G75: =IFERROR(((D30/(D70/D31))+(D32*(D69+D71)))*(D75=Yes),"") ->  | H75: =IFERROR(F75*G75,"") -> 
B76: Labourer - Traffic Control | E76: hr | G76: =(Two*(D32*(D69+D71)))*(D76=Yes) -> 0 | I76: This is for two person for travel time and set up and removal of traffic control
B77: Grader and Operator | E77: hr | G77: =IFERROR((D30/(D70/D31)+(D32*D69))*(D77=Yes),"") -> 
B78: Water Truck | E78: hr | G78: =IFERROR((D30/(D70/D31)+(D32*D69))*(D78=Yes),"") -> 
B79: Pad Foot Roller and Operator | E79: hr | G79: =IFERROR((D30/(D70/D31))*(D79=Yes),"") -> 
B80: Smooth Drum Roller and Operator | E80: hr | G80: =IFERROR((D30/(D70/D31))*(D80=Yes),"") -> 
B81: Multi-Tyre Roller Without Operator | E81: hr | G81: =IFERROR((D30/(D70/D31))*(D81=Yes),"") -> 
B82: Prime Mover/L Bed | E82: hr | G82: =IFERROR((Three*(D69*Two+Half)*D32)*(D82=Yes),"") -> 0 | I82: This is for the movement between sites of three plant items
B83: Labourer - Traffic Control | E83: hr | G83: =IFERROR((Two*(D30/(D70/D31)))*(D83=Yes),"") ->  | I83: This is for two persons whilst works are being carried out
B84: Ablution Block | E84: hr | G84: =IFERROR((D30/(D70/D31)+(D32*(D69+D71)))*(D84=Yes),"") -> 
B85: Camp - Kitchen | E85: hr | G85: =IFERROR((D30/(D70/D31)+(D32*(D69+D71)))*(D85=Yes),"") -> 
B86: Accommodation | E86: hr | G86: =IFERROR(((D30/(D70/D31)+(D32*(D69+D71)))*Three)*(D86=Yes),"") ->  | I86: This is accommodation provision for three persons
F87: =IFERROR(INDEX(ResourceRate,MATCH($B87,ResourceList,0)),"") ->  | I87: Select from dropdown for additional resources/equipment as appropriate
F88: =IFERROR(INDEX(ResourceRate,MATCH($B88,ResourceList,0)),"") -> 
F89: =IFERROR(INDEX(ResourceRate,MATCH($B89,ResourceList,0)),"") -> 
F90: =IFERROR(INDEX(ResourceRate,MATCH($B90,ResourceList,0)),"") -> 
F91: =IFERROR(INDEX(ResourceRate,MATCH($B91,ResourceList,0)),"") -> 
B93: Unit Rate | E93: $/Lm | F93: =IFERROR(H93/$D$30,0) -> 0 | H93: =SUM($H$74:$H$91) -> 0
B95: Calculations - Individual Site Greater than 750m
B97: Average Travel Time from One Site to Other | E97: hrs
B98: Production | E98: m2/hr
B99: Time to Set Up and Remove Traffic Control Devices for Each Section | E99: hrs
B101: Resource | D101: Required? | E101: Unit | F101: Rate | G101: Quantity | H101: Total
B102: Foreman and Vehicle | D102: Yes | E102: =IFERROR(INDEX(ResourceUnit,MATCH($B102,ResourceList,0)),"") -> hr | F102: =IF(D102=Yes,IFERROR(INDEX(ResourceRate,MATCH($B102,ResourceList,0)),""),"") -> 120 | G102: =IFERROR((D35/(D98/D36)*D22+(D37*(D97+D99)))*(D102=Yes),"") ->  | H102: =IFERROR(F102*G102,"") -> 
B103: Job Truck without Operator | D103: Yes | E103: hr | F103: 110 | G103: =IFERROR((D35/(D98/D36)+(D37*(D97+D99)))*(D103=Yes),"") ->  | H103: =IFERROR(F103*G103,"") -> 
B104: Labourer - Traffic Control | D104: Yes | E104: hr | F104: 90 | G104: =IFERROR((Two*(D37*(D97+D99)))*(D104=Yes),"") -> 0 | H104: 0 | I104: This is for two person for travel time and set up and removal of traffic control
B105: Grader and Operator | D105: Yes | E105: hr | F105: 180 | G105: =IFERROR((D35/(D98/D36)+(D37*D97))*(D105=Yes),"") -> 
B106: Water Truck | D106: Yes | E106: hr | F106: 105 | G106: =IFERROR((D35/(D98/D36)+(D37*D97))*(D106=Yes),"") -> 
B107: Pad Foot Roller and Operator | D107: Yes | E107: hr | F107: 110 | G107: =IFERROR((D35/(D98/D36))*(D107=Yes),"") -> 
B108: Smooth Drum Roller and Operator | D108: Yes | E108: hr | F108: 110 | G108: =IFERROR((D35/(D98/D36))*(D108=Yes),"") -> 
B109: Multi-Tyre Roller Without Operator | D109: Yes | E109: hr | F109: 70 | G109: =IFERROR((D35/(D98/D36))*(D109=Yes),"") -> 
B110: Prime Mover/L Bed | D110: Yes | E110: hr | F110: 150 | G110: =(Three*(D97*Two+Half)*D37)*(D110=Yes) -> 0 | H110: 0 | I110: This is for the movement between sites of three plant items
B111: Labourer - Traffic Control | D111: Yes | E111: hr | F111: 90 | G111: =IFERROR((Two*(D35/(D98/D36)))*(D111=Yes),"") ->  | I111: This is for two persons whilst works are being carried out
B112: Ablution Block | D112: Yes | E112: hr | F112: 5 | G112: =IFERROR((D35/(D98/D36)+(D37*(D97+D99)))*(D112=Yes),"") -> 
B113: Camp - Kitchen | D113: Yes | E113: hr | F113: 0 | G113: =IFERROR((D35/(D98/D36)+(D37*(D97+D99)))*(D113=Yes),"") -> 
B114: Accommodation | D114: Yes | E114: hr | F114: 35 | G114: =IFERROR((D35/(D98/D36)+(D37*(D97+D99)))*Three*(D114=Yes),"") ->  | I114: This is accommodation provision for three persons
F115: =IFERROR(INDEX(ResourceRate,MATCH($B115,ResourceList,0)),"") ->  | I115: Select from dropdown for additional resources/equipment as appropriate
F116: =IFERROR(INDEX(ResourceRate,MATCH($B116,ResourceList,0)),"") -> 
F117: =IFERROR(INDEX(ResourceRate,MATCH($B117,ResourceList,0)),"") -> 
F118: =IFERROR(INDEX(ResourceRate,MATCH($B118,ResourceList,0)),"") -> 
F119: =IFERROR(INDEX(ResourceRate,MATCH($B119,ResourceList,0)),"") -> 
B121: Unit Rate | E121: $/Lm | F121: =IFERROR(H121/$D$35,0) -> 0 | H121: =SUM($H$102:$H$119) -> 0
B123: Summary
B125: Overall Unit Rate | E125: $/Lm | F125: =IFERROR(H125/SUM(D25,D30,D35),0) -> 0 | H125: =H65+H93+H121 -> 0
B127: End of Worksheet

Sheet ST3_6 (hidden)
A1: Disaster Recovery Funding Arrangements
A2: Cost Estimation Tool | F2: ="Total quantity ("&E25&"):" -> Total quantity (Lm): | G2: =SUM(D25,D30,D35) -> 0
A3: =Version_No -> Version 1.0 - Oct 18 | F3: ="Cost per unit ("&E125&"):" -> Cost per unit ($/Lm): | G3: =F125 -> 0
A4: =E8 -> ST3_6 | B4: =INDEX(Gen_A!$D$37:$D$61,MATCH(REPLACE(E8,FIND("_",E8),Three,""),Gen_A!$C$37:$C$61,0)) -> Heavy Formation Grading | F4: Total cost of treatment ($): | G4: =H125 -> 0
A5: Link to Claim Summary
B6: Asset Details
B8: Treatment ID | E8: =REPLACE(CELL("filename",A1),1,FIND("]",CELL("filename",A1)),"") -> ST3_6
B9: Event Name | E9: =IF(ISBLANK(EventName),"",EventName) -> December Flood
B10: Asset ID | E10: =IF(ISBLANK(AssetID),"",AssetID) -> RDS003819
B11: Asset Name | E11: =IF(ISBLANK(AssetName),"",AssetName) -> Ballan-Egerton Road
B12: Start Chainage
B13: Finish Chainage
B14: Start Latitude
B15: Start Longitude
B16: End Latitude
B17: End Longitude
B19: Applicant Inputs
B21: Variable
B22: Percentage of Duration Requiring Supervision | E22: %
B24: Individual Site - Less than 300m
B25: Quantity | E25: Lm
B26: Road Width | E26: Lm
B27: No of Sites | E27: #
B29: Individual Site - Greater than 300m and less than 750m
B30: Quantity | E30: Lm
B31: Road Width | E31: Lm
B32: No of Sites | E32: #
B34: Individual Site - Greater than 750m
B35: Quantity | E35: Lm
B36: Road Width | E36: Lm
B37: No of Sites | E37: #
B39: Calculations - Individual Site Less than 300m
B41: Average Travel Time from One Site to Other | E41: hrs
B42: Production | E42: m2/hr
B43: Time to Set Up and Remove Traffic Control Devices for Each Section | E43: hrs
B45: Resource | D45: Required? | E45: Unit | F45: Rate | G45: Quantity | H45: Total
B46: Foreman and Vehicle | E46: =IFERROR(INDEX(ResourceUnit,MATCH($B46,ResourceList,0)),"") -> hr | F46: =IF(D46=Yes,IFERROR(INDEX(ResourceRate,MATCH($B46,ResourceList,0)),""),"") ->  | G46: =IFERROR((D25/(D42/D26)*$D$22+(D27*(D41+D43)))*(D46=Yes),"") ->  | H46: =IFERROR(F46*G46,"") -> 
B47: Job Truck without Operator | E47: hr | G47: =IFERROR((D25/(D42/D26)+(D27*(D41+D43)))*(D47=Yes),"") ->  | H47: =IFERROR(F47*G47,"") -> 
B48: Labourer - Traffic Control | E48: hr | G48: =IFERROR((Two*(D27*(D41+D43)))*(D48=Yes),"") -> 0 | I48: This is for two person for travel time and set up and removal of traffic control
B49: Grader and Operator | E49: hr | G49: =IFERROR(((D25/(D42/D26)+D27*D41))*(D49=Yes),"") -> 
B50: Water Truck | E50: hr | G50: =IFERROR(((D25/(D42/D26)+D27*D41))*(D50=Yes),"") -> 
B51: Pad Foot Roller and Operator | E51: hr | G51: =IFERROR((D25/(D42/D26))*(D51=Yes),"") -> 
B52: Smooth Drum Roller and Operator | E52: hr | G52: =IFERROR((D25/(D42/D26))*(D52=Yes),"") -> 
B53: Multi-Tyre Roller Without Operator | E53: hr | G53: =IFERROR((D25/(D42/D26))*(D53=Yes),"") -> 
B54: Prime Mover/L Bed | E54: hr | G54: =IFERROR((Three*(D41*Two+Half)*D27)*(D54=Yes),"") -> 0 | I54: This is for the movement between sites of three plant items
B55: Labourer - Traffic Control | E55: hr | G55: =IFERROR((Two*(D25/(D42/D26)))*(D55=Yes),"") ->  | I55: This is for two persons whilst works are being carried out
B56: Ablution Block | E56: hr | G56: =IFERROR(((D25/(D42/D26))+(D27*(D41+D43)))*(D56=Yes),"") -> 
B57: Camp - Kitchen | E57: hr | G57: =IFERROR(((D25/(D42/D26))+(D27*(D41+D43)))*(D57=Yes),"") -> 
B58: Accommodation | E58: hr | G58: =IFERROR((((D25/(D42/D26))+(D27*(D41+D43)))*Three)*(D58=Yes),"") ->  | I58: This is accommodation provision for three persons
F59: =IFERROR(INDEX(ResourceRate,MATCH($B59,ResourceList,0)),"") ->  | I59: Select from dropdown for additional resources/equipment as appropriate
F60: =IFERROR(INDEX(ResourceRate,MATCH($B60,ResourceList,0)),"") -> 
F61: =IFERROR(INDEX(ResourceRate,MATCH($B61,ResourceList,0)),"") -> 
F62: =IFERROR(INDEX(ResourceRate,MATCH($B62,ResourceList,0)),"") -> 
F63: =IFERROR(INDEX(ResourceRate,MATCH($B63,ResourceList,0)),"") -> 
B65: Unit Rate | E65: $/Lm | F65: =IFERROR(H65/$D$25,0) -> 0 | H65: =SUM($H$46:$H$63) -> 0
B67: Calculations - Individual Site Greater than 300m and less than 750m
B69: Average Travel Time from One Site to Other | E69: hrs
B70: Production | E70: m2/hr
B71: Time to Set Up and Remove Traffic Control Devices for Each Section | E71: hrs
B73: Resource | D73: Required? | E73: Unit | F73: Rate | G73: Quantity | H73: Total
B74: Foreman and Vehicle | E74: =IFERROR(INDEX(ResourceUnit,MATCH($B74,ResourceList,0)),"") -> hr | F74: =IF(D74=Yes,IFERROR(INDEX(ResourceRate,MATCH($B74,ResourceList,0)),""),"") ->  | G74: =IFERROR(((D30/(D70/D31))*D22+(D32*(D69+D71)))*(D74=Yes),"") ->  | H74: =IFERROR(F74*G74,"") -> 
B75: Job Truck without Operator | E75: hr | G75: =IFERROR(((D30/(D70/D31))+(D32*(D69+D71)))*(D75=Yes),"") ->  | H75: =IFERROR(F75*G75,"") -> 
B76: Labourer - Traffic Control | E76: hr | G76: =(Two*(D32*(D69+D71)))*(D76=Yes) -> 0 | I76: This is for two person for travel time and set up and removal of traffic control
B77: Grader and Operator | E77: hr | G77: =IFERROR((D30/(D70/D31)+(D32*D69))*(D77=Yes),"") -> 
B78: Water Truck | E78: hr | G78: =IFERROR((D30/(D70/D31)+(D32*D69))*(D78=Yes),"") -> 
B79: Pad Foot Roller and Operator | E79: hr | G79: =IFERROR((D30/(D70/D31))*(D79=Yes),"") -> 
B80: Smooth Drum Roller and Operator | E80: hr | G80: =IFERROR((D30/(D70/D31))*(D80=Yes),"") -> 
B81: Multi-Tyre Roller Without Operator | E81: hr | G81: =IFERROR((D30/(D70/D31))*(D81=Yes),"") -> 
B82: Prime Mover/L Bed | E82: hr | G82: =IFERROR((Three*(D69*Two+Half)*D32)*(D82=Yes),"") -> 0 | I82: This is for the movement between sites of three plant items
B83: Labourer - Traffic Control | E83: hr | G83: =IFERROR((Two*(D30/(D70/D31)))*(D83=Yes),"") ->  | I83: This is for two persons whilst works are being carried out
B84: Ablution Block | E84: hr | G84: =IFERROR((D30/(D70/D31)+(D32*(D69+D71)))*(D84=Yes),"") -> 
B85: Camp - Kitchen | E85: hr | G85: =IFERROR((D30/(D70/D31)+(D32*(D69+D71)))*(D85=Yes),"") -> 
B86: Accommodation | E86: hr | G86: =IFERROR(((D30/(D70/D31)+(D32*(D69+D71)))*Three)*(D86=Yes),"") ->  | I86: This is accommodation provision for three persons
F87: =IFERROR(INDEX(ResourceRate,MATCH($B87,ResourceList,0)),"") ->  | I87: Select from dropdown for additional resources/equipment as appropriate
F88: =IFERROR(INDEX(ResourceRate,MATCH($B88,ResourceList,0)),"") -> 
F89: =IFERROR(INDEX(ResourceRate,MATCH($B89,ResourceList,0)),"") -> 
F90: =IFERROR(INDEX(ResourceRate,MATCH($B90,ResourceList,0)),"") -> 
F91: =IFERROR(INDEX(ResourceRate,MATCH($B91,ResourceList,0)),"") -> 
B93: Unit Rate | E93: $/Lm | F93: =IFERROR(H93/$D$30,0) -> 0 | H93: =SUM($H$74:$H$91) -> 0
B95: Calculations - Individual Site Greater than 750m
B97: Average Travel Time from One Site to Other | E97: hrs
B98: Production | E98: m2/hr
B99: Time to Set Up and Remove Traffic Control Devices for Each Section | E99: hrs
B101: Resource | D101: Required? | E101: Unit | F101: Rate | G101: Quantity | H101: Total
B102: Foreman and Vehicle | D102: Yes | E102: =IFERROR(INDEX(ResourceUnit,MATCH($B102,ResourceList,0)),"") -> hr | F102: =IF(D102=Yes,IFERROR(INDEX(ResourceRate,MATCH($B102,ResourceList,0)),""),"") -> 120 | G102: =IFERROR((D35/(D98/D36)*D22+(D37*(D97+D99)))*(D102=Yes),"") ->  | H102: =IFERROR(F102*G102,"") -> 
B103: Job Truck without Operator | D103: Yes | E103: hr | F103: 110 | G103: =IFERROR((D35/(D98/D36)+(D37*(D97+D99)))*(D103=Yes),"") ->  | H103: =IFERROR(F103*G103,"") -> 
B104: Labourer - Traffic Control | D104: Yes | E104: hr | F104: 90 | G104: =IFERROR((Two*(D37*(D97+D99)))*(D104=Yes),"") -> 0 | H104: 0 | I104: This is for two person for travel time and set up and removal of traffic control
B105: Grader and Operator | D105: Yes | E105: hr | F105: 180 | G105: =IFERROR((D35/(D98/D36)+(D37*D97))*(D105=Yes),"") -> 
B106: Water Truck | D106: Yes | E106: hr | F106: 105 | G106: =IFERROR((D35/(D98/D36)+(D37*D97))*(D106=Yes),"") -> 
B107: Pad Foot Roller and Operator | D107: Yes | E107: hr | F107: 110 | G107: =IFERROR((D35/(D98/D36))*(D107=Yes),"") -> 
B108: Smooth Drum Roller and Operator | D108: Yes | E108: hr | F108: 110 | G108: =IFERROR((D35/(D98/D36))*(D108=Yes),"") -> 
B109: Multi-Tyre Roller Without Operator | D109: Yes | E109: hr | F109: 70 | G109: =IFERROR((D35/(D98/D36))*(D109=Yes),"") -> 
B110: Prime Mover/L Bed | D110: Yes | E110: hr | F110: 150 | G110: =(Three*(D97*Two+Half)*D37)*(D110=Yes) -> 0 | H110: 0 | I110: This is for the movement between sites of three plant items
B111: Labourer - Traffic Control | D111: Yes | E111: hr | F111: 90 | G111: =IFERROR((Two*(D35/(D98/D36)))*(D111=Yes),"") ->  | I111: This is for two persons whilst works are being carried out
B112: Ablution Block | D112: Yes | E112: hr | F112: 5 | G112: =IFERROR((D35/(D98/D36)+(D37*(D97+D99)))*(D112=Yes),"") -> 
B113: Camp - Kitchen | D113: Yes | E113: hr | F113: 0 | G113: =IFERROR((D35/(D98/D36)+(D37*(D97+D99)))*(D113=Yes),"") -> 
B114: Accommodation | D114: Yes | E114: hr | F114: 35 | G114: =IFERROR((D35/(D98/D36)+(D37*(D97+D99)))*Three*(D114=Yes),"") ->  | I114: This is accommodation provision for three persons
F115: =IFERROR(INDEX(ResourceRate,MATCH($B115,ResourceList,0)),"") ->  | I115: Select from dropdown for additional resources/equipment as appropriate
F116: =IFERROR(INDEX(ResourceRate,MATCH($B116,ResourceList,0)),"") -> 
F117: =IFERROR(INDEX(ResourceRate,MATCH($B117,ResourceList,0)),"") -> 
F118: =IFERROR(INDEX(ResourceRate,MATCH($B118,ResourceList,0)),"") -> 
F119: =IFERROR(INDEX(ResourceRate,MATCH($B119,ResourceList,0)),"") -> 
B121: Unit Rate | E121: $/Lm | F121: =IFERROR(H121/$D$35,0) -> 0 | H121: =SUM($H$102:$H$119) -> 0
B123: Summary
B125: Overall Unit Rate | E125: $/Lm | F125: =IFERROR(H125/SUM(D25,D30,D35),0) -> 0 | H125: =H65+H93+H121 -> 0
B127: End of Worksheet

Sheet ST4_1 (hidden)
A1: Disaster Recovery Funding Arrangements
A2: Cost Estimation Tool | F2: ="Total quantity ("&E22&"):" -> Total quantity (Bank m3): | G2: =D22 -> 0
A3: =Version_No -> Version 1.0 - Oct 18 | F3: ="Cost per unit ("&E76&"):" -> Cost per unit ($/m3): | G3: =F76 -> 0
A4: =E8 -> ST4_1 | B4: =INDEX(Gen_A!$D$37:$D$61,MATCH(REPLACE(E8,FIND("_",E8),Three,""),Gen_A!$C$37:$C$61,0)) -> Gravel Material Supply | F4: Total cost of treatment ($): | G4: =H76 -> 0
A5: Link to Claim Summary
B6: Asset Details
B8: Treatment ID | E8: =REPLACE(CELL("filename",A1),1,FIND("]",CELL("filename",A1)),"") -> ST4_1
B9: Event Name | E9: =IF(ISBLANK(EventName),"",EventName) -> December Flood
B10: Asset ID | E10: =IF(ISBLANK(AssetID),"",AssetID) -> RDS003819
B11: Asset Name | E11: =IF(ISBLANK(AssetName),"",AssetName) -> Ballan-Egerton Road
B12: Start Chainage
B13: Finish Chainage
B14: Start Latitude
B15: Start Longitude
B16: End Latitude
B17: End Longitude
B19: Applicant Inputs
B21: Variable
B22: Quantity | E22: Bank m3
B23: Sourced from a Commercial Quarry | E23: Yes/No
B25: Material Density - Commercial Quarry | E25: tonne/m3
B26: Optimum Moisture Content - Commercial Quality | E26: %
B28: Material Density - Borrow Pit | E28: tonne/m3
B29: Optimum Moisture Content - Borrow Pit | E29: %
B31: Construction Waste | E31: %
B32: Average Haul Distance | E32: km
B34: Option 1 - From Commercial Quarry
B36: Resource | D36: Required? | E36: Unit | F36: Rate | G36: Quantity | H36: Total
B37: Gravel - Commercial | D37: Yes | E37: =IFERROR(INDEX(ResourceUnit,MATCH($B37,ResourceList,0)),"") -> tonne | F37: =IF(D37=Yes,IFERROR(INDEX(ResourceRate,MATCH($B37,ResourceList,0)),""),"") -> 35 | G37: =(D22*D25*(1+D26)*(1+D31))*(D23=Yes)*(D37=Yes) -> 0 | H37: =IFERROR(F37*G37,"") -> 0
F38: =IFERROR(INDEX(ResourceRate,MATCH($B38,ResourceList,0)),"") ->  | I38: Select from dropdown for additional resources/equipment as appropriate
F39: =IFERROR(INDEX(ResourceRate,MATCH($B39,ResourceList,0)),"") -> 
F40: =IFERROR(INDEX(ResourceRate,MATCH($B40,ResourceList,0)),"") -> 
F41: =IFERROR(INDEX(ResourceRate,MATCH($B41,ResourceList,0)),"") -> 
F42: =IFERROR(INDEX(ResourceRate,MATCH($B42,ResourceList,0)),"") -> 
B44: Unit Rate | E44: $/m3 | F44: =IFERROR(H44/$D$22,0) -> 0 | H44: =SUM($H$37:$H$42) -> 0
B46: Option 2 - From Council Borrow Area
B48: Resource | D48: Required? | E48: Unit | F48: Rate | G48: Quantity | H48: Total
B49: Gravel - Borrow | D49: Yes | E49: =IFERROR(INDEX(ResourceUnit,MATCH($B49,ResourceList,0)),"") -> tonne | F49: =IF(D49=Yes,IFERROR(INDEX(ResourceRate,MATCH($B49,ResourceList,0)),""),"") -> 0 | G49: =IFERROR((D22*D28*(1+D29)*(1+D31)*(D23=No))*(D49=Yes),"") -> 0 | H49: =IFERROR(F49*G49,"") -> 0
F50: =IFERROR(INDEX(ResourceRate,MATCH($B50,ResourceList,0)),"") ->  | I50: Select from dropdown for additional resources/equipment as appropriate
F51: =IFERROR(INDEX(ResourceRate,MATCH($B51,ResourceList,0)),"") -> 
F52: =IFERROR(INDEX(ResourceRate,MATCH($B52,ResourceList,0)),"") -> 
F53: =IFERROR(INDEX(ResourceRate,MATCH($B53,ResourceList,0)),"") -> 
F54: =IFERROR(INDEX(ResourceRate,MATCH($B54,ResourceList,0)),"") -> 
B56: Unit Rate | E56: $/m3 | F56: =IFERROR(H56/$D$22,0) -> 0 | H56: =SUM($H$49:$H$54) -> 0
B58: Option 3 - From Council Borrow Area
B60: Productivity of Loader | E60: bank m3/hour
B61: Bcm per load | E61: bank m3/load
B63: Resource | D63: Required? | E63: Unit | F63: Rate | G63: Quantity | H63: Total
B64: Loader | D64: Yes | E64: =IFERROR(INDEX(ResourceUnit,MATCH($B64,ResourceList,0)),"") -> hr | F64: =IF(D64=Yes,IFERROR(INDEX(ResourceRate,MATCH($B64,ResourceList,0)),""),"") -> 140 | G64: =IFERROR(((((D22*D28*(1+D29)*(1+D31)*(D23=No)/D28)/((ROUNDDOWN(D60/D61,0)*D61)))))*(D64=Yes),"") ->  | H64: =IFERROR(F64*G64,"") -> 
B65: Truck and Dog | D65: Yes | E65: hr | F65: =IF(D65=Yes,IFERROR(INDEX(ResourceRate,MATCH($B65,ResourceList,0)),""),"") -> 165 | G65: =IFERROR(((((D22*D28*(1+D29)*(1+D31)*(D23=No)/D28)/((ROUNDDOWN(D60/D61,0)*D61)))))*ROUNDDOWN(D60/D61,0)*(D65=Yes),"") ->  | H65: =IFERROR(F65*G65,"") -> 
F66: =IFERROR(INDEX(ResourceRate,MATCH($B66,ResourceList,0)),"") ->  | I66: Select from dropdown for additional resources/equipment as appropriate
F67: =IFERROR(INDEX(ResourceRate,MATCH($B67,ResourceList,0)),"") -> 
F68: =IFERROR(INDEX(ResourceRate,MATCH($B68,ResourceList,0)),"") -> 
F69: =IFERROR(INDEX(ResourceRate,MATCH($B69,ResourceList,0)),"") -> 
F70: =IFERROR(INDEX(ResourceRate,MATCH($B70,ResourceList,0)),"") -> 
B72: Unit Rate | E72: $/m3 | F72: =IFERROR(H72/$D$22,0) -> 0 | H72: =SUM($H$64:$H$70) -> 0
B74: Summary
B76: Overall Unit Rate | E76: $/m3 | F76: =IFERROR(H76/SUM($D$22),0) -> 0 | H76: =H44+H56+H72 -> 0
B78: End of Worksheet

Sheet ST4_2 (hidden)
A1: Disaster Recovery Funding Arrangements
A2: Cost Estimation Tool | F2: ="Total quantity ("&E22&"):" -> Total quantity (Bank m3): | G2: =D22 -> 0
A3: =Version_No -> Version 1.0 - Oct 18 | F3: ="Cost per unit ("&E76&"):" -> Cost per unit ($/m3): | G3: =F76 -> 0
A4: =E8 -> ST4_2 | B4: =INDEX(Gen_A!$D$37:$D$61,MATCH(REPLACE(E8,FIND("_",E8),Three,""),Gen_A!$C$37:$C$61,0)) -> Gravel Material Supply | F4: Total cost of treatment ($): | G4: =H76 -> 0
A5: Link to Claim Summary
B6: Asset Details
B8: Treatment ID | E8: =REPLACE(CELL("filename",A1),1,FIND("]",CELL("filename",A1)),"") -> ST4_2
B9: Event Name | E9: =IF(ISBLANK(EventName),"",EventName) -> December Flood
B10: Asset ID | E10: =IF(ISBLANK(AssetID),"",AssetID) -> RDS003819
B11: Asset Name | E11: =IF(ISBLANK(AssetName),"",AssetName) -> Ballan-Egerton Road
B12: Start Chainage
B13: Finish Chainage
B14: Start Latitude
B15: Start Longitude
B16: End Latitude
B17: End Longitude
B19: Applicant Inputs
B21: Variable
B22: Quantity | E22: Bank m3
B23: Sourced from a Commercial Quarry | E23: Yes/No
B25: Material Density - Commercial Quarry | E25: tonne/m3
B26: Optimum Moisture Content - Commercial Quality | E26: %
B28: Material Density - Borrow Pit | E28: tonne/m3
B29: Optimum Moisture Content - Borrow Pit | E29: %
B31: Construction Waste | E31: %
B32: Average Haul Distance | E32: km
B34: Option 1 - From Commercial Quarry
B36: Resource | D36: Required? | E36: Unit | F36: Rate | G36: Quantity | H36: Total
B37: Gravel - Commercial | D37: Yes | E37: =IFERROR(INDEX(ResourceUnit,MATCH($B37,ResourceList,0)),"") -> tonne | F37: =IF(D37=Yes,IFERROR(INDEX(ResourceRate,MATCH($B37,ResourceList,0)),""),"") -> 35 | G37: =(D22*D25*(1+D26)*(1+D31))*(D23=Yes)*(D37=Yes) -> 0 | H37: =IFERROR(F37*G37,"") -> 0
F38: =IFERROR(INDEX(ResourceRate,MATCH($B38,ResourceList,0)),"") ->  | I38: Select from dropdown for additional resources/equipment as appropriate
F39: =IFERROR(INDEX(ResourceRate,MATCH($B39,ResourceList,0)),"") -> 
F40: =IFERROR(INDEX(ResourceRate,MATCH($B40,ResourceList,0)),"") -> 
F41: =IFERROR(INDEX(ResourceRate,MATCH($B41,ResourceList,0)),"") -> 
F42: =IFERROR(INDEX(ResourceRate,MATCH($B42,ResourceList,0)),"") -> 
B44: Unit Rate | E44: $/m3 | F44: =IFERROR(H44/$D$22,0) -> 0 | H44: =SUM($H$37:$H$42) -> 0
B46: Option 2 - From Council Borrow Area
B48: Resource | D48: Required? | E48: Unit | F48: Rate | G48: Quantity | H48: Total
B49: Gravel - Borrow | D49: Yes | E49: =IFERROR(INDEX(ResourceUnit,MATCH($B49,ResourceList,0)),"") -> tonne | F49: =IF(D49=Yes,IFERROR(INDEX(ResourceRate,MATCH($B49,ResourceList,0)),""),"") -> 0 | G49: =IFERROR((D22*D28*(1+D29)*(1+D31)*(D23=No))*(D49=Yes),"") -> 0 | H49: =IFERROR(F49*G49,"") -> 0
F50: =IFERROR(INDEX(ResourceRate,MATCH($B50,ResourceList,0)),"") ->  | I50: Select from dropdown for additional resources/equipment as appropriate
F51: =IFERROR(INDEX(ResourceRate,MATCH($B51,ResourceList,0)),"") -> 
F52: =IFERROR(INDEX(ResourceRate,MATCH($B52,ResourceList,0)),"") -> 
F53: =IFERROR(INDEX(ResourceRate,MATCH($B53,ResourceList,0)),"") -> 
F54: =IFERROR(INDEX(ResourceRate,MATCH($B54,ResourceList,0)),"") -> 
B56: Unit Rate | E56: $/m3 | F56: =IFERROR(H56/$D$22,0) -> 0 | H56: =SUM($H$49:$H$54) -> 0
B58: Option 3 - From Council Borrow Area
B60: Productivity of Loader | E60: bank m3/hour
B61: Bcm per load | E61: bank m3/load
B63: Resource | D63: Required? | E63: Unit | F63: Rate | G63: Quantity | H63: Total
B64: Loader | D64: Yes | E64: =IFERROR(INDEX(ResourceUnit,MATCH($B64,ResourceList,0)),"") -> hr | F64: =IF(D64=Yes,IFERROR(INDEX(ResourceRate,MATCH($B64,ResourceList,0)),""),"") -> 140 | G64: =IFERROR(((((D22*D28*(1+D29)*(1+D31)*(D23=No)/D28)/((ROUNDDOWN(D60/D61,0)*D61)))))*(D64=Yes),"") ->  | H64: =IFERROR(F64*G64,"") -> 
B65: Truck and Dog | D65: Yes | E65: hr | F65: =IF(D65=Yes,IFERROR(INDEX(ResourceRate,MATCH($B65,ResourceList,0)),""),"") -> 165 | G65: =IFERROR(((((D22*D28*(1+D29)*(1+D31)*(D23=No)/D28)/((ROUNDDOWN(D60/D61,0)*D61)))))*ROUNDDOWN(D60/D61,0)*(D65=Yes),"") ->  | H65: =IFERROR(F65*G65,"") -> 
F66: =IFERROR(INDEX(ResourceRate,MATCH($B66,ResourceList,0)),"") ->  | I66: Select from dropdown for additional resources/equipment as appropriate
F67: =IFERROR(INDEX(ResourceRate,MATCH($B67,ResourceList,0)),"") -> 
F68: =IFERROR(INDEX(ResourceRate,MATCH($B68,ResourceList,0)),"") -> 
F69: =IFERROR(INDEX(ResourceRate,MATCH($B69,ResourceList,0)),"") -> 
F70: =IFERROR(INDEX(ResourceRate,MATCH($B70,ResourceList,0)),"") -> 
B72: Unit Rate | E72: $/m3 | F72: =IFERROR(H72/$D$22,0) -> 0 | H72: =SUM($H$64:$H$70) -> 0
B74: Summary
B76: Overall Unit Rate | E76: $/m3 | F76: =IFERROR(H76/SUM($D$22),0) -> 0 | H76: =H44+H56+H72 -> 0
B78: End of Worksheet

Sheet ST4_3 (hidden)
A1: Disaster Recovery Funding Arrangements
A2: Cost Estimation Tool | F2: ="Total quantity ("&E22&"):" -> Total quantity (Bank m3): | G2: =D22 -> 0
A3: =Version_No -> Version 1.0 - Oct 18 | F3: ="Cost per unit ("&E76&"):" -> Cost per unit ($/m3): | G3: =F76 -> 0
A4: =E8 -> ST4_3 | B4: =INDEX(Gen_A!$D$37:$D$61,MATCH(REPLACE(E8,FIND("_",E8),Three,""),Gen_A!$C$37:$C$61,0)) -> Gravel Material Supply | F4: Total cost of treatment ($): | G4: =H76 -> 0
A5: Link to Claim Summary
B6: Asset Details
B8: Treatment ID | E8: =REPLACE(CELL("filename",A1),1,FIND("]",CELL("filename",A1)),"") -> ST4_3
B9: Event Name | E9: =IF(ISBLANK(EventName),"",EventName) -> December Flood
B10: Asset ID | E10: =IF(ISBLANK(AssetID),"",AssetID) -> RDS003819
B11: Asset Name | E11: =IF(ISBLANK(AssetName),"",AssetName) -> Ballan-Egerton Road
B12: Start Chainage
B13: Finish Chainage
B14: Start Latitude
B15: Start Longitude
B16: End Latitude
B17: End Longitude
B19: Applicant Inputs
B21: Variable
B22: Quantity | E22: Bank m3
B23: Sourced from a Commercial Quarry | E23: Yes/No
B25: Material Density - Commercial Quarry | E25: tonne/m3
B26: Optimum Moisture Content - Commercial Quality | E26: %
B28: Material Density - Borrow Pit | E28: tonne/m3
B29: Optimum Moisture Content - Borrow Pit | E29: %
B31: Construction Waste | E31: %
B32: Average Haul Distance | E32: km
B34: Option 1 - From Commercial Quarry
B36: Resource | D36: Required? | E36: Unit | F36: Rate | G36: Quantity | H36: Total
B37: Gravel - Commercial | D37: Yes | E37: =IFERROR(INDEX(ResourceUnit,MATCH($B37,ResourceList,0)),"") -> tonne | F37: =IF(D37=Yes,IFERROR(INDEX(ResourceRate,MATCH($B37,ResourceList,0)),""),"") -> 35 | G37: =(D22*D25*(1+D26)*(1+D31))*(D23=Yes)*(D37=Yes) -> 0 | H37: =IFERROR(F37*G37,"") -> 0
F38: =IFERROR(INDEX(ResourceRate,MATCH($B38,ResourceList,0)),"") ->  | I38: Select from dropdown for additional resources/equipment as appropriate
F39: =IFERROR(INDEX(ResourceRate,MATCH($B39,ResourceList,0)),"") -> 
F40: =IFERROR(INDEX(ResourceRate,MATCH($B40,ResourceList,0)),"") -> 
F41: =IFERROR(INDEX(ResourceRate,MATCH($B41,ResourceList,0)),"") -> 
F42: =IFERROR(INDEX(ResourceRate,MATCH($B42,ResourceList,0)),"") -> 
B44: Unit Rate | E44: $/m3 | F44: =IFERROR(H44/$D$22,0) -> 0 | H44: =SUM($H$37:$H$42) -> 0
B46: Option 2 - From Council Borrow Area
B48: Resource | D48: Required? | E48: Unit | F48: Rate | G48: Quantity | H48: Total
B49: Gravel - Borrow | D49: Yes | E49: =IFERROR(INDEX(ResourceUnit,MATCH($B49,ResourceList,0)),"") -> tonne | F49: =IF(D49=Yes,IFERROR(INDEX(ResourceRate,MATCH($B49,ResourceList,0)),""),"") -> 0 | G49: =IFERROR((D22*D28*(1+D29)*(1+D31)*(D23=No))*(D49=Yes),"") -> 0 | H49: =IFERROR(F49*G49,"") -> 0
F50: =IFERROR(INDEX(ResourceRate,MATCH($B50,ResourceList,0)),"") ->  | I50: Select from dropdown for additional resources/equipment as appropriate
F51: =IFERROR(INDEX(ResourceRate,MATCH($B51,ResourceList,0)),"") -> 
F52: =IFERROR(INDEX(ResourceRate,MATCH($B52,ResourceList,0)),"") -> 
F53: =IFERROR(INDEX(ResourceRate,MATCH($B53,ResourceList,0)),"") -> 
F54: =IFERROR(INDEX(ResourceRate,MATCH($B54,ResourceList,0)),"") -> 
B56: Unit Rate | E56: $/m3 | F56: =IFERROR(H56/$D$22,0) -> 0 | H56: =SUM($H$49:$H$54) -> 0
B58: Option 3 - From Council Borrow Area
B60: Productivity of Loader | E60: bank m3/hour
B61: Bcm per load | E61: bank m3/load
B63: Resource | D63: Required? | E63: Unit | F63: Rate | G63: Quantity | H63: Total
B64: Loader | D64: Yes | E64: =IFERROR(INDEX(ResourceUnit,MATCH($B64,ResourceList,0)),"") -> hr | F64: =IF(D64=Yes,IFERROR(INDEX(ResourceRate,MATCH($B64,ResourceList,0)),""),"") -> 140 | G64: =IFERROR(((((D22*D28*(1+D29)*(1+D31)*(D23=No)/D28)/((ROUNDDOWN(D60/D61,0)*D61)))))*(D64=Yes),"") ->  | H64: =IFERROR(F64*G64,"") -> 
B65: Truck and Dog | D65: Yes | E65: hr | F65: =IF(D65=Yes,IFERROR(INDEX(ResourceRate,MATCH($B65,ResourceList,0)),""),"") -> 165 | G65: =IFERROR(((((D22*D28*(1+D29)*(1+D31)*(D23=No)/D28)/((ROUNDDOWN(D60/D61,0)*D61)))))*ROUNDDOWN(D60/D61,0)*(D65=Yes),"") ->  | H65: =IFERROR(F65*G65,"") -> 
F66: =IFERROR(INDEX(ResourceRate,MATCH($B66,ResourceList,0)),"") ->  | I66: Select from dropdown for additional resources/equipment as appropriate
F67: =IFERROR(INDEX(ResourceRate,MATCH($B67,ResourceList,0)),"") -> 
F68: =IFERROR(INDEX(ResourceRate,MATCH($B68,ResourceList,0)),"") -> 
F69: =IFERROR(INDEX(ResourceRate,MATCH($B69,ResourceList,0)),"") -> 
F70: =IFERROR(INDEX(ResourceRate,MATCH($B70,ResourceList,0)),"") -> 
B72: Unit Rate | E72: $/m3 | F72: =IFERROR(H72/$D$22,0) -> 0 | H72: =SUM($H$64:$H$70) -> 0
B74: Summary
B76: Overall Unit Rate | E76: $/m3 | F76: =IFERROR(H76/SUM($D$22),0) -> 0 | H76: =H44+H56+H72 -> 0
B78: End of Worksheet

Sheet ST4_4 (hidden)
A1: Disaster Recovery Funding Arrangements
A2: Cost Estimation Tool | F2: ="Total quantity ("&E22&"):" -> Total quantity (Bank m3): | G2: =D22 -> 0
A3: =Version_No -> Version 1.0 - Oct 18 | F3: ="Cost per unit ("&E76&"):" -> Cost per unit ($/m3): | G3: =F76 -> 0
A4: =E8 -> ST4_4 | B4: =INDEX(Gen_A!$D$37:$D$61,MATCH(REPLACE(E8,FIND("_",E8),Three,""),Gen_A!$C$37:$C$61,0)) -> Gravel Material Supply | F4: Total cost of treatment ($): | G4: =H76 -> 0
A5: Link to Claim Summary
B6: Asset Details
B8: Treatment ID | E8: =REPLACE(CELL("filename",A1),1,FIND("]",CELL("filename",A1)),"") -> ST4_4
B9: Event Name | E9: =IF(ISBLANK(EventName),"",EventName) -> December Flood
B10: Asset ID | E10: =IF(ISBLANK(AssetID),"",AssetID) -> RDS003819
B11: Asset Name | E11: =IF(ISBLANK(AssetName),"",AssetName) -> Ballan-Egerton Road
B12: Start Chainage
B13: Finish Chainage
B14: Start Latitude
B15: Start Longitude
B16: End Latitude
B17: End Longitude
B19: Applicant Inputs
B21: Variable
B22: Quantity | E22: Bank m3
B23: Sourced from a Commercial Quarry | E23: Yes/No
B25: Material Density - Commercial Quarry | E25: tonne/m3
B26: Optimum Moisture Content - Commercial Quality | E26: %
B28: Material Density - Borrow Pit | E28: tonne/m3
B29: Optimum Moisture Content - Borrow Pit | E29: %
B31: Construction Waste | E31: %
B32: Average Haul Distance | E32: km
B34: Option 1 - From Commercial Quarry
B36: Resource | D36: Required? | E36: Unit | F36: Rate | G36: Quantity | H36: Total
B37: Gravel - Commercial | D37: Yes | E37: =IFERROR(INDEX(ResourceUnit,MATCH($B37,ResourceList,0)),"") -> tonne | F37: =IF(D37=Yes,IFERROR(INDEX(ResourceRate,MATCH($B37,ResourceList,0)),""),"") -> 35 | G37: =(D22*D25*(1+D26)*(1+D31))*(D23=Yes)*(D37=Yes) -> 0 | H37: =IFERROR(F37*G37,"") -> 0
F38: =IFERROR(INDEX(ResourceRate,MATCH($B38,ResourceList,0)),"") ->  | I38: Select from dropdown for additional resources/equipment as appropriate
F39: =IFERROR(INDEX(ResourceRate,MATCH($B39,ResourceList,0)),"") -> 
F40: =IFERROR(INDEX(ResourceRate,MATCH($B40,ResourceList,0)),"") -> 
F41: =IFERROR(INDEX(ResourceRate,MATCH($B41,ResourceList,0)),"") -> 
F42: =IFERROR(INDEX(ResourceRate,MATCH($B42,ResourceList,0)),"") -> 
B44: Unit Rate | E44: $/m3 | F44: =IFERROR(H44/$D$22,0) -> 0 | H44: =SUM($H$37:$H$42) -> 0
B46: Option 2 - From Council Borrow Area
B48: Resource | D48: Required? | E48: Unit | F48: Rate | G48: Quantity | H48: Total
B49: Gravel - Borrow | D49: Yes | E49: =IFERROR(INDEX(ResourceUnit,MATCH($B49,ResourceList,0)),"") -> tonne | F49: =IF(D49=Yes,IFERROR(INDEX(ResourceRate,MATCH($B49,ResourceList,0)),""),"") -> 0 | G49: =IFERROR((D22*D28*(1+D29)*(1+D31)*(D23=No))*(D49=Yes),"") -> 0 | H49: =IFERROR(F49*G49,"") -> 0
F50: =IFERROR(INDEX(ResourceRate,MATCH($B50,ResourceList,0)),"") ->  | I50: Select from dropdown for additional resources/equipment as appropriate
F51: =IFERROR(INDEX(ResourceRate,MATCH($B51,ResourceList,0)),"") -> 
F52: =IFERROR(INDEX(ResourceRate,MATCH($B52,ResourceList,0)),"") -> 
F53: =IFERROR(INDEX(ResourceRate,MATCH($B53,ResourceList,0)),"") -> 
F54: =IFERROR(INDEX(ResourceRate,MATCH($B54,ResourceList,0)),"") -> 
B56: Unit Rate | E56: $/m3 | F56: =IFERROR(H56/$D$22,0) -> 0 | H56: =SUM($H$49:$H$54) -> 0
B58: Option 3 - From Council Borrow Area
B60: Productivity of Loader | E60: bank m3/hour
B61: Bcm per load | E61: bank m3/load
B63: Resource | D63: Required? | E63: Unit | F63: Rate | G63: Quantity | H63: Total
B64: Loader | D64: Yes | E64: =IFERROR(INDEX(ResourceUnit,MATCH($B64,ResourceList,0)),"") -> hr | F64: =IF(D64=Yes,IFERROR(INDEX(ResourceRate,MATCH($B64,ResourceList,0)),""),"") -> 140 | G64: =IFERROR(((((D22*D28*(1+D29)*(1+D31)*(D23=No)/D28)/((ROUNDDOWN(D60/D61,0)*D61)))))*(D64=Yes),"") ->  | H64: =IFERROR(F64*G64,"") -> 
B65: Truck and Dog | D65: Yes | E65: hr | F65: =IF(D65=Yes,IFERROR(INDEX(ResourceRate,MATCH($B65,ResourceList,0)),""),"") -> 165 | G65: =IFERROR(((((D22*D28*(1+D29)*(1+D31)*(D23=No)/D28)/((ROUNDDOWN(D60/D61,0)*D61)))))*ROUNDDOWN(D60/D61,0)*(D65=Yes),"") ->  | H65: =IFERROR(F65*G65,"") -> 
F66: =IFERROR(INDEX(ResourceRate,MATCH($B66,ResourceList,0)),"") ->  | I66: Select from dropdown for additional resources/equipment as appropriate
F67: =IFERROR(INDEX(ResourceRate,MATCH($B67,ResourceList,0)),"") -> 
F68: =IFERROR(INDEX(ResourceRate,MATCH($B68,ResourceList,0)),"") -> 
F69: =IFERROR(INDEX(ResourceRate,MATCH($B69,ResourceList,0)),"") -> 
F70: =IFERROR(INDEX(ResourceRate,MATCH($B70,ResourceList,0)),"") -> 
B72: Unit Rate | E72: $/m3 | F72: =IFERROR(H72/$D$22,0) -> 0 | H72: =SUM($H$64:$H$70) -> 0
B74: Summary
B76: Overall Unit Rate | E76: $/m3 | F76: =IFERROR(H76/SUM($D$22),0) -> 0 | H76: =H44+H56+H72 -> 0
B78: End of Worksheet

Sheet ST4_5 (hidden)
A1: Disaster Recovery Funding Arrangements
A2: Cost Estimation Tool | F2: ="Total quantity ("&E22&"):" -> Total quantity (Bank m3): | G2: =D22 -> 0
A3: =Version_No -> Version 1.0 - Oct 18 | F3: ="Cost per unit ("&E76&"):" -> Cost per unit ($/m3): | G3: =F76 -> 0
A4: =E8 -> ST4_5 | B4: =INDEX(Gen_A!$D$37:$D$61,MATCH(REPLACE(E8,FIND("_",E8),Three,""),Gen_A!$C$37:$C$61,0)) -> Gravel Material Supply | F4: Total cost of treatment ($): | G4: =H76 -> 0
A5: Link to Claim Summary
B6: Asset Details
B8: Treatment ID | E8: =REPLACE(CELL("filename",A1),1,FIND("]",CELL("filename",A1)),"") -> ST4_5
B9: Event Name | E9: =IF(ISBLANK(EventName),"",EventName) -> December Flood
B10: Asset ID | E10: =IF(ISBLANK(AssetID),"",AssetID) -> RDS003819
B11: Asset Name | E11: =IF(ISBLANK(AssetName),"",AssetName) -> Ballan-Egerton Road
B12: Start Chainage
B13: Finish Chainage
B14: Start Latitude
B15: Start Longitude
B16: End Latitude
B17: End Longitude
B19: Applicant Inputs
B21: Variable
B22: Quantity | E22: Bank m3
B23: Sourced from a Commercial Quarry | E23: Yes/No
B25: Material Density - Commercial Quarry | E25: tonne/m3
B26: Optimum Moisture Content - Commercial Quality | E26: %
B28: Material Density - Borrow Pit | E28: tonne/m3
B29: Optimum Moisture Content - Borrow Pit | E29: %
B31: Construction Waste | E31: %
B32: Average Haul Distance | E32: km
B34: Option 1 - From Commercial Quarry
B36: Resource | D36: Required? | E36: Unit | F36: Rate | G36: Quantity | H36: Total
B37: Gravel - Commercial | D37: Yes | E37: =IFERROR(INDEX(ResourceUnit,MATCH($B37,ResourceList,0)),"") -> tonne | F37: =IF(D37=Yes,IFERROR(INDEX(ResourceRate,MATCH($B37,ResourceList,0)),""),"") -> 35 | G37: =(D22*D25*(1+D26)*(1+D31))*(D23=Yes)*(D37=Yes) -> 0 | H37: =IFERROR(F37*G37,"") -> 0
F38: =IFERROR(INDEX(ResourceRate,MATCH($B38,ResourceList,0)),"") ->  | I38: Select from dropdown for additional resources/equipment as appropriate
F39: =IFERROR(INDEX(ResourceRate,MATCH($B39,ResourceList,0)),"") -> 
F40: =IFERROR(INDEX(ResourceRate,MATCH($B40,ResourceList,0)),"") -> 
F41: =IFERROR(INDEX(ResourceRate,MATCH($B41,ResourceList,0)),"") -> 
F42: =IFERROR(INDEX(ResourceRate,MATCH($B42,ResourceList,0)),"") -> 
B44: Unit Rate | E44: $/m3 | F44: =IFERROR(H44/$D$22,0) -> 0 | H44: =SUM($H$37:$H$42) -> 0
B46: Option 2 - From Council Borrow Area
B48: Resource | D48: Required? | E48: Unit | F48: Rate | G48: Quantity | H48: Total
B49: Gravel - Borrow | D49: Yes | E49: =IFERROR(INDEX(ResourceUnit,MATCH($B49,ResourceList,0)),"") -> tonne | F49: =IF(D49=Yes,IFERROR(INDEX(ResourceRate,MATCH($B49,ResourceList,0)),""),"") -> 0 | G49: =IFERROR((D22*D28*(1+D29)*(1+D31)*(D23=No))*(D49=Yes),"") -> 0 | H49: =IFERROR(F49*G49,"") -> 0
F50: =IFERROR(INDEX(ResourceRate,MATCH($B50,ResourceList,0)),"") ->  | I50: Select from dropdown for additional resources/equipment as appropriate
F51: =IFERROR(INDEX(ResourceRate,MATCH($B51,ResourceList,0)),"") -> 
F52: =IFERROR(INDEX(ResourceRate,MATCH($B52,ResourceList,0)),"") -> 
F53: =IFERROR(INDEX(ResourceRate,MATCH($B53,ResourceList,0)),"") -> 
F54: =IFERROR(INDEX(ResourceRate,MATCH($B54,ResourceList,0)),"") -> 
B56: Unit Rate | E56: $/m3 | F56: =IFERROR(H56/$D$22,0) -> 0 | H56: =SUM($H$49:$H$54) -> 0
B58: Option 3 - From Council Borrow Area
B60: Productivity of Loader | E60: bank m3/hour
B61: Bcm per load | E61: bank m3/load
B63: Resource | D63: Required? | E63: Unit | F63: Rate | G63: Quantity | H63: Total
B64: Loader | D64: Yes | E64: =IFERROR(INDEX(ResourceUnit,MATCH($B64,ResourceList,0)),"") -> hr | F64: =IF(D64=Yes,IFERROR(INDEX(ResourceRate,MATCH($B64,ResourceList,0)),""),"") -> 140 | G64: =IFERROR(((((D22*D28*(1+D29)*(1+D31)*(D23=No)/D28)/((ROUNDDOWN(D60/D61,0)*D61)))))*(D64=Yes),"") ->  | H64: =IFERROR(F64*G64,"") -> 
B65: Truck and Dog | D65: Yes | E65: hr | F65: =IF(D65=Yes,IFERROR(INDEX(ResourceRate,MATCH($B65,ResourceList,0)),""),"") -> 165 | G65: =IFERROR(((((D22*D28*(1+D29)*(1+D31)*(D23=No)/D28)/((ROUNDDOWN(D60/D61,0)*D61)))))*ROUNDDOWN(D60/D61,0)*(D65=Yes),"") ->  | H65: =IFERROR(F65*G65,"") -> 
F66: =IFERROR(INDEX(ResourceRate,MATCH($B66,ResourceList,0)),"") ->  | I66: Select from dropdown for additional resources/equipment as appropriate
F67: =IFERROR(INDEX(ResourceRate,MATCH($B67,ResourceList,0)),"") -> 
F68: =IFERROR(INDEX(ResourceRate,MATCH($B68,ResourceList,0)),"") -> 
F69: =IFERROR(INDEX(ResourceRate,MATCH($B69,ResourceList,0)),"") -> 
F70: =IFERROR(INDEX(ResourceRate,MATCH($B70,ResourceList,0)),"") -> 
B72: Unit Rate | E72: $/m3 | F72: =IFERROR(H72/$D$22,0) -> 0 | H72: =SUM($H$64:$H$70) -> 0
B74: Summary
B76: Overall Unit Rate | E76: $/m3 | F76: =IFERROR(H76/SUM($D$22),0) -> 0 | H76: =H44+H56+H72 -> 0
B78: End of Worksheet

Sheet ST4_6 (hidden)
A1: Disaster Recovery Funding Arrangements
A2: Cost Estimation Tool | F2: ="Total quantity ("&E22&"):" -> Total quantity (Bank m3): | G2: =D22 -> 0
A3: =Version_No -> Version 1.0 - Oct 18 | F3: ="Cost per unit ("&E76&"):" -> Cost per unit ($/m3): | G3: =F76 -> 0
A4: =E8 -> ST4_6 | B4: =INDEX(Gen_A!$D$37:$D$61,MATCH(REPLACE(E8,FIND("_",E8),Three,""),Gen_A!$C$37:$C$61,0)) -> Gravel Material Supply | F4: Total cost of treatment ($): | G4: =H76 -> 0
A5: Link to Claim Summary
B6: Asset Details
B8: Treatment ID | E8: =REPLACE(CELL("filename",A1),1,FIND("]",CELL("filename",A1)),"") -> ST4_6
B9: Event Name | E9: =IF(ISBLANK(EventName),"",EventName) -> December Flood
B10: Asset ID | E10: =IF(ISBLANK(AssetID),"",AssetID) -> RDS003819
B11: Asset Name | E11: =IF(ISBLANK(AssetName),"",AssetName) -> Ballan-Egerton Road
B12: Start Chainage
B13: Finish Chainage
B14: Start Latitude
B15: Start Longitude
B16: End Latitude
B17: End Longitude
B19: Applicant Inputs
B21: Variable
B22: Quantity | E22: Bank m3
B23: Sourced from a Commercial Quarry | E23: Yes/No
B25: Material Density - Commercial Quarry | E25: tonne/m3
B26: Optimum Moisture Content - Commercial Quality | E26: %
B28: Material Density - Borrow Pit | E28: tonne/m3
B29: Optimum Moisture Content - Borrow Pit | E29: %
B31: Construction Waste | E31: %
B32: Average Haul Distance | E32: km
B34: Option 1 - From Commercial Quarry
B36: Resource | D36: Required? | E36: Unit | F36: Rate | G36: Quantity | H36: Total
B37: Gravel - Commercial | D37: Yes | E37: =IFERROR(INDEX(ResourceUnit,MATCH($B37,ResourceList,0)),"") -> tonne | F37: =IF(D37=Yes,IFERROR(INDEX(ResourceRate,MATCH($B37,ResourceList,0)),""),"") -> 35 | G37: =(D22*D25*(1+D26)*(1+D31))*(D23=Yes)*(D37=Yes) -> 0 | H37: =IFERROR(F37*G37,"") -> 0
F38: =IFERROR(INDEX(ResourceRate,MATCH($B38,ResourceList,0)),"") ->  | I38: Select from dropdown for additional resources/equipment as appropriate
F39: =IFERROR(INDEX(ResourceRate,MATCH($B39,ResourceList,0)),"") -> 
F40: =IFERROR(INDEX(ResourceRate,MATCH($B40,ResourceList,0)),"") -> 
F41: =IFERROR(INDEX(ResourceRate,MATCH($B41,ResourceList,0)),"") -> 
F42: =IFERROR(INDEX(ResourceRate,MATCH($B42,ResourceList,0)),"") -> 
B44: Unit Rate | E44: $/m3 | F44: =IFERROR(H44/$D$22,0) -> 0 | H44: =SUM($H$37:$H$42) -> 0
B46: Option 2 - From Council Borrow Area
B48: Resource | D48: Required? | E48: Unit | F48: Rate | G48: Quantity | H48: Total
B49: Gravel - Borrow | D49: Yes | E49: =IFERROR(INDEX(ResourceUnit,MATCH($B49,ResourceList,0)),"") -> tonne | F49: =IF(D49=Yes,IFERROR(INDEX(ResourceRate,MATCH($B49,ResourceList,0)),""),"") -> 0 | G49: =IFERROR((D22*D28*(1+D29)*(1+D31)*(D23=No))*(D49=Yes),"") -> 0 | H49: =IFERROR(F49*G49,"") -> 0
F50: =IFERROR(INDEX(ResourceRate,MATCH($B50,ResourceList,0)),"") ->  | I50: Select from dropdown for additional resources/equipment as appropriate
F51: =IFERROR(INDEX(ResourceRate,MATCH($B51,ResourceList,0)),"") -> 
F52: =IFERROR(INDEX(ResourceRate,MATCH($B52,ResourceList,0)),"") -> 
F53: =IFERROR(INDEX(ResourceRate,MATCH($B53,ResourceList,0)),"") -> 
F54: =IFERROR(INDEX(ResourceRate,MATCH($B54,ResourceList,0)),"") -> 
B56: Unit Rate | E56: $/m3 | F56: =IFERROR(H56/$D$22,0) -> 0 | H56: =SUM($H$49:$H$54) -> 0
B58: Option 3 - From Council Borrow Area
B60: Productivity of Loader | E60: bank m3/hour
B61: Bcm per load | E61: bank m3/load
B63: Resource | D63: Required? | E63: Unit | F63: Rate | G63: Quantity | H63: Total
B64: Loader | D64: Yes | E64: =IFERROR(INDEX(ResourceUnit,MATCH($B64,ResourceList,0)),"") -> hr | F64: =IF(D64=Yes,IFERROR(INDEX(ResourceRate,MATCH($B64,ResourceList,0)),""),"") -> 140 | G64: =IFERROR(((((D22*D28*(1+D29)*(1+D31)*(D23=No)/D28)/((ROUNDDOWN(D60/D61,0)*D61)))))*(D64=Yes),"") ->  | H64: =IFERROR(F64*G64,"") -> 
B65: Truck and Dog | D65: Yes | E65: hr | F65: =IF(D65=Yes,IFERROR(INDEX(ResourceRate,MATCH($B65,ResourceList,0)),""),"") -> 165 | G65: =IFERROR(((((D22*D28*(1+D29)*(1+D31)*(D23=No)/D28)/((ROUNDDOWN(D60/D61,0)*D61)))))*ROUNDDOWN(D60/D61,0)*(D65=Yes),"") ->  | H65: =IFERROR(F65*G65,"") -> 
F66: =IFERROR(INDEX(ResourceRate,MATCH($B66,ResourceList,0)),"") ->  | I66: Select from dropdown for additional resources/equipment as appropriate
F67: =IFERROR(INDEX(ResourceRate,MATCH($B67,ResourceList,0)),"") -> 
F68: =IFERROR(INDEX(ResourceRate,MATCH($B68,ResourceList,0)),"") -> 
F69: =IFERROR(INDEX(ResourceRate,MATCH($B69,ResourceList,0)),"") -> 
F70: =IFERROR(INDEX(ResourceRate,MATCH($B70,ResourceList,0)),"") -> 
B72: Unit Rate | E72: $/m3 | F72: =IFERROR(H72/$D$22,0) -> 0 | H72: =SUM($H$64:$H$70) -> 0
B74: Summary
B76: Overall Unit Rate | E76: $/m3 | F76: =IFERROR(H76/SUM($D$22),0) -> 0 | H76: =H44+H56+H72 -> 0
B78: End of Worksheet

Sheet ST5_1 (hidden)
A1: Disaster Recovery Funding Arrangements
A2: Cost Estimation Tool | F2: ="Total quantity ("&E28&"):" -> Total quantity (m3): | G2: =SUM(D28,D32,D36) -> 200
A3: =Version_No -> Version 1.0 - Oct 18 | F3: ="Cost per unit ("&E128&"):" -> Cost per unit ($/m3): | G3: =F128 -> 85.5255
A4: =E8 -> ST5_1 | B4: =INDEX(Gen_A!$D$37:$D$61,MATCH(REPLACE(E8,FIND("_",E8),Three,""),Gen_A!$C$37:$C$61,0)) -> Gravel Resheeting | F4: Total cost of treatment ($): | G4: =H128 -> 17105.1
A5: Link to Claim Summary
B6: Asset Details
B8: Treatment ID | E8: =REPLACE(CELL("filename",A1),1,FIND("]",CELL("filename",A1)),"") -> ST5_1
B9: Event Name | E9: =IF(ISBLANK(EventName),"",EventName) -> December Flood
B10: Asset ID | E10: =IF(ISBLANK(AssetID),"",AssetID) -> RDS003819
B11: Asset Name | E11: =IF(ISBLANK(AssetName),"",AssetName) -> Ballan-Egerton Road
B12: Start Chainage | E12: 1
B13: Finish Chainage | E13: 0`
B14: Start Latitude | E14: 500
B15: Start Longitude
B16: End Latitude
B17: End Longitude
B19: Applicant Inputs
B21: Variable
B22: Percentage of Duration Requiring Supervision | D22: 1 | E22: %
B23: Material Density | D23: 2.2 | E23: tonne/m3
B24: Optimum Moisture Content | D24: 0.03 | E24: %
B25: Construction Waste | D25: 0.05 | E25: %
B27: Individual Site - Less than 100m3
B28: Quantity | E28: m3 | I28: Total Quantity for sites < 100m3
B29: No. of Sites | E29: #
B31: Individual Site - Greater than 100m3 and less than 300m3
B32: Quantity | E32: m3 | I32: Total Quantity for sites between 100m3 and 300m3
B33: No. of Sites | E33: #
B35: Individual Site - Greater than 300m3
B36: Quantity | D36: 200 | E36: m3 | I36: Total Quantity for sites > 300m3
B37: No. of Sites | D37: 2 | E37: #
B39: Calculations - Individual Site Less than 100m3
B41: Average Travel Time from One Site to Other | D41: 0.5 | E41: hrs
B42: Production | D42: 100 | E42: m3/hr
B43: Time to Set Up and Remove Traffic Control Devices for Each Section | D43: 1 | E43: hrs
B45: Resource | D45: Required? | E45: Unit | F45: Rate | G45: Quantity | H45: Total
B46: Foreman and Vehicle | D46: Yes | E46: =IFERROR(INDEX(ResourceUnit,MATCH($B46,ResourceList,0)),"") -> hr | F46: =IF(D46=Yes,IFERROR(INDEX(ResourceRate,MATCH($B46,ResourceList,0)),""),"") -> 120 | G46: =IFERROR((D28/D42*D22+D29*(D41+D43))*(D46=Yes),"") -> 0 | H46: =IFERROR(F46*G46,"") -> 0
B47: Job Truck without Operator | D47: Yes | E47: hr | F47: 110 | G47: =IFERROR((D28/D42+D29*(D41+D43))*(D47=Yes),"") -> 0 | H47: =IFERROR(F47*G47,"") -> 0
B48: Labourer - Traffic Control | D48: Yes | E48: hr | F48: 90 | G48: =IFERROR((Two*(D29*(D41+D43)))*(D48=Yes),"") -> 0 | H48: 0 | I48: This is for two persons for travel time and set up and removal of traffic control
B49: Grader and Operator | D49: Yes | E49: hr | F49: 180 | G49: =IFERROR(((D28/D42)+D29*D41)*(D49=Yes),"") -> 0 | H49: 0
B50: Water Truck | D50: Yes | E50: hr | F50: 105 | G50: =IFERROR(((D28/D42)+D29*D41)*(D50=Yes),"") -> 0 | H50: 0
B51: Pad Foot Roller and Operator | D51: No | E51: hr | G51: =IFERROR((D28/D42)*(D51=Yes),"") -> 0
B52: Smooth Drum Roller and Operator | D52: Yes | E52: hr | F52: 110 | G52: =IFERROR((D28/D42)*(D52=Yes),"") -> 0 | H52: 0
B53: Multi-Tyre Roller Without Operator | D53: No | E53: hr | G53: =IFERROR((D28/D42)*(D53=Yes),"") -> 0
B54: Prime Mover/L Bed | D54: Yes | E54: hr | F54: 150 | G54: =IFERROR((Three*(D41*Two+Half)*D29)*(D54=Yes),"") -> 0 | H54: 0 | I54: This is for the movement between sites of three plant item
B55: Labourer - Traffic Control | D55: No | E55: hr | G55: =IFERROR(((D28/D42)*Two)*(D55=Yes),"") -> 0 | I55: This is for two persons whilst works are being carried out
B56: Gravel - Commercial | D56: Yes | E56: tonne | F56: 35 | G56: =IFERROR((D28*D23*(1+D24)*(1+D25))*(D56=Yes),"") -> 0 | H56: 0
B57: Ablution Block | D57: No | E57: hr | G57: =IFERROR((D28/D42+D29*(D41+D43))*(D57=Yes),"") -> 0
B58: Camp - Kitchen | D58: No | E58: hr | G58: =IFERROR((D28/D42+D29*(D41+D43))*(D58=Yes),"") -> 0
B59: Accommodation | D59: No | E59: hr | G59: =IFERROR(((D28/D42+D29*(D41+D43))*Three)*(D59=Yes),"") -> 0 | I59: This is accommodation provision for three persons
F60: =IFERROR(INDEX(ResourceRate,MATCH($B60,ResourceList,0)),"") ->  | I60: Select from dropdown for additional resources/equipment as appropriate
F61: =IFERROR(INDEX(ResourceRate,MATCH($B61,ResourceList,0)),"") -> 
F62: =IFERROR(INDEX(ResourceRate,MATCH($B62,ResourceList,0)),"") -> 
F63: =IFERROR(INDEX(ResourceRate,MATCH($B63,ResourceList,0)),"") -> 
F64: =IFERROR(INDEX(ResourceRate,MATCH($B64,ResourceList,0)),"") -> 
B66: Unit Rate | E66: $/m3 | F66: =IFERROR(H66/$D$28,0) -> 0 | H66: =SUM($H$46:$H$64) -> 0
B68: Calculations - Individual Site Greater than 100m3 and less than 300m3
B70: Average Travel Time from One Site to Other | E70: hrs
B71: Production | E71: m3/hr
B72: Time to Set Up and Remove Traffic Control Devices for Each Section | E72: hrs
B74: Resource | D74: Required? | E74: Unit | F74: Rate | G74: Quantity | H74: Total
B75: Foreman and Vehicle | D75: Yes | E75: =IFERROR(INDEX(ResourceUnit,MATCH($B75,ResourceList,0)),"") -> hr | F75: =IF(D75=Yes,IFERROR(INDEX(ResourceRate,MATCH($B75,ResourceList,0)),""),"") -> 120 | G75: =IFERROR((D32/D71+D33*(D70+D72))*(D75=Yes),"") ->  | H75: =IFERROR(F75*G75,"") -> 
